{"text_format":"1","workbook":"xlsx","n_sheets":17,"sheets":["Read Me 1st","1. Signature Page","2. Contact Information","3.  CTE Programs - All","4. CTE Courses - Secondary","5. CTE Courses - Postsecondary","6. Performance, Priorities","7. Student Support & Opptys.","8.  Professionals & Program ","9. FC 400 Budget","10. FC 401 Budget","11. FC 401 ISA Crosswalk","Schedule A","Dropdowns","DataLookupValues","DataDistrictList","DataDistCIP"],"not_rendered":{"charts":0,"images":0,"macros":0,"external_links":3,"defined_names":120,"comments":0,"pivot_tables":0},"unopened":[],"bounds":{"document_bytes":16777216,"sheet_cells":100000,"rows_first":2000,"rows_last":500,"rows_between":2000,"halvings":0,"cell_chars":16384,"cell_head_chars":4096},"cells_cut":0,"cells_raw":0,"read":"whole","date_system":"1900"}

{"sheet":"Read Me 1st","index":0,"n_rows":30,"n_cols":2,"rows_kept":30,"cut":false,"hidden":false,"merged":[[14,1,14,12],[1,1,1,12],[2,1,2,12],[3,1,3,12],[4,1,12,12],[13,1,13,12],[28,1,28,12],[29,1,29,12],[15,1,15,12],[16,1,23,12],[24,1,24,12],[25,1,25,12],[26,1,26,12],[27,1,27,12]]}
[]
[null,"Massachusetts Department of Elementary & Secondary Education"]
[null,"FY21 Strengthening Career and Technical Education in the 21st Century Act\nSecondary and Postsecondary Application Workbook"]
[null,"Overview  "]
[null,"\nThis application allows LEAs (districts, institutions and other eligible entities, referred to in this application collectively as \"applicants\") to apply for funding for the Perkins Secondary (Fund Code 400) and Postsecondary (Fund Code 401) Allocation Grants.                                \n\nIf you have questions, please refer to our Federal Grant Programs website and/or contact the Federal Grants liaison assigned to you for guidance.\n\n"]
[]
[]
[]
[]
[]
[]
[]
[]
[null,"First Step:  Saving the File"]
[null,"Save this file to your computer. Rename the file by replacing the words 'leacode' in the file name with your 4-digit district or institution code, but keep the rest of the filename and the file extension (.xlsm) the same. For example, Abington (0001) would rename the file as 'FY21Perkins-0001.xlsm'. Users of Apple Macintosh computers must save as a macro-enabled file (with an .xlsm extension) to your desktop or laptop for the workbook to function properly."]
[null,"Tips for Completing the Application"]
[null,"  \n Workflow and printing:  \n    • Each tab related to your grant (FC 400 (secondary) or FC 401 (postsecondary)) must be completed.  \n\n   •  The Budget worksheet, which mirrors the budget entry page in EdGrants, must be completed. The budget worksheet in this Excel document,\n      in addition to entering budget information in EdGrants, are both mandatory.\n\n   •  This workbook is structured to be completed in electronic format, zoomed to a scale of 100%. You may also print a copy using Excel's print \n      preview functions to set the appearance and paper orientation to best fit your completed application.  \n   \n Color-coding and cell features:\n   •  Cells that appear in light yellow require districts to input information. Text may be pasted into these cells as long as the text does not contain\n      Excel formulas or other formatting.  \n\n   •  Cells that appear in light orange offer a dropdown menu from which districts can choose a supplied response. Do not cut and paste \n      information from other pages or sources into orange cells!\n\n   •  Throughout the tabs of this application you will find instruction boxes (gray), tip boxes (pink) to help you avoid common mistakes. You will \n      also find resource boxes (tan) that include links to materials outside the application with more detailed, grant-related information."]
[]
[]
[]
[]
[]
[]
[]
[null,"   •  If boxes/cells containing text in some parts of the application appear to be cut off, please enlarge the \"view\" of that page using your \n      Zoom feature (usually a slide bar appearing in the lower corner of your Excel screen), which should solve the problem.  100% is best \n      in most cases.\n\n Last Steps:\n   •  Signature Page (Tab 1) :  Once the application has been completed, print, sign, date (using date of submission), scan and upload \n      a signed copy of the signature page with the applicant's EdGrants submissions.   We cannot approve any grant without an uploaded, \n      signed, and properly dated signature page!\n\n   •  Federal Grant Assurances : Each applicant must review the FY21 Federal Grant Assurances and submit a signed, \n      scanned (pdf) signature page for grant assurances (not to be confused with the signature page for each grant application) indicating \n      such review and assurance of compliance with the requirements contained therein. Once the application has been completed, print, sign, \n      date (using date of submission), scan and upload as an attachment to its Title I Edgrants submission (Fund Code 305). If you do not receive\n      a Title I grant, contact your DESE grant liaison for submission instructions.  We cannot approve any federal entitlement grant without \n      an uploaded, signed, and properly dated Federal Grant Assurances signature page!\n\n   •  All tabs related to programs for which a district has received an allocation must be complete and the budget submitted in \n      EdGrants for each of those fund codes in order for an application to be substantially approvable and ready for review.  No partial \n      submissions will be accepted.\n"]
[null," Submit the FY21 Application as an Excel workbook via EdGrants Front Office web page"]
[null,"\nEdGrants Submission Information:\nMost districts/applicants already have designated control users in EdGrants: Front Office, who may access and submit grant applications, as well as make payment requests. Each district/applicant must ensure that it has an authorized control user prior to grant submission. If a district waits until its completed grant is ready to submit before inquiring about a new user name/login, the grant submission may be delayed several business days to allow for control user set-up. Please review the EdGrants Security Controls documents and/or contact DESE's Grants Management Office, 781-338-6595 or EdGrants@doe.mass.edu, with any questions regarding your EdGrants: Front Office control users.  "]
[null,"The district/applicant control users will register each grant opportunity, create each grant project and enter contact information, budget, and required attachments in EdGrants. All district business offices have been contacted with information regarding training. If you are unsure who in your office is a control user, please contact your business office. The Perkins Application Workbook must be uploaded with your Perkins budget in EdGrants. "]
[null,"Applications are due by September 28, 2020"]
[null,"NOTE ON SUBMISSION TIMELINE: \n    • Due to higher volume of applications coming in to DESE close to the 2020 deadline, applicants that submit near the due date should expect to \n      wait a few weeks to hear back from their DESE liaison. Applicants that submit early may see a shorter turnaround.   \n    • The start date for the grant is the date on which the applicant submits an application that contains substantially approvable programmatic and \n       budget information.  \n    •  Applicants that fail to file by September 28, 2020 will receive last priority for review.    \n    •  Expenses incurred prior to approval of an applicant's application and start date(s) are not payable with grant funds!\n    •  Responding quickly to your liaison's requests for information can result in an earlier approval of your grant application.  \n    •  Grant payment notices will be available in EdGrants after the grant application has been approved and the initial payment is processed.\n"]

{"sheet":"1. Signature Page","index":1,"n_rows":32,"n_cols":17,"rows_kept":32,"cut":false,"hidden":false,"merged":[[18,1,19,19],[2,1,3,19],[5,1,5,19],[6,1,6,19],[11,5,11,11],[12,5,12,11],[21,1,21,4],[21,5,21,10],[21,12,21,13],[21,14,21,18],[22,1,22,4],[22,5,22,10],[22,12,22,13],[22,14,22,18],[26,1,28,3],[26,4,26,8],[26,9,26,15],[26,16,26,19],[27,4,28,8],[27,9,27,12],[27,13,27,15],[27,16,28,19],[28,9,28,12],[28,13,28,15],[29,1,31,3],[29,4,29,8],[29,9,29,15],[29,16,29,19],[30,4,31,8],[30,9,30,12],[30,13,30,15],[30,16,31,19],[31,9,31,12],[31,13,31,15]]}
[]
[]
[null,"Massachusetts Department of Elementary and Secondary Education\nSTANDARD CONTRACT FORM AND APPLICATION FOR PROGRAM GRANTS"]
[]
[]
[null,"UPLOAD A SCANNED, SIGNED COPY OF THIS PAGE WITH THE DATE OF SUBMISSION TO EDGRANTS WITH THE BUDGET "]
[null,"District/Institutional staff with the role of “control user” in EdGrants have been provided user log-in names and passwords and have been trained to submit a grant application via EdGrants. Provide all required application \nmaterials to your district/institutional control user with access to EdGrants to submit budgets and attachments  for each fund code for which the institution is applying.                                                              \n                 Applications are due by September 28, 2020"]
[]
[]
[null,null,null,"Applicant Name:",null,null,null,null,null,null,null,null,"Org Code:",null,{"$f":"valorg4code","v":"Org "}]
[]
[null,null,null,"Address: ",null,{"$f":"valAddr1","v":"Address 1"},null,null,null,null,null,null,"DESE Federal Grant Liaison",null,null,{"$f":"valname","v":"Liaison's Name"}]
[null,null,null,null,null,{"$f":"valCtyStZip","v":"Town, State Zip"},null,null,null,null,null,null,"Phone number:",null,null,{"$f":"valphonenum","v":"Liaison's Number"}]
[null,null,null,null,null,null,null,null,null,null,null,null,"Email:",null,null,{"$f":"valemail","v":"Liaison's Email"}]
[]
[]
[null,null,null,null,null,null,null,null,null,null,null,null,"`"]
[]
[null,"I CERTIFY THAT THE INFORMATION CONTAINED IN THIS APPLICATION IS CORRECT AND COMPLETE; THAT THE APPLICANT AGENCY HAS AUTHORIZED ME, AS ITS REPRESENTATIVE, TO FILE THIS APPLICATION; AND THAT I UNDERSTAND THAT FOR ANY FUNDS RECEIVED THROUGH THIS APPLICATION THE AGENCY AGREES TO COMPLY WITH ALL APPLICABLE STATE AND FEDERAL GRANT REQUIREMENTS COVERING BOTH THE PROGRAMMATIC AND FISCAL ADMINISTRATION OF GRANT FUNDS."]
[]
[]
[null,"AUTHORIZED SIGNATURE:",null,null,null,null,null,null,null,null,null,null,"TITLE:"]
[null,"PRINTED NAME:",null,null,null,null,null,null,null,null,null,null,"SUBMISSION DATE:"]
[]
[]
[]
[null,"FY2021\nAllocation",null,null,"FEDERAL GRANT",null,null,null,null,"PROJECT DURATION",null,null,null,null,null,null,"TOTAL ALLOCATION"]
[null,null,null,null,"Strengthening Career and Technical Education, FC 400\n(Secondary)",null,null,null,null,"FROM",null,null,null,"TO"]
[null,null,null,null,null,null,null,null,null,"UPON APPROVAL",null,null,null,"8/31/2021"]
[null,"FY2021\nAllocation",null,null,"FEDERAL GRANT",null,null,null,null,"PROJECT DURATION",null,null,null,null,null,null,"TOTAL ALLOCATION"]
[null,null,null,null,"Strengthening Career and Technical Education, FC 401\n(Postsecondary)",null,null,null,null,"FROM",null,null,null,"TO"]
[null,null,null,null,null,null,null,null,null,"UPON APPROVAL",null,null,null,"8/31/2021"]

{"sheet":"2. Contact Information","index":2,"n_rows":28,"n_cols":6,"rows_kept":28,"cut":false,"hidden":false,"merged":[[26,3,26,12],[27,2,27,4],[27,5,27,12],[4,1,15,1],[16,1,27,1],[23,2,23,4],[23,5,23,12],[24,2,24,3],[24,4,24,12],[25,3,25,12],[19,3,19,12],[20,3,20,12],[21,2,21,4],[21,5,21,12],[22,2,22,12],[16,2,16,12],[17,2,17,4],[17,5,17,12],[18,2,18,3],[18,4,18,12],[13,3,13,12],[14,3,14,12],[15,2,15,4],[15,5,15,12],[7,3,7,12],[8,3,8,12],[11,2,11,4],[11,5,11,12],[12,2,12,3],[12,4,12,12],[9,2,9,4],[9,5,9,12],[10,2,10,12],[1,1,1,5],[5,2,5,4],[5,5,5,12],[6,2,6,3],[6,4,6,12],[3,2,3,12],[4,2,4,12]]}
[]
[null,{"$f":"DistrName","v":"Org Name"}]
[]
[null,null,"Contact Information \nPlease provide information for primary contact for application"]
[null,"Secondary","Perkins Secondary Allocation Grant (Fund Code 400)"]
[null,null,"Name of Primary Contact:"]
[null,null,"Title:"]
[null,null,"Phone:"]
[null,null,"Email:"]
[null,null,"New to this program?  (Y/N)",null,null,"Select One"]
[null,null,"Business Office Contact (for fiscal information, if different from above)"]
[null,null,"Name of Primary Contact:"]
[null,null,"Title:"]
[null,null,"Phone:"]
[null,null,"Email:"]
[null,null,"New to this program?  (Y/N)",null,null,"Select One"]
[null,"Postsecondary","Perkins Postsecondary Allocation Grant (Fund Code 401)"]
[null,null,"Name of Primary Contact:"]
[null,null,"Title:"]
[null,null,"Phone:"]
[null,null,"Email:"]
[null,null,"New to this program?  (Y/N)",null,null,"Select One"]
[null,null,"Business Office Contact (for fiscal information, if different from above)"]
[null,null,"Name of Primary Contact:"]
[null,null,"Title:"]
[null,null,"Phone:"]
[null,null,"Email:"]
[null,null,"New to this program?  (Y/N)",null,null,"Select One"]

{"sheet":"3.  CTE Programs - All","index":3,"n_rows":65,"n_cols":15,"rows_kept":65,"cut":false,"hidden":false,"merged":[[64,4,68,5],[63,6,63,10],[64,6,68,10],[49,3,52,3],[5,3,6,3],[7,3,8,3],[49,4,49,8],[1,2,1,5],[3,2,3,5],[5,4,5,7],[63,4,63,5],[61,14,61,17]]}
[]
[null,null,{"$f":"DistrName","v":"Org Name"}]
[]
[null,null,"CTE Program Information"]
[]
[null,null,null,"Step 3.1\nCTE Reported Programs\nAll Grant Applicants","CTE Programs Reported to DESE\nThis list will be autopopulated with programs reported to DESE in FY20.  Use Step 3.2 to report new programs."]
[null,null,null,null,"CIP/Prog Code","Program","Enrollment/Concentrators","Approved Chapter 74 Program?"]
[null,0,null,null,{"$f":"IFERROR(IF(INDEX(DataDistCIP!$B$2:$B$1495,MATCH(valorg4code,DataDistCIP!$B$2:$B$1495,0)+B8,1)<>valorg4code,\"\",INDEX(DataDistCIP!$E$2:$E$1495,MATCH(valorg4code,DataDistCIP!$B$2:$B$1495,0)+B8,1)), \"\")","v":""},{"$f":"IFERROR(IF(INDEX(DataDistCIP!$B$2:$BF$1495,MATCH(valorg4code,DataDistCIP!$B$2:$B$1495,0)+B8,1)<>valorg4code,\"\",INDEX(DataDistCIP!$F$2:$F$1495,MATCH(valorg4code,DataDistCIP!$B$2:$B$1495,0)+B8,1)), \"\")","v":""},{"$f":"IFERROR(IF(INDEX(DataDistCIP!$B$2:$B$1495,MATCH(valorg4code,DataDistCIP!$B$2:$B$1495,0)+B8,1)<>valorg4code,\"\",INDEX(DataDistCIP!$G$2:$G$1495,MATCH(valorg4code,DataDistCIP!$B$2:$B$1495,0)+B8,1)), \"\")","v":""},{"$f":"IFERROR(IF(INDEX(DataDistCIP!$B$2:$B$1495,MATCH(valorg4code,DataDistCIP!$B$2:$B$1495,0)+B8,1)<>valorg4code,\"\",INDEX(DataDistCIP!$D$2:$D$1495,MATCH(valorg4code,DataDistCIP!$B$2:$B$1495,0)+B8,1)), \"\")","v":""}]
[null,1,null,null,{"$f":"IFERROR(IF(INDEX(DataDistCIP!$B$2:$B$1495,MATCH(valorg4code,DataDistCIP!$B$2:$B$1495,0)+B9,1)<>valorg4code,\"\",INDEX(DataDistCIP!$E$2:$E$1495,MATCH(valorg4code,DataDistCIP!$B$2:$B$1495,0)+B9,1)), \"\")","v":""},{"$f":"IFERROR(IF(INDEX(DataDistCIP!$B$2:$BF$1495,MATCH(valorg4code,DataDistCIP!$B$2:$B$1495,0)+B9,1)<>valorg4code,\"\",INDEX(DataDistCIP!$F$2:$F$1495,MATCH(valorg4code,DataDistCIP!$B$2:$B$1495,0)+B9,1)), \"\")","v":""},{"$f":"IFERROR(IF(INDEX(DataDistCIP!$B$2:$B$1495,MATCH(valorg4code,DataDistCIP!$B$2:$B$1495,0)+B9,1)<>valorg4code,\"\",INDEX(DataDistCIP!$G$2:$G$1495,MATCH(valorg4code,DataDistCIP!$B$2:$B$1495,0)+B9,1)), \"\")","v":""},{"$f":"IFERROR(IF(INDEX(DataDistCIP!$B$2:$B$1495,MATCH(valorg4code,DataDistCIP!$B$2:$B$1495,0)+B9,1)<>valorg4code,\"\",INDEX(DataDistCIP!$D$2:$D$1495,MATCH(valorg4code,DataDistCIP!$B$2:$B$1495,0)+B9,1)), \"\")","v":""}]
[null,2,null,null,{"$f":"IFERROR(IF(INDEX(DataDistCIP!$B$2:$B$1495,MATCH(valorg4code,DataDistCIP!$B$2:$B$1495,0)+B10,1)<>valorg4code,\"\",INDEX(DataDistCIP!$E$2:$E$1495,MATCH(valorg4code,DataDistCIP!$B$2:$B$1495,0)+B10,1)), \"\")","v":""},{"$f":"IFERROR(IF(INDEX(DataDistCIP!$B$2:$BF$1495,MATCH(valorg4code,DataDistCIP!$B$2:$B$1495,0)+B10,1)<>valorg4code,\"\",INDEX(DataDistCIP!$F$2:$F$1495,MATCH(valorg4code,DataDistCIP!$B$2:$B$1495,0)+B10,1)), \"\")","v":""},{"$f":"IFERROR(IF(INDEX(DataDistCIP!$B$2:$B$1495,MATCH(valorg4code,DataDistCIP!$B$2:$B$1495,0)+B10,1)<>valorg4code,\"\",INDEX(DataDistCIP!$G$2:$G$1495,MATCH(valorg4code,DataDistCIP!$B$2:$B$1495,0)+B10,1)), \"\")","v":""},{"$f":"IFERROR(IF(INDEX(DataDistCIP!$B$2:$B$1495,MATCH(valorg4code,DataDistCIP!$B$2:$B$1495,0)+B10,1)<>valorg4code,\"\",INDEX(DataDistCIP!$D$2:$D$1495,MATCH(valorg4code,DataDistCIP!$B$2:$B$1495,0)+B10,1)), \"\")","v":""}]
[null,3,null,null,{"$f":"IFERROR(IF(INDEX(DataDistCIP!$B$2:$B$1495,MATCH(valorg4code,DataDistCIP!$B$2:$B$1495,0)+B11,1)<>valorg4code,\"\",INDEX(DataDistCIP!$E$2:$E$1495,MATCH(valorg4code,DataDistCIP!$B$2:$B$1495,0)+B11,1)), \"\")","v":""},{"$f":"IFERROR(IF(INDEX(DataDistCIP!$B$2:$BF$1495,MATCH(valorg4code,DataDistCIP!$B$2:$B$1495,0)+B11,1)<>valorg4code,\"\",INDEX(DataDistCIP!$F$2:$F$1495,MATCH(valorg4code,DataDistCIP!$B$2:$B$1495,0)+B11,1)), \"\")","v":""},{"$f":"IFERROR(IF(INDEX(DataDistCIP!$B$2:$B$1495,MATCH(valorg4code,DataDistCIP!$B$2:$B$1495,0)+B11,1)<>valorg4code,\"\",INDEX(DataDistCIP!$G$2:$G$1495,MATCH(valorg4code,DataDistCIP!$B$2:$B$1495,0)+B11,1)), \"\")","v":""},{"$f":"IFERROR(IF(INDEX(DataDistCIP!$B$2:$B$1495,MATCH(valorg4code,DataDistCIP!$B$2:$B$1495,0)+B11,1)<>valorg4code,\"\",INDEX(DataDistCIP!$D$2:$D$1495,MATCH(valorg4code,DataDistCIP!$B$2:$B$1495,0)+B11,1)), \"\")","v":""}]
[null,4,null,null,{"$f":"IFERROR(IF(INDEX(DataDistCIP!$B$2:$B$1495,MATCH(valorg4code,DataDistCIP!$B$2:$B$1495,0)+B12,1)<>valorg4code,\"\",INDEX(DataDistCIP!$E$2:$E$1495,MATCH(valorg4code,DataDistCIP!$B$2:$B$1495,0)+B12,1)), \"\")","v":""},{"$f":"IFERROR(IF(INDEX(DataDistCIP!$B$2:$BF$1495,MATCH(valorg4code,DataDistCIP!$B$2:$B$1495,0)+B12,1)<>valorg4code,\"\",INDEX(DataDistCIP!$F$2:$F$1495,MATCH(valorg4code,DataDistCIP!$B$2:$B$1495,0)+B12,1)), \"\")","v":""},{"$f":"IFERROR(IF(INDEX(DataDistCIP!$B$2:$B$1495,MATCH(valorg4code,DataDistCIP!$B$2:$B$1495,0)+B12,1)<>valorg4code,\"\",INDEX(DataDistCIP!$G$2:$G$1495,MATCH(valorg4code,DataDistCIP!$B$2:$B$1495,0)+B12,1)), \"\")","v":""},{"$f":"IFERROR(IF(INDEX(DataDistCIP!$B$2:$B$1495,MATCH(valorg4code,DataDistCIP!$B$2:$B$1495,0)+B12,1)<>valorg4code,\"\",INDEX(DataDistCIP!$D$2:$D$1495,MATCH(valorg4code,DataDistCIP!$B$2:$B$1495,0)+B12,1)), \"\")","v":""}]
[null,5,null,null,{"$f":"IFERROR(IF(INDEX(DataDistCIP!$B$2:$B$1495,MATCH(valorg4code,DataDistCIP!$B$2:$B$1495,0)+B13,1)<>valorg4code,\"\",INDEX(DataDistCIP!$E$2:$E$1495,MATCH(valorg4code,DataDistCIP!$B$2:$B$1495,0)+B13,1)), \"\")","v":""},{"$f":"IFERROR(IF(INDEX(DataDistCIP!$B$2:$BF$1495,MATCH(valorg4code,DataDistCIP!$B$2:$B$1495,0)+B13,1)<>valorg4code,\"\",INDEX(DataDistCIP!$F$2:$F$1495,MATCH(valorg4code,DataDistCIP!$B$2:$B$1495,0)+B13,1)), \"\")","v":""},{"$f":"IFERROR(IF(INDEX(DataDistCIP!$B$2:$B$1495,MATCH(valorg4code,DataDistCIP!$B$2:$B$1495,0)+B13,1)<>valorg4code,\"\",INDEX(DataDistCIP!$G$2:$G$1495,MATCH(valorg4code,DataDistCIP!$B$2:$B$1495,0)+B13,1)), \"\")","v":""},{"$f":"IFERROR(IF(INDEX(DataDistCIP!$B$2:$B$1495,MATCH(valorg4code,DataDistCIP!$B$2:$B$1495,0)+B13,1)<>valorg4code,\"\",INDEX(DataDistCIP!$D$2:$D$1495,MATCH(valorg4code,DataDistCIP!$B$2:$B$1495,0)+B13,1)), \"\")","v":""}]
[null,6,null,null,{"$f":"IFERROR(IF(INDEX(DataDistCIP!$B$2:$B$1495,MATCH(valorg4code,DataDistCIP!$B$2:$B$1495,0)+B14,1)<>valorg4code,\"\",INDEX(DataDistCIP!$E$2:$E$1495,MATCH(valorg4code,DataDistCIP!$B$2:$B$1495,0)+B14,1)), \"\")","v":""},{"$f":"IFERROR(IF(INDEX(DataDistCIP!$B$2:$BF$1495,MATCH(valorg4code,DataDistCIP!$B$2:$B$1495,0)+B14,1)<>valorg4code,\"\",INDEX(DataDistCIP!$F$2:$F$1495,MATCH(valorg4code,DataDistCIP!$B$2:$B$1495,0)+B14,1)), \"\")","v":""},{"$f":"IFERROR(IF(INDEX(DataDistCIP!$B$2:$B$1495,MATCH(valorg4code,DataDistCIP!$B$2:$B$1495,0)+B14,1)<>valorg4code,\"\",INDEX(DataDistCIP!$G$2:$G$1495,MATCH(valorg4code,DataDistCIP!$B$2:$B$1495,0)+B14,1)), \"\")","v":""},{"$f":"IFERROR(IF(INDEX(DataDistCIP!$B$2:$B$1495,MATCH(valorg4code,DataDistCIP!$B$2:$B$1495,0)+B14,1)<>valorg4code,\"\",INDEX(DataDistCIP!$D$2:$D$1495,MATCH(valorg4code,DataDistCIP!$B$2:$B$1495,0)+B14,1)), \"\")","v":""}]
[null,7,null,null,{"$f":"IFERROR(IF(INDEX(DataDistCIP!$B$2:$B$1495,MATCH(valorg4code,DataDistCIP!$B$2:$B$1495,0)+B15,1)<>valorg4code,\"\",INDEX(DataDistCIP!$E$2:$E$1495,MATCH(valorg4code,DataDistCIP!$B$2:$B$1495,0)+B15,1)), \"\")","v":""},{"$f":"IFERROR(IF(INDEX(DataDistCIP!$B$2:$BF$1495,MATCH(valorg4code,DataDistCIP!$B$2:$B$1495,0)+B15,1)<>valorg4code,\"\",INDEX(DataDistCIP!$F$2:$F$1495,MATCH(valorg4code,DataDistCIP!$B$2:$B$1495,0)+B15,1)), \"\")","v":""},{"$f":"IFERROR(IF(INDEX(DataDistCIP!$B$2:$B$1495,MATCH(valorg4code,DataDistCIP!$B$2:$B$1495,0)+B15,1)<>valorg4code,\"\",INDEX(DataDistCIP!$G$2:$G$1495,MATCH(valorg4code,DataDistCIP!$B$2:$B$1495,0)+B15,1)), \"\")","v":""},{"$f":"IFERROR(IF(INDEX(DataDistCIP!$B$2:$B$1495,MATCH(valorg4code,DataDistCIP!$B$2:$B$1495,0)+B15,1)<>valorg4code,\"\",INDEX(DataDistCIP!$D$2:$D$1495,MATCH(valorg4code,DataDistCIP!$B$2:$B$1495,0)+B15,1)), \"\")","v":""}]
[null,8,null,null,{"$f":"IFERROR(IF(INDEX(DataDistCIP!$B$2:$B$1495,MATCH(valorg4code,DataDistCIP!$B$2:$B$1495,0)+B16,1)<>valorg4code,\"\",INDEX(DataDistCIP!$E$2:$E$1495,MATCH(valorg4code,DataDistCIP!$B$2:$B$1495,0)+B16,1)), \"\")","v":""},{"$f":"IFERROR(IF(INDEX(DataDistCIP!$B$2:$BF$1495,MATCH(valorg4code,DataDistCIP!$B$2:$B$1495,0)+B16,1)<>valorg4code,\"\",INDEX(DataDistCIP!$F$2:$F$1495,MATCH(valorg4code,DataDistCIP!$B$2:$B$1495,0)+B16,1)), \"\")","v":""},{"$f":"IFERROR(IF(INDEX(DataDistCIP!$B$2:$B$1495,MATCH(valorg4code,DataDistCIP!$B$2:$B$1495,0)+B16,1)<>valorg4code,\"\",INDEX(DataDistCIP!$G$2:$G$1495,MATCH(valorg4code,DataDistCIP!$B$2:$B$1495,0)+B16,1)), \"\")","v":""},{"$f":"IFERROR(IF(INDEX(DataDistCIP!$B$2:$B$1495,MATCH(valorg4code,DataDistCIP!$B$2:$B$1495,0)+B16,1)<>valorg4code,\"\",INDEX(DataDistCIP!$D$2:$D$1495,MATCH(valorg4code,DataDistCIP!$B$2:$B$1495,0)+B16,1)), \"\")","v":""}]
[null,9,null,null,{"$f":"IFERROR(IF(INDEX(DataDistCIP!$B$2:$B$1495,MATCH(valorg4code,DataDistCIP!$B$2:$B$1495,0)+B17,1)<>valorg4code,\"\",INDEX(DataDistCIP!$E$2:$E$1495,MATCH(valorg4code,DataDistCIP!$B$2:$B$1495,0)+B17,1)), \"\")","v":""},{"$f":"IFERROR(IF(INDEX(DataDistCIP!$B$2:$BF$1495,MATCH(valorg4code,DataDistCIP!$B$2:$B$1495,0)+B17,1)<>valorg4code,\"\",INDEX(DataDistCIP!$F$2:$F$1495,MATCH(valorg4code,DataDistCIP!$B$2:$B$1495,0)+B17,1)), \"\")","v":""},{"$f":"IFERROR(IF(INDEX(DataDistCIP!$B$2:$B$1495,MATCH(valorg4code,DataDistCIP!$B$2:$B$1495,0)+B17,1)<>valorg4code,\"\",INDEX(DataDistCIP!$G$2:$G$1495,MATCH(valorg4code,DataDistCIP!$B$2:$B$1495,0)+B17,1)), \"\")","v":""},{"$f":"IFERROR(IF(INDEX(DataDistCIP!$B$2:$B$1495,MATCH(valorg4code,DataDistCIP!$B$2:$B$1495,0)+B17,1)<>valorg4code,\"\",INDEX(DataDistCIP!$D$2:$D$1495,MATCH(valorg4code,DataDistCIP!$B$2:$B$1495,0)+B17,1)), \"\")","v":""}]
[null,10,null,null,{"$f":"IFERROR(IF(INDEX(DataDistCIP!$B$2:$B$1495,MATCH(valorg4code,DataDistCIP!$B$2:$B$1495,0)+B18,1)<>valorg4code,\"\",INDEX(DataDistCIP!$E$2:$E$1495,MATCH(valorg4code,DataDistCIP!$B$2:$B$1495,0)+B18,1)), \"\")","v":""},{"$f":"IFERROR(IF(INDEX(DataDistCIP!$B$2:$BF$1495,MATCH(valorg4code,DataDistCIP!$B$2:$B$1495,0)+B18,1)<>valorg4code,\"\",INDEX(DataDistCIP!$F$2:$F$1495,MATCH(valorg4code,DataDistCIP!$B$2:$B$1495,0)+B18,1)), \"\")","v":""},{"$f":"IFERROR(IF(INDEX(DataDistCIP!$B$2:$B$1495,MATCH(valorg4code,DataDistCIP!$B$2:$B$1495,0)+B18,1)<>valorg4code,\"\",INDEX(DataDistCIP!$G$2:$G$1495,MATCH(valorg4code,DataDistCIP!$B$2:$B$1495,0)+B18,1)), \"\")","v":""},{"$f":"IFERROR(IF(INDEX(DataDistCIP!$B$2:$B$1495,MATCH(valorg4code,DataDistCIP!$B$2:$B$1495,0)+B18,1)<>valorg4code,\"\",INDEX(DataDistCIP!$D$2:$D$1495,MATCH(valorg4code,DataDistCIP!$B$2:$B$1495,0)+B18,1)), \"\")","v":""}]
[null,11,null,null,{"$f":"IFERROR(IF(INDEX(DataDistCIP!$B$2:$B$1495,MATCH(valorg4code,DataDistCIP!$B$2:$B$1495,0)+B19,1)<>valorg4code,\"\",INDEX(DataDistCIP!$E$2:$E$1495,MATCH(valorg4code,DataDistCIP!$B$2:$B$1495,0)+B19,1)), \"\")","v":""},{"$f":"IFERROR(IF(INDEX(DataDistCIP!$B$2:$BF$1495,MATCH(valorg4code,DataDistCIP!$B$2:$B$1495,0)+B19,1)<>valorg4code,\"\",INDEX(DataDistCIP!$F$2:$F$1495,MATCH(valorg4code,DataDistCIP!$B$2:$B$1495,0)+B19,1)), \"\")","v":""},{"$f":"IFERROR(IF(INDEX(DataDistCIP!$B$2:$B$1495,MATCH(valorg4code,DataDistCIP!$B$2:$B$1495,0)+B19,1)<>valorg4code,\"\",INDEX(DataDistCIP!$G$2:$G$1495,MATCH(valorg4code,DataDistCIP!$B$2:$B$1495,0)+B19,1)), \"\")","v":""},{"$f":"IFERROR(IF(INDEX(DataDistCIP!$B$2:$B$1495,MATCH(valorg4code,DataDistCIP!$B$2:$B$1495,0)+B19,1)<>valorg4code,\"\",INDEX(DataDistCIP!$D$2:$D$1495,MATCH(valorg4code,DataDistCIP!$B$2:$B$1495,0)+B19,1)), \"\")","v":""}]
[null,12,null,null,{"$f":"IFERROR(IF(INDEX(DataDistCIP!$B$2:$B$1495,MATCH(valorg4code,DataDistCIP!$B$2:$B$1495,0)+B20,1)<>valorg4code,\"\",INDEX(DataDistCIP!$E$2:$E$1495,MATCH(valorg4code,DataDistCIP!$B$2:$B$1495,0)+B20,1)), \"\")","v":""},{"$f":"IFERROR(IF(INDEX(DataDistCIP!$B$2:$BF$1495,MATCH(valorg4code,DataDistCIP!$B$2:$B$1495,0)+B20,1)<>valorg4code,\"\",INDEX(DataDistCIP!$F$2:$F$1495,MATCH(valorg4code,DataDistCIP!$B$2:$B$1495,0)+B20,1)), \"\")","v":""},{"$f":"IFERROR(IF(INDEX(DataDistCIP!$B$2:$B$1495,MATCH(valorg4code,DataDistCIP!$B$2:$B$1495,0)+B20,1)<>valorg4code,\"\",INDEX(DataDistCIP!$G$2:$G$1495,MATCH(valorg4code,DataDistCIP!$B$2:$B$1495,0)+B20,1)), \"\")","v":""},{"$f":"IFERROR(IF(INDEX(DataDistCIP!$B$2:$B$1495,MATCH(valorg4code,DataDistCIP!$B$2:$B$1495,0)+B20,1)<>valorg4code,\"\",INDEX(DataDistCIP!$D$2:$D$1495,MATCH(valorg4code,DataDistCIP!$B$2:$B$1495,0)+B20,1)), \"\")","v":""}]
[null,13,null,null,{"$f":"IFERROR(IF(INDEX(DataDistCIP!$B$2:$B$1495,MATCH(valorg4code,DataDistCIP!$B$2:$B$1495,0)+B21,1)<>valorg4code,\"\",INDEX(DataDistCIP!$E$2:$E$1495,MATCH(valorg4code,DataDistCIP!$B$2:$B$1495,0)+B21,1)), \"\")","v":""},{"$f":"IFERROR(IF(INDEX(DataDistCIP!$B$2:$BF$1495,MATCH(valorg4code,DataDistCIP!$B$2:$B$1495,0)+B21,1)<>valorg4code,\"\",INDEX(DataDistCIP!$F$2:$F$1495,MATCH(valorg4code,DataDistCIP!$B$2:$B$1495,0)+B21,1)), \"\")","v":""},{"$f":"IFERROR(IF(INDEX(DataDistCIP!$B$2:$B$1495,MATCH(valorg4code,DataDistCIP!$B$2:$B$1495,0)+B21,1)<>valorg4code,\"\",INDEX(DataDistCIP!$G$2:$G$1495,MATCH(valorg4code,DataDistCIP!$B$2:$B$1495,0)+B21,1)), \"\")","v":""},{"$f":"IFERROR(IF(INDEX(DataDistCIP!$B$2:$B$1495,MATCH(valorg4code,DataDistCIP!$B$2:$B$1495,0)+B21,1)<>valorg4code,\"\",INDEX(DataDistCIP!$D$2:$D$1495,MATCH(valorg4code,DataDistCIP!$B$2:$B$1495,0)+B21,1)), \"\")","v":""}]
[null,14,null,null,{"$f":"IFERROR(IF(INDEX(DataDistCIP!$B$2:$B$1495,MATCH(valorg4code,DataDistCIP!$B$2:$B$1495,0)+B22,1)<>valorg4code,\"\",INDEX(DataDistCIP!$E$2:$E$1495,MATCH(valorg4code,DataDistCIP!$B$2:$B$1495,0)+B22,1)), \"\")","v":""},{"$f":"IFERROR(IF(INDEX(DataDistCIP!$B$2:$BF$1495,MATCH(valorg4code,DataDistCIP!$B$2:$B$1495,0)+B22,1)<>valorg4code,\"\",INDEX(DataDistCIP!$F$2:$F$1495,MATCH(valorg4code,DataDistCIP!$B$2:$B$1495,0)+B22,1)), \"\")","v":""},{"$f":"IFERROR(IF(INDEX(DataDistCIP!$B$2:$B$1495,MATCH(valorg4code,DataDistCIP!$B$2:$B$1495,0)+B22,1)<>valorg4code,\"\",INDEX(DataDistCIP!$G$2:$G$1495,MATCH(valorg4code,DataDistCIP!$B$2:$B$1495,0)+B22,1)), \"\")","v":""},{"$f":"IFERROR(IF(INDEX(DataDistCIP!$B$2:$B$1495,MATCH(valorg4code,DataDistCIP!$B$2:$B$1495,0)+B22,1)<>valorg4code,\"\",INDEX(DataDistCIP!$D$2:$D$1495,MATCH(valorg4code,DataDistCIP!$B$2:$B$1495,0)+B22,1)), \"\")","v":""}]
[null,15,null,null,{"$f":"IFERROR(IF(INDEX(DataDistCIP!$B$2:$B$1495,MATCH(valorg4code,DataDistCIP!$B$2:$B$1495,0)+B23,1)<>valorg4code,\"\",INDEX(DataDistCIP!$E$2:$E$1495,MATCH(valorg4code,DataDistCIP!$B$2:$B$1495,0)+B23,1)), \"\")","v":""},{"$f":"IFERROR(IF(INDEX(DataDistCIP!$B$2:$BF$1495,MATCH(valorg4code,DataDistCIP!$B$2:$B$1495,0)+B23,1)<>valorg4code,\"\",INDEX(DataDistCIP!$F$2:$F$1495,MATCH(valorg4code,DataDistCIP!$B$2:$B$1495,0)+B23,1)), \"\")","v":""},{"$f":"IFERROR(IF(INDEX(DataDistCIP!$B$2:$B$1495,MATCH(valorg4code,DataDistCIP!$B$2:$B$1495,0)+B23,1)<>valorg4code,\"\",INDEX(DataDistCIP!$G$2:$G$1495,MATCH(valorg4code,DataDistCIP!$B$2:$B$1495,0)+B23,1)), \"\")","v":""},{"$f":"IFERROR(IF(INDEX(DataDistCIP!$B$2:$B$1495,MATCH(valorg4code,DataDistCIP!$B$2:$B$1495,0)+B23,1)<>valorg4code,\"\",INDEX(DataDistCIP!$D$2:$D$1495,MATCH(valorg4code,DataDistCIP!$B$2:$B$1495,0)+B23,1)), \"\")","v":""}]
[null,16,null,null,{"$f":"IFERROR(IF(INDEX(DataDistCIP!$B$2:$B$1495,MATCH(valorg4code,DataDistCIP!$B$2:$B$1495,0)+B24,1)<>valorg4code,\"\",INDEX(DataDistCIP!$E$2:$E$1495,MATCH(valorg4code,DataDistCIP!$B$2:$B$1495,0)+B24,1)), \"\")","v":""},{"$f":"IFERROR(IF(INDEX(DataDistCIP!$B$2:$BF$1495,MATCH(valorg4code,DataDistCIP!$B$2:$B$1495,0)+B24,1)<>valorg4code,\"\",INDEX(DataDistCIP!$F$2:$F$1495,MATCH(valorg4code,DataDistCIP!$B$2:$B$1495,0)+B24,1)), \"\")","v":""},{"$f":"IFERROR(IF(INDEX(DataDistCIP!$B$2:$B$1495,MATCH(valorg4code,DataDistCIP!$B$2:$B$1495,0)+B24,1)<>valorg4code,\"\",INDEX(DataDistCIP!$G$2:$G$1495,MATCH(valorg4code,DataDistCIP!$B$2:$B$1495,0)+B24,1)), \"\")","v":""},{"$f":"IFERROR(IF(INDEX(DataDistCIP!$B$2:$B$1495,MATCH(valorg4code,DataDistCIP!$B$2:$B$1495,0)+B24,1)<>valorg4code,\"\",INDEX(DataDistCIP!$D$2:$D$1495,MATCH(valorg4code,DataDistCIP!$B$2:$B$1495,0)+B24,1)), \"\")","v":""}]
[null,17,null,null,{"$f":"IFERROR(IF(INDEX(DataDistCIP!$B$2:$B$1495,MATCH(valorg4code,DataDistCIP!$B$2:$B$1495,0)+B25,1)<>valorg4code,\"\",INDEX(DataDistCIP!$E$2:$E$1495,MATCH(valorg4code,DataDistCIP!$B$2:$B$1495,0)+B25,1)), \"\")","v":""},{"$f":"IFERROR(IF(INDEX(DataDistCIP!$B$2:$BF$1495,MATCH(valorg4code,DataDistCIP!$B$2:$B$1495,0)+B25,1)<>valorg4code,\"\",INDEX(DataDistCIP!$F$2:$F$1495,MATCH(valorg4code,DataDistCIP!$B$2:$B$1495,0)+B25,1)), \"\")","v":""},{"$f":"IFERROR(IF(INDEX(DataDistCIP!$B$2:$B$1495,MATCH(valorg4code,DataDistCIP!$B$2:$B$1495,0)+B25,1)<>valorg4code,\"\",INDEX(DataDistCIP!$G$2:$G$1495,MATCH(valorg4code,DataDistCIP!$B$2:$B$1495,0)+B25,1)), \"\")","v":""},{"$f":"IFERROR(IF(INDEX(DataDistCIP!$B$2:$B$1495,MATCH(valorg4code,DataDistCIP!$B$2:$B$1495,0)+B25,1)<>valorg4code,\"\",INDEX(DataDistCIP!$D$2:$D$1495,MATCH(valorg4code,DataDistCIP!$B$2:$B$1495,0)+B25,1)), \"\")","v":""}]
[null,18,null,null,{"$f":"IFERROR(IF(INDEX(DataDistCIP!$B$2:$B$1495,MATCH(valorg4code,DataDistCIP!$B$2:$B$1495,0)+B26,1)<>valorg4code,\"\",INDEX(DataDistCIP!$E$2:$E$1495,MATCH(valorg4code,DataDistCIP!$B$2:$B$1495,0)+B26,1)), \"\")","v":""},{"$f":"IFERROR(IF(INDEX(DataDistCIP!$B$2:$BF$1495,MATCH(valorg4code,DataDistCIP!$B$2:$B$1495,0)+B26,1)<>valorg4code,\"\",INDEX(DataDistCIP!$F$2:$F$1495,MATCH(valorg4code,DataDistCIP!$B$2:$B$1495,0)+B26,1)), \"\")","v":""},{"$f":"IFERROR(IF(INDEX(DataDistCIP!$B$2:$B$1495,MATCH(valorg4code,DataDistCIP!$B$2:$B$1495,0)+B26,1)<>valorg4code,\"\",INDEX(DataDistCIP!$G$2:$G$1495,MATCH(valorg4code,DataDistCIP!$B$2:$B$1495,0)+B26,1)), \"\")","v":""},{"$f":"IFERROR(IF(INDEX(DataDistCIP!$B$2:$B$1495,MATCH(valorg4code,DataDistCIP!$B$2:$B$1495,0)+B26,1)<>valorg4code,\"\",INDEX(DataDistCIP!$D$2:$D$1495,MATCH(valorg4code,DataDistCIP!$B$2:$B$1495,0)+B26,1)), \"\")","v":""}]
[null,19,null,null,{"$f":"IFERROR(IF(INDEX(DataDistCIP!$B$2:$B$1495,MATCH(valorg4code,DataDistCIP!$B$2:$B$1495,0)+B27,1)<>valorg4code,\"\",INDEX(DataDistCIP!$E$2:$E$1495,MATCH(valorg4code,DataDistCIP!$B$2:$B$1495,0)+B27,1)), \"\")","v":""},{"$f":"IFERROR(IF(INDEX(DataDistCIP!$B$2:$BF$1495,MATCH(valorg4code,DataDistCIP!$B$2:$B$1495,0)+B27,1)<>valorg4code,\"\",INDEX(DataDistCIP!$F$2:$F$1495,MATCH(valorg4code,DataDistCIP!$B$2:$B$1495,0)+B27,1)), \"\")","v":""},{"$f":"IFERROR(IF(INDEX(DataDistCIP!$B$2:$B$1495,MATCH(valorg4code,DataDistCIP!$B$2:$B$1495,0)+B27,1)<>valorg4code,\"\",INDEX(DataDistCIP!$G$2:$G$1495,MATCH(valorg4code,DataDistCIP!$B$2:$B$1495,0)+B27,1)), \"\")","v":""},{"$f":"IFERROR(IF(INDEX(DataDistCIP!$B$2:$B$1495,MATCH(valorg4code,DataDistCIP!$B$2:$B$1495,0)+B27,1)<>valorg4code,\"\",INDEX(DataDistCIP!$D$2:$D$1495,MATCH(valorg4code,DataDistCIP!$B$2:$B$1495,0)+B27,1)), \"\")","v":""}]
[null,20,null,null,{"$f":"IFERROR(IF(INDEX(DataDistCIP!$B$2:$B$1495,MATCH(valorg4code,DataDistCIP!$B$2:$B$1495,0)+B28,1)<>valorg4code,\"\",INDEX(DataDistCIP!$E$2:$E$1495,MATCH(valorg4code,DataDistCIP!$B$2:$B$1495,0)+B28,1)), \"\")","v":""},{"$f":"IFERROR(IF(INDEX(DataDistCIP!$B$2:$BF$1495,MATCH(valorg4code,DataDistCIP!$B$2:$B$1495,0)+B28,1)<>valorg4code,\"\",INDEX(DataDistCIP!$F$2:$F$1495,MATCH(valorg4code,DataDistCIP!$B$2:$B$1495,0)+B28,1)), \"\")","v":""},{"$f":"IFERROR(IF(INDEX(DataDistCIP!$B$2:$B$1495,MATCH(valorg4code,DataDistCIP!$B$2:$B$1495,0)+B28,1)<>valorg4code,\"\",INDEX(DataDistCIP!$G$2:$G$1495,MATCH(valorg4code,DataDistCIP!$B$2:$B$1495,0)+B28,1)), \"\")","v":""},{"$f":"IFERROR(IF(INDEX(DataDistCIP!$B$2:$B$1495,MATCH(valorg4code,DataDistCIP!$B$2:$B$1495,0)+B28,1)<>valorg4code,\"\",INDEX(DataDistCIP!$D$2:$D$1495,MATCH(valorg4code,DataDistCIP!$B$2:$B$1495,0)+B28,1)), \"\")","v":""}]
[null,21,null,null,{"$f":"IFERROR(IF(INDEX(DataDistCIP!$B$2:$B$1495,MATCH(valorg4code,DataDistCIP!$B$2:$B$1495,0)+B29,1)<>valorg4code,\"\",INDEX(DataDistCIP!$E$2:$E$1495,MATCH(valorg4code,DataDistCIP!$B$2:$B$1495,0)+B29,1)), \"\")","v":""},{"$f":"IFERROR(IF(INDEX(DataDistCIP!$B$2:$BF$1495,MATCH(valorg4code,DataDistCIP!$B$2:$B$1495,0)+B29,1)<>valorg4code,\"\",INDEX(DataDistCIP!$F$2:$F$1495,MATCH(valorg4code,DataDistCIP!$B$2:$B$1495,0)+B29,1)), \"\")","v":""},{"$f":"IFERROR(IF(INDEX(DataDistCIP!$B$2:$B$1495,MATCH(valorg4code,DataDistCIP!$B$2:$B$1495,0)+B29,1)<>valorg4code,\"\",INDEX(DataDistCIP!$G$2:$G$1495,MATCH(valorg4code,DataDistCIP!$B$2:$B$1495,0)+B29,1)), \"\")","v":""},{"$f":"IFERROR(IF(INDEX(DataDistCIP!$B$2:$B$1495,MATCH(valorg4code,DataDistCIP!$B$2:$B$1495,0)+B29,1)<>valorg4code,\"\",INDEX(DataDistCIP!$D$2:$D$1495,MATCH(valorg4code,DataDistCIP!$B$2:$B$1495,0)+B29,1)), \"\")","v":""}]
[null,22,null,null,{"$f":"IFERROR(IF(INDEX(DataDistCIP!$B$2:$B$1495,MATCH(valorg4code,DataDistCIP!$B$2:$B$1495,0)+B30,1)<>valorg4code,\"\",INDEX(DataDistCIP!$E$2:$E$1495,MATCH(valorg4code,DataDistCIP!$B$2:$B$1495,0)+B30,1)), \"\")","v":""},{"$f":"IFERROR(IF(INDEX(DataDistCIP!$B$2:$BF$1495,MATCH(valorg4code,DataDistCIP!$B$2:$B$1495,0)+B30,1)<>valorg4code,\"\",INDEX(DataDistCIP!$F$2:$F$1495,MATCH(valorg4code,DataDistCIP!$B$2:$B$1495,0)+B30,1)), \"\")","v":""},{"$f":"IFERROR(IF(INDEX(DataDistCIP!$B$2:$B$1495,MATCH(valorg4code,DataDistCIP!$B$2:$B$1495,0)+B30,1)<>valorg4code,\"\",INDEX(DataDistCIP!$G$2:$G$1495,MATCH(valorg4code,DataDistCIP!$B$2:$B$1495,0)+B30,1)), \"\")","v":""},{"$f":"IFERROR(IF(INDEX(DataDistCIP!$B$2:$B$1495,MATCH(valorg4code,DataDistCIP!$B$2:$B$1495,0)+B30,1)<>valorg4code,\"\",INDEX(DataDistCIP!$D$2:$D$1495,MATCH(valorg4code,DataDistCIP!$B$2:$B$1495,0)+B30,1)), \"\")","v":""}]
[null,23,null,null,{"$f":"IFERROR(IF(INDEX(DataDistCIP!$B$2:$B$1495,MATCH(valorg4code,DataDistCIP!$B$2:$B$1495,0)+B31,1)<>valorg4code,\"\",INDEX(DataDistCIP!$E$2:$E$1495,MATCH(valorg4code,DataDistCIP!$B$2:$B$1495,0)+B31,1)), \"\")","v":""},{"$f":"IFERROR(IF(INDEX(DataDistCIP!$B$2:$BF$1495,MATCH(valorg4code,DataDistCIP!$B$2:$B$1495,0)+B31,1)<>valorg4code,\"\",INDEX(DataDistCIP!$F$2:$F$1495,MATCH(valorg4code,DataDistCIP!$B$2:$B$1495,0)+B31,1)), \"\")","v":""},{"$f":"IFERROR(IF(INDEX(DataDistCIP!$B$2:$B$1495,MATCH(valorg4code,DataDistCIP!$B$2:$B$1495,0)+B31,1)<>valorg4code,\"\",INDEX(DataDistCIP!$G$2:$G$1495,MATCH(valorg4code,DataDistCIP!$B$2:$B$1495,0)+B31,1)), \"\")","v":""},{"$f":"IFERROR(IF(INDEX(DataDistCIP!$B$2:$B$1495,MATCH(valorg4code,DataDistCIP!$B$2:$B$1495,0)+B31,1)<>valorg4code,\"\",INDEX(DataDistCIP!$D$2:$D$1495,MATCH(valorg4code,DataDistCIP!$B$2:$B$1495,0)+B31,1)), \"\")","v":""}]
[null,24,null,null,{"$f":"IFERROR(IF(INDEX(DataDistCIP!$B$2:$B$1495,MATCH(valorg4code,DataDistCIP!$B$2:$B$1495,0)+B32,1)<>valorg4code,\"\",INDEX(DataDistCIP!$E$2:$E$1495,MATCH(valorg4code,DataDistCIP!$B$2:$B$1495,0)+B32,1)), \"\")","v":""},{"$f":"IFERROR(IF(INDEX(DataDistCIP!$B$2:$BF$1495,MATCH(valorg4code,DataDistCIP!$B$2:$B$1495,0)+B32,1)<>valorg4code,\"\",INDEX(DataDistCIP!$F$2:$F$1495,MATCH(valorg4code,DataDistCIP!$B$2:$B$1495,0)+B32,1)), \"\")","v":""},{"$f":"IFERROR(IF(INDEX(DataDistCIP!$B$2:$B$1495,MATCH(valorg4code,DataDistCIP!$B$2:$B$1495,0)+B32,1)<>valorg4code,\"\",INDEX(DataDistCIP!$G$2:$G$1495,MATCH(valorg4code,DataDistCIP!$B$2:$B$1495,0)+B32,1)), \"\")","v":""},{"$f":"IFERROR(IF(INDEX(DataDistCIP!$B$2:$B$1495,MATCH(valorg4code,DataDistCIP!$B$2:$B$1495,0)+B32,1)<>valorg4code,\"\",INDEX(DataDistCIP!$D$2:$D$1495,MATCH(valorg4code,DataDistCIP!$B$2:$B$1495,0)+B32,1)), \"\")","v":""}]
[null,25,null,null,{"$f":"IFERROR(IF(INDEX(DataDistCIP!$B$2:$B$1495,MATCH(valorg4code,DataDistCIP!$B$2:$B$1495,0)+B33,1)<>valorg4code,\"\",INDEX(DataDistCIP!$E$2:$E$1495,MATCH(valorg4code,DataDistCIP!$B$2:$B$1495,0)+B33,1)), \"\")","v":""},{"$f":"IFERROR(IF(INDEX(DataDistCIP!$B$2:$BF$1495,MATCH(valorg4code,DataDistCIP!$B$2:$B$1495,0)+B33,1)<>valorg4code,\"\",INDEX(DataDistCIP!$F$2:$F$1495,MATCH(valorg4code,DataDistCIP!$B$2:$B$1495,0)+B33,1)), \"\")","v":""},{"$f":"IFERROR(IF(INDEX(DataDistCIP!$B$2:$B$1495,MATCH(valorg4code,DataDistCIP!$B$2:$B$1495,0)+B33,1)<>valorg4code,\"\",INDEX(DataDistCIP!$G$2:$G$1495,MATCH(valorg4code,DataDistCIP!$B$2:$B$1495,0)+B33,1)), \"\")","v":""},{"$f":"IFERROR(IF(INDEX(DataDistCIP!$B$2:$B$1495,MATCH(valorg4code,DataDistCIP!$B$2:$B$1495,0)+B33,1)<>valorg4code,\"\",INDEX(DataDistCIP!$D$2:$D$1495,MATCH(valorg4code,DataDistCIP!$B$2:$B$1495,0)+B33,1)), \"\")","v":""}]
[null,26,null,null,{"$f":"IFERROR(IF(INDEX(DataDistCIP!$B$2:$B$1495,MATCH(valorg4code,DataDistCIP!$B$2:$B$1495,0)+B34,1)<>valorg4code,\"\",INDEX(DataDistCIP!$E$2:$E$1495,MATCH(valorg4code,DataDistCIP!$B$2:$B$1495,0)+B34,1)), \"\")","v":""},{"$f":"IFERROR(IF(INDEX(DataDistCIP!$B$2:$BF$1495,MATCH(valorg4code,DataDistCIP!$B$2:$B$1495,0)+B34,1)<>valorg4code,\"\",INDEX(DataDistCIP!$F$2:$F$1495,MATCH(valorg4code,DataDistCIP!$B$2:$B$1495,0)+B34,1)), \"\")","v":""},{"$f":"IFERROR(IF(INDEX(DataDistCIP!$B$2:$B$1495,MATCH(valorg4code,DataDistCIP!$B$2:$B$1495,0)+B34,1)<>valorg4code,\"\",INDEX(DataDistCIP!$G$2:$G$1495,MATCH(valorg4code,DataDistCIP!$B$2:$B$1495,0)+B34,1)), \"\")","v":""},{"$f":"IFERROR(IF(INDEX(DataDistCIP!$B$2:$B$1495,MATCH(valorg4code,DataDistCIP!$B$2:$B$1495,0)+B34,1)<>valorg4code,\"\",INDEX(DataDistCIP!$D$2:$D$1495,MATCH(valorg4code,DataDistCIP!$B$2:$B$1495,0)+B34,1)), \"\")","v":""}]
[null,27,null,null,{"$f":"IFERROR(IF(INDEX(DataDistCIP!$B$2:$B$1495,MATCH(valorg4code,DataDistCIP!$B$2:$B$1495,0)+B35,1)<>valorg4code,\"\",INDEX(DataDistCIP!$E$2:$E$1495,MATCH(valorg4code,DataDistCIP!$B$2:$B$1495,0)+B35,1)), \"\")","v":""},{"$f":"IFERROR(IF(INDEX(DataDistCIP!$B$2:$BF$1495,MATCH(valorg4code,DataDistCIP!$B$2:$B$1495,0)+B35,1)<>valorg4code,\"\",INDEX(DataDistCIP!$F$2:$F$1495,MATCH(valorg4code,DataDistCIP!$B$2:$B$1495,0)+B35,1)), \"\")","v":""},{"$f":"IFERROR(IF(INDEX(DataDistCIP!$B$2:$B$1495,MATCH(valorg4code,DataDistCIP!$B$2:$B$1495,0)+B35,1)<>valorg4code,\"\",INDEX(DataDistCIP!$G$2:$G$1495,MATCH(valorg4code,DataDistCIP!$B$2:$B$1495,0)+B35,1)), \"\")","v":""},{"$f":"IFERROR(IF(INDEX(DataDistCIP!$B$2:$B$1495,MATCH(valorg4code,DataDistCIP!$B$2:$B$1495,0)+B35,1)<>valorg4code,\"\",INDEX(DataDistCIP!$D$2:$D$1495,MATCH(valorg4code,DataDistCIP!$B$2:$B$1495,0)+B35,1)), \"\")","v":""}]
[null,28,null,null,{"$f":"IFERROR(IF(INDEX(DataDistCIP!$B$2:$B$1495,MATCH(valorg4code,DataDistCIP!$B$2:$B$1495,0)+B36,1)<>valorg4code,\"\",INDEX(DataDistCIP!$E$2:$E$1495,MATCH(valorg4code,DataDistCIP!$B$2:$B$1495,0)+B36,1)), \"\")","v":""},{"$f":"IFERROR(IF(INDEX(DataDistCIP!$B$2:$BF$1495,MATCH(valorg4code,DataDistCIP!$B$2:$B$1495,0)+B36,1)<>valorg4code,\"\",INDEX(DataDistCIP!$F$2:$F$1495,MATCH(valorg4code,DataDistCIP!$B$2:$B$1495,0)+B36,1)), \"\")","v":""},{"$f":"IFERROR(IF(INDEX(DataDistCIP!$B$2:$B$1495,MATCH(valorg4code,DataDistCIP!$B$2:$B$1495,0)+B36,1)<>valorg4code,\"\",INDEX(DataDistCIP!$G$2:$G$1495,MATCH(valorg4code,DataDistCIP!$B$2:$B$1495,0)+B36,1)), \"\")","v":""},{"$f":"IFERROR(IF(INDEX(DataDistCIP!$B$2:$B$1495,MATCH(valorg4code,DataDistCIP!$B$2:$B$1495,0)+B36,1)<>valorg4code,\"\",INDEX(DataDistCIP!$D$2:$D$1495,MATCH(valorg4code,DataDistCIP!$B$2:$B$1495,0)+B36,1)), \"\")","v":""}]
[null,29,null,null,{"$f":"IFERROR(IF(INDEX(DataDistCIP!$B$2:$B$1495,MATCH(valorg4code,DataDistCIP!$B$2:$B$1495,0)+B37,1)<>valorg4code,\"\",INDEX(DataDistCIP!$E$2:$E$1495,MATCH(valorg4code,DataDistCIP!$B$2:$B$1495,0)+B37,1)), \"\")","v":""},{"$f":"IFERROR(IF(INDEX(DataDistCIP!$B$2:$BF$1495,MATCH(valorg4code,DataDistCIP!$B$2:$B$1495,0)+B37,1)<>valorg4code,\"\",INDEX(DataDistCIP!$F$2:$F$1495,MATCH(valorg4code,DataDistCIP!$B$2:$B$1495,0)+B37,1)), \"\")","v":""},{"$f":"IFERROR(IF(INDEX(DataDistCIP!$B$2:$B$1495,MATCH(valorg4code,DataDistCIP!$B$2:$B$1495,0)+B37,1)<>valorg4code,\"\",INDEX(DataDistCIP!$G$2:$G$1495,MATCH(valorg4code,DataDistCIP!$B$2:$B$1495,0)+B37,1)), \"\")","v":""},{"$f":"IFERROR(IF(INDEX(DataDistCIP!$B$2:$B$1495,MATCH(valorg4code,DataDistCIP!$B$2:$B$1495,0)+B37,1)<>valorg4code,\"\",INDEX(DataDistCIP!$D$2:$D$1495,MATCH(valorg4code,DataDistCIP!$B$2:$B$1495,0)+B37,1)), \"\")","v":""}]
[null,30,null,null,{"$f":"IFERROR(IF(INDEX(DataDistCIP!$B$2:$B$1495,MATCH(valorg4code,DataDistCIP!$B$2:$B$1495,0)+B38,1)<>valorg4code,\"\",INDEX(DataDistCIP!$E$2:$E$1495,MATCH(valorg4code,DataDistCIP!$B$2:$B$1495,0)+B38,1)), \"\")","v":""},{"$f":"IFERROR(IF(INDEX(DataDistCIP!$B$2:$BF$1495,MATCH(valorg4code,DataDistCIP!$B$2:$B$1495,0)+B38,1)<>valorg4code,\"\",INDEX(DataDistCIP!$F$2:$F$1495,MATCH(valorg4code,DataDistCIP!$B$2:$B$1495,0)+B38,1)), \"\")","v":""},{"$f":"IFERROR(IF(INDEX(DataDistCIP!$B$2:$B$1495,MATCH(valorg4code,DataDistCIP!$B$2:$B$1495,0)+B38,1)<>valorg4code,\"\",INDEX(DataDistCIP!$G$2:$G$1495,MATCH(valorg4code,DataDistCIP!$B$2:$B$1495,0)+B38,1)), \"\")","v":""},{"$f":"IFERROR(IF(INDEX(DataDistCIP!$B$2:$B$1495,MATCH(valorg4code,DataDistCIP!$B$2:$B$1495,0)+B38,1)<>valorg4code,\"\",INDEX(DataDistCIP!$D$2:$D$1495,MATCH(valorg4code,DataDistCIP!$B$2:$B$1495,0)+B38,1)), \"\")","v":""}]
[null,31,null,null,{"$f":"IFERROR(IF(INDEX(DataDistCIP!$B$2:$B$1495,MATCH(valorg4code,DataDistCIP!$B$2:$B$1495,0)+B39,1)<>valorg4code,\"\",INDEX(DataDistCIP!$E$2:$E$1495,MATCH(valorg4code,DataDistCIP!$B$2:$B$1495,0)+B39,1)), \"\")","v":""},{"$f":"IFERROR(IF(INDEX(DataDistCIP!$B$2:$BF$1495,MATCH(valorg4code,DataDistCIP!$B$2:$B$1495,0)+B39,1)<>valorg4code,\"\",INDEX(DataDistCIP!$F$2:$F$1495,MATCH(valorg4code,DataDistCIP!$B$2:$B$1495,0)+B39,1)), \"\")","v":""},{"$f":"IFERROR(IF(INDEX(DataDistCIP!$B$2:$B$1495,MATCH(valorg4code,DataDistCIP!$B$2:$B$1495,0)+B39,1)<>valorg4code,\"\",INDEX(DataDistCIP!$G$2:$G$1495,MATCH(valorg4code,DataDistCIP!$B$2:$B$1495,0)+B39,1)), \"\")","v":""},{"$f":"IFERROR(IF(INDEX(DataDistCIP!$B$2:$B$1495,MATCH(valorg4code,DataDistCIP!$B$2:$B$1495,0)+B39,1)<>valorg4code,\"\",INDEX(DataDistCIP!$D$2:$D$1495,MATCH(valorg4code,DataDistCIP!$B$2:$B$1495,0)+B39,1)), \"\")","v":""}]
[null,32,null,null,{"$f":"IFERROR(IF(INDEX(DataDistCIP!$B$2:$B$1495,MATCH(valorg4code,DataDistCIP!$B$2:$B$1495,0)+B40,1)<>valorg4code,\"\",INDEX(DataDistCIP!$E$2:$E$1495,MATCH(valorg4code,DataDistCIP!$B$2:$B$1495,0)+B40,1)), \"\")","v":""},{"$f":"IFERROR(IF(INDEX(DataDistCIP!$B$2:$BF$1495,MATCH(valorg4code,DataDistCIP!$B$2:$B$1495,0)+B40,1)<>valorg4code,\"\",INDEX(DataDistCIP!$F$2:$F$1495,MATCH(valorg4code,DataDistCIP!$B$2:$B$1495,0)+B40,1)), \"\")","v":""},{"$f":"IFERROR(IF(INDEX(DataDistCIP!$B$2:$B$1495,MATCH(valorg4code,DataDistCIP!$B$2:$B$1495,0)+B40,1)<>valorg4code,\"\",INDEX(DataDistCIP!$G$2:$G$1495,MATCH(valorg4code,DataDistCIP!$B$2:$B$1495,0)+B40,1)), \"\")","v":""},{"$f":"IFERROR(IF(INDEX(DataDistCIP!$B$2:$B$1495,MATCH(valorg4code,DataDistCIP!$B$2:$B$1495,0)+B40,1)<>valorg4code,\"\",INDEX(DataDistCIP!$D$2:$D$1495,MATCH(valorg4code,DataDistCIP!$B$2:$B$1495,0)+B40,1)), \"\")","v":""}]
[null,33,null,null,{"$f":"IFERROR(IF(INDEX(DataDistCIP!$B$2:$B$1495,MATCH(valorg4code,DataDistCIP!$B$2:$B$1495,0)+B41,1)<>valorg4code,\"\",INDEX(DataDistCIP!$E$2:$E$1495,MATCH(valorg4code,DataDistCIP!$B$2:$B$1495,0)+B41,1)), \"\")","v":""},{"$f":"IFERROR(IF(INDEX(DataDistCIP!$B$2:$BF$1495,MATCH(valorg4code,DataDistCIP!$B$2:$B$1495,0)+B41,1)<>valorg4code,\"\",INDEX(DataDistCIP!$F$2:$F$1495,MATCH(valorg4code,DataDistCIP!$B$2:$B$1495,0)+B41,1)), \"\")","v":""},{"$f":"IFERROR(IF(INDEX(DataDistCIP!$B$2:$B$1495,MATCH(valorg4code,DataDistCIP!$B$2:$B$1495,0)+B41,1)<>valorg4code,\"\",INDEX(DataDistCIP!$G$2:$G$1495,MATCH(valorg4code,DataDistCIP!$B$2:$B$1495,0)+B41,1)), \"\")","v":""},{"$f":"IFERROR(IF(INDEX(DataDistCIP!$B$2:$B$1495,MATCH(valorg4code,DataDistCIP!$B$2:$B$1495,0)+B41,1)<>valorg4code,\"\",INDEX(DataDistCIP!$D$2:$D$1495,MATCH(valorg4code,DataDistCIP!$B$2:$B$1495,0)+B41,1)), \"\")","v":""}]
[null,34,null,null,{"$f":"IFERROR(IF(INDEX(DataDistCIP!$B$2:$B$1495,MATCH(valorg4code,DataDistCIP!$B$2:$B$1495,0)+B42,1)<>valorg4code,\"\",INDEX(DataDistCIP!$E$2:$E$1495,MATCH(valorg4code,DataDistCIP!$B$2:$B$1495,0)+B42,1)), \"\")","v":""},{"$f":"IFERROR(IF(INDEX(DataDistCIP!$B$2:$BF$1495,MATCH(valorg4code,DataDistCIP!$B$2:$B$1495,0)+B42,1)<>valorg4code,\"\",INDEX(DataDistCIP!$F$2:$F$1495,MATCH(valorg4code,DataDistCIP!$B$2:$B$1495,0)+B42,1)), \"\")","v":""},{"$f":"IFERROR(IF(INDEX(DataDistCIP!$B$2:$B$1495,MATCH(valorg4code,DataDistCIP!$B$2:$B$1495,0)+B42,1)<>valorg4code,\"\",INDEX(DataDistCIP!$G$2:$G$1495,MATCH(valorg4code,DataDistCIP!$B$2:$B$1495,0)+B42,1)), \"\")","v":""},{"$f":"IFERROR(IF(INDEX(DataDistCIP!$B$2:$B$1495,MATCH(valorg4code,DataDistCIP!$B$2:$B$1495,0)+B42,1)<>valorg4code,\"\",INDEX(DataDistCIP!$D$2:$D$1495,MATCH(valorg4code,DataDistCIP!$B$2:$B$1495,0)+B42,1)), \"\")","v":""}]
[null,35,null,null,{"$f":"IFERROR(IF(INDEX(DataDistCIP!$B$2:$B$1495,MATCH(valorg4code,DataDistCIP!$B$2:$B$1495,0)+B43,1)<>valorg4code,\"\",INDEX(DataDistCIP!$E$2:$E$1495,MATCH(valorg4code,DataDistCIP!$B$2:$B$1495,0)+B43,1)), \"\")","v":""},{"$f":"IFERROR(IF(INDEX(DataDistCIP!$B$2:$BF$1495,MATCH(valorg4code,DataDistCIP!$B$2:$B$1495,0)+B43,1)<>valorg4code,\"\",INDEX(DataDistCIP!$F$2:$F$1495,MATCH(valorg4code,DataDistCIP!$B$2:$B$1495,0)+B43,1)), \"\")","v":""},{"$f":"IFERROR(IF(INDEX(DataDistCIP!$B$2:$B$1495,MATCH(valorg4code,DataDistCIP!$B$2:$B$1495,0)+B43,1)<>valorg4code,\"\",INDEX(DataDistCIP!$G$2:$G$1495,MATCH(valorg4code,DataDistCIP!$B$2:$B$1495,0)+B43,1)), \"\")","v":""},{"$f":"IFERROR(IF(INDEX(DataDistCIP!$B$2:$B$1495,MATCH(valorg4code,DataDistCIP!$B$2:$B$1495,0)+B43,1)<>valorg4code,\"\",INDEX(DataDistCIP!$D$2:$D$1495,MATCH(valorg4code,DataDistCIP!$B$2:$B$1495,0)+B43,1)), \"\")","v":""}]
[null,36,null,null,{"$f":"IFERROR(IF(INDEX(DataDistCIP!$B$2:$B$1495,MATCH(valorg4code,DataDistCIP!$B$2:$B$1495,0)+B44,1)<>valorg4code,\"\",INDEX(DataDistCIP!$E$2:$E$1495,MATCH(valorg4code,DataDistCIP!$B$2:$B$1495,0)+B44,1)), \"\")","v":""},{"$f":"IFERROR(IF(INDEX(DataDistCIP!$B$2:$BF$1495,MATCH(valorg4code,DataDistCIP!$B$2:$B$1495,0)+B44,1)<>valorg4code,\"\",INDEX(DataDistCIP!$F$2:$F$1495,MATCH(valorg4code,DataDistCIP!$B$2:$B$1495,0)+B44,1)), \"\")","v":""},{"$f":"IFERROR(IF(INDEX(DataDistCIP!$B$2:$B$1495,MATCH(valorg4code,DataDistCIP!$B$2:$B$1495,0)+B44,1)<>valorg4code,\"\",INDEX(DataDistCIP!$G$2:$G$1495,MATCH(valorg4code,DataDistCIP!$B$2:$B$1495,0)+B44,1)), \"\")","v":""},{"$f":"IFERROR(IF(INDEX(DataDistCIP!$B$2:$B$1495,MATCH(valorg4code,DataDistCIP!$B$2:$B$1495,0)+B44,1)<>valorg4code,\"\",INDEX(DataDistCIP!$D$2:$D$1495,MATCH(valorg4code,DataDistCIP!$B$2:$B$1495,0)+B44,1)), \"\")","v":""}]
[null,37,null,null,{"$f":"IFERROR(IF(INDEX(DataDistCIP!$B$2:$B$1495,MATCH(valorg4code,DataDistCIP!$B$2:$B$1495,0)+B45,1)<>valorg4code,\"\",INDEX(DataDistCIP!$E$2:$E$1495,MATCH(valorg4code,DataDistCIP!$B$2:$B$1495,0)+B45,1)), \"\")","v":""},{"$f":"IFERROR(IF(INDEX(DataDistCIP!$B$2:$BF$1495,MATCH(valorg4code,DataDistCIP!$B$2:$B$1495,0)+B45,1)<>valorg4code,\"\",INDEX(DataDistCIP!$F$2:$F$1495,MATCH(valorg4code,DataDistCIP!$B$2:$B$1495,0)+B45,1)), \"\")","v":""},{"$f":"IFERROR(IF(INDEX(DataDistCIP!$B$2:$B$1495,MATCH(valorg4code,DataDistCIP!$B$2:$B$1495,0)+B45,1)<>valorg4code,\"\",INDEX(DataDistCIP!$G$2:$G$1495,MATCH(valorg4code,DataDistCIP!$B$2:$B$1495,0)+B45,1)), \"\")","v":""},{"$f":"IFERROR(IF(INDEX(DataDistCIP!$B$2:$B$1495,MATCH(valorg4code,DataDistCIP!$B$2:$B$1495,0)+B45,1)<>valorg4code,\"\",INDEX(DataDistCIP!$D$2:$D$1495,MATCH(valorg4code,DataDistCIP!$B$2:$B$1495,0)+B45,1)), \"\")","v":""}]
[null,38,null,null,{"$f":"IFERROR(IF(INDEX(DataDistCIP!$B$2:$B$1495,MATCH(valorg4code,DataDistCIP!$B$2:$B$1495,0)+B46,1)<>valorg4code,\"\",INDEX(DataDistCIP!$E$2:$E$1495,MATCH(valorg4code,DataDistCIP!$B$2:$B$1495,0)+B46,1)), \"\")","v":""},{"$f":"IFERROR(IF(INDEX(DataDistCIP!$B$2:$BF$1495,MATCH(valorg4code,DataDistCIP!$B$2:$B$1495,0)+B46,1)<>valorg4code,\"\",INDEX(DataDistCIP!$F$2:$F$1495,MATCH(valorg4code,DataDistCIP!$B$2:$B$1495,0)+B46,1)), \"\")","v":""},{"$f":"IFERROR(IF(INDEX(DataDistCIP!$B$2:$B$1495,MATCH(valorg4code,DataDistCIP!$B$2:$B$1495,0)+B46,1)<>valorg4code,\"\",INDEX(DataDistCIP!$G$2:$G$1495,MATCH(valorg4code,DataDistCIP!$B$2:$B$1495,0)+B46,1)), \"\")","v":""},{"$f":"IFERROR(IF(INDEX(DataDistCIP!$B$2:$B$1495,MATCH(valorg4code,DataDistCIP!$B$2:$B$1495,0)+B46,1)<>valorg4code,\"\",INDEX(DataDistCIP!$D$2:$D$1495,MATCH(valorg4code,DataDistCIP!$B$2:$B$1495,0)+B46,1)), \"\")","v":""}]
[null,39,null,null,{"$f":"IFERROR(IF(INDEX(DataDistCIP!$B$2:$B$1495,MATCH(valorg4code,DataDistCIP!$B$2:$B$1495,0)+B47,1)<>valorg4code,\"\",INDEX(DataDistCIP!$E$2:$E$1495,MATCH(valorg4code,DataDistCIP!$B$2:$B$1495,0)+B47,1)), \"\")","v":""},{"$f":"IFERROR(IF(INDEX(DataDistCIP!$B$2:$BF$1495,MATCH(valorg4code,DataDistCIP!$B$2:$B$1495,0)+B47,1)<>valorg4code,\"\",INDEX(DataDistCIP!$F$2:$F$1495,MATCH(valorg4code,DataDistCIP!$B$2:$B$1495,0)+B47,1)), \"\")","v":""},{"$f":"IFERROR(IF(INDEX(DataDistCIP!$B$2:$B$1495,MATCH(valorg4code,DataDistCIP!$B$2:$B$1495,0)+B47,1)<>valorg4code,\"\",INDEX(DataDistCIP!$G$2:$G$1495,MATCH(valorg4code,DataDistCIP!$B$2:$B$1495,0)+B47,1)), \"\")","v":""},{"$f":"IFERROR(IF(INDEX(DataDistCIP!$B$2:$B$1495,MATCH(valorg4code,DataDistCIP!$B$2:$B$1495,0)+B47,1)<>valorg4code,\"\",INDEX(DataDistCIP!$D$2:$D$1495,MATCH(valorg4code,DataDistCIP!$B$2:$B$1495,0)+B47,1)), \"\")","v":""}]
[]
[]
[null,null,null,"Step 3.2\nReport CTE Programs Not Listed in Step 3.1\nAll Grant Applicants ","CTE Programs That Have Not Been Reported to DESE\nUse this list to include a new CTE program that you have started or intend to start in the FY21 school year, but for which you have not reported students in the Massachusetts Student Information Management System (SIMS)."]
[null,null,null,null,"CIP Code","Program","Projected Enrollment","Projected Start Date","Approved Chapter 74 Program?"]
[null,null,null,null,null,null,null,null,"Select One"]
[null,null,null,null,null,null,null,null,"Select One"]
[null,null,null,null,null,null,null,null,"Select One"]
[null,null,null,null,null,null,null,null,"Select One"]
[null,null,null,null,null,null,null,null,"Select One"]
[null,null,null,null,null,null,null,null,"Select One"]
[null,null,null,null,null,null,null,null,"Select One"]
[null,null,null,null,null,null,null,null,"Select One"]
[null,null,null,null,null,null,null,null,"Select One"]
[]
[null,null,null,null,null,null,null,null,null,null,null,null,null,null,"SOURCE:  Perkins V, Section 134(b)(2)"]
[null,null,null,null,null,null,null,null,null,null,null,"Approximate % of Perkins allocation being used for this purpose"]
[null,null,null,"Step 3.3\nGrant-funded CTE programs and activities","Describe any new CTE program(s) being developed for state approval using Perkins funds (in your answer identify specific programs that are in development and whether you will seek Chapter 74 approval -- see tip for program lists):"]
[null,null,null,null,"Describe how all students, including members of special populations, will learn about their school's CTE courses and programs  funded with Perkins funds:"]

{"sheet":"4. CTE Courses - Secondary","index":4,"n_rows":168,"n_cols":64,"rows_kept":168,"cut":false,"hidden":false,"merged":[[9,8,9,9],[9,10,9,12],[9,16,9,17],[10,8,10,9],[10,10,10,12],[10,16,10,17],[1,1,1,4],[5,1,6,1],[5,2,5,5],[5,6,5,7],[9,1,11,1],[14,16,15,17],[15,14,15,15],[16,8,16,9],[16,10,18,12],[16,14,16,15],[16,16,17,17],[17,8,17,9],[17,14,17,15],[18,8,18,9],[18,14,18,15],[11,8,11,9],[11,10,15,12],[11,14,11,15],[11,16,13,17],[12,8,12,9],[12,14,12,15],[13,8,13,9],[13,14,13,15],[14,8,15,9],[14,14,14,15],[22,14,22,15],[23,8,23,9],[23,10,32,12],[23,14,23,15],[24,8,24,9],[24,14,24,15],[25,8,25,9],[25,14,25,15],[26,8,26,9],[26,14,26,15],[18,16,18,17],[19,8,19,9],[19,10,22,12],[19,14,19,15],[19,16,27,17],[20,8,20,9],[20,14,20,15],[21,8,21,9],[21,14,21,15],[22,8,22,9],[31,14,31,15],[32,8,32,9],[32,14,32,15],[33,8,33,9],[33,10,35,12],[33,14,33,15],[34,8,35,9],[34,14,34,15],[27,8,27,9],[27,14,27,15],[28,8,28,9],[28,14,28,15],[28,16,33,17],[29,8,29,9],[29,14,29,15],[30,8,30,9],[30,14,30,15],[31,8,31,9],[41,54,41,58],[41,59,41,63],[42,3,43,3],[42,4,43,5],[42,8,43,8],[42,9,43,11],[42,14,43,14],[42,15,43,16],[42,19,43,19],[42,20,43,21],[41,24,41,28],[41,29,41,33],[41,34,41,38],[41,39,41,43],[41,44,41,48],[41,49,41,53],[34,16,34,17],[37,1,38,3],[41,4,41,7],[41,8,41,13],[41,14,41,18],[41,19,41,23],[42,54,43,54],[42,55,43,56],[42,59,43,59],[42,60,43,61],[44,4,44,5],[44,6,44,7],[44,9,44,11],[44,12,44,13],[44,15,44,16],[44,17,44,18],[42,39,43,39],[42,40,43,41],[42,44,43,44],[42,45,43,46],[42,49,43,49],[42,50,43,51],[42,24,43,24],[42,25,43,26],[42,29,43,29],[42,30,43,31],[42,34,43,34],[42,35,43,36],[44,50,44,51],[44,52,44,53],[44,55,44,56],[44,57,44,58],[44,60,44,61],[44,62,44,63],[44,35,44,36],[44,37,44,38],[44,40,44,41],[44,42,44,43],[44,45,44,46],[44,47,44,48],[44,20,44,21],[44,22,44,23],[44,25,44,26],[44,27,44,28],[44,30,44,31],[44,32,44,33],[45,40,45,41],[45,42,45,43],[45,45,45,46],[45,47,45,48],[45,20,45,21],[45,22,45,23],[45,25,45,26],[45,27,45,28],[45,30,45,31],[45,32,45,33],[45,52,45,53],[45,55,45,56],[45,57,45,58],[45,60,45,61],[45,62,45,63],[45,35,45,36],[45,37,45,38],[47,4,47,5],[47,6,47,7],[47,9,47,11],[47,12,47,13],[47,15,47,16],[47,17,47,18],[46,50,46,51],[46,4,46,5],[46,6,46,7],[46,9,46,11],[46,12,46,13],[46,15,46,16],[46,17,46,18],[47,50,47,51],[45,4,45,5],[45,6,45,7],[45,9,45,11],[45,12,45,13],[45,15,45,16],[45,17,45,18],[45,50,45,51],[46,52,46,53],[46,55,46,56],[46,57,46,58],[46,60,46,61],[46,62,46,63],[46,35,46,36],[46,37,46,38],[46,40,46,41],[46,42,46,43],[46,45,46,46],[46,47,46,48],[46,20,46,21],[46,22,46,23],[46,25,46,26],[46,27,46,28],[46,30,46,31],[46,32,46,33],[47,52,47,53],[47,55,47,56],[47,57,47,58],[47,60,47,61],[47,62,47,63],[47,35,47,36],[47,37,47,38],[47,40,47,41],[47,42,47,43],[47,45,47,46],[47,47,47,48],[47,20,47,21],[47,22,47,23],[47,25,47,26],[47,27,47,28],[47,30,47,31],[47,32,47,33],[49,4,49,5],[49,6,49,7],[49,9,49,11],[49,12,49,13],[49,15,49,16],[49,17,49,18],[48,50,48,51],[48,52,48,53],[48,55,48,56],[48,57,48,58],[48,60,48,61],[48,62,48,63],[48,35,48,36],[48,37,48,38],[48,40,48,41],[48,42,48,43],[48,45,48,46],[48,47,48,48],[48,20,48,21],[48,22,48,23],[48,25,48,26],[48,27,48,28],[48,30,48,31],[48,32,48,33],[48,4,48,5],[48,6,48,7],[48,9,48,11],[48,12,48,13],[48,15,48,16],[48,17,48,18],[49,50,49,51],[49,52,49,53],[49,55,49,56],[49,57,49,58],[49,60,49,61],[49,62,49,63],[49,35,49,36],[49,37,49,38],[49,40,49,41],[49,42,49,43],[49,45,49,46],[49,47,49,48],[49,20,49,21],[49,22,49,23],[49,25,49,26],[49,27,49,28],[49,30,49,31],[49,32,49,33],[51,3,52,3],[51,4,52,5],[51,8,52,8],[51,9,52,11],[51,14,52,14],[51,15,52,16],[50,50,50,51],[50,52,50,53],[50,55,50,56],[50,57,50,58],[50,60,50,61],[50,62,50,63],[50,35,50,36],[50,37,50,38],[50,40,50,41],[50,42,50,43],[50,45,50,46],[50,47,50,48],[50,20,50,21],[50,22,50,23],[50,25,50,26],[50,27,50,28],[50,30,50,31],[50,32,50,33],[50,4,50,5],[50,6,50,7],[50,9,50,11],[50,12,50,13],[50,15,50,16],[50,17,50,18],[51,49,52,49],[51,50,52,51],[51,54,52,54],[51,55,52,56],[51,59,52,59],[51,60,52,63],[51,34,52,34],[51,35,52,36],[51,39,52,39],[51,40,52,41],[51,44,52,44],[51,45,52,48],[51,19,52,19],[51,20,52,21],[51,24,52,24],[51,25,52,26],[51,29,52,29],[51,30,52,31],[54,4,54,5],[54,6,54,7],[54,9,54,11],[54,12,54,13],[54,15,54,16],[54,17,54,18],[53,50,53,51],[53,52,53,53],[53,55,53,56],[53,57,53,58],[53,60,53,61],[53,62,53,63],[53,35,53,36],[53,37,53,38],[53,40,53,41],[53,42,53,43],[53,45,53,46],[53,47,53,48],[53,20,53,21],[53,22,53,23],[53,25,53,26],[53,27,53,28],[53,30,53,31],[53,32,53,33],[53,4,53,5],[53,6,53,7],[53,9,53,11],[53,12,53,13],[53,15,53,16],[53,17,53,18],[54,50,54,51],[54,52,54,53],[54,55,54,56],[54,57,54,58],[54,60,54,61],[54,62,54,63],[54,35,54,36],[54,37,54,38],[54,40,54,41],[54,42,54,43],[54,45,54,46],[54,47,54,48],[54,20,54,21],[54,22,54,23],[54,25,54,26],[54,27,54,28],[54,30,54,31],[54,32,54,33],[56,4,56,5],[56,6,56,7],[56,9,56,11],[56,12,56,13],[56,15,56,16],[56,17,56,18],[55,50,55,51],[55,52,55,53],[55,55,55,56],[55,57,55,58],[55,60,55,61],[55,62,55,63],[55,35,55,36],[55,37,55,38],[55,40,55,41],[55,42,55,43],[55,45,55,46],[55,47,55,48],[55,20,55,21],[55,22,55,23],[55,25,55,26],[55,27,55,28],[55,30,55,31],[55,32,55,33],[55,4,55,5],[55,6,55,7],[55,9,55,11],[55,12,55,13],[55,15,55,16],[55,17,55,18],[56,50,56,51],[56,52,56,53],[56,55,56,56],[56,57,56,58],[56,60,56,61],[56,62,56,63],[56,35,56,36],[56,37,56,38],[56,40,56,41],[56,42,56,43],[56,45,56,46],[56,47,56,48],[56,20,56,21],[56,22,56,23],[56,25,56,26],[56,27,56,28],[56,30,56,31],[56,32,56,33],[58,4,58,5],[58,6,58,7],[58,9,58,11],[58,12,58,13],[58,15,58,16],[58,17,58,18],[57,50,57,51],[57,52,57,53],[57,55,57,56],[57,57,57,58],[57,60,57,61],[57,62,57,63],[57,35,57,36],[57,37,57,38],[57,40,57,41],[57,42,57,43],[57,45,57,46],[57,47,57,48],[57,20,57,21],[57,22,57,23],[57,25,57,26],[57,27,57,28],[57,30,57,31],[57,32,57,33],[57,4,57,5],[57,6,57,7],[57,9,57,11],[57,12,57,13],[57,15,57,16],[57,17,57,18],[58,50,58,51],[58,52,58,53],[58,55,58,56],[58,57,58,58],[58,60,58,61],[58,62,58,63],[58,35,58,36],[58,37,58,38],[58,40,58,41],[58,42,58,43],[58,45,58,46],[58,47,58,48],[58,20,58,21],[58,22,58,23],[58,25,58,26],[58,27,58,28],[58,30,58,31],[58,32,58,33],[60,29,61,29],[60,30,61,31],[60,3,61,3],[60,4,61,5],[60,8,61,8],[60,9,61,11],[60,14,61,14],[60,15,61,16],[59,50,59,51],[59,52,59,53],[59,55,59,56],[59,57,59,58],[59,60,59,61],[59,62,59,63],[59,35,59,36],[59,37,59,38],[59,40,59,41],[59,42,59,43],[59,45,59,46],[59,47,59,48],[59,20,59,21],[59,22,59,23],[59,25,59,26],[59,27,59,28],[59,30,59,31],[59,32,59,33],[59,4,59,5],[59,6,59,7],[59,9,59,11],[59,12,59,13],[59,15,59,16],[59,17,59,18],[62,40,62,41],[62,42,62,43],[62,50,62,51],[62,52,62,53],[62,55,62,56],[62,57,62,58],[62,25,62,26],[62,27,62,28],[62,30,62,31],[62,32,62,33],[62,35,62,36],[62,37,62,38],[60,54,61,54],[60,55,61,56],[62,4,62,5],[62,6,62,7],[62,9,62,11],[62,12,62,13],[62,15,62,16],[62,17,62,18],[62,20,62,21],[62,22,62,23],[60,34,61,34],[60,35,61,38],[60,39,61,39],[60,40,61,43],[60,49,61,49],[60,50,61,51],[60,19,61,19],[60,20,61,21],[60,24,61,24],[60,25,61,28],[63,55,63,56],[63,57,63,58],[64,4,64,5],[64,6,64,7],[64,9,64,11],[64,12,64,13],[64,15,64,16],[64,17,64,18],[64,20,64,21],[64,22,64,23],[63,35,63,36],[63,37,63,38],[63,40,63,41],[63,42,63,43],[63,50,63,51],[63,52,63,53],[63,20,63,21],[63,22,63,23],[63,25,63,26],[63,27,63,28],[63,30,63,31],[63,32,63,33],[63,4,63,5],[63,6,63,7],[63,9,63,11],[63,12,63,13],[63,15,63,16],[63,17,63,18],[65,30,65,31],[65,32,65,33],[65,4,65,5],[65,6,65,7],[65,9,65,11],[65,12,65,13],[65,15,65,16],[65,17,65,18],[64,40,64,41],[64,42,64,43],[64,50,64,51],[64,52,64,53],[64,55,64,56],[64,57,64,58],[64,25,64,26],[64,27,64,28],[64,30,64,31],[64,32,64,33],[64,35,64,36],[64,37,64,38],[66,40,66,41],[66,42,66,43],[66,50,66,51],[66,52,66,53],[66,55,66,56],[66,57,66,58],[66,25,66,26],[66,27,66,28],[66,30,66,31],[66,32,66,33],[66,35,66,36],[66,37,66,38],[65,55,65,56],[65,57,65,58],[66,4,66,5],[66,6,66,7],[66,9,66,11],[66,12,66,13],[66,15,66,16],[66,17,66,18],[66,20,66,21],[66,22,66,23],[65,35,65,36],[65,37,65,38],[65,40,65,41],[65,42,65,43],[65,50,65,51],[65,52,65,53],[65,20,65,21],[65,22,65,23],[65,25,65,26],[65,27,65,28],[67,55,67,56],[67,57,67,58],[68,4,68,5],[68,6,68,7],[68,9,68,11],[68,12,68,13],[68,15,68,16],[68,17,68,18],[68,20,68,21],[68,22,68,23],[67,35,67,36],[67,37,67,38],[67,40,67,41],[67,42,67,43],[67,50,67,51],[67,52,67,53],[67,20,67,21],[67,22,67,23],[67,25,67,26],[67,27,67,28],[67,30,67,31],[67,32,67,33],[67,4,67,5],[67,6,67,7],[67,9,67,11],[67,12,67,13],[67,15,67,16],[67,17,67,18],[69,29,70,29],[69,30,70,33],[69,3,70,3],[69,4,70,5],[69,8,70,8],[69,9,70,13],[69,14,70,14],[69,15,70,16],[68,40,68,41],[68,42,68,43],[68,50,68,51],[68,52,68,53],[68,55,68,56],[68,57,68,58],[68,25,68,26],[68,27,68,28],[68,30,68,31],[68,32,68,33],[68,35,68,36],[68,37,68,38],[71,40,71,41],[71,42,71,43],[71,50,71,51],[71,52,71,53],[71,55,71,56],[71,57,71,58],[71,25,71,26],[71,27,71,28],[71,30,71,31],[71,32,71,33],[71,35,71,36],[71,37,71,38],[69,54,70,54],[69,55,70,56],[71,4,71,5],[71,6,71,7],[71,9,71,11],[71,12,71,13],[71,15,71,16],[71,17,71,18],[71,20,71,21],[71,22,71,23],[69,34,70,34],[69,35,70,38],[69,39,70,39],[69,40,70,43],[69,49,70,49],[69,50,70,51],[69,19,70,19],[69,20,70,21],[69,24,70,24],[69,25,70,28],[72,55,72,56],[72,57,72,58],[73,4,73,5],[73,6,73,7],[73,9,73,11],[73,12,73,13],[73,15,73,16],[73,17,73,18],[73,20,73,21],[73,22,73,23],[72,35,72,36],[72,37,72,38],[72,40,72,41],[72,42,72,43],[72,50,72,51],[72,52,72,53],[72,20,72,21],[72,22,72,23],[72,25,72,26],[72,27,72,28],[72,30,72,31],[72,32,72,33],[72,4,72,5],[72,6,72,7],[72,9,72,11],[72,12,72,13],[72,15,72,16],[72,17,72,18],[74,30,74,31],[74,32,74,33],[74,4,74,5],[74,6,74,7],[74,9,74,11],[74,12,74,13],[74,15,74,16],[74,17,74,18],[73,40,73,41],[73,42,73,43],[73,50,73,51],[73,52,73,53],[73,55,73,56],[73,57,73,58],[73,25,73,26],[73,27,73,28],[73,30,73,31],[73,32,73,33],[73,35,73,36],[73,37,73,38],[75,40,75,41],[75,42,75,43],[75,50,75,51],[75,52,75,53],[75,55,75,56],[75,57,75,58],[75,25,75,26],[75,27,75,28],[75,30,75,31],[75,32,75,33],[75,35,75,36],[75,37,75,38],[74,55,74,56],[74,57,74,58],[75,4,75,5],[75,6,75,7],[75,9,75,11],[75,12,75,13],[75,15,75,16],[75,17,75,18],[75,20,75,21],[75,22,75,23],[74,35,74,36],[74,37,74,38],[74,40,74,41],[74,42,74,43],[74,50,74,51],[74,52,74,53],[74,20,74,21],[74,22,74,23],[74,25,74,26],[74,27,74,28],[76,55,76,56],[76,57,76,58],[77,4,77,5],[77,6,77,7],[77,9,77,11],[77,12,77,13],[77,15,77,16],[77,17,77,18],[77,20,77,21],[77,22,77,23],[76,35,76,36],[76,37,76,38],[76,40,76,41],[76,42,76,43],[76,50,76,51],[76,52,76,53],[76,20,76,21],[76,22,76,23],[76,25,76,26],[76,27,76,28],[76,30,76,31],[76,32,76,33],[76,4,76,5],[76,6,76,7],[76,9,76,11],[76,12,76,13],[76,15,76,16],[76,17,76,18],[78,3,79,3],[78,4,79,7],[78,8,79,8],[78,9,79,13],[78,14,79,14],[78,15,79,18],[77,40,77,41],[77,42,77,43],[77,50,77,51],[77,52,77,53],[77,55,77,56],[77,57,77,58],[77,25,77,26],[77,27,77,28],[77,30,77,31],[77,32,77,33],[77,35,77,36],[77,37,77,38],[80,30,80,31],[80,32,80,33],[80,50,80,51],[80,52,80,53],[80,55,80,56],[80,57,80,58],[78,54,79,54],[78,55,79,56],[80,4,80,5],[80,6,80,7],[80,9,80,11],[80,12,80,13],[80,15,80,16],[80,17,80,18],[80,20,80,21],[80,22,80,23],[78,19,79,19],[78,20,79,21],[78,29,79,29],[78,30,79,33],[78,49,79,49],[78,50,79,51],[82,30,82,31],[82,32,82,33],[82,50,82,51],[82,52,82,53],[82,55,82,56],[82,57,82,58],[81,55,81,56],[81,57,81,58],[82,4,82,5],[82,6,82,7],[82,9,82,11],[82,12,82,13],[82,15,82,16],[82,17,82,18],[82,20,82,21],[82,22,82,23],[81,20,81,21],[81,22,81,23],[81,30,81,31],[81,32,81,33],[81,50,81,51],[81,52,81,53],[81,4,81,5],[81,6,81,7],[81,9,81,11],[81,12,81,13],[81,15,81,16],[81,17,81,18],[85,15,85,16],[85,17,85,18],[84,30,84,31],[84,32,84,33],[84,50,84,51],[84,52,84,53],[84,55,84,56],[84,57,84,58],[83,55,83,56],[83,57,83,58],[84,4,84,5],[84,6,84,7],[84,9,84,11],[84,12,84,13],[84,15,84,16],[84,17,84,18],[84,20,84,21],[84,22,84,23],[83,20,83,21],[83,22,83,23],[83,30,83,31],[83,32,83,33],[83,50,83,51],[83,52,83,53],[83,4,83,5],[83,6,83,7],[83,9,83,11],[83,12,83,13],[83,15,83,16],[83,17,83,18],[87,3,88,3],[87,4,88,7],[87,14,88,14],[87,15,88,18],[87,19,88,19],[87,20,88,21],[86,30,86,31],[86,32,86,33],[86,50,86,51],[86,52,86,53],[86,55,86,56],[86,57,86,58],[85,55,85,56],[85,57,85,58],[86,4,86,5],[86,6,86,7],[86,9,86,11],[86,12,86,13],[86,15,86,16],[86,17,86,18],[86,20,86,21],[86,22,86,23],[85,20,85,21],[85,22,85,23],[85,30,85,31],[85,32,85,33],[85,50,85,51],[85,52,85,53],[85,4,85,5],[85,6,85,7],[85,9,85,11],[85,12,85,13],[89,50,89,51],[89,52,89,53],[89,55,89,56],[89,57,89,58],[90,4,90,5],[90,6,90,7],[90,15,90,16],[90,17,90,18],[90,20,90,21],[90,22,90,23],[87,49,88,49],[87,50,88,51],[87,54,88,54],[87,55,88,56],[89,4,89,5],[89,6,89,7],[89,15,89,16],[89,17,89,18],[89,20,89,21],[89,22,89,23],[91,50,91,51],[91,52,91,53],[91,55,91,56],[91,57,91,58],[92,4,92,5],[92,6,92,7],[92,15,92,16],[92,17,92,18],[92,20,92,21],[92,22,92,23],[90,50,90,51],[90,52,90,53],[90,55,90,56],[90,57,90,58],[91,4,91,5],[91,6,91,7],[91,15,91,16],[91,17,91,18],[91,20,91,21],[91,22,91,23],[95,4,95,5],[95,6,95,7],[95,15,95,16],[95,17,95,18],[95,20,95,21],[95,22,95,23],[93,50,93,51],[93,52,93,53],[93,55,93,56],[93,57,93,58],[94,4,94,5],[94,6,94,7],[94,15,94,16],[94,17,94,18],[94,20,94,21],[94,22,94,23],[92,50,92,51],[92,52,92,53],[92,55,92,56],[92,57,92,58],[93,4,93,5],[93,6,93,7],[93,15,93,16],[93,17,93,18],[93,20,93,21],[93,22,93,23],[98,20,98,21],[98,22,98,23],[98,50,98,51],[98,52,98,53],[98,55,98,56],[98,57,98,58],[95,50,95,51],[95,52,95,53],[95,55,95,56],[95,57,95,58],[96,19,97,19],[96,20,97,21],[96,49,97,49],[96,50,97,51],[96,54,97,54],[96,55,97,58],[94,50,94,51],[94,52,94,53],[94,55,94,56],[94,57,94,58],[101,20,101,21],[101,22,101,23],[101,50,101,51],[101,52,101,53],[101,55,101,56],[101,57,101,58],[100,20,100,21],[100,22,100,23],[100,50,100,51]],"merged_total":1252,"flags":["merged_cut"]}
[]
[null,{"$f":"DistrName","v":"Org Name"}]
[]
[null,"Secondary CTE Course Data Collection"]
[]
[null,"Step 4.1 Credits for Graduation\nAll Secondary Applicants","Please indicate the minimum number of credits a student in your district needs in order to graduate:"]
[]
[]
[]
[null,"Step 4.2\nCourse Listings\nAll Secondary Applicants","Instructions\nFor all CTE programs in your district, regardless of whether Perkins funds are used to support them, provide the following information in the grid below:  \n\nStep 1.  Locate your program in the Program List to the left of these instructions (Column B). Note:  Clusters (Column B) are alphabetized and then programs within clusters\n\nStep 2.  Double-click on the Cluster name in Column C to the right of your program title (for example, for Drafting, double-click on Manufacturing, Engineering & Technological Occupational Cluster).  This action will take you to the same program cluster in the Course Listing below.  \n\nStep 3.  Once in the appropriate Occupational Cluster column in the Course Listing section of this tab, you will see that each program in that cluster is listed, in alphabetical order.  You will locate your programs in that Cluster Column. \n\nStep 4.  For each program first answer whether the program is Chapter 74 authorized (once that question is answered, the appropriate program code will automatically populate).\n\nStep 5.  Select courses from the dropdown list (light orange) -- the list is lengthy but in alphabetical order with one exception.  Chapter 74 courses are listed at the end of the larger list and begin with a \"C\".  If you would like more details about the courses listed, please see the SCS course listing, Appendix G2 andG3, found here.  Course names codes will automatically populate once you have selected a course from the dropdown.   Space for six courses is provided, but you are not required to fill in all.\n \nPlease contact your Federal Grants Liaison with any questions.\n",null,null,null,null,null,"Program",null,"Cluster",null,null,null,"Program",null,"Cluster"]
[null,null,null,null,null,null,null,null,"A",null,"B",null,null,null,"A",null,"B"]
[null,null,null,null,null,null,null,null,"Agricultural Mechanics",null,"Agriculture & Natural Resources Occupational Cluster",null,null,null,"Dental Assisting ",null,"Health Services Occupational Cluster"]
[null,null,null,null,null,null,null,null,"Animal Science",null,null,null,null,null,"Health Assisting "]
[null,null,null,null,null,null,null,null,"Environmental Science & Technology",null,null,null,null,null,"Medical Assisting"]
[null,null,null,null,null,null,null,null,"Horticulture ",null,null,null,null,null,"Culinary Arts",null,"Hospitality & Tourism Occupational Cluster"]
[null,null,null,null,null,null,null,null,null,null,null,null,null,null,"Hospitality Management "]
[null,null,null,null,null,null,null,null,"Design & Visual Communications",null,"Arts & Communication Services Occupational Cluster",null,null,null,"Information Support Services & Networking",null,"Information Technology Services Occupational Cluster"]
[null,null,null,null,null,null,null,null,"Graphic Communications",null,null,null,null,null,"Programming & Web Development"]
[null,null,null,null,null,null,null,null,"Radio & Television Broadcasting ",null,null,null,null,null,"Criminal Justice",null,"Law, Justice"]
[null,null,null,null,null,null,null,null,"Business  Technology ",null,"Business & Consumer Services Occupational Cluster",null,null,null,"Biotechnology",null,"Manufacturing, Engineering & Technological Occupational Cluster"]
[null,null,null,null,null,null,null,null,"Cosmetology ",null,null,null,null,null,"Drafting "]
[null,null,null,null,null,null,null,null,"Fashion Technology ",null,null,null,null,null,"Electronics"]
[null,null,null,null,null,null,null,null,"Marketing/Finance",null,null,null,null,null,"Engineering Technology"]
[null,null,null,null,null,null,null,null,"Building/Property Maintenance ",null,"Construction Occupational Cluster",null,null,null,"Machine Tool Technology"]
[null,null,null,null,null,null,null,null,"Cabinetmaking",null,null,null,null,null,"Metal Fabrication & Joining Technologies "]
[null,null,null,null,null,null,null,null,"Carpentry ",null,null,null,null,null,"Robotics and Automation Technology"]
[null,null,null,null,null,null,null,null,"Construction Craft Laborer",null,null,null,null,null,"Stationary Engineering "]
[null,null,null,null,null,null,null,null,"Electricity",null,null,null,null,null,"Telecommunications — Fiber Optics "]
[null,null,null,null,null,null,null,null,"Heating — Ventilation  — Air Conditioning — Refrigeration",null,null,null,null,null,"Automotive Collision Repair & Refinishing ",null,"Transportation Occupational Cluster"]
[null,null,null,null,null,null,null,null,"Masonry & Tile Setting",null,null,null,null,null,"Automotive Technology "]
[null,null,null,null,null,null,null,null,"Painting & Design Technologies ",null,null,null,null,null,"Aviation"]
[null,null,null,null,null,null,null,null,"Plumbing (Chapter 74 only)",null,null,null,null,null,"Diesel Technology"]
[null,null,null,null,null,null,null,null,"Sheet Metalworking",null,null,null,null,null,"Marine Service Technology"]
[null,null,null,null,null,null,null,null,"Early Education and Care ",null,"Education Occupational Cluster",null,null,null,"Power Equipment Technology"]
[null,null,null,null,null,null,null,null,"Family & Consumer Studies \n(formerly vocational home economics)",null,null,null,null,null,"Exploratory",null,"Other"]
[]
[]
[null,"Course Listing"]
[]
[]
[]
[null,null,null,null,"Agriculture & Natural Resources Occupational Cluster",null,null,null,"Arts & Communication Services Occupational Cluster",null,null,null,null,null,"Business & Consumer Services Occupational Cluster",null,null,null,null,"Construction Occupational Cluster",null,null,null,null,"Education Occupational Cluster",null,null,null,null,"Health Services Occupational Cluster",null,null,null,null,"Hospitality & Tourism Occupational Cluster",null,null,null,null,"Information Technology Services Occupational Cluster",null,null,null,null,"Law, Justice",null,null,null,null,"Manufacturing, Engineering & Technological Occupational Cluster",null,null,null,null,"Transportation Occupational Cluster",null,null,null,null,"Other"]
[null,null,null,"Program","Agricultural Mechanics ",null,"Chapter 74? ","Program Code","Program","Design & Visual Communications",null,null,"Chapter 74? ","Program Code","Program","Business  Technology",null,"Chapter 74? ","Program Code","Program","Building/Property Maintenance ",null,"Chapter 74? ","Program Code","Program","Early Education and Care ",null,"Chapter 74? ","Program Code","Program","Dental Assisting ",null,"Chapter 74? ","Program Code","Program","Culinary Arts ",null,"Chapter 74? ","Program Code","Program","Information Support Services & Networking ",null,"Chapter 74? ","Program Code","Program","Criminal Justice ",null,"Chapter 74? ","Program Code","Program","Biotechnology",null,"Chapter 74? ","Program Code","Program","Automotive Collision Repair & Refinishing ",null,"Chapter 74? ","Program Code","Program","Exploratory",null,"Chapter 74? ","Program Code"]
[null,null,null,null,null,null,"Select One",{"$f":"IF(G44=\"Select One\",\"\",(IF(G44=\"Yes\",\"010201\",(IF(G44=\"No\",\"0121\",\"\")))))","v":""},null,null,null,null,"Select One",{"$f":"IF(M44=\"Select One\",\"\",(IF(M44=\"Yes\",\"500401\",(IF(M44=\"No\",\"5041\",\"\")))))","v":""},null,null,null,"Select One",{"$f":"IF(R44=\"Select One\",\"\",(IF(R44=\"Yes\",\"520407\",(IF(R44=\"No\",\"5247\",\"\")))))","v":""},null,null,null,"Select One",{"$f":"IF(W44=\"Select One\",\"\",(IF(W44=\"Yes\",\"460401\",(IF(W44=\"No\",\"4641\",\"\")))))","v":""},null,null,null,"Select One",{"$f":"IF(AB44=\"Select One\",\"\",(IF(AB44=\"Yes\",\"131210\",(IF(AB44=\"No\",\"1320\",\"\")))))","v":""},null,null,null,"Select One",{"$f":"IF(AG44=\"Select One\",\"\",(IF(AG44=\"Yes\",\"510601\",(IF(AG44=\"No\",\"5161\",\"\")))))","v":""},null,null,null,"Select One",{"$f":"IF(AL44=\"Select One\",\"\",(IF(AL44=\"Yes\",\"120500\",(IF(AL44=\"No\",\"1250\",\"\")))))","v":""},null,null,null,"Select One",{"$f":"IF(AQ44=\"Select One\",\"\",(IF(AQ44=\"Yes\",\"110401\",(IF(AQ44=\"No\",\"1141\",\"\")))))","v":""},null,null,null,"Select One",{"$f":"IF(AV44=\"Select One\",\"\",(IF(AV44=\"Yes\",\"430107\",(IF(AV44=\"No\",\"4300\",\"\")))))","v":""},null,null,null,"Select One",{"$f":"IF(BA44=\"Select One\",\"\",(IF(BA44=\"Yes\",\"150401\",(IF(BA44=\"No\",\"1541\",\"\")))))","v":""},null,null,null,"Select One",{"$f":"IF(BF44=\"Select One\",\"\",(IF(BF44=\"Yes\",\"470603\",(IF(BF44=\"No\",\"4763\",\"\")))))","v":""},null,null,null,"Select One",{"$f":"IF(BK44=\"Select One\",\"\",(IF(BK44=\"Yes\",\"990100\",(IF(BK44=\"No\",\"9900\",\"\")))))","v":""}]
[null,null,null,"Course Name/Code","Select One",null,{"$f":"IF(E45=\"Select One\",\"\", RIGHT(E45,7))","v":""},null,"Course Name/Code","Select One",null,null,{"$f":"IF(J45=\"Select One\",\"\", RIGHT(J45,7))","v":""},null,"Course Name/Code","Select One",null,{"$f":"IF(P45=\"Select One\",\"\", RIGHT(P45,7))","v":""},null,"Course Name/Code","Select One",null,{"$f":"IF(U45=\"Select One\",\"\", RIGHT(U45,7))","v":""},null,"Course Name/Code","Select One",null,{"$f":"IF(Z45=\"Select One\",\"\", RIGHT(Z45,7))","v":""},null,"Course Name/Code","Select One",null,{"$f":"IF(AE45=\"Select One\",\"\", RIGHT(AE45,7))","v":""},null,"Course Name/Code","Select One",null,{"$f":"IF(AJ45=\"Select One\",\"\", RIGHT(AJ45,7))","v":""},"Credits","Course Name/Code","Select One",null,{"$f":"IF(AO45=\"Select One\",\"\", RIGHT(AO45,7))","v":""},"Credits","Course Name/Code","Select One",null,{"$f":"IF(AT45=\"Select One\",\"\", RIGHT(AT45,7))","v":""},"Credits","Course Name/Code","Select One",null,{"$f":"IF(AY45=\"Select One\",\"\", RIGHT(AY45,7))","v":""},"Credits","Course Name/Code","Select One",null,{"$f":"IF(BD45=\"Select One\",\"\", RIGHT(BD45,7))","v":""},"Credits","Course Name/Code","Select One",null,{"$f":"IF(BI45=\"Select One\",\"\", RIGHT(BI45,7))","v":""},"Credits"]
[null,null,null,"Course Name/Code","Select One",null,"",null,"Course Name/Code","Select One",null,null,"",null,"Course Name/Code","Select One",null,"","Credits","Course Name/Code","Select One",null,"","Credits","Course Name/Code","Select One",null,"","Credits","Course Name/Code","Select One",null,"","Credits","Course Name/Code","Select One",null,"","Credits","Course Name/Code","Select One",null,"","Credits","Course Name/Code","Select One",null,"","Credits","Course Name/Code","Select One",null,"","Credits","Course Name/Code","Select One",null,"","Credits","Course Name/Code","Select One",null,"","Credits"]
[null,null,null,"Course Name/Code","Select One",null,"",null,"Course Name/Code","Select One",null,null,"",null,"Course Name/Code","Select One",null,"","Credits","Course Name/Code","Select One",null,"","Credits","Course Name/Code","Select One",null,"","Credits","Course Name/Code","Select One",null,"","Credits","Course Name/Code","Select One",null,"","Credits","Course Name/Code","Select One",null,"","Credits","Course Name/Code","Select One",null,"","Credits","Course Name/Code","Select One",null,"","Credits","Course Name/Code","Select One",null,"","Credits","Course Name/Code","Select One",null,"","Credits"]
[null,null,null,"Course Name/Code","Select One",null,"",null,"Course Name/Code","Select One",null,null,"",null,"Course Name/Code","Select One",null,"","Credits","Course Name/Code","Select One",null,"","Credits","Course Name/Code","Select One",null,"","Credits","Course Name/Code","Select One",null,"","Credits","Course Name/Code","Select One",null,"","Credits","Course Name/Code","Select One",null,"","Credits","Course Name/Code","Select One",null,"","Credits","Course Name/Code","Select One",null,"","Credits","Course Name/Code","Select One",null,"","Credits","Course Name/Code","Select One",null,"","Credits"]
[null,null,null,"Course Name/Code","Select One",null,"",null,"Course Name/Code","Select One",null,null,"",null,"Course Name/Code","Select One",null,"","Credits","Course Name/Code","Select One",null,"","Credits","Course Name/Code","Select One",null,"","Credits","Course Name/Code","Select One",null,"","Credits","Course Name/Code","Select One",null,"","Credits","Course Name/Code","Select One",null,"","Credits","Course Name/Code","Select One",null,"","Credits","Course Name/Code","Select One",null,"","Credits","Course Name/Code","Select One",null,"","Credits","Course Name/Code","Select One",null,"","Credits"]
[null,null,null,"Course Name/Code","Select One",null,"",null,"Course Name/Code","Select One",null,null,"",null,"Course Name/Code","Select One",null,"","Credits","Course Name/Code","Select One",null,"","Credits","Course Name/Code","Select One",null,"","Credits","Course Name/Code","Select One",null,"","Credits","Course Name/Code","Select One",null,"","Credits","Course Name/Code","Select One",null,"","Credits","Course Name/Code","Select One",null,"","Credits","Course Name/Code","Select One",null,"","Credits","Course Name/Code","Select One",null,"","Credits","Course Name/Code","Select One",null,"","Credits"]
[null,null,null,"Course Name/Code","Select One",null,"",null,"Course Name/Code","Select One",null,null,null,null,"Course Name/Code","Select One",null,"","Credits","Course Name/Code","Select One",null,"","Credits","Course Name/Code","Select One",null,"","Credits","Course Name/Code","Select One",null,"","Credits","Course Name/Code","Select One",null,"","Credits","Course Name/Code","Select One",null,"","Credits","Course Name/Code","Select One",null,"","Credits","Course Name/Code","Select One",null,"","Credits","Course Name/Code","Select One",null,"","Credits","Course Name/Code","Select One",null,"","Credits"]
[null,null,null,"Program","Animal Science ",null,"Chapter 74? ","Program Code","Program","Graphic Communications",null,null,"Chapter 74? ","Program Code","Program","Cosmetology",null,"Chapter 74? ","Program Code","Program","Cabinetmaking ",null,"Chapter 74? ","Program Code","Program","Family & Consumer Studies (formerly vocational home economics) \nNon-Chapter 74 Only",null,"Chapter 74? ","Program Code","Program","Health Assisting",null,"Chapter 74? ","Program Code","Program","Hospitality Management",null,"Chapter 74? ","Program Code","Program","Programming & Web Development ",null,"Chapter 74? ","Program Code","Program","Select One",null,null,null,"Program","Drafting",null,"Chapter 74? ","Program Code","Program","Automotive Technology",null,"Chapter 74? ","Program Code","Program","Select One"]
[null,null,null,null,null,null,"Select One",{"$f":"IF(G53=\"Select One\",\"\",(IF(G53=\"Yes\",\"010599\",(IF(G44=\"No\",\"0159\",\"\")))))","v":""},null,null,null,null,"Select One",{"$f":"IF(M53=\"Select One\",\"\",(IF(M53=\"Yes\",\"100301\",(IF(M53=\"No\",\"1031\",\"\")))))","v":""},null,null,null,"Select One",{"$f":"IF(R53=\"Select One\",\"\",(IF(R53=\"Yes\",\"120401\",(IF(R53=\"No\",\"1241\",\"\")))))","v":""},null,null,null,"Select One",{"$f":"IF(W53=\"Select One\",\"\",(IF(W53=\"Yes\",\"480703\",(IF(W53=\"No\",\"4873\",\"\")))))","v":""},null,null,null,"No",1907,null,null,null,"Select One",{"$f":"IF(AG53=\"Select One\",\"\",(IF(AG53=\"Yes\",\"510000\",(IF(AG53=\"No\",\"5100\",\"\")))))","v":""},null,null,null,"Select One",{"$f":"IF(AL53=\"Select One\",\"\",(IF(AL53=\"Yes\",\"520901\",(IF(AL53=\"No\",\"5291\",\"\")))))","v":""},null,null,null,"Select One",{"$f":"IF(AQ53=\"Select One\",\"\",(IF(AQ53=\"Yes\",\"110201\",(IF(AQ53=\"No\",\"1121\",\"\")))))","v":""},null,null,null,null,null,null,null,null,"Select One",{"$f":"IF(BA53=\"Select One\",\"\",(IF(BA53=\"Yes\",\"151301\",(IF(BA53=\"No\",\"1531\",\"\")))))","v":""},null,null,null,"Select One",{"$f":"IF(BF53=\"Select One\",\"\",(IF(BF53=\"Yes\",\"470604\",(IF(BF53=\"No\",\"4764\",\"\")))))","v":""}]
[null,null,null,"Course Name/Code","Select One",null,{"$f":"IF(E54=\"Select One\",\"\", RIGHT(E54,7))","v":""},null,"Course Name/Code","Select One",null,null,{"$f":"IF(J54=\"Select One\",\"\", RIGHT(J54,7))","v":""},null,"Course Name/Code","Select One",null,{"$f":"IF(P54=\"Select One\",\"\", RIGHT(P54,7))","v":""},"Credits","Course Name/Code","Select One",null,{"$f":"IF(U54=\"Select One\",\"\", RIGHT(U54,7))","v":""},"Credits","Course Name/Code","Select One",null,{"$f":"IF(Z54=\"Select One\",\"\", RIGHT(Z54,7))","v":""},"Credits","Course Name/Code","Select One",null,{"$f":"IF(AE54=\"Select One\",\"\", RIGHT(AE54,7))","v":""},"Credits","Course Name/Code","Select One",null,{"$f":"IF(AJ54=\"Select One\",\"\", RIGHT(AJ54,7))","v":""},"Credits","Course Name/Code","Select One",null,{"$f":"IF(AO54=\"Select One\",\"\", RIGHT(AO54,7))","v":""},"Credits","Course Name/Code","Select One",null,{"$f":"IF(AT54=\"Select One\",\"\", RIGHT(AT54,7))","v":""},"Credits","Course Name/Code","Select One",null,{"$f":"IF(AY54=\"Select One\",\"\", RIGHT(AY54,7))","v":""},"Credits","Course Name/Code","Select One",null,{"$f":"IF(BD54=\"Select One\",\"\", RIGHT(BD54,7))","v":""},"Credits","Course Name/Code","Select One",null,{"$f":"IF(BI54=\"Select One\",\"\", RIGHT(BI54,7))","v":""},"Credits"]
[null,null,null,"Course Name/Code","Select One",null,"",null,"Course Name/Code","Select One",null,null,"",null,"Course Name/Code","Select One",null,"","Credits","Course Name/Code","Select One",null,"","Credits","Course Name/Code","Select One",null,"","Credits","Course Name/Code","Select One",null,"","Credits","Course Name/Code","Select One",null,"","Credits","Course Name/Code","Select One",null,"","Credits","Course Name/Code","Select One",null,"","Credits","Course Name/Code","Select One",null,"","Credits","Course Name/Code","Select One",null,"","Credits","Course Name/Code","Select One",null,"","Credits"]
[null,null,null,"Course Name/Code","Select One",null,"",null,"Course Name/Code","Select One",null,null,"",null,"Course Name/Code","Select One",null,"","Credits","Course Name/Code","Select One",null,"","Credits","Course Name/Code","Select One",null,"","Credits","Course Name/Code","Select One",null,"","Credits","Course Name/Code","Select One",null,"","Credits","Course Name/Code","Select One",null,"","Credits","Course Name/Code","Select One",null,"","Credits","Course Name/Code","Select One",null,"","Credits","Course Name/Code","Select One",null,"","Credits","Course Name/Code","Select One",null,"","Credits"]
[null,null,null,"Course Name/Code","Select One",null,"",null,"Course Name/Code","Select One",null,null,"",null,"Course Name/Code","Select One",null,"","Credits","Course Name/Code","Select One",null,"","Credits","Course Name/Code","Select One",null,"","Credits","Course Name/Code","Select One",null,"","Credits","Course Name/Code","Select One",null,"","Credits","Course Name/Code","Select One",null,"","Credits","Course Name/Code","Select One",null,"","Credits","Course Name/Code","Select One",null,"","Credits","Course Name/Code","Select One",null,"","Credits","Course Name/Code","Select One",null,"","Credits"]
[null,null,null,"Course Name/Code","Select One",null,"",null,"Course Name/Code","Select One",null,null,"",null,"Course Name/Code","Select One",null,"","Credits","Course Name/Code","Select One",null,"","Credits","Course Name/Code","Select One",null,"","Credits","Course Name/Code","Select One",null,"","Credits","Course Name/Code","Select One",null,"","Credits","Course Name/Code","Select One",null,"","Credits","Course Name/Code","Select One",null,"","Credits","Course Name/Code","Select One",null,"","Credits","Course Name/Code","Select One",null,"","Credits","Course Name/Code","Select One",null,"","Credits"]
[null,null,null,"Course Name/Code","Select One",null,"",null,"Course Name/Code","Select One",null,null,"",null,"Course Name/Code","Select One",null,"","Credits","Course Name/Code","Select One",null,"","Credits","Course Name/Code","Select One",null,"","Credits","Course Name/Code","Select One",null,"","Credits","Course Name/Code","Select One",null,"","Credits","Course Name/Code","Select One",null,"","Credits","Course Name/Code","Select One",null,"","Credits","Course Name/Code","Select One",null,"","Credits","Course Name/Code","Select One",null,"","Credits","Course Name/Code","Select One",null,"","Credits"]
[null,null,null,"Course Name/Code","Select One",null,"",null,"Course Name/Code","Select One",null,null,"",null,"Course Name/Code","Select One",null,"","Credits","Course Name/Code","Select One",null,"","Credits","Course Name/Code","Select One",null,"","Credits","Course Name/Code","Select One",null,"","Credits","Course Name/Code","Select One",null,"","Credits","Course Name/Code","Select One",null,"","Credits","Course Name/Code","Select One",null,"","Credits","Course Name/Code","Select One",null,"","Credits","Course Name/Code","Select One",null,"","Credits","Course Name/Code","Select One",null,"","Credits"]
[null,null,null,"Program","Environmental Science & Technology",null,"Chapter 74?","Program Code","Program","Radio & Television Broadcasting - 0971",null,null,"Chapter 74? ","Program Code","Program","Fashion Technology ",null,"Chapter 74? ","Program Code","Program","Carpentry ",null,"Chapter 74? ","Program Code","Program","Select One",null,null,null,"Program","Medical Assisting - 5181",null,"Chapter 74? ","Program Code","Program","Select One",null,null,null,"Program","Select One",null,null,null,null,null,null,null,null,"Program","Electronics",null,"Chapter 74? ","Program Code","Program","Aviation",null,"Chapter 74? ","Program Code"]
[null,null,null,null,null,null,"Select One",{"$f":"IF(G62=\"Select One\",\"\",(IF(G62=\"Yes\",\"150507\",(IF(G62=\"No\",\"1557\",\"\")))))","v":""},null,null,null,null,"Select One",{"$f":"IF(M62=\"Select One\",\"\",(IF(M62=\"Yes\",\"090701\",(IF(M62=\"No\",\"0971\",\"\")))))","v":""},null,null,null,"Select One",{"$f":"IF(R62=\"Select One\",\"\",(IF(R62=\"Yes\",\"500407\",(IF(R53=\"No\",\"5047\",\"\")))))","v":""},null,null,null,"Select One",{"$f":"IF(W62=\"Select One\",\"\",(IF(W62=\"Yes\",\"460201\",(IF(W62=\"No\",\"4621\",\"\")))))","v":""},null,null,null,null,null,null,null,null,"Select One",{"$f":"IF(AG62=\"Select One\",\"\",(IF(AG62=\"Yes\",\"510801\",(IF(AG62=\"No\",\"5181\",\"\")))))","v":""},null,null,null,null,null,null,null,null,null,null,null,null,null,null,null,null,null,null,"Select One",{"$f":"IF(BA62=\"Select One\",\"\",(IF(BA62=\"Yes\",\"150303\",(IF(BA62=\"No\",\"1533\",\"\")))))","v":""},null,null,null,"Select One",{"$f":"IF(BF62=\"Select One\",\"\",(IF(BF62=\"Yes\",\"??????\",(IF(BF62=\"No\",\"????\",\"\")))))","v":""}]
[null,null,null,"Course Name/Code","Select One",null,{"$f":"IF(E63=\"Select One\",\"\", RIGHT(E63,7))","v":""},"Credits","Course Name/Code","Select One",null,null,{"$f":"IF(J63=\"Select One\",\"\", RIGHT(J63,7))","v":""},null,"Course Name/Code","Select One",null,{"$f":"IF(P63=\"Select One\",\"\", RIGHT(P63,7))","v":""},"Credits","Course Name/Code","Select One",null,{"$f":"IF(U63=\"Select One\",\"\", RIGHT(U63,7))","v":""},"Credits","Course Name/Code","Select One",null,{"$f":"IF(Z63=\"Select One\",\"\", RIGHT(Z63,7))","v":""},"Credits","Course Name/Code","Select One",null,{"$f":"IF(AE63=\"Select One\",\"\", RIGHT(AE63,7))","v":""},"Credits","Course Name/Code","Select One",null,{"$f":"IF(AJ63=\"Select One\",\"\", RIGHT(AJ63,7))","v":""},"Credits","Course Name/Code","Select One",null,{"$f":"IF(AO63=\"Select One\",\"\", RIGHT(AO63,7))","v":""},"Credits",null,null,null,null,null,"Course Name/Code","Select One",null,{"$f":"IF(AY63=\"Select One\",\"\", RIGHT(AY63,7))","v":""},"Credits","Course Name/Code","Select One",null,{"$f":"IF(BD63=\"Select One\",\"\", RIGHT(BD63,7))","v":""},"Credits"]
[null,null,null,"Course Name/Code","Select One",null,"","Credits","Course Name/Code","Select One",null,null,null,null,"Course Name/Code","Select One",null,"","Credits","Course Name/Code","Select One",null,"","Credits","Course Name/Code","Select One",null,"","Credits","Course Name/Code","Select One",null,"","Credits","Course Name/Code","Select One",null,"","Credits","Course Name/Code","Select One",null,"","Credits",null,null,null,null,null,"Course Name/Code","Select One",null,"","Credits","Course Name/Code","Select One",null,"","Credits"]
[null,null,null,"Course Name/Code","Select One",null,"","Credits","Course Name/Code","Select One",null,null,null,null,"Course Name/Code","Select One",null,"","Credits","Course Name/Code","Select One",null,"","Credits","Course Name/Code","Select One",null,"","Credits","Course Name/Code","Select One",null,"","Credits","Course Name/Code","Select One",null,"","Credits","Course Name/Code","Select One",null,"","Credits",null,null,null,null,null,"Course Name/Code","Select One",null,"","Credits","Course Name/Code","Select One",null,"","Credits"]
[null,null,null,"Course Name/Code","Select One",null,"","Credits","Course Name/Code","Select One",null,null,null,null,"Course Name/Code","Select One",null,"","Credits","Course Name/Code","Select One",null,"","Credits","Course Name/Code","Select One",null,"","Credits","Course Name/Code","Select One",null,"","Credits","Course Name/Code","Select One",null,"","Credits","Course Name/Code","Select One",null,"","Credits",null,null,null,null,null,"Course Name/Code","Select One",null,"","Credits","Course Name/Code","Select One",null,"","Credits"]
[null,null,null,"Course Name/Code","Select One",null,"","Credits","Course Name/Code","Select One",null,null,null,null,"Course Name/Code","Select One",null,"","Credits","Course Name/Code","Select One",null,"","Credits","Course Name/Code","Select One",null,"","Credits","Course Name/Code","Select One",null,"","Credits","Course Name/Code","Select One",null,"","Credits","Course Name/Code","Select One",null,"","Credits",null,null,null,null,null,"Course Name/Code","Select One",null,"","Credits","Course Name/Code","Select One",null,"","Credits"]
[null,null,null,"Course Name/Code","Select One",null,"","Credits","Course Name/Code","Select One",null,null,null,null,"Course Name/Code","Select One",null,"","Credits","Course Name/Code","Select One",null,"","Credits","Course Name/Code","Select One",null,"","Credits","Course Name/Code","Select One",null,"","Credits","Course Name/Code","Select One",null,"","Credits","Course Name/Code","Select One",null,"","Credits",null,null,null,null,null,"Course Name/Code","Select One",null,"","Credits","Course Name/Code","Select One",null,"","Credits"]
[null,null,null,"Course Name/Code","Select One",null,"","Credits","Course Name/Code","Select One",null,null,null,null,"Course Name/Code","Select One",null,"","Credits","Course Name/Code","Select One",null,"","Credits","Course Name/Code","Select One",null,"","Credits","Course Name/Code","Select One",null,"","Credits","Course Name/Code","Select One",null,"","Credits","Course Name/Code","Select One",null,"","Credits",null,null,null,null,null,"Course Name/Code","Select One",null,"","Credits","Course Name/Code","Select One",null,"","Credits"]
[null,null,null,"Program","Horticulture ",null,"Chapter 74?","Program Code","Program","Select One",null,null,null,null,"Program","Marketing/Finance  ",null,"Chapter 74? ","Program Code","Program","Construction Craft Laborer ",null,"Chapter 74? ","Program Code","Program","Select One",null,null,null,"Program","Select One",null,null,null,"Program","Select One",null,null,null,"Program","Select One",null,null,null,null,null,null,null,null,"Program","Engineering Technology ",null,"Chapter 74? ","Program Code","Program","Diesel Technology ",null,"Chapter 74? ","Program Code"]
[null,null,null,null,null,null,"Select One",{"$f":"IF(G71=\"Select One\",\"\",(IF(G71=\"Yes\",\"010601\",(IF(G71=\"No\",\"0161\",\"\")))))","v":""},null,null,null,null,null,null,null,null,null,"Select One",{"$f":"IF(R71=\"Select One\",\"\",(IF(R71=\"Yes\",\"190203\",(IF(R71=\"No\",\"1923\",\"\")))))","v":""},null,null,null,"Select One",{"$f":"IF(W71=\"Select One\",\"\",(IF(W71=\"Yes\",\"469999\",(IF(W71=\"No\",\"4699\",\"\")))))","v":""},null,null,null,null,null,null,null,null,null,null,null,null,null,null,null,null,null,null,null,null,null,null,null,null,null,null,null,null,"Select One",{"$f":"IF(BA71=\"Select One\",\"\",(IF(BA71=\"Yes\",\"150000\",(IF(BA71=\"No\",\"1500\",\"\")))))","v":""},null,null,null,"Select One",{"$f":"IF(BF71=\"Select One\",\"\",(IF(BF71=\"Yes\",\"470605\",(IF(BF71=\"No\",\"4765\",\"\")))))","v":""}]
[null,null,null,"Course Name/Code","Select One",null,{"$f":"IF(E72=\"Select One\",\"\", RIGHT(E72,7))","v":""},"Credits","Course Name/Code","Select One",null,null,{"$f":"IF(J72=\"Select One\",\"\", RIGHT(J72,7))","v":""},null,"Course Name/Code","Select One",null,{"$f":"IF(P72=\"Select One\",\"\", RIGHT(P72,7))","v":""},"Credits","Course Name/Code","Select One",null,{"$f":"IF(U72=\"Select One\",\"\", RIGHT(U72,7))","v":""},"Credits","Course Name/Code","Select One",null,{"$f":"IF(Z72=\"Select One\",\"\", RIGHT(Z72,7))","v":""},"Credits","Course Name/Code","Select One",null,{"$f":"IF(AE72=\"Select One\",\"\", RIGHT(AE72,7))","v":""},"Credits","Course Name/Code","Select One",null,{"$f":"IF(AJ72=\"Select One\",\"\", RIGHT(AJ72,7))","v":""},"Credits","Course Name/Code","Select One",null,{"$f":"IF(AO72=\"Select One\",\"\", RIGHT(AO72,7))","v":""},"Credits",null,null,null,null,null,"Course Name/Code","Select One",null,{"$f":"IF(AY72=\"Select One\",\"\", RIGHT(AY72,7))","v":""},"Credits","Course Name/Code","Select One",null,{"$f":"IF(BD72=\"Select One\",\"\", RIGHT(BD72,7))","v":""},"Credits"]
[null,null,null,"Course Name/Code","Select One",null,"","Credits","Course Name/Code","Select One",null,null,"",null,"Course Name/Code","Select One",null,"","Credits","Course Name/Code","Select One",null,"","Credits","Course Name/Code","Select One",null,"","Credits","Course Name/Code","Select One",null,"","Credits","Course Name/Code","Select One",null,"","Credits","Course Name/Code","Select One",null,"","Credits",null,null,null,null,null,"Course Name/Code","Select One",null,"","Credits","Course Name/Code","Select One",null,"","Credits"]
[null,null,null,"Course Name/Code","Select One",null,"","Credits","Course Name/Code","Select One",null,null,"",null,"Course Name/Code","Select One",null,"","Credits","Course Name/Code","Select One",null,"","Credits","Course Name/Code","Select One",null,"","Credits","Course Name/Code","Select One",null,"","Credits","Course Name/Code","Select One",null,"","Credits","Course Name/Code","Select One",null,"","Credits",null,null,null,null,null,"Course Name/Code","Select One",null,"","Credits","Course Name/Code","Select One",null,"","Credits"]
[null,null,null,"Course Name/Code","Select One",null,"","Credits","Course Name/Code","Select One",null,null,"",null,"Course Name/Code","Select One",null,"","Credits","Course Name/Code","Select One",null,"","Credits","Course Name/Code","Select One",null,"","Credits","Course Name/Code","Select One",null,"","Credits","Course Name/Code","Select One",null,"","Credits","Course Name/Code","Select One",null,"","Credits",null,null,null,null,null,"Course Name/Code","Select One",null,"","Credits","Course Name/Code","Select One",null,"","Credits"]
[null,null,null,"Course Name/Code","Select One",null,"","Credits","Course Name/Code","Select One",null,null,"",null,"Course Name/Code","Select One",null,"","Credits","Course Name/Code","Select One",null,"","Credits","Course Name/Code","Select One",null,"","Credits","Course Name/Code","Select One",null,"","Credits","Course Name/Code","Select One",null,"","Credits","Course Name/Code","Select One",null,"","Credits",null,null,null,null,null,"Course Name/Code","Select One",null,"","Credits","Course Name/Code","Select One",null,"","Credits"]
[null,null,null,"Course Name/Code","Select One",null,"","Credits","Course Name/Code","Select One",null,null,"",null,"Course Name/Code","Select One",null,"","Credits","Course Name/Code","Select One",null,"","Credits","Course Name/Code","Select One",null,"","Credits","Course Name/Code","Select One",null,"","Credits","Course Name/Code","Select One",null,"","Credits","Course Name/Code","Select One",null,"","Credits",null,null,null,null,null,"Course Name/Code","Select One",null,"","Credits","Course Name/Code","Select One",null,"","Credits"]
[null,null,null,"Course Name/Code","Select One",null,"","Credits","Course Name/Code","Select One",null,null,"",null,"Course Name/Code","Select One",null,"","Credits","Course Name/Code","Select One",null,"","Credits","Course Name/Code","Select One",null,"","Credits","Course Name/Code","Select One",null,"","Credits","Course Name/Code","Select One",null,"","Credits","Course Name/Code","Select One",null,"","Credits",null,null,null,null,null,"Course Name/Code","Select One",null,"","Credits","Course Name/Code","Select One",null,"","Credits"]
[null,null,null,"Program","Select One",null,null,null,"Program","Select One",null,null,null,null,"Program","Select One",null,null,null,"Program","Electricity\n(Chapter 74 Only)",null,"Chapter 74? ","Program Code",null,null,null,null,null,"Program","Select One",null,null,null,null,null,null,null,null,null,null,null,null,null,null,null,null,null,null,"Program","Machine Tool Technology ",null,"Chapter 74? ","Program Code","Program","Marine Service Technology",null,"Chapter 74? ","Program Code"]
[null,null,null,null,null,null,null,null,null,null,null,null,null,null,null,null,null,null,null,null,null,null,"Yes",460302,null,null,null,null,null,null,null,null,null,null,null,null,null,null,null,null,null,null,null,null,null,null,null,null,null,null,null,null,"Select One",{"$f":"IF(BA80=\"Select One\",\"\",(IF(BA80=\"Yes\",\"480501\",(IF(BA80=\"No\",\"4851\",\"\")))))","v":""},null,null,null,"Select One",{"$f":"IF(BF80=\"Select One\",\"\",(IF(BF80=\"Yes\",\"470616\",(IF(BF80=\"No\",\"4761\",\"\")))))","v":""}]
[null,null,null,"Course Name/Code","Select One",null,{"$f":"IF(E81=\"Select One\",\"\", RIGHT(E81,7))","v":""},"Credits","Course Name/Code","Select One",null,null,{"$f":"IF(J81=\"Select One\",\"\", RIGHT(J81,7))","v":""},null,"Course Name/Code","Select One",null,{"$f":"IF(P81=\"Select One\",\"\", RIGHT(P81,7))","v":""},"Credits","Course Name/Code","Select One",null,{"$f":"IF(U81=\"Select One\",\"\", RIGHT(U81,7))","v":""},"Credits",null,null,null,null,null,"Course Name/Code","Select One",null,{"$f":"IF(AE81=\"Select One\",\"\", RIGHT(AE81,7))","v":""},"Credits",null,null,null,null,null,null,null,null,null,null,null,null,null,null,null,"Course Name/Code","Select One",null,{"$f":"IF(AY81=\"Select One\",\"\", RIGHT(AY81,7))","v":""},"Credits","Course Name/Code","Select One",null,{"$f":"IF(BD81=\"Select One\",\"\", RIGHT(BD81,7))","v":""},"Credits"]
[null,null,null,"Course Name/Code","Select One",null,"","Credits","Course Name/Code","Select One",null,null,"",null,"Course Name/Code","Select One",null,"","Credits","Course Name/Code","Select One",null,"","Credits",null,null,null,null,null,"Course Name/Code","Select One",null,"","Credits",null,null,null,null,null,null,null,null,null,null,null,null,null,null,null,"Course Name/Code","Select One",null,"","Credits","Course Name/Code","Select One",null,"","Credits"]
[null,null,null,"Course Name/Code","Select One",null,"","Credits","Course Name/Code","Select One",null,null,"",null,"Course Name/Code","Select One",null,"","Credits","Course Name/Code","Select One",null,"","Credits",null,null,null,null,null,"Course Name/Code","Select One",null,"","Credits",null,null,null,null,null,null,null,null,null,null,null,null,null,null,null,"Course Name/Code","Select One",null,"","Credits","Course Name/Code","Select One",null,"","Credits"]
[null,null,null,"Course Name/Code","Select One",null,"","Credits","Course Name/Code","Select One",null,null,"",null,"Course Name/Code","Select One",null,"","Credits","Course Name/Code","Select One",null,"","Credits",null,null,null,null,null,"Course Name/Code","Select One",null,"","Credits",null,null,null,null,null,null,null,null,null,null,null,null,null,null,null,"Course Name/Code","Select One",null,"","Credits","Course Name/Code","Select One",null,"","Credits"]
[null,null,null,"Course Name/Code","Select One",null,"","Credits","Course Name/Code","Select One",null,null,"",null,"Course Name/Code","Select One",null,"","Credits","Course Name/Code","Select One",null,"","Credits",null,null,null,null,null,"Course Name/Code","Select One",null,"","Credits",null,null,null,null,null,null,null,null,null,null,null,null,null,null,null,"Course Name/Code","Select One",null,"","Credits","Course Name/Code","Select One",null,"","Credits"]
[null,null,null,"Course Name/Code","Select One",null,"","Credits","Course Name/Code","Select One",null,null,"",null,"Course Name/Code","Select One",null,"","Credits","Course Name/Code","Select One",null,"","Credits",null,null,null,null,null,"Course Name/Code","Select One",null,"","Credits",null,null,null,null,null,null,null,null,null,null,null,null,null,null,null,"Course Name/Code","Select One",null,"","Credits","Course Name/Code","Select One",null,"","Credits"]
[null,null,null,"Course Name/Code","Select One",null,"","Credits","Course Name/Code","Select One",null,null,"",null,"Course Name/Code","Select One",null,"","Credits","Course Name/Code","Select One",null,"","Credits",null,null,null,null,null,"Course Name/Code","Select One",null,"","Credits",null,null,null,null,null,null,null,null,null,null,null,null,null,null,null,"Course Name/Code","Select One",null,"","Credits","Course Name/Code","Select One",null,"","Credits"]
[null,null,null,"Program","Select One",null,null,null,null,null,null,null,null,null,"Program","Select One",null,null,null,"Program","Heating — Ventilation  — Air Conditioning — Refrigeration ",null,"Chapter 74? ","Program Code",null,null,null,null,null,null,null,null,null,null,null,null,null,null,null,null,null,null,null,null,null,null,null,null,null,"Program","Metal Fabrication & Joining Technologies ",null,"Chapter 74? ","Program Code","Program","Power Equipment Technology",null,"Chapter 74? ","Program Code"]
[null,null,null,null,null,null,null,null,null,null,null,null,null,null,null,null,null,null,null,null,null,null,"Select One",{"$f":"IF(W89=\"Select One\",\"\",(IF(W89=\"Yes\",\"470201\",(IF(W89=\"No\",\"4721\",\"\")))))","v":""},null,null,null,null,null,null,null,null,null,null,null,null,null,null,null,null,null,null,null,null,null,null,null,null,null,null,null,null,"Select One",{"$f":"IF(BA89=\"Select One\",\"\",(IF(BA89=\"Yes\",\"480599\",(IF(BA89=\"No\",\"4859\",\"\")))))","v":""},null,null,null,"Select One",{"$f":"IF(BF89=\"Select One\",\"\",(IF(BF89=\"Yes\",\"470606\",(IF(BF89=\"No\",\"4766\",\"\")))))","v":""}]
[null,null,null,"Course Name/Code","Select One",null,{"$f":"IF(E90=\"Select One\",\"\", RIGHT(E90,7))","v":""},"Credits",null,null,null,null,null,null,"Course Name/Code","Select One",null,{"$f":"IF(P90=\"Select One\",\"\", RIGHT(P90,7))","v":""},"Credits","Course Name/Code","Select One",null,{"$f":"IF(U90=\"Select One\",\"\", RIGHT(U90,7))","v":""},"Credits",null,null,null,null,null,null,null,null,null,null,null,null,null,null,null,null,null,null,null,null,null,null,null,null,null,"Course Name/Code","Select One",null,{"$f":"IF(AY90=\"Select One\",\"\", RIGHT(AY90,7))","v":""},"Credits","Course Name/Code","Select One",null,{"$f":"IF(BD90=\"Select One\",\"\", RIGHT(BD90,7))","v":""},"Credits"]
[null,null,null,"Course Name/Code","Select One",null,"","Credits",null,null,null,null,null,null,"Course Name/Code","Select One",null,"","Credits","Course Name/Code","Select One",null,"","Credits",null,null,null,null,null,null,null,null,null,null,null,null,null,null,null,null,null,null,null,null,null,null,null,null,null,"Course Name/Code","Select One",null,"","Credits","Course Name/Code","Select One",null,"","Credits"]
[null,null,null,"Course Name/Code","Select One",null,"","Credits",null,null,null,null,null,null,"Course Name/Code","Select One",null,"","Credits","Course Name/Code","Select One",null,"","Credits",null,null,null,null,null,null,null,null,null,null,null,null,null,null,null,null,null,null,null,null,null,null,null,null,null,"Course Name/Code","Select One",null,"","Credits","Course Name/Code","Select One",null,"","Credits"]
[null,null,null,"Course Name/Code","Select One",null,"","Credits",null,null,null,null,null,null,"Course Name/Code","Select One",null,"","Credits","Course Name/Code","Select One",null,"","Credits",null,null,null,null,null,null,null,null,null,null,null,null,null,null,null,null,null,null,null,null,null,null,null,null,null,"Course Name/Code","Select One",null,"","Credits","Course Name/Code","Select One",null,"","Credits"]
[null,null,null,"Course Name/Code","Select One",null,"","Credits",null,null,null,null,null,null,"Course Name/Code","Select One",null,"","Credits","Course Name/Code","Select One",null,"","Credits",null,null,null,null,null,null,null,null,null,null,null,null,null,null,null,null,null,null,null,null,null,null,null,null,null,"Course Name/Code","Select One",null,"","Credits","Course Name/Code","Select One",null,"","Credits"]
[null,null,null,"Course Name/Code","Select One",null,"","Credits",null,null,null,null,null,null,"Course Name/Code","Select One",null,"","Credits","Course Name/Code","Select One",null,"","Credits",null,null,null,null,null,null,null,null,null,null,null,null,null,null,null,null,null,null,null,null,null,null,null,null,null,"Course Name/Code","Select One",null,"","Credits","Course Name/Code","Select One",null,"","Credits"]
[null,null,null,"Course Name/Code","Select One",null,"","Credits",null,null,null,null,null,null,"Course Name/Code","Select One",null,"","Credits","Course Name/Code","Select One",null,"","Credits",null,null,null,null,null,null,null,null,null,null,null,null,null,null,null,null,null,null,null,null,null,null,null,null,null,"Course Name/Code","Select One",null,"","Credits","Course Name/Code","Select One",null,"","Credits"]
[null,null,null,null,null,null,null,null,null,null,null,null,null,null,null,null,null,null,null,"Program","Masonry & Tile Setting ",null,"Chapter 74? ","Program Code",null,null,null,null,null,null,null,null,null,null,null,null,null,null,null,null,null,null,null,null,null,null,null,null,null,"Program","Robotics and Automation Technology",null,"Chapter 74? ","Program Code","Program","Select One"]
[null,null,null,null,null,null,null,null,null,null,null,null,null,null,null,null,null,null,null,null,null,null,"Select One",{"$f":"IF(W98=\"Select One\",\"\",(IF(W98=\"Yes\",\"460101\",(IF(W98=\"No\",\"4611\",\"\")))))","v":""},null,null,null,null,null,null,null,null,null,null,null,null,null,null,null,null,null,null,null,null,null,null,null,null,null,null,null,null,"Select One",{"$f":"IF(BA98=\"Select One\",\"\",(IF(BA98=\"Yes\",\"150403\",(IF(BA98=\"No\",\"1543\",\"\")))))","v":""}]
[null,null,null,null,null,null,null,null,null,null,null,null,null,null,null,null,null,null,null,"Course Name/Code","Select One",null,{"$f":"IF(U99=\"Select One\",\"\", RIGHT(U99,7))","v":""},"Credits",null,null,null,null,null,null,null,null,null,null,null,null,null,null,null,null,null,null,null,null,null,null,null,null,null,"Course Name/Code","Select One",null,{"$f":"IF(AY99=\"Select One\",\"\", RIGHT(AY99,7))","v":""},"Credits","Course Name/Code","Select One",null,{"$f":"IF(BD99=\"Select One\",\"\", RIGHT(BD99,7))","v":""},"Credits"]
[null,null,null,null,null,null,null,null,null,null,null,null,null,null,null,null,null,null,null,"Course Name/Code","Select One",null,"","Credits",null,null,null,null,null,null,null,null,null,null,null,null,null,null,null,null,null,null,null,null,null,null,null,null,null,"Course Name/Code","Select One",null,"","Credits","Course Name/Code","Select One",null,"","Credits"]
[null,null,null,null,null,null,null,null,null,null,null,null,null,null,null,null,null,null,null,"Course Name/Code","Select One",null,"","Credits",null,null,null,null,null,null,null,null,null,null,null,null,null,null,null,null,null,null,null,null,null,null,null,null,null,"Course Name/Code","Select One",null,"","Credits","Course Name/Code","Select One",null,"","Credits"]
[null,null,null,null,null,null,null,null,null,null,null,null,null,null,null,null,null,null,null,"Course Name/Code","Select One",null,"","Credits",null,null,null,null,null,null,null,null,null,null,null,null,null,null,null,null,null,null,null,null,null,null,null,null,null,"Course Name/Code","Select One",null,"","Credits","Course Name/Code","Select One",null,"","Credits"]
[null,null,null,null,null,null,null,null,null,null,null,null,null,null,null,null,null,null,null,"Course Name/Code","Select One",null,"","Credits",null,null,null,null,null,null,null,null,null,null,null,null,null,null,null,null,null,null,null,null,null,null,null,null,null,"Course Name/Code","Select One",null,"","Credits","Course Name/Code","Select One",null,"","Credits"]
[null,null,null,null,null,null,null,null,null,null,null,null,null,null,null,null,null,null,null,"Course Name/Code","Select One",null,"","Credits",null,null,null,null,null,null,null,null,null,null,null,null,null,null,null,null,null,null,null,null,null,null,null,null,null,"Course Name/Code","Select One",null,"","Credits","Course Name/Code","Select One",null,"","Credits"]
[null,null,null,null,null,null,null,null,null,null,null,null,null,null,null,null,null,null,null,"Course Name/Code","Select One",null,"","Credits",null,null,null,null,null,null,null,null,null,null,null,null,null,null,null,null,null,null,null,null,null,null,null,null,null,"Course Name/Code","Select One",null,"","Credits","Course Name/Code","Select One",null,"","Credits"]
[null,null,null,null,null,null,null,null,null,null,null,null,null,null,null,null,null,null,null,"Program","Painting & Design Technologies ",null,"Chapter 74? ","Program Code",null,null,null,null,null,null,null,null,null,null,null,null,null,null,null,null,null,null,null,null,null,null,null,null,null,"Program","Stationary Engineering",null,"Chapter 74? ","Program Code","Program","Select One"]
[null,null,null,null,null,null,null,null,null,null,null,null,null,null,null,null,null,null,null,null,null,null,"Select One",{"$f":"IF(W107=\"Select One\",\"\",(IF(W107=\"Yes\",\"460408\",(IF(W107=\"No\",\"4648\",\"\")))))","v":""},null,null,null,null,null,null,null,null,null,null,null,null,null,null,null,null,null,null,null,null,null,null,null,null,null,null,null,null,"Select One",{"$f":"IF(BA107=\"Select One\",\"\",(IF(BA107=\"Yes\",\"479999\",(IF(BA107=\"No\",\"4799\",\"\")))))","v":""}]
[null,null,null,null,null,null,null,null,null,null,null,null,null,null,null,null,null,null,null,"Course Name/Code","Select One",null,{"$f":"IF(U108=\"Select One\",\"\", RIGHT(U108,7))","v":""},"Credits",null,null,null,null,null,null,null,null,null,null,null,null,null,null,null,null,null,null,null,null,null,null,null,null,null,"Course Name/Code","Select One",null,{"$f":"IF(AY108=\"Select One\",\"\", RIGHT(AY108,7))","v":""},"Credits","Course Name/Code","Select One",null,{"$f":"IF(BD108=\"Select One\",\"\", RIGHT(BD108,7))","v":""},"Credits"]
[null,null,null,null,null,null,null,null,null,null,null,null,null,null,null,null,null,null,null,"Course Name/Code","Select One",null,"","Credits",null,null,null,null,null,null,null,null,null,null,null,null,null,null,null,null,null,null,null,null,null,null,null,null,null,"Course Name/Code","Select One",null,"","Credits","Course Name/Code","Select One",null,"","Credits"]
[null,null,null,null,null,null,null,null,null,null,null,null,null,null,null,null,null,null,null,"Course Name/Code","Select One",null,"","Credits",null,null,null,null,null,null,null,null,null,null,null,null,null,null,null,null,null,null,null,null,null,null,null,null,null,"Course Name/Code","Select One",null,"","Credits","Course Name/Code","Select One",null,"","Credits"]
[null,null,null,null,null,null,null,null,null,null,null,null,null,null,null,null,null,null,null,"Course Name/Code","Select One",null,"","Credits",null,null,null,null,null,null,null,null,null,null,null,null,null,null,null,null,null,null,null,null,null,null,null,null,null,"Course Name/Code","Select One",null,"","Credits","Course Name/Code","Select One",null,"","Credits"]
[null,null,null,null,null,null,null,null,null,null,null,null,null,null,null,null,null,null,null,"Course Name/Code","Select One",null,"","Credits",null,null,null,null,null,null,null,null,null,null,null,null,null,null,null,null,null,null,null,null,null,null,null,null,null,"Course Name/Code","Select One",null,"","Credits","Course Name/Code","Select One",null,"","Credits"]
[null,null,null,null,null,null,null,null,null,null,null,null,null,null,null,null,null,null,null,"Course Name/Code","Select One",null,"","Credits",null,null,null,null,null,null,null,null,null,null,null,null,null,null,null,null,null,null,null,null,null,null,null,null,null,"Course Name/Code","Select One",null,"","Credits","Course Name/Code","Select One",null,"","Credits"]
[null,null,null,null,null,null,null,null,null,null,null,null,null,null,null,null,null,null,null,"Course Name/Code","Select One",null,"","Credits",null,null,null,null,null,null,null,null,null,null,null,null,null,null,null,null,null,null,null,null,null,null,null,null,null,"Course Name/Code","Select One",null,"","Credits","Course Name/Code","Select One",null,"","Credits"]
[null,null,null,null,null,null,null,null,null,null,null,null,null,null,null,null,null,null,null,"Program","Plumbing\n(Chapter 74 Only)",null,"Chapter 74? ","Program Code",null,null,null,null,null,null,null,null,null,null,null,null,null,null,null,null,null,null,null,null,null,null,null,null,null,"Program","Telecommunications — Fiber Optics ",null,"Chapter 74? ","Program Code"]
[null,null,null,null,null,null,null,null,null,null,null,null,null,null,null,null,null,null,null,null,null,null,"Yes",460503,null,null,null,null,null,null,null,null,null,null,null,null,null,null,null,null,null,null,null,null,null,null,null,null,null,null,null,null,"Select One",{"$f":"IF(BA116=\"Select One\",\"\",(IF(BA116=\"Yes\",\"150305\",(IF(BA116=\"No\",\"1535\",\"\")))))","v":""}]
[null,null,null,null,null,null,null,null,null,null,null,null,null,null,null,null,null,null,null,"Course Name/Code","Select One",null,{"$f":"IF(U117=\"Select One\",\"\", RIGHT(U117,7))","v":""},"Credits",null,null,null,null,null,null,null,null,null,null,null,null,null,null,null,null,null,null,null,null,null,null,null,null,null,"Course Name/Code","Select One",null,{"$f":"IF(AY117=\"Select One\",\"\", RIGHT(AY117,7))","v":""},"Credits"]
[null,null,null,null,null,null,null,null,null,null,null,null,null,null,null,null,null,null,null,"Course Name/Code","Select One",null,"","Credits",null,null,null,null,null,null,null,null,null,null,null,null,null,null,null,null,null,null,null,null,null,null,null,null,null,"Course Name/Code","Select One",null,"","Credits"]
[null,null,null,null,null,null,null,null,null,null,null,null,null,null,null,null,null,null,null,"Course Name/Code","Select One",null,"","Credits",null,null,null,null,null,null,null,null,null,null,null,null,null,null,null,null,null,null,null,null,null,null,null,null,null,"Course Name/Code","Select One",null,"","Credits"]
[null,null,null,null,null,null,null,null,null,null,null,null,null,null,null,null,null,null,null,"Course Name/Code","Select One",null,"","Credits",null,null,null,null,null,null,null,null,null,null,null,null,null,null,null,null,null,null,null,null,null,null,null,null,null,"Course Name/Code","Select One",null,"","Credits"]
[null,null,null,null,null,null,null,null,null,null,null,null,null,null,null,null,null,null,null,"Course Name/Code","Select One",null,"","Credits",null,null,null,null,null,null,null,null,null,null,null,null,null,null,null,null,null,null,null,null,null,null,null,null,null,"Course Name/Code","Select One",null,"","Credits"]
[null,null,null,null,null,null,null,null,null,null,null,null,null,null,null,null,null,null,null,"Course Name/Code","Select One",null,"","Credits",null,null,null,null,null,null,null,null,null,null,null,null,null,null,null,null,null,null,null,null,null,null,null,null,null,"Course Name/Code","Select One",null,"","Credits"]
[null,null,null,null,null,null,null,null,null,null,null,null,null,null,null,null,null,null,null,"Course Name/Code","Select One",null,"","Credits",null,null,null,null,null,null,null,null,null,null,null,null,null,null,null,null,null,null,null,null,null,null,null,null,null,"Course Name/Code","Select One",null,"","Credits"]
[null,null,null,null,null,null,null,null,null,null,null,null,null,null,null,null,null,null,null,"Program","Sheet Metalworking ",null,"Chapter 74? ","Program Code",null,null,null,null,null,null,null,null,null,null,null,null,null,null,null,null,null,null,null,null,null,null,null,null,null,"Program","Select One"]
[null,null,null,null,null,null,null,null,null,null,null,null,null,null,null,null,null,null,null,null,null,null,"Select One",{"$f":"IF(W125=\"Select One\",\"\",(IF(W125=\"Yes\",\"480506\",(IF(W125=\"No\",\"4856\",\"\")))))","v":""}]
[null,null,null,null,null,null,null,null,null,null,null,null,null,null,null,null,null,null,null,"Course Name/Code","Select One",null,{"$f":"IF(U126=\"Select One\",\"\", RIGHT(U126,7))","v":""},"Credits",null,null,null,null,null,null,null,null,null,null,null,null,null,null,null,null,null,null,null,null,null,null,null,null,null,"Course Name/Code","Select One",null,{"$f":"IF(AY126=\"Select One\",\"\", RIGHT(AY126,7))","v":""},"Credits"]
[null,null,null,null,null,null,null,null,null,null,null,null,null,null,null,null,null,null,null,"Course Name/Code","Select One",null,"","Credits",null,null,null,null,null,null,null,null,null,null,null,null,null,null,null,null,null,null,null,null,null,null,null,null,null,"Course Name/Code","Select One",null,"","Credits"]
[null,null,null,null,null,null,null,null,null,null,null,null,null,null,null,null,null,null,null,"Course Name/Code","Select One",null,"","Credits",null,null,null,null,null,null,null,null,null,null,null,null,null,null,null,null,null,null,null,null,null,null,null,null,null,"Course Name/Code","Select One",null,"","Credits"]
[null,null,null,null,null,null,null,null,null,null,null,null,null,null,null,null,null,null,null,"Course Name/Code","Select One",null,"","Credits",null,null,null,null,null,null,null,null,null,null,null,null,null,null,null,null,null,null,null,null,null,null,null,null,null,"Course Name/Code","Select One",null,"","Credits"]
[null,null,null,null,null,null,null,null,null,null,null,null,null,null,null,null,null,null,null,"Course Name/Code","Select One",null,"","Credits",null,null,null,null,null,null,null,null,null,null,null,null,null,null,null,null,null,null,null,null,null,null,null,null,null,"Course Name/Code","Select One",null,"","Credits"]
[null,null,null,null,null,null,null,null,null,null,null,null,null,null,null,null,null,null,null,"Course Name/Code","Select One",null,"","Credits",null,null,null,null,null,null,null,null,null,null,null,null,null,null,null,null,null,null,null,null,null,null,null,null,null,"Course Name/Code","Select One",null,"","Credits"]
[null,null,null,null,null,null,null,null,null,null,null,null,null,null,null,null,null,null,null,"Course Name/Code","Select One",null,"","Credits",null,null,null,null,null,null,null,null,null,null,null,null,null,null,null,null,null,null,null,null,null,null,null,null,null,"Course Name/Code","Select One",null,"","Credits"]
[null,null,null,null,null,null,null,null,null,null,null,null,null,null,null,null,null,null,null,"Program","Select One",null,null,null,null,null,null,null,null,null,null,null,null,null,null,null,null,null,null,null,null,null,null,null,null,null,null,null,null,"Program","Select One"]
[]
[null,null,null,null,null,null,null,null,null,null,null,null,null,null,null,null,null,null,null,"Course Name/Code","Select One",null,{"$f":"IF(U135=\"Select One\",\"\", RIGHT(U135,7))","v":""},"Credits",null,null,null,null,null,null,null,null,null,null,null,null,null,null,null,null,null,null,null,null,null,null,null,null,null,"Course Name/Code","Select One",null,{"$f":"IF(AY135=\"Select One\",\"\", RIGHT(AY135,7))","v":""},"Credits"]
[null,null,null,null,null,null,null,null,null,null,null,null,null,null,null,null,null,null,null,"Course Name/Code","Select One",null,"","Credits",null,null,null,null,null,null,null,null,null,null,null,null,null,null,null,null,null,null,null,null,null,null,null,null,null,"Course Name/Code","Select One",null,"","Credits"]
[null,null,null,null,null,null,null,null,null,null,null,null,null,null,null,null,null,null,null,"Course Name/Code","Select One",null,"","Credits",null,null,null,null,null,null,null,null,null,null,null,null,null,null,null,null,null,null,null,null,null,null,null,null,null,"Course Name/Code","Select One",null,"","Credits"]
[null,null,null,null,null,null,null,null,null,null,null,null,null,null,null,null,null,null,null,"Course Name/Code","Select One",null,"","Credits",null,null,null,null,null,null,null,null,null,null,null,null,null,null,null,null,null,null,null,null,null,null,null,null,null,"Course Name/Code","Select One",null,"","Credits"]
[null,null,null,null,null,null,null,null,null,null,null,null,null,null,null,null,null,null,null,"Course Name/Code","Select One",null,"","Credits",null,null,null,null,null,null,null,null,null,null,null,null,null,null,null,null,null,null,null,null,null,null,null,null,null,"Course Name/Code","Select One",null,"","Credits"]
[null,null,null,null,null,null,null,null,null,null,null,null,null,null,null,null,null,null,null,"Course Name/Code","Select One",null,"","Credits",null,null,null,null,null,null,null,null,null,null,null,null,null,null,null,null,null,null,null,null,null,null,null,null,null,"Course Name/Code","Select One",null,"","Credits"]
[null,null,null,null,null,null,null,null,null,null,null,null,null,null,null,null,null,null,null,"Course Name/Code","Select One",null,"","Credits",null,null,null,null,null,null,null,null,null,null,null,null,null,null,null,null,null,null,null,null,null,null,null,null,null,"Course Name/Code","Select One",null,"","Credits"]
[null,null,null,null,null,null,null,null,null,null,null,null,null,null,null,null,null,null,null,"Program","Select One",null,null,null,null,null,null,null,null,null,null,null,null,null,null,null,null,null,null,null,null,null,null,null,null,null,null,null,null,"Program","Select One"]
[]
[null,null,null,null,null,null,null,null,null,null,null,null,null,null,null,null,null,null,null,"Course Name/Code","Select One",null,{"$f":"IF(U144=\"Select One\",\"\", RIGHT(U144,7))","v":""},"Credits",null,null,null,null,null,null,null,null,null,null,null,null,null,null,null,null,null,null,null,null,null,null,null,null,null,"Course Name/Code","Select One",null,{"$f":"IF(AY144=\"Select One\",\"\", RIGHT(AY144,7))","v":""},"Credits"]
[null,null,null,null,null,null,null,null,null,null,null,null,null,null,null,null,null,null,null,"Course Name/Code","Select One",null,"","Credits",null,null,null,null,null,null,null,null,null,null,null,null,null,null,null,null,null,null,null,null,null,null,null,null,null,"Course Name/Code","Select One",null,"","Credits"]
[null,null,null,null,null,null,null,null,null,null,null,null,null,null,null,null,null,null,null,"Course Name/Code","Select One",null,"","Credits",null,null,null,null,null,null,null,null,null,null,null,null,null,null,null,null,null,null,null,null,null,null,null,null,null,"Course Name/Code","Select One",null,"","Credits"]
[null,null,null,null,null,null,null,null,null,null,null,null,null,null,null,null,null,null,null,"Course Name/Code","Select One",null,"","Credits",null,null,null,null,null,null,null,null,null,null,null,null,null,null,null,null,null,null,null,null,null,null,null,null,null,"Course Name/Code","Select One",null,"","Credits"]
[null,null,null,null,null,null,null,null,null,null,null,null,null,null,null,null,null,null,null,"Course Name/Code","Select One",null,"","Credits",null,null,null,null,null,null,null,null,null,null,null,null,null,null,null,null,null,null,null,null,null,null,null,null,null,"Course Name/Code","Select One",null,"","Credits"]
[null,null,null,null,null,null,null,null,null,null,null,null,null,null,null,null,null,null,null,"Course Name/Code","Select One",null,"","Credits",null,null,null,null,null,null,null,null,null,null,null,null,null,null,null,null,null,null,null,null,null,null,null,null,null,"Course Name/Code","Select One",null,"","Credits"]
[null,null,null,null,null,null,null,null,null,null,null,null,null,null,null,null,null,null,null,"Course Name/Code","Select One",null,"","Credits",null,null,null,null,null,null,null,null,null,null,null,null,null,null,null,null,null,null,null,null,null,null,null,null,null,"Course Name/Code","Select One",null,"","Credits"]
[null,null,null,null,null,null,null,null,null,null,null,null,null,null,null,null,null,null,null,"Program","Select One",null,null,null,null,null,null,null,null,null,null,null,null,null,null,null,null,null,null,null,null,null,null,null,null,null,null,null,null,"Program","Select One"]
[]
[null,null,null,null,null,null,null,null,null,null,null,null,null,null,null,null,null,null,null,"Course Name/Code","Select One",null,{"$f":"IF(U153=\"Select One\",\"\", RIGHT(U153,7))","v":""},"Credits",null,null,null,null,null,null,null,null,null,null,null,null,null,null,null,null,null,null,null,null,null,null,null,null,null,"Course Name/Code","Select One",null,{"$f":"IF(AY153=\"Select One\",\"\", RIGHT(AY153,7))","v":""},"Credits"]
[null,null,null,null,null,null,null,null,null,null,null,null,null,null,null,null,null,null,null,"Course Name/Code","Select One",null,"","Credits",null,null,null,null,null,null,null,null,null,null,null,null,null,null,null,null,null,null,null,null,null,null,null,null,null,"Course Name/Code","Select One",null,"","Credits"]
[null,null,null,null,null,null,null,null,null,null,null,null,null,null,null,null,null,null,null,"Course Name/Code","Select One",null,"","Credits",null,null,null,null,null,null,null,null,null,null,null,null,null,null,null,null,null,null,null,null,null,null,null,null,null,"Course Name/Code","Select One",null,"","Credits"]
[null,null,null,null,null,null,null,null,null,null,null,null,null,null,null,null,null,null,null,"Course Name/Code","Select One",null,"","Credits",null,null,null,null,null,null,null,null,null,null,null,null,null,null,null,null,null,null,null,null,null,null,null,null,null,"Course Name/Code","Select One",null,"","Credits"]
[null,null,null,null,null,null,null,null,null,null,null,null,null,null,null,null,null,null,null,"Course Name/Code","Select One",null,"","Credits",null,null,null,null,null,null,null,null,null,null,null,null,null,null,null,null,null,null,null,null,null,null,null,null,null,"Course Name/Code","Select One",null,"","Credits"]
[null,null,null,null,null,null,null,null,null,null,null,null,null,null,null,null,null,null,null,"Course Name/Code","Select One",null,"","Credits",null,null,null,null,null,null,null,null,null,null,null,null,null,null,null,null,null,null,null,null,null,null,null,null,null,"Course Name/Code","Select One",null,"","Credits"]
[null,null,null,null,null,null,null,null,null,null,null,null,null,null,null,null,null,null,null,"Course Name/Code","Select One",null,"","Credits",null,null,null,null,null,null,null,null,null,null,null,null,null,null,null,null,null,null,null,null,null,null,null,null,null,"Course Name/Code","Select One",null,"","Credits"]
[null,null,null,null,null,null,null,null,null,null,null,null,null,null,null,null,null,null,null,"Program","Select One"]
[]
[null,null,null,null,null,null,null,null,null,null,null,null,null,null,null,null,null,null,null,"Course Name/Code","Select One",null,{"$f":"IF(U162=\"Select One\",\"\", RIGHT(U162,7))","v":""},"Credits"]
[null,null,null,null,null,null,null,null,null,null,null,null,null,null,null,null,null,null,null,"Course Name/Code","Select One",null,"","Credits"]
[null,null,null,null,null,null,null,null,null,null,null,null,null,null,null,null,null,null,null,"Course Name/Code","Select One",null,"","Credits"]
[null,null,null,null,null,null,null,null,null,null,null,null,null,null,null,null,null,null,null,"Course Name/Code","Select One",null,"","Credits"]
[null,null,null,null,null,null,null,null,null,null,null,null,null,null,null,null,null,null,null,"Course Name/Code","Select One",null,"","Credits"]
[null,null,null,null,null,null,null,null,null,null,null,null,null,null,null,null,null,null,null,"Course Name/Code","Select One",null,"","Credits"]
[null,null,null,null,null,null,null,null,null,null,null,null,null,null,null,null,null,null,null,"Course Name/Code","Select One",null,"","Credits"]

{"sheet":"5. CTE Courses - Postsecondary","index":5,"n_rows":77,"n_cols":66,"rows_kept":77,"cut":false,"hidden":false,"merged":[[21,24,21,26],[28,24,28,26],[21,40,21,42],[28,40,28,42],[42,16,42,18],[21,4,21,6],[21,8,21,10],[42,12,42,14],[28,20,28,22],[35,20,35,22],[42,20,42,22],[28,28,28,30],[35,28,35,30],[42,28,42,30],[21,36,21,38],[35,12,35,14],[21,16,21,18],[28,16,28,18],[35,16,35,18],[21,12,21,14],[28,12,28,14],[21,20,21,22],[28,36,28,38],[21,32,21,34],[21,28,21,30],[21,44,21,46],[28,44,28,46],[35,44,35,46],[42,44,42,46],[35,40,35,42],[42,40,42,42],[49,40,49,42],[56,40,56,42],[49,28,49,30],[56,28,56,30],[13,19,13,22],[13,23,13,26],[13,27,13,30],[13,31,13,34],[13,11,13,14],[13,15,13,18],[14,48,14,50],[14,36,14,38],[13,47,13,50],[13,43,13,46],[13,39,13,42],[13,35,13,38],[14,16,14,18],[14,12,14,14],[14,44,14,46],[14,40,14,42],[14,20,14,22],[14,32,14,34],[14,28,14,30],[14,24,14,26],[14,1,14,2],[42,4,42,6],[49,4,49,6],[56,4,56,6],[3,2,3,8],[1,2,1,4],[13,7,13,10],[13,4,13,6],[13,1,13,2],[7,2,11,9],[7,1,8,1],[28,8,28,10],[28,4,28,6],[35,4,35,6],[14,4,14,6],[14,8,14,10],[15,1,16,2],[70,12,70,14],[70,16,70,18],[63,4,63,6],[70,4,70,6],[35,8,35,10],[42,8,42,10],[49,8,49,10],[56,8,56,10],[63,8,63,10],[70,8,70,10],[49,16,49,18],[56,16,56,18],[63,16,63,18],[49,12,49,14],[56,12,56,14],[63,12,63,14],[49,20,49,22],[56,20,56,22],[63,20,63,22],[70,20,70,22],[35,24,35,26],[42,24,42,26],[49,24,49,26],[56,24,56,26],[63,24,63,26],[70,24,70,26],[63,28,63,30],[70,28,70,30],[28,32,28,34],[35,32,35,34],[42,32,42,34],[49,32,49,34],[56,32,56,34],[63,32,63,34],[70,32,70,34],[70,36,70,38],[49,44,49,46],[56,44,56,46],[63,44,63,46],[70,44,70,46],[35,36,35,38],[42,36,42,38],[49,36,49,38],[56,36,56,38],[63,36,63,38],[70,40,70,42],[63,40,63,42],[56,48,56,50],[63,48,63,50],[70,48,70,50],[13,51,13,54],[14,52,14,54],[21,52,21,54],[28,52,28,54],[35,52,35,54],[42,52,42,54],[49,52,49,54],[56,52,56,54],[63,52,63,54],[70,52,70,54],[21,48,21,50],[28,48,28,50],[35,48,35,50],[42,48,42,50],[49,48,49,50],[42,56,42,58],[49,56,49,58],[56,56,56,58],[63,56,63,58],[70,56,70,58],[13,55,13,58],[14,56,14,58],[21,56,21,58],[28,56,28,58],[35,56,35,58],[42,60,42,62],[49,60,49,62],[56,60,56,62],[63,60,63,62],[70,60,70,62],[13,59,13,62],[14,60,14,62],[21,60,21,62],[28,60,28,62],[35,60,35,62],[42,64,42,66],[49,64,49,66],[56,64,56,66],[63,64,63,66],[70,64,70,66],[13,63,13,66],[14,64,14,66],[21,64,21,66],[28,64,28,66],[35,64,35,66]]}
[]
[null,null,{"$f":"DistrName","v":"Org Name"}]
[]
[null,null,"Postsecondary CTE Course Data Collection"]
[]
[]
[]
[null,"Step 5.1\nAll Postsecondary Applicants","Instructions:\n\nFill in the chart below for each Occupational Cluster (e.g., Agriculture), then each program associated with that cluster (e.g., Animal Science), then the technical courses associated with each program (e.g., Animal Nutrition or Animal Genetics).  The following definitions apply:\n\nOccupational Cluster: This is a grouping of occupations and broad industries based on commonalities. Expectations at the Occupational Cluster level represent skills and knowledge, both academic and technical, that all students within the Occupational Cluster should achieve regardless of the pathway.\n\nCTE Programs: These are organized educational activities that offer a sequence of courses that include competency-based, work-based, or other applied learning that supports the development of academic knowledge, higher-order reasoning and problem-solving skills, work attitudes, employability skills, technical skills, and occupation-specific skills, and knowledge of all aspects of an industry, including entrepreneurship, of an individual.\n\nTechnical Course: This is a course that provides individuals with occupational safety and health, and/or technical, and/or embedded academic, and/or employability, and/or management & entrepreneurship, and/or technological knowledge and skills required for a specific career or cluster of careers.  Include all courses, not just those that are Pell-eligible.\n\nThe chart provides enough space for 16 Occupational Clusters, each with nine programs, and each program with 6 associated courses.\nIf you have questions, please contact your Federal Grants liaison."]
[]
[]
[]
[]
[]
[null,"Enter Cluster Name\n(see definition above)",null,null,"Cluster One:",null,null,"Cluster Two:",null,null,null,"Cluster Three:",null,null,null,"Cluster Four:",null,null,null,"Cluster Five:",null,null,null,"Cluster Six:  ",null,null,null,"Cluster Seven:",null,null,null,"Cluster Eight:",null,null,null,"Cluster Nine:",null,null,null,"Cluster Ten:  ",null,null,null,"Cluster Eleven:",null,null,null,"Cluster Twelve:",null,null,null,"Cluster Thirteen:",null,null,null,"Cluster Fourteen:",null,null,null,"Cluster Fifteen: ",null,null,null,"Cluster Sixteen:"]
[null,"Enter Program",null,"Program",null,null,null,"Program",null,null,null,"Program",null,null,null,"Program",null,null,null,"Program",null,null,null,"Program",null,null,null,"Program",null,null,null,"Program",null,null,null,"Program",null,null,null,"Program",null,null,null,"Program",null,null,null,"Program",null,null,null,"Program",null,null,null,"Program",null,null,null,"Program",null,null,null,"Program"]
[null,"Enter Technical\nCourses and your Institution's  Course Code",null,"Course Name",null,"Course Code",null,"Course Name",null,"Course Code",null,"Course Name",null,"Course Code",null,"Course Name",null,"Course Code",null,"Course Name",null,"Course Code",null,"Course Name",null,"Course Code",null,"Course Name",null,"Course Code",null,"Course Name",null,"Course Code",null,"Course Name",null,"Course Code",null,"Course Name",null,"Course Code",null,"Course Name",null,"Course Code",null,"Course Name",null,"Course Code",null,"Course Name",null,"Course Code",null,"Course Name",null,"Course Code",null,"Course Name",null,"Course Code",null,"Course Name",null,"Course Code"]
[null,null,null,"Course Name",null,"Course Code",null,"Course Name",null,"Course Code",null,"Course Name",null,"Course Code",null,"Course Name",null,"Course Code",null,"Course Name",null,"Course Code",null,"Course Name",null,"Course Code",null,"Course Name",null,"Course Code",null,"Course Name",null,"Course Code",null,"Course Name",null,"Course Code",null,"Course Name",null,"Course Code",null,"Course Name",null,"Course Code",null,"Course Name",null,"Course Code",null,"Course Name",null,"Course Code",null,"Course Name",null,"Course Code",null,"Course Name",null,"Course Code",null,"Course Name",null,"Course Code"]
[null,null,null,"Course Name",null,"Course Code",null,"Course Name",null,"Course Code",null,"Course Name",null,"Course Code",null,"Course Name",null,"Course Code",null,"Course Name",null,"Course Code",null,"Course Name",null,"Course Code",null,"Course Name",null,"Course Code",null,"Course Name",null,"Course Code",null,"Course Name",null,"Course Code",null,"Course Name",null,"Course Code",null,"Course Name",null,"Course Code",null,"Course Name",null,"Course Code",null,"Course Name",null,"Course Code",null,"Course Name",null,"Course Code",null,"Course Name",null,"Course Code",null,"Course Name",null,"Course Code"]
[null,null,null,"Course Name",null,"Course Code",null,"Course Name",null,"Course Code",null,"Course Name",null,"Course Code",null,"Course Name",null,"Course Code",null,"Course Name",null,"Course Code",null,"Course Name",null,"Course Code",null,"Course Name",null,"Course Code",null,"Course Name",null,"Course Code",null,"Course Name",null,"Course Code",null,"Course Name",null,"Course Code",null,"Course Name",null,"Course Code",null,"Course Name",null,"Course Code",null,"Course Name",null,"Course Code",null,"Course Name",null,"Course Code",null,"Course Name",null,"Course Code",null,"Course Name",null,"Course Code"]
[null,null,null,"Course Name",null,"Course Code",null,"Course Name",null,"Course Code",null,"Course Name",null,"Course Code",null,"Course Name",null,"Course Code",null,"Course Name",null,"Course Code",null,"Course Name",null,"Course Code",null,"Course Name",null,"Course Code",null,"Course Name",null,"Course Code",null,"Course Name",null,"Course Code",null,"Course Name",null,"Course Code",null,"Course Name",null,"Course Code",null,"Course Name",null,"Course Code",null,"Course Name",null,"Course Code",null,"Course Name",null,"Course Code",null,"Course Name",null,"Course Code",null,"Course Name",null,"Course Code"]
[null,null,null,"Course Name",null,"Course Code",null,"Course Name",null,"Course Code",null,"Course Name",null,"Course Code",null,"Course Name",null,"Course Code",null,"Course Name",null,"Course Code",null,"Course Name",null,"Course Code",null,"Course Name",null,"Course Code",null,"Course Name",null,"Course Code",null,"Course Name",null,"Course Code",null,"Course Name",null,"Course Code",null,"Course Name",null,"Course Code",null,"Course Name",null,"Course Code",null,"Course Name",null,"Course Code",null,"Course Name",null,"Course Code",null,"Course Name",null,"Course Code",null,"Course Name",null,"Course Code"]
[null,null,null,"Program",null,null,null,"Program",null,null,null,"Program",null,null,null,"Program",null,null,null,"Program",null,null,null,"Program",null,null,null,"Program",null,null,null,"Program",null,null,null,"Program",null,null,null,"Program",null,null,null,"Program",null,null,null,"Program",null,null,null,"Program",null,null,null,"Program",null,null,null,"Program",null,null,null,"Program"]
[null,null,null,"Course Name",null,"Course Code",null,"Course Name",null,"Course Code",null,"Course Name",null,"Course Code",null,"Course Name",null,"Course Code",null,"Course Name",null,"Course Code",null,"Course Name",null,"Course Code",null,"Course Name",null,"Course Code",null,"Course Name",null,"Course Code",null,"Course Name",null,"Course Code",null,"Course Name",null,"Course Code",null,"Course Name",null,"Course Code",null,"Course Name",null,"Course Code",null,"Course Name",null,"Course Code",null,"Course Name",null,"Course Code",null,"Course Name",null,"Course Code",null,"Course Name",null,"Course Code"]
[null,null,null,"Course Name",null,"Course Code",null,"Course Name",null,"Course Code",null,"Course Name",null,"Course Code",null,"Course Name",null,"Course Code",null,"Course Name",null,"Course Code",null,"Course Name",null,"Course Code",null,"Course Name",null,"Course Code",null,"Course Name",null,"Course Code",null,"Course Name",null,"Course Code",null,"Course Name",null,"Course Code",null,"Course Name",null,"Course Code",null,"Course Name",null,"Course Code",null,"Course Name",null,"Course Code",null,"Course Name",null,"Course Code",null,"Course Name",null,"Course Code",null,"Course Name",null,"Course Code"]
[null,null,null,"Course Name",null,"Course Code",null,"Course Name",null,"Course Code",null,"Course Name",null,"Course Code",null,"Course Name",null,"Course Code",null,"Course Name",null,"Course Code",null,"Course Name",null,"Course Code",null,"Course Name",null,"Course Code",null,"Course Name",null,"Course Code",null,"Course Name",null,"Course Code",null,"Course Name",null,"Course Code",null,"Course Name",null,"Course Code",null,"Course Name",null,"Course Code",null,"Course Name",null,"Course Code",null,"Course Name",null,"Course Code",null,"Course Name",null,"Course Code",null,"Course Name",null,"Course Code"]
[null,null,null,"Course Name",null,"Course Code",null,"Course Name",null,"Course Code",null,"Course Name",null,"Course Code",null,"Course Name",null,"Course Code",null,"Course Name",null,"Course Code",null,"Course Name",null,"Course Code",null,"Course Name",null,"Course Code",null,"Course Name",null,"Course Code",null,"Course Name",null,"Course Code",null,"Course Name",null,"Course Code",null,"Course Name",null,"Course Code",null,"Course Name",null,"Course Code",null,"Course Name",null,"Course Code",null,"Course Name",null,"Course Code",null,"Course Name",null,"Course Code",null,"Course Name",null,"Course Code"]
[null,null,null,"Course Name",null,"Course Code",null,"Course Name",null,"Course Code",null,"Course Name",null,"Course Code",null,"Course Name",null,"Course Code",null,"Course Name",null,"Course Code",null,"Course Name",null,"Course Code",null,"Course Name",null,"Course Code",null,"Course Name",null,"Course Code",null,"Course Name",null,"Course Code",null,"Course Name",null,"Course Code",null,"Course Name",null,"Course Code",null,"Course Name",null,"Course Code",null,"Course Name",null,"Course Code",null,"Course Name",null,"Course Code",null,"Course Name",null,"Course Code",null,"Course Name",null,"Course Code"]
[null,null,null,"Course Name",null,"Course Code",null,"Course Name",null,"Course Code",null,"Course Name",null,"Course Code",null,"Course Name",null,"Course Code",null,"Course Name",null,"Course Code",null,"Course Name",null,"Course Code",null,"Course Name",null,"Course Code",null,"Course Name",null,"Course Code",null,"Course Name",null,"Course Code",null,"Course Name",null,"Course Code",null,"Course Name",null,"Course Code",null,"Course Name",null,"Course Code",null,"Course Name",null,"Course Code",null,"Course Name",null,"Course Code",null,"Course Name",null,"Course Code",null,"Course Name",null,"Course Code"]
[null,null,null,"Program",null,null,null,"Program",null,null,null,"Program",null,null,null,"Program",null,null,null,"Program",null,null,null,"Program",null,null,null,"Program",null,null,null,"Program",null,null,null,"Program",null,null,null,"Program",null,null,null,"Program",null,null,null,"Program",null,null,null,"Program",null,null,null,"Program",null,null,null,"Program",null,null,null,"Program"]
[null,null,null,"Course Name",null,"Course Code",null,"Course Name",null,"Course Code",null,"Course Name",null,"Course Code",null,"Course Name",null,"Course Code",null,"Course Name",null,"Course Code",null,"Course Name",null,"Course Code",null,"Course Name",null,"Course Code",null,"Course Name",null,"Course Code",null,"Course Name",null,"Course Code",null,"Course Name",null,"Course Code",null,"Course Name",null,"Course Code",null,"Course Name",null,"Course Code",null,"Course Name",null,"Course Code",null,"Course Name",null,"Course Code",null,"Course Name",null,"Course Code",null,"Course Name",null,"Course Code"]
[null,null,null,"Course Name",null,"Course Code",null,"Course Name",null,"Course Code",null,"Course Name",null,"Course Code",null,"Course Name",null,"Course Code",null,"Course Name",null,"Course Code",null,"Course Name",null,"Course Code",null,"Course Name",null,"Course Code",null,"Course Name",null,"Course Code",null,"Course Name",null,"Course Code",null,"Course Name",null,"Course Code",null,"Course Name",null,"Course Code",null,"Course Name",null,"Course Code",null,"Course Name",null,"Course Code",null,"Course Name",null,"Course Code",null,"Course Name",null,"Course Code",null,"Course Name",null,"Course Code"]
[null,null,null,"Course Name",null,"Course Code",null,"Course Name",null,"Course Code",null,"Course Name",null,"Course Code",null,"Course Name",null,"Course Code",null,"Course Name",null,"Course Code",null,"Course Name",null,"Course Code",null,"Course Name",null,"Course Code",null,"Course Name",null,"Course Code",null,"Course Name",null,"Course Code",null,"Course Name",null,"Course Code",null,"Course Name",null,"Course Code",null,"Course Name",null,"Course Code",null,"Course Name",null,"Course Code",null,"Course Name",null,"Course Code",null,"Course Name",null,"Course Code",null,"Course Name",null,"Course Code"]
[null,null,null,"Course Name",null,"Course Code",null,"Course Name",null,"Course Code",null,"Course Name",null,"Course Code",null,"Course Name",null,"Course Code",null,"Course Name",null,"Course Code",null,"Course Name",null,"Course Code",null,"Course Name",null,"Course Code",null,"Course Name",null,"Course Code",null,"Course Name",null,"Course Code",null,"Course Name",null,"Course Code",null,"Course Name",null,"Course Code",null,"Course Name",null,"Course Code",null,"Course Name",null,"Course Code",null,"Course Name",null,"Course Code",null,"Course Name",null,"Course Code",null,"Course Name",null,"Course Code"]
[null,null,null,"Course Name",null,"Course Code",null,"Course Name",null,"Course Code",null,"Course Name",null,"Course Code",null,"Course Name",null,"Course Code",null,"Course Name",null,"Course Code",null,"Course Name",null,"Course Code",null,"Course Name",null,"Course Code",null,"Course Name",null,"Course Code",null,"Course Name",null,"Course Code",null,"Course Name",null,"Course Code",null,"Course Name",null,"Course Code",null,"Course Name",null,"Course Code",null,"Course Name",null,"Course Code",null,"Course Name",null,"Course Code",null,"Course Name",null,"Course Code",null,"Course Name",null,"Course Code"]
[null,null,null,"Course Name",null,"Course Code",null,"Course Name",null,"Course Code",null,"Course Name",null,"Course Code",null,"Course Name",null,"Course Code",null,"Course Name",null,"Course Code",null,"Course Name",null,"Course Code",null,"Course Name",null,"Course Code",null,"Course Name",null,"Course Code",null,"Course Name",null,"Course Code",null,"Course Name",null,"Course Code",null,"Course Name",null,"Course Code",null,"Course Name",null,"Course Code",null,"Course Name",null,"Course Code",null,"Course Name",null,"Course Code",null,"Course Name",null,"Course Code",null,"Course Name",null,"Course Code"]
[null,null,null,"Program",null,null,null,"Program",null,null,null,"Program",null,null,null,"Program",null,null,null,"Program",null,null,null,"Program",null,null,null,"Program",null,null,null,"Program",null,null,null,"Program",null,null,null,"Program",null,null,null,"Program",null,null,null,"Program",null,null,null,"Program",null,null,null,"Program",null,null,null,"Program",null,null,null,"Program"]
[null,null,null,"Course Name",null,"Course Code",null,"Course Name",null,"Course Code",null,"Course Name",null,"Course Code",null,"Course Name",null,"Course Code",null,"Course Name",null,"Course Code",null,"Course Name",null,"Course Code",null,"Course Name",null,"Course Code",null,"Course Name",null,"Course Code",null,"Course Name",null,"Course Code",null,"Course Name",null,"Course Code",null,"Course Name",null,"Course Code",null,"Course Name",null,"Course Code",null,"Course Name",null,"Course Code",null,"Course Name",null,"Course Code",null,"Course Name",null,"Course Code",null,"Course Name",null,"Course Code"]
[null,null,null,"Course Name",null,"Course Code",null,"Course Name",null,"Course Code",null,"Course Name",null,"Course Code",null,"Course Name",null,"Course Code",null,"Course Name",null,"Course Code",null,"Course Name",null,"Course Code",null,"Course Name",null,"Course Code",null,"Course Name",null,"Course Code",null,"Course Name",null,"Course Code",null,"Course Name",null,"Course Code",null,"Course Name",null,"Course Code",null,"Course Name",null,"Course Code",null,"Course Name",null,"Course Code",null,"Course Name",null,"Course Code",null,"Course Name",null,"Course Code",null,"Course Name",null,"Course Code"]
[null,null,null,"Course Name",null,"Course Code",null,"Course Name",null,"Course Code",null,"Course Name",null,"Course Code",null,"Course Name",null,"Course Code",null,"Course Name",null,"Course Code",null,"Course Name",null,"Course Code",null,"Course Name",null,"Course Code",null,"Course Name",null,"Course Code",null,"Course Name",null,"Course Code",null,"Course Name",null,"Course Code",null,"Course Name",null,"Course Code",null,"Course Name",null,"Course Code",null,"Course Name",null,"Course Code",null,"Course Name",null,"Course Code",null,"Course Name",null,"Course Code",null,"Course Name",null,"Course Code"]
[null,null,null,"Course Name",null,"Course Code",null,"Course Name",null,"Course Code",null,"Course Name",null,"Course Code",null,"Course Name",null,"Course Code",null,"Course Name",null,"Course Code",null,"Course Name",null,"Course Code",null,"Course Name",null,"Course Code",null,"Course Name",null,"Course Code",null,"Course Name",null,"Course Code",null,"Course Name",null,"Course Code",null,"Course Name",null,"Course Code",null,"Course Name",null,"Course Code",null,"Course Name",null,"Course Code",null,"Course Name",null,"Course Code",null,"Course Name",null,"Course Code",null,"Course Name",null,"Course Code"]
[null,null,null,"Course Name",null,"Course Code",null,"Course Name",null,"Course Code",null,"Course Name",null,"Course Code",null,"Course Name",null,"Course Code",null,"Course Name",null,"Course Code",null,"Course Name",null,"Course Code",null,"Course Name",null,"Course Code",null,"Course Name",null,"Course Code",null,"Course Name",null,"Course Code",null,"Course Name",null,"Course Code",null,"Course Name",null,"Course Code",null,"Course Name",null,"Course Code",null,"Course Name",null,"Course Code",null,"Course Name",null,"Course Code",null,"Course Name",null,"Course Code",null,"Course Name",null,"Course Code"]
[null,null,null,"Course Name",null,"Course Code",null,"Course Name",null,"Course Code",null,"Course Name",null,"Course Code",null,"Course Name",null,"Course Code",null,"Course Name",null,"Course Code",null,"Course Name",null,"Course Code",null,"Course Name",null,"Course Code",null,"Course Name",null,"Course Code",null,"Course Name",null,"Course Code",null,"Course Name",null,"Course Code",null,"Course Name",null,"Course Code",null,"Course Name",null,"Course Code",null,"Course Name",null,"Course Code",null,"Course Name",null,"Course Code",null,"Course Name",null,"Course Code",null,"Course Name",null,"Course Code"]
[null,null,null,"Program",null,null,null,"Program",null,null,null,"Program",null,null,null,"Program",null,null,null,"Program",null,null,null,"Program",null,null,null,"Program",null,null,null,"Program",null,null,null,"Program",null,null,null,"Program",null,null,null,"Program",null,null,null,"Program",null,null,null,"Program",null,null,null,"Program",null,null,null,"Program",null,null,null,"Program"]
[null,null,null,"Course Name",null,"Course Code",null,"Course Name",null,"Course Code",null,"Course Name",null,"Course Code",null,"Course Name",null,"Course Code",null,"Course Name",null,"Course Code",null,"Course Name",null,"Course Code",null,"Course Name",null,"Course Code",null,"Course Name",null,"Course Code",null,"Course Name",null,"Course Code",null,"Course Name",null,"Course Code",null,"Course Name",null,"Course Code",null,"Course Name",null,"Course Code",null,"Course Name",null,"Course Code",null,"Course Name",null,"Course Code",null,"Course Name",null,"Course Code",null,"Course Name",null,"Course Code"]
[null,null,null,"Course Name",null,"Course Code",null,"Course Name",null,"Course Code",null,"Course Name",null,"Course Code",null,"Course Name",null,"Course Code",null,"Course Name",null,"Course Code",null,"Course Name",null,"Course Code",null,"Course Name",null,"Course Code",null,"Course Name",null,"Course Code",null,"Course Name",null,"Course Code",null,"Course Name",null,"Course Code",null,"Course Name",null,"Course Code",null,"Course Name",null,"Course Code",null,"Course Name",null,"Course Code",null,"Course Name",null,"Course Code",null,"Course Name",null,"Course Code",null,"Course Name",null,"Course Code"]
[null,null,null,"Course Name",null,"Course Code",null,"Course Name",null,"Course Code",null,"Course Name",null,"Course Code",null,"Course Name",null,"Course Code",null,"Course Name",null,"Course Code",null,"Course Name",null,"Course Code",null,"Course Name",null,"Course Code",null,"Course Name",null,"Course Code",null,"Course Name",null,"Course Code",null,"Course Name",null,"Course Code",null,"Course Name",null,"Course Code",null,"Course Name",null,"Course Code",null,"Course Name",null,"Course Code",null,"Course Name",null,"Course Code",null,"Course Name",null,"Course Code",null,"Course Name",null,"Course Code"]
[null,null,null,"Course Name",null,"Course Code",null,"Course Name",null,"Course Code",null,"Course Name",null,"Course Code",null,"Course Name",null,"Course Code",null,"Course Name",null,"Course Code",null,"Course Name",null,"Course Code",null,"Course Name",null,"Course Code",null,"Course Name",null,"Course Code",null,"Course Name",null,"Course Code",null,"Course Name",null,"Course Code",null,"Course Name",null,"Course Code",null,"Course Name",null,"Course Code",null,"Course Name",null,"Course Code",null,"Course Name",null,"Course Code",null,"Course Name",null,"Course Code",null,"Course Name",null,"Course Code"]
[null,null,null,"Course Name",null,"Course Code",null,"Course Name",null,"Course Code",null,"Course Name",null,"Course Code",null,"Course Name",null,"Course Code",null,"Course Name",null,"Course Code",null,"Course Name",null,"Course Code",null,"Course Name",null,"Course Code",null,"Course Name",null,"Course Code",null,"Course Name",null,"Course Code",null,"Course Name",null,"Course Code",null,"Course Name",null,"Course Code",null,"Course Name",null,"Course Code",null,"Course Name",null,"Course Code",null,"Course Name",null,"Course Code",null,"Course Name",null,"Course Code",null,"Course Name",null,"Course Code"]
[null,null,null,"Course Name",null,"Course Code",null,"Course Name",null,"Course Code",null,"Course Name",null,"Course Code",null,"Course Name",null,"Course Code",null,"Course Name",null,"Course Code",null,"Course Name",null,"Course Code",null,"Course Name",null,"Course Code",null,"Course Name",null,"Course Code",null,"Course Name",null,"Course Code",null,"Course Name",null,"Course Code",null,"Course Name",null,"Course Code",null,"Course Name",null,"Course Code",null,"Course Name",null,"Course Code",null,"Course Name",null,"Course Code",null,"Course Name",null,"Course Code",null,"Course Name",null,"Course Code"]
[null,null,null,"Program",null,null,null,"Program",null,null,null,"Program",null,null,null,"Program",null,null,null,"Program",null,null,null,"Program",null,null,null,"Program",null,null,null,"Program",null,null,null,"Program",null,null,null,"Program",null,null,null,"Program",null,null,null,"Program",null,null,null,"Program",null,null,null,"Program",null,null,null,"Program",null,null,null,"Program"]
[null,null,null,"Course Name",null,"Course Code",null,"Course Name",null,"Course Code",null,"Course Name",null,"Course Code",null,"Course Name",null,"Course Code",null,"Course Name",null,"Course Code",null,"Course Name",null,"Course Code",null,"Course Name",null,"Course Code",null,"Course Name",null,"Course Code",null,"Course Name",null,"Course Code",null,"Course Name",null,"Course Code",null,"Course Name",null,"Course Code",null,"Course Name",null,"Course Code",null,"Course Name",null,"Course Code",null,"Course Name",null,"Course Code",null,"Course Name",null,"Course Code",null,"Course Name",null,"Course Code"]
[null,null,null,"Course Name",null,"Course Code",null,"Course Name",null,"Course Code",null,"Course Name",null,"Course Code",null,"Course Name",null,"Course Code",null,"Course Name",null,"Course Code",null,"Course Name",null,"Course Code",null,"Course Name",null,"Course Code",null,"Course Name",null,"Course Code",null,"Course Name",null,"Course Code",null,"Course Name",null,"Course Code",null,"Course Name",null,"Course Code",null,"Course Name",null,"Course Code",null,"Course Name",null,"Course Code",null,"Course Name",null,"Course Code",null,"Course Name",null,"Course Code",null,"Course Name",null,"Course Code"]
[null,null,null,"Course Name",null,"Course Code",null,"Course Name",null,"Course Code",null,"Course Name",null,"Course Code",null,"Course Name",null,"Course Code",null,"Course Name",null,"Course Code",null,"Course Name",null,"Course Code",null,"Course Name",null,"Course Code",null,"Course Name",null,"Course Code",null,"Course Name",null,"Course Code",null,"Course Name",null,"Course Code",null,"Course Name",null,"Course Code",null,"Course Name",null,"Course Code",null,"Course Name",null,"Course Code",null,"Course Name",null,"Course Code",null,"Course Name",null,"Course Code",null,"Course Name",null,"Course Code"]
[null,null,null,"Course Name",null,"Course Code",null,"Course Name",null,"Course Code",null,"Course Name",null,"Course Code",null,"Course Name",null,"Course Code",null,"Course Name",null,"Course Code",null,"Course Name",null,"Course Code",null,"Course Name",null,"Course Code",null,"Course Name",null,"Course Code",null,"Course Name",null,"Course Code",null,"Course Name",null,"Course Code",null,"Course Name",null,"Course Code",null,"Course Name",null,"Course Code",null,"Course Name",null,"Course Code",null,"Course Name",null,"Course Code",null,"Course Name",null,"Course Code",null,"Course Name",null,"Course Code"]
[null,null,null,"Course Name",null,"Course Code",null,"Course Name",null,"Course Code",null,"Course Name",null,"Course Code",null,"Course Name",null,"Course Code",null,"Course Name",null,"Course Code",null,"Course Name",null,"Course Code",null,"Course Name",null,"Course Code",null,"Course Name",null,"Course Code",null,"Course Name",null,"Course Code",null,"Course Name",null,"Course Code",null,"Course Name",null,"Course Code",null,"Course Name",null,"Course Code",null,"Course Name",null,"Course Code",null,"Course Name",null,"Course Code",null,"Course Name",null,"Course Code",null,"Course Name",null,"Course Code"]
[null,null,null,"Course Name",null,"Course Code",null,"Course Name",null,"Course Code",null,"Course Name",null,"Course Code",null,"Course Name",null,"Course Code",null,"Course Name",null,"Course Code",null,"Course Name",null,"Course Code",null,"Course Name",null,"Course Code",null,"Course Name",null,"Course Code",null,"Course Name",null,"Course Code",null,"Course Name",null,"Course Code",null,"Course Name",null,"Course Code",null,"Course Name",null,"Course Code",null,"Course Name",null,"Course Code",null,"Course Name",null,"Course Code",null,"Course Name",null,"Course Code",null,"Course Name",null,"Course Code"]
[null,null,null,"Program",null,null,null,"Program",null,null,null,"Program",null,null,null,"Program",null,null,null,"Program",null,null,null,"Program",null,null,null,"Program",null,null,null,"Program",null,null,null,"Program",null,null,null,"Program",null,null,null,"Program",null,null,null,"Program",null,null,null,"Program",null,null,null,"Program",null,null,null,"Program",null,null,null,"Program"]
[null,null,null,"Course Name",null,"Course Code",null,"Course Name",null,"Course Code",null,"Course Name",null,"Course Code",null,"Course Name",null,"Course Code",null,"Course Name",null,"Course Code",null,"Course Name",null,"Course Code",null,"Course Name",null,"Course Code",null,"Course Name",null,"Course Code",null,"Course Name",null,"Course Code",null,"Course Name",null,"Course Code",null,"Course Name",null,"Course Code",null,"Course Name",null,"Course Code",null,"Course Name",null,"Course Code",null,"Course Name",null,"Course Code",null,"Course Name",null,"Course Code",null,"Course Name",null,"Course Code"]
[null,null,null,"Course Name",null,"Course Code",null,"Course Name",null,"Course Code",null,"Course Name",null,"Course Code",null,"Course Name",null,"Course Code",null,"Course Name",null,"Course Code",null,"Course Name",null,"Course Code",null,"Course Name",null,"Course Code",null,"Course Name",null,"Course Code",null,"Course Name",null,"Course Code",null,"Course Name",null,"Course Code",null,"Course Name",null,"Course Code",null,"Course Name",null,"Course Code",null,"Course Name",null,"Course Code",null,"Course Name",null,"Course Code",null,"Course Name",null,"Course Code",null,"Course Name",null,"Course Code"]
[null,null,null,"Course Name",null,"Course Code",null,"Course Name",null,"Course Code",null,"Course Name",null,"Course Code",null,"Course Name",null,"Course Code",null,"Course Name",null,"Course Code",null,"Course Name",null,"Course Code",null,"Course Name",null,"Course Code",null,"Course Name",null,"Course Code",null,"Course Name",null,"Course Code",null,"Course Name",null,"Course Code",null,"Course Name",null,"Course Code",null,"Course Name",null,"Course Code",null,"Course Name",null,"Course Code",null,"Course Name",null,"Course Code",null,"Course Name",null,"Course Code",null,"Course Name",null,"Course Code"]
[null,null,null,"Course Name",null,"Course Code",null,"Course Name",null,"Course Code",null,"Course Name",null,"Course Code",null,"Course Name",null,"Course Code",null,"Course Name",null,"Course Code",null,"Course Name",null,"Course Code",null,"Course Name",null,"Course Code",null,"Course Name",null,"Course Code",null,"Course Name",null,"Course Code",null,"Course Name",null,"Course Code",null,"Course Name",null,"Course Code",null,"Course Name",null,"Course Code",null,"Course Name",null,"Course Code",null,"Course Name",null,"Course Code",null,"Course Name",null,"Course Code",null,"Course Name",null,"Course Code"]
[null,null,null,"Course Name",null,"Course Code",null,"Course Name",null,"Course Code",null,"Course Name",null,"Course Code",null,"Course Name",null,"Course Code",null,"Course Name",null,"Course Code",null,"Course Name",null,"Course Code",null,"Course Name",null,"Course Code",null,"Course Name",null,"Course Code",null,"Course Name",null,"Course Code",null,"Course Name",null,"Course Code",null,"Course Name",null,"Course Code",null,"Course Name",null,"Course Code",null,"Course Name",null,"Course Code",null,"Course Name",null,"Course Code",null,"Course Name",null,"Course Code",null,"Course Name",null,"Course Code"]
[null,null,null,"Course Name",null,"Course Code",null,"Course Name",null,"Course Code",null,"Course Name",null,"Course Code",null,"Course Name",null,"Course Code",null,"Course Name",null,"Course Code",null,"Course Name",null,"Course Code",null,"Course Name",null,"Course Code",null,"Course Name",null,"Course Code",null,"Course Name",null,"Course Code",null,"Course Name",null,"Course Code",null,"Course Name",null,"Course Code",null,"Course Name",null,"Course Code",null,"Course Name",null,"Course Code",null,"Course Name",null,"Course Code",null,"Course Name",null,"Course Code",null,"Course Name",null,"Course Code"]
[null,null,null,"Program",null,null,null,"Program",null,null,null,"Program",null,null,null,"Program",null,null,null,"Program",null,null,null,"Program",null,null,null,"Program",null,null,null,"Program",null,null,null,"Program",null,null,null,"Program",null,null,null,"Program",null,null,null,"Program",null,null,null,"Program",null,null,null,"Program",null,null,null,"Program",null,null,null,"Program"]
[null,null,null,"Course Name",null,"Course Code",null,"Course Name",null,"Course Code",null,"Course Name",null,"Course Code",null,"Course Name",null,"Course Code",null,"Course Name",null,"Course Code",null,"Course Name",null,"Course Code",null,"Course Name",null,"Course Code",null,"Course Name",null,"Course Code",null,"Course Name",null,"Course Code",null,"Course Name",null,"Course Code",null,"Course Name",null,"Course Code",null,"Course Name",null,"Course Code",null,"Course Name",null,"Course Code",null,"Course Name",null,"Course Code",null,"Course Name",null,"Course Code",null,"Course Name",null,"Course Code"]
[null,null,null,"Course Name",null,"Course Code",null,"Course Name",null,"Course Code",null,"Course Name",null,"Course Code",null,"Course Name",null,"Course Code",null,"Course Name",null,"Course Code",null,"Course Name",null,"Course Code",null,"Course Name",null,"Course Code",null,"Course Name",null,"Course Code",null,"Course Name",null,"Course Code",null,"Course Name",null,"Course Code",null,"Course Name",null,"Course Code",null,"Course Name",null,"Course Code",null,"Course Name",null,"Course Code",null,"Course Name",null,"Course Code",null,"Course Name",null,"Course Code",null,"Course Name",null,"Course Code"]
[null,null,null,"Course Name",null,"Course Code",null,"Course Name",null,"Course Code",null,"Course Name",null,"Course Code",null,"Course Name",null,"Course Code",null,"Course Name",null,"Course Code",null,"Course Name",null,"Course Code",null,"Course Name",null,"Course Code",null,"Course Name",null,"Course Code",null,"Course Name",null,"Course Code",null,"Course Name",null,"Course Code",null,"Course Name",null,"Course Code",null,"Course Name",null,"Course Code",null,"Course Name",null,"Course Code",null,"Course Name",null,"Course Code",null,"Course Name",null,"Course Code",null,"Course Name",null,"Course Code"]
[null,null,null,"Course Name",null,"Course Code",null,"Course Name",null,"Course Code",null,"Course Name",null,"Course Code",null,"Course Name",null,"Course Code",null,"Course Name",null,"Course Code",null,"Course Name",null,"Course Code",null,"Course Name",null,"Course Code",null,"Course Name",null,"Course Code",null,"Course Name",null,"Course Code",null,"Course Name",null,"Course Code",null,"Course Name",null,"Course Code",null,"Course Name",null,"Course Code",null,"Course Name",null,"Course Code",null,"Course Name",null,"Course Code",null,"Course Name",null,"Course Code",null,"Course Name",null,"Course Code"]
[null,null,null,"Course Name",null,"Course Code",null,"Course Name",null,"Course Code",null,"Course Name",null,"Course Code",null,"Course Name",null,"Course Code",null,"Course Name",null,"Course Code",null,"Course Name",null,"Course Code",null,"Course Name",null,"Course Code",null,"Course Name",null,"Course Code",null,"Course Name",null,"Course Code",null,"Course Name",null,"Course Code",null,"Course Name",null,"Course Code",null,"Course Name",null,"Course Code",null,"Course Name",null,"Course Code",null,"Course Name",null,"Course Code",null,"Course Name",null,"Course Code",null,"Course Name",null,"Course Code"]
[null,null,null,"Course Name",null,"Course Code",null,"Course Name",null,"Course Code",null,"Course Name",null,"Course Code",null,"Course Name",null,"Course Code",null,"Course Name",null,"Course Code",null,"Course Name",null,"Course Code",null,"Course Name",null,"Course Code",null,"Course Name",null,"Course Code",null,"Course Name",null,"Course Code",null,"Course Name",null,"Course Code",null,"Course Name",null,"Course Code",null,"Course Name",null,"Course Code",null,"Course Name",null,"Course Code",null,"Course Name",null,"Course Code",null,"Course Name",null,"Course Code",null,"Course Name",null,"Course Code"]
[null,null,null,"Program",null,null,null,"Program",null,null,null,"Program",null,null,null,"Program",null,null,null,"Program",null,null,null,"Program",null,null,null,"Program",null,null,null,"Program",null,null,null,"Program",null,null,null,"Program",null,null,null,"Program",null,null,null,"Program",null,null,null,"Program",null,null,null,"Program",null,null,null,"Program",null,null,null,"Program"]
[null,null,null,"Course Name",null,"Course Code",null,"Course Name",null,"Course Code",null,"Course Name",null,"Course Code",null,"Course Name",null,"Course Code",null,"Course Name",null,"Course Code",null,"Course Name",null,"Course Code",null,"Course Name",null,"Course Code",null,"Course Name",null,"Course Code",null,"Course Name",null,"Course Code",null,"Course Name",null,"Course Code",null,"Course Name",null,"Course Code",null,"Course Name",null,"Course Code",null,"Course Name",null,"Course Code",null,"Course Name",null,"Course Code",null,"Course Name",null,"Course Code",null,"Course Name",null,"Course Code"]
[null,null,null,"Course Name",null,"Course Code",null,"Course Name",null,"Course Code",null,"Course Name",null,"Course Code",null,"Course Name",null,"Course Code",null,"Course Name",null,"Course Code",null,"Course Name",null,"Course Code",null,"Course Name",null,"Course Code",null,"Course Name",null,"Course Code",null,"Course Name",null,"Course Code",null,"Course Name",null,"Course Code",null,"Course Name",null,"Course Code",null,"Course Name",null,"Course Code",null,"Course Name",null,"Course Code",null,"Course Name",null,"Course Code",null,"Course Name",null,"Course Code",null,"Course Name",null,"Course Code"]
[null,null,null,"Course Name",null,"Course Code",null,"Course Name",null,"Course Code",null,"Course Name",null,"Course Code",null,"Course Name",null,"Course Code",null,"Course Name",null,"Course Code",null,"Course Name",null,"Course Code",null,"Course Name",null,"Course Code",null,"Course Name",null,"Course Code",null,"Course Name",null,"Course Code",null,"Course Name",null,"Course Code",null,"Course Name",null,"Course Code",null,"Course Name",null,"Course Code",null,"Course Name",null,"Course Code",null,"Course Name",null,"Course Code",null,"Course Name",null,"Course Code",null,"Course Name",null,"Course Code"]
[null,null,null,"Course Name",null,"Course Code",null,"Course Name",null,"Course Code",null,"Course Name",null,"Course Code",null,"Course Name",null,"Course Code",null,"Course Name",null,"Course Code",null,"Course Name",null,"Course Code",null,"Course Name",null,"Course Code",null,"Course Name",null,"Course Code",null,"Course Name",null,"Course Code",null,"Course Name",null,"Course Code",null,"Course Name",null,"Course Code",null,"Course Name",null,"Course Code",null,"Course Name",null,"Course Code",null,"Course Name",null,"Course Code",null,"Course Name",null,"Course Code",null,"Course Name",null,"Course Code"]
[null,null,null,"Course Name",null,"Course Code",null,"Course Name",null,"Course Code",null,"Course Name",null,"Course Code",null,"Course Name",null,"Course Code",null,"Course Name",null,"Course Code",null,"Course Name",null,"Course Code",null,"Course Name",null,"Course Code",null,"Course Name",null,"Course Code",null,"Course Name",null,"Course Code",null,"Course Name",null,"Course Code",null,"Course Name",null,"Course Code",null,"Course Name",null,"Course Code",null,"Course Name",null,"Course Code",null,"Course Name",null,"Course Code",null,"Course Name",null,"Course Code",null,"Course Name",null,"Course Code"]
[null,null,null,"Course Name",null,"Course Code",null,"Course Name",null,"Course Code",null,"Course Name",null,"Course Code",null,"Course Name",null,"Course Code",null,"Course Name",null,"Course Code",null,"Course Name",null,"Course Code",null,"Course Name",null,"Course Code",null,"Course Name",null,"Course Code",null,"Course Name",null,"Course Code",null,"Course Name",null,"Course Code",null,"Course Name",null,"Course Code",null,"Course Name",null,"Course Code",null,"Course Name",null,"Course Code",null,"Course Name",null,"Course Code",null,"Course Name",null,"Course Code",null,"Course Name",null,"Course Code"]

{"sheet":"6. Performance, Priorities","index":6,"n_rows":93,"n_cols":30,"rows_kept":93,"cut":false,"hidden":false,"merged":[[47,1,48,1],[47,2,47,9],[48,2,49,4],[48,5,49,9],[34,4,34,5],[35,4,35,5],[36,4,36,5],[29,1,32,1],[39,6,40,6],[39,7,40,7],[39,8,40,8],[40,4,40,5],[29,2,37,2],[31,3,34,3],[1,1,1,7],[3,1,3,5],[5,1,5,4],[6,1,6,4],[20,3,21,3],[20,6,21,6],[20,7,20,9],[10,1,13,1],[8,12,9,12],[8,13,8,16],[10,2,18,2],[10,4,10,5],[11,4,11,5],[13,4,13,5],[14,4,14,5],[15,4,15,5],[8,3,9,3],[8,4,9,5],[8,6,9,6],[8,7,8,9],[8,10,9,10],[8,11,9,11],[18,4,18,5],[11,6,11,12],[17,4,17,5],[76,21,77,21],[20,10,21,10],[16,4,16,5],[67,8,67,11],[68,8,68,11],[69,8,69,11],[59,14,68,16],[30,4,30,5],[32,4,32,5],[33,4,33,5],[20,11,21,11],[20,12,21,12],[21,4,21,5],[22,4,22,5],[23,4,23,5],[36,10,36,13],[28,12,28,14],[24,4,24,5],[25,4,25,5],[28,4,28,5],[61,8,61,11],[62,8,62,11],[30,6,30,8],[37,4,37,5],[66,19,69,21],[86,5,86,9],[87,5,87,9],[88,5,88,9],[80,5,80,9],[81,3,81,4],[81,5,81,9],[82,5,82,9],[84,5,84,9],[76,2,77,9],[78,5,78,9],[78,16,78,21],[79,5,79,9],[80,3,80,4],[76,12,78,13],[76,14,78,14],[76,15,78,15],[76,16,77,16],[76,17,77,17],[76,18,77,18],[76,10,78,10],[76,11,78,11],[76,19,77,19],[76,20,77,20],[2,13,5,15],[85,5,85,9],[29,3,30,3],[31,4,31,5],[12,4,12,5],[10,3,11,3],[12,3,15,3],[70,8,70,11],[71,8,71,11],[72,8,72,11],[73,8,73,11],[50,13,52,16],[52,1,52,6],[57,1,63,1],[57,8,59,11],[41,4,41,5],[42,4,42,5],[43,4,43,5],[44,4,44,5],[82,3,82,4],[83,3,83,4],[84,3,84,4],[85,3,85,4],[76,1,77,1],[83,5,83,9],[47,11,49,13],[86,3,86,4],[87,3,87,4],[88,3,88,4],[89,3,89,4],[90,3,90,4],[91,3,91,4],[91,5,91,9],[90,5,90,9],[89,5,89,9],[64,8,64,11],[65,8,65,11],[66,8,66,11],[79,3,79,4],[63,8,63,11],[78,3,78,4],[60,8,60,11],[57,2,59,7],[65,3,65,4]]}
[]
[null,{"$f":"DistrName","v":"Org Name"},null,null,null,null,null,null,null,null,null,"\n"]
[null,null,null,null,null,null,null,null,null,null,null,null,null,"\nSOURCE:  Perkins V, Section 113 (b)(4)(A)(ii):\nIDENTIFICATION IN THE LOCAL APPLICATION.—Each eligible recipient shall identify, in the local application submitted under section 134, levels of performance for each of the core indicators of performance for each of the program years covered by the local plan"]
[null,"Core Indicators of Performance"]
[]
[null,"The applicant is a DESE Innovation Pathways Designee",null,null,null,{"$f":"IF(DataInnPath=0, \"\", DataInnPath)","v":""}]
[null,"The applicant is a DESE Early College Designee",null,null,null,{"$f":"IF(DataEarlyColl=0, \"\", DataEarlyColl)","v":""}]
[]
[null,null,null,"Reporting Year*","Performance Levels**",null,"Graduation Rate\n4-Yr. (%)\n(1S1)","Academic \nProficiency (%)",null,null,"Post-Program Placement\n(%) \n(3S1)","  Non-Traditional Program Enrollment \n(%)\n(4S1)"," Work-Based Learning\n(%)\n(5S3)"]
[null,null,null,null,null,null,null,"ELA\n(2S1)","Mathematics\n(2S2)","Science\n(2S3)"]
[null,"Step 6.1\nCore Indicators\nSecondary Applicants Only","Secondary Level Indicators","Transition Year FY20","State-Determined Baseline  (FY19)",null,0.94679999999999997,0.51449999999999996,0.47420000000000001,0.70620000000000005,0.97889999999999999,0.22900000000000001,0.83860000000000001]
[null,null,null,null,"State-Determined Performance Level ",null,"No Performance Levels for Transition Year"]
[null,null,null," Year 1\nFY21 \n(refer to FY20 Performance Levels)","State-Determined Performance Level ",null,0.94679999999999997,0.51449999999999996,0.47420000000000001,0.70620000000000005,0.97889999999999999,0.22900000000000001,0.83860000000000001]
[null,null,null,null,"Approved Locally-Determined Performance Level\n(if applicable)"]
[null,null,null,null,"Actual Performance "]
[null,null,null,null,"Difference:  Actual vs. Performance Level ",null,{"$f":"IFERROR(IF(G14>0, G14-G15, G13-G15), \"0\")","v":0.94679999999999997},{"$f":"IFERROR(IF(H14>0, H14-H15, H13-H15), \"0\")","v":0.51449999999999996},0.47420000000000001,0.70620000000000005,0.97889999999999999,0.22900000000000001,0.83860000000000001]
[null,null,null," Year 2\nFY22 \n(FY21 Performance Levels)","State-Determined Performance Level",null,0.94689999999999996,0.51459999999999995,0.4743,0.70630000000000004,0.97899999999999998,0.2291,0.8387]
[null,null,null," Year 3\nFY23 \n(FY22 Performance Levels)","State-Determined Performance Level",null,0.94700000000000006,0.51469999999999994,0.47439999999999999,0.70640000000000003,0.97909999999999997,0.22920000000000001,0.83879999999999999]
[null,null,null," Year 4\nFY24\n(FY23 Performance Levels)","State-Determined Performance Level",null,0.94709999999999994,0.51680000000000004,0.47450000000000003,0.70650000000000002,0.97920000000000007,0.2293,0.83889999999999998]
[null,null,"*The state submits a report annually to USED in which local information is consolidated for a statewide view.    **Perkins V Core Indicators are not the same as those required for Perkins IV."]
[null,null,null,null,null,null,"Graduation Rate\n4-Yr. (%)\n(1S1)","Academic \nProficiency (%)",null,null,"Post-Program Placement\n(%) \n(3S1)","  Non-Traditional Program Enrollment \n(%)\n(4S1)"," Work-Based Learning\n(%)\n(5S3)"]
[null,null,null,null,"Locally Determined Performance Levels (Optional)",null,null,"ELA\n(2S1)","Mathematics\n(2S2)","Science\n(2S3)"]
[null,null,null,null," Year 1\nFY21 (refer to FY2020 Performance Levels)"]
[null,null,null,null," Year 2\nFY22 (FY2021 Performance Levels)"]
[null,null,null,null," Year 3\nFY23 (FY2022 Performance Levels)"]
[null,null,null,null," Year 4\nFY24 (FY2023 Performance Levels)"]
[]
[]
[null,null,null,"Reporting Year","Performance Levels*",null,"Retention and Placement\n (%)\n(1P1)"," Postsecondary Credential, Certificate or Diploma\n(%)\n(2P1)"," Non-Traditional Program Enrollment\n(%)\n(3P1)",null,null,null,"SOURCE:  Perkins V, Section 113 (b)(4)(A)(ii)\nIDENTIFICATION IN THE LOCAL APPLICATION.—Each eligible recipient shall identify, in the local application submitted under section 134, levels of performance for each of the core indicators of performance for each of the program years covered by the local plan"]
[null,"Step 6.2\nCore Indicators\nPostsecondary  Applicants Only","Post-secondary Level Indicators"," Transition Year \nFY20","State-Determined Baseline  ",null,"n/a",0.53039999999999998,0.221]
[null,null,null,null,"State-Determined Performance Levels ",null,"No Performance Levels for Transition Year"]
[null,null,null,"Year 1\nFY21\n(refer to FY2020 Performance Levels)","State-Determined Performance Levels ",null,0.71,0.53039999999999998,0.221]
[null,null,null,null,"Negotiated Performance Levels (if applicable)"]
[null,null,null,null,"Actual Performance "]
[null,null,null,null,"Difference:  Actual vs. Performance Level",null,{"$f":"IFERROR(IF(G33>0, G33-G34, G32-G34), \"\")","v":0.71},{"$f":"IFERROR(IF(H33>0, H33-H34, H32-H34), \"\")","v":0.53039999999999998},{"$f":"IFERROR(IF(I33>0, I33-I34, I32-I34), \"\")","v":0.221}]
[null,null,null,"Year 2\nFY22\n(FY21 Performance Levels)","State-Determined Performance Levels ",null,0.71099999999999997,0.53049999999999997,0.222]
[null,null,null,"Year 3\nFY23 \n(FY22 Performance Levels)","State-Determined Performance Levels ",null,0.71150000000000002,0.53059999999999996,0.22209999999999999,null,"\n"]
[null,null,null,"Year 4\nFY24 \n(FY21 Performance Levels)\n","State-Determined Performance Levels ",null,0.7118000000000001,0.53069999999999995,0.22219999999999998]
[null,null,"*Perkins V Core Indicators are not the same as those required for Perkins IV."]
[null,null,null,null,null,null,"Post-Program Placement\n (%)","Earned Recognized Post-Secondary Credential\n(%)"," Non-Traditional Program Concentration\n(%)"]
[null,null,null,null,"Locally Determined Performance Levels (Optional)"]
[null,null,null,null,"Year 1\nFY21 (refer to FY20 Performance Levels)"]
[null,null,null,null,"Year 2\nFY22 (FY21 Performance Levels)"]
[null,null,null,null,"Year 3\nFY23 (FY22 Performance Levels)"]
[null,null,null,null,"Year 4\nFY24 (FY23 Performance Levels) "]
[]
[]
[null,"Step 6.3\nAddressing Performance Gaps\nAll Applicants","DESE compiles data on performance of subgroups and special populations of CTE students and all CTE concentrators by core indicator.  Each district should consult its data (see short video about accessing your data on DESE's security portal) and answer the following question.  ",null,null,null,null,null,null,null,null,"\nSource:  Perkins V, Section 113(b)(3)(C)(ii)(II)  \"identify and quantify any disparities or gaps in performance on the State determined levels of performance under subparagraph (A) between any such subgroup or special population and the performance of all CTE concentrators served by the eligible agency under this Act, which shall include a quantifiable description of the progress each such subgroup or special population of students served by the eligible agency under this Act has made in meeting the State determined levels of performance\"\n"]
[null,null,"How will you address the disparities in performance among your students who are members of subgroups or special populations?  What supports, programs, and processes will you add or change in an effort to reduce these gaps?"]
[]
[]
[]
[null,"Priorities Resulting from Comprehensive Needs Assessment"]
[]
[null,"Are you a Postsecondary Applicant?",null,null,null,null,"Select One"]
[null,"Year of last comprehensive needs assessment:",null,null,null,null,"Select One"]
[]
[null,"Step 6.4\nNeeds Assessment\nAll Applicants","Perkins V requires that the stakeholder groups below be consulted as part of the needs assessment and application processes. \nWhich of the following groups have you consulted with? (check all that apply)",null,null,null,null,null,"If you have not yet consulted with this group, when and how do you plan to get their input?"]
[]
[null,null,null,null,null,null,null,null,null,null,null,null,null,null,"Source:  Perkins V, Section 134(d):  \"In conducting the comprehensive needs assessment under subsection (c), and developing the local application described in subsection (b), an eligible recipient shall involve\na diverse body of stakeholders, including, at a minimum—\n(1) representatives of career and technical education programs\nin a local educational agency or educational service\nagency, including teachers, career guidance and academic\ncounselors, principals and other school leaders, administrators,\nand specialized instructional support personnel and paraprofessionals...\"\n"]
[null,null,null,"Principals/other school leaders (not required for postsecondary)",null,null,null,null,null,null,null,null,null,null,null,null,null,null,null,null,null,null,null,null,null,null,null,null,false,{"$f":"IF(AC61=TRUE,\"\", \"Red\")","v":"Red"}]
[null,null,null,"CTE teachers/instructors",null,null,null,null,null,null,null,null,null,null,null,null,null,null,null,null,null,null,null,null,null,null,null,null,false,"Red"]
[null,null,null,"Career and academic counselors",null,null,null,null,null,null,null,null,null,null,null,null,null,null,null,null,null,null,null,null,null,null,null,null,false,"Red"]
[null,null,null,"CTE/Perkins Administrators",null,null,null,null,null,null,null,null,null,null,null,null,null,null,null,null,null,null,null,null,null,null,null,null,false,"Red"]
[null,null,null,"Paraprofessionals (not required for postsecondary)",null,null,null,null,null,null,null,null,null,null,null,null,null,null,null,null,null,null,null,null,null,null,null,null,false,"Red"]
[null,null,null,"Community partners and members",null,null,null,null,null,null,null,null,null,null,null,null,null,null,null,null,null,null,null,null,null,null,null,null,false,"Red"]
[null,null,null,"Other post-secondary CTE faculty and administrators",null,null,null,null,null,null,null,null,null,null,null,null,null,null,null,"Sources: Perkins V, Results of the Needs Assessment:  Section 134(b)(1 & 2),\nFunding at least one strategy from CNLA:  Section 135(a),\nRequired Uses of Funds:  Section 135(b)",null,null,null,null,null,null,null,null,false,"Red"]
[null,null,null,"Representatives of state or local workforce development boards",null,null,null,null,null,null,null,null,null,null,null,null,null,null,null,null,null,null,null,null,null,null,null,null,false,"Red"]
[null,null,null,"Representatives from local and/or regional businesses and industries",null,null,null,null,null,null,null,null,null,null,null,null,null,null,null,null,null,null,null,null,null,null,null,null,false,"Red"]
[null,null,null,"Parents (not required for postsecondary)",null,null,null,null,null,null,null,null,null,null,null,null,null,null,null,null,null,null,null,null,null,null,null,null,false,"Red"]
[null,null,null,"Students",null,null,null,null,null,null,null,null,null,null,null,null,null,null,null,null,null,null,null,null,null,null,null,null,false,"Red"]
[null,null,null,"Representatives of agencies serving out-of-school, homeless and at-risk youth",null,null,null,null,null,null,null,null,null,null,null,null,null,null,null,null,null,null,null,null,null,null,null,null,false,"Red"]
[null,null,null,"Representatives of special populations",null,null,null,null,null,null,null,null,null,null,null,null,null,null,null,null,null,null,null,null,null,null,null,null,false,"Red"]
[null,null,null,"Representatives of Indian Tribes and Tribal organizations, where applicable",null,null,null,null,null,null,null,null,null,null,null,null,null,null,null,null,null,null,null,null,null,null,null,null,false,"Red"]
[]
[]
[null,"Step 6.5\nSchool Year 2020-2021:  Priority Strategies and Initiatives\nAll Applicants","\n  Input key initiatives to be implemented in the 2020-2021 school year based on your comprehensive local needs assessment.  Use\n  keywords/short title and then describe strategies/activities. Be sure to include as part of your description CTE programs and\n  activities to be funded this year using your Perkins grant (must include at least one program of study approved by state) and\n  indicate by checking Column H. \n      \n   Please list all strategic initiatives for the upcoming year, even those not funded with Perkins grant funds.",null,null,null,null,null,null,null,"Is this activity/\nstrategy explicitly connected to efforts to close equity gaps? (See Step 6.3)","What was the primary source of data you used to assess needs?  "," What are the primary sources of data you will use to monitor progress? \n(Choose up to two sources)",null,"If you answer \"other\" to primary sources of data for columns D, E and/or F, please describe those data sources below","Is this activity/strategy funded in whole or part using FY21 Perkins Grant Funds? \n(If \"yes,\" budget should reflect related expenses)\n","1. Offering students career exploration and career development activities","2. Providing instructors professional development","3. Building the skills students need to pursue careers in high skill, wage or in-demand industries","4. Supporting integration of academic skills into CTE programs and programs of study","5. Planning and carrying out elements supporting implementation of CTE programs and programs of study that increase student achievement","6. Developing and Implementing evaluations of Perkins-funded activities"]
[null,null,null,null,null,null,null,null,null,null,null,null,null,null,null,null,null,null,null,null,null,null,"Private School Services:  Step-by-Step"]
[null,null,null," Initiative Keywords or Short Title ",null,"Strategies/Activities",null,null,null,null,null,null,null,null,null,null,"Required Uses of Perkins Funds:  All six categories should be checked in some combination across Perkins-funded activities"]
[null,null,null,"A",null,"B",null,null,null,null,"C","D","E","F","G","H","I","K","J","L","M","N"]
[null,null,"Example 1: \n","Connecting Career and Academics",null,"Develop and offer program opportunities and access for students through advanced courses and formalized articulation agreements with current partners to include more programs and develop partnerships with new post-secondary educational institutions. Participate in College/Career Advising professional development series to develop comprehensive college/career advising curriculum aligned to district needs. ",null,null,null,null,"Yes","Program enrollment","Peer-reviewed research","MCAS results",null,"Yes","Yes","No","Yes","No","Yes","No"]
[null,null,"Example 2: ","Improving Access",null,"Cultivate deeper partnerships with local communities and community organizations (including sending districts). Identify strategies that guide program staff in strengthening and enhancing a positive and accessible climate for all students (ex. Diversity, Equity, Inclusion or Cultural Competency).",null,null,null,null,"Yes","Survey  - School Climate (student)","Survey  - School Climate (student)","Survey - School Climate (educator)",null,"No","No","Yes","Yes","Yes","Yes","No"]
[null,null,1,null,null,null,null,null,null,null,"Select One","Select One","Select One","Select One",null,"Select One","Select One","Select One","Select One","Select One","Select One","Select One"]
[null,null,2,null,null,null,null,null,null,null,"Select One","Select One","Select One","Select One",null,"Select One","Select One","Select One","Select One","Select One","Select One","Select One"]
[null,null,3,null,null,null,null,null,null,null,"Select One","Select One","Select One","Select One",null,"Select One","Select One","Select One","Select One","Select One","Select One","Select One"]
[null,null,4,null,null,null,null,null,null,null,"Select One","Select One","Select One","Select One",null,"Select One","Select One","Select One","Select One","Select One","Select One","Select One"]
[null,null,5,null,null,null,null,null,null,null,"Select One","Select One","Select One","Select One",null,"Select One","Select One","Select One","Select One","Select One","Select One","Select One"]
[null,null,6,null,null,null,null,null,null,null,"Select One","Select One","Select One","Select One",null,"Select One","Select One","Select One","Select One","Select One","Select One","Select One"]
[null,null,7,null,null,null,null,null,null,null,"Select One","Select One","Select One","Select One",null,"Select One","Select One","Select One","Select One","Select One","Select One","Select One"]
[null,null,8,null,null,null,null,null,null,null,"Select One","Select One","Select One","Select One",null,"Select One","Select One","Select One","Select One","Select One","Select One","Select One"]
[null,null,9,null,null,null,null,null,null,null,"Select One","Select One","Select One","Select One",null,"Select One","Select One","Select One","Select One","Select One","Select One","Select One"]
[null,null,10,null,null,null,null,null,null,null,"Select One","Select One","Select One","Select One",null,"Select One","Select One","Select One","Select One","Select One","Select One","Select One"]
[null,null,null,null,null,null,null,null,null,null,null,null,null,null,null,{"$f":"COUNTIF(P83:P92, \"*Yes*\")","v":0},{"$f":"COUNTIFS(Q83:Q92, \"*Yes*\", $P$83:$P$92, \"Yes\")","v":0},0,0,0,0,0]

{"sheet":"7. Student Support & Opptys.","index":7,"n_rows":23,"n_cols":9,"rows_kept":23,"cut":false,"hidden":false,"merged":[[1,1,1,2],[22,3,22,4],[3,1,3,2],[18,1,18,2],[20,3,20,4],[21,3,21,4],[13,3,13,4],[14,3,14,4],[15,3,15,4],[1,4,1,7],[2,4,2,7],[5,6,5,9],[13,6,13,9],[20,6,20,9]]}
[]
[null,{"$f":"DistrName","v":"Org Name"},null,null,"The applicant is a DESE Innovation Pathways Designee",null,null,null,{"$f":"IF(DataInnPath=0, \"\", DataInnPath)","v":""}]
[null,null,null,null,"The applicant is a DESE Early College Designee",null,null,null,{"$f":"IF(DataEarlyColl=0, \"\", DataEarlyColl)","v":""}]
[null,"  Student Support "]
[]
[null,"Step 7.1\nAll Applicants","Describe how your district/institution will provide:","Description \n","How will applicant collaborate with workforce development boards and other workforce agencies, one-stop delivery systems (WIOA), and other partners (name specific partners)",null,"SOURCE:  Perkins V, Section 134(b)(3)"]
[null,null,"Career exploration, including disseminating up-to-date information on high-skill, high-wage, and in-demand industry sectors and occupations"]
[null,null,"Career development casework, activities, and services"]
[null,null,"Career guidance and academic counseling before and after enrolling in CTE programs"]
[]
[]
[null,"Equity of Opportunities"]
[]
[null,"Step 7.2\nAll Applicants","Describe how your district/institution will provide:","Description  ",null,null,"SOURCE:  Perkins V, Section 134(b)(5)"]
[null,null,"For Special Populations:\n\n1. Activities to prepare for high-skill, high-wage, or in-demand industry sectors or occupations that will lead to self-sufficiency;\n\n2. Equal access for special populations to CTE courses, programs providing secondary/post-secondary linkages; and,\n\n3.  Ensure that students will not be discriminated against based on their status as members of special populations\n"]
[null,null,"\nNon-Traditional fields:\n\nPreparation for CTE students for non-traditional fields"]
[]
[]
[null,"Work-based and Concurrent Postsecondary Programs"]
[]
[null,"Step 7.3\nAll Applicants","Describe how your district/institution will provide:","Description\n",null,null,"SOURCE:  Perkins V, Section 134(b)(6&7)"]
[null,null,"Work-based learning activities for CTE students, including how applicants will work with employers to develop and expand these opportunities.\n\n"]
[null,null,"Opportunities to gain postsecondary credit while still attending high school (e.g., dual or concurrent enrollment programs or early college high school)."]

{"sheet":"8.  Professionals & Program ","index":8,"n_rows":16,"n_cols":6,"rows_kept":16,"cut":false,"hidden":false,"merged":[[6,1,6,2],[1,1,1,2],[12,1,12,2]]}
[]
[null,{"$f":"DistrName","v":"Org Name"}]
[]
[null,null,null,null,"The applicant is a DESE Innovation Pathways Designee",{"$f":"IF(DataInnPath=0, \"\", DataInnPath)","v":""}]
[null,null,null,null,"The applicant is a DESE Early College Designee",{"$f":"IF(DataEarlyColl=0, \"\", DataEarlyColl)","v":""}]
[]
[null,"Integrated and Aligned Programs"]
[]
[null,"Step 8.1\nAll Applicants","Describe how your district/institution will:","Description"]
[null,null,"\nIntegrate coherent and rigorous content aligned with challenging academic standards and relevant CTE programs to ensure learning in the content areas that constitute a well-rounded education."]
[]
[]
[null,"Qualified and Diverse Education Professionals",null,null,"SOURCE:  Perkins V, Section 134(b)(8)"]
[]
[null,"Step 8.2\nAll Applicants","Describe how your district/institution  will:","Description"]
[null,null,"Work with the DESE and institutions of higher education to support recruitment, preparation, retention, and training (including PD) of certified and/or licensed (as required):\n         a) Teachers \n         b) Faculty \n         c) Administrators, and \n         d) Specialized support personnel and \n             paraprofessionals, including \n             professionals from groups under-\n             represented in the teaching profession."]

{"sheet":"9. FC 400 Budget","index":9,"n_rows":136,"n_cols":36,"rows_kept":136,"cut":false,"hidden":false,"merged":[[5,23,10,31],[119,22,119,26],[120,22,120,26],[126,22,126,27],[125,6,125,7],[125,8,125,9],[122,6,122,7],[124,11,124,18],[125,11,125,18],[122,22,122,26],[123,22,123,26],[124,22,124,26],[125,22,125,26],[123,8,123,9],[122,11,122,18],[123,11,123,18],[126,6,126,7],[126,8,126,9],[124,6,124,7],[124,8,124,9],[123,6,123,7],[122,8,122,9],[91,21,91,22],[96,4,96,12],[110,22,110,27],[121,22,121,26],[117,6,117,7],[117,8,117,9],[114,6,114,7],[118,22,118,26],[120,6,120,7],[120,8,120,9],[118,11,118,18],[121,6,121,7],[121,8,121,9],[118,6,118,7],[118,8,118,9],[119,6,119,7],[119,8,119,9],[113,6,113,7],[113,8,113,9],[119,11,119,18],[120,11,120,18],[121,11,121,18],[104,2,105,2],[107,4,107,11],[111,11,112,18],[113,11,113,18],[115,8,115,9],[114,11,114,18],[115,11,115,18],[116,11,116,18],[117,11,117,18],[104,4,104,30],[105,4,106,30],[114,8,114,9],[115,6,115,7],[114,22,114,26],[115,22,115,26],[116,22,116,26],[117,22,117,26],[109,22,109,26],[116,6,116,7],[116,8,116,9],[111,6,112,7],[111,8,112,9],[111,22,112,26],[113,22,113,26],[88,21,88,22],[89,21,89,22],[90,21,90,22],[80,5,80,11],[80,21,80,22],[81,4,81,12],[83,9,83,12],[84,10,84,11],[85,10,85,11],[88,5,90,11],[77,5,77,11],[77,21,77,22],[78,5,78,11],[78,21,78,22],[79,5,79,11],[79,21,79,22],[72,4,72,12],[74,21,74,22],[75,5,75,11],[75,21,75,22],[76,5,76,11],[76,21,76,22],[69,5,69,11],[69,21,69,22],[70,5,70,11],[70,21,70,22],[71,5,71,11],[71,21,71,22],[64,5,64,11],[64,21,64,22],[65,5,65,7],[67,5,67,11],[67,21,67,22],[68,5,68,11],[68,21,68,22],[61,5,61,11],[61,21,61,22],[62,5,62,11],[62,21,62,22],[63,5,63,11],[63,21,63,22],[56,5,56,8],[56,21,56,22],[57,5,57,8],[57,21,57,22],[58,4,58,12],[60,21,60,22],[53,5,53,8],[53,21,53,22],[54,5,54,8],[54,21,54,22],[55,5,55,8],[55,21,55,22],[48,5,48,12],[48,21,48,22],[49,4,49,12],[51,21,51,22],[52,5,52,8],[52,21,52,22],[45,5,45,12],[45,21,45,22],[46,5,46,12],[46,21,46,22],[47,5,47,12],[47,21,47,22],[40,5,40,8],[40,21,40,22],[41,4,41,12],[42,4,42,8],[43,5,43,12],[43,21,44,22],[44,5,44,12],[36,21,36,22],[37,5,37,8],[37,21,37,22],[38,5,38,8],[38,21,38,22],[39,5,39,8],[39,21,39,22],[32,5,32,8],[32,21,32,22],[33,5,33,8],[33,21,33,22],[34,4,34,12],[35,4,35,8],[30,5,30,8],[30,21,30,22],[23,5,23,8],[23,21,23,22],[31,5,31,8],[31,21,31,22],[25,5,25,8],[25,21,25,22],[26,5,26,8],[26,21,26,22],[27,5,27,8],[27,21,27,22],[16,5,16,8],[16,21,16,22],[24,5,24,8],[24,21,24,22],[19,21,19,22],[20,4,20,8],[28,4,28,12],[28,21,28,22],[29,4,29,8],[5,17,5,20],[6,17,6,20],[1,12,1,15],[1,16,1,17],[1,2,1,10],[2,21,2,22],[3,3,3,22],[21,21,21,22],[22,5,22,8],[22,21,22,22],[12,2,15,2],[8,3,10,4],[17,5,17,8],[17,21,17,22],[18,5,18,8],[18,21,18,22],[5,3,6,6],[7,3,7,6],[5,7,6,8],[7,7,7,8],[13,4,13,12],[13,21,13,22],[15,5,15,8],[15,21,15,22]]}
[]
[null,null,{"$f":"DistrName","v":"Org Name"}]
[]
[null,null,null,"FY21 Perkins FC 400 (Secondary) Budget Worksheet"]
[]
[null,null,null,"Allocation ",null,null,null,{"$f":"valAllocation400","v":0},null,null,null,null,null,null,null,null,null,"The applicant is a DESE Innovation Pathways Designee",null,null,null,{"$f":"IF(DataInnPath=0, \"\", DataInnPath)","v":""},null,"Which expenditures are subject to the 5% administrative cap?  \nAdministrative expenses are those expenses used for running the grant, not expenses related to providing direct grant services to students.  Indirect costs are always administrative expenses.\n\nIn addition, some examples of administrative expenses are costs associated with: Developing the Perkins application, supervising Perkins-funded staff, ensuring compliance with applicable federal laws and regulations, creating data systems for Perkins (but not collecting and analyzing data), PD for Perkins administrators re: administering the grant.\nFor more information, see the Perkins V transition manual."]
[null,null,null,null,null,null,null,null,null,null,null,null,null,null,null,null,null,"The applicant is a DESE Early College Designee",null,null,null,{"$f":"IF(DataEarlyColl=0, \"\", DataEarlyColl)","v":""}]
[null,null,null,"Total amount budgeted for administrative expenses in Step 9.1",null,null,null,0]
[]
[null,null,null,null,null,null,null,null,null,null,"Bellingham"]
[]
[]
[null,null,"Step 9.1\nAll Districts"]
[null,null,null,null,"Line Item Category: Select an option from the drop down menu.",null,null,null,null,null,null,null,null,false,"Amount",null,"Expenditures \n(whole numbers)",null,"Primary Function",null,null,"Comments"]
[]
[null,null,null,null,1,"ADMINISTRATOR SALARIES:",null,null,null,null,"# of staff","FTE","MTRS",null,null,null,"Amount",null,"Select from Drop Down List",null,null,"Budget Detail"]
[null,null,null,null,null,"Select One",null,null,null,null,null,null,null,false,{"$f":"IF(N17, Q17, 0)","v":0},null,null,null,"Select One"]
[null,null,null,null,null,"Select One",null,null,null,null,null,null,null,false,{"$f":"IF(N18, Q18, 0)","v":0},null,null,null,"Select One"]
[null,null,null,null,null,"Select One",null,null,null,null,null,null,null,false,{"$f":"IF(N19, Q19, 0)","v":0},null,null,null,"Select One"]
[]
[null,null,null,null,"SUB-TOTAL",null,null,null,null,null,{"$f":"SUM(K17:K19)","v":0},{"$f":"SUM(L17:L19)","v":0},null,null,{"$f":"SUM(O17:O19)","v":0},null,{"$f":"SUM(Q17:Q19)","v":0}]
[null,null,null,null,2,"INSTRUCTIONAL/PROF STAFF:",null,null,null,null,"# of staff","FTE","MTRS",true,null,null,"Amount",null,"Select from Drop Down List",null,null,"Budget Detail"]
[null,null,null,null,null,"Select One",null,null,null,null,null,null,null,false,{"$f":"IF(N23, Q23, 0)","v":0},null,null,null,"Select One"]
[null,null,null,null,null,"Select One",null,null,null,null,null,null,null,false,0,null,null,null,"Select One"]
[null,null,null,null,null,"Select One",null,null,null,null,null,null,null,false,0,null,null,null,"Select One"]
[null,null,null,null,null,"Select One",null,null,null,null,null,null,null,false,0,null,null,null,"Select One"]
[null,null,null,null,null,"Select One",null,null,null,null,null,null,null,false,0,null,null,null,"Select One"]
[null,null,null,null,null,"Select One",null,null,null,null,null,null,null,false,0,null,null,null,"Select One"]
[]
[null,null,null,null,"SUB-TOTAL",null,null,null,null,null,{"$f":"SUM(K23:K28)","v":0},{"$f":"SUM(L23:L28)","v":0},null,null,{"$f":"SUM(O23:O28)","v":0},null,{"$f":"SUM(Q23:Q28)","v":0}]
[null,null,null,null,3,"SUPPORT STAFF SALARIES:",null,null,null,null,"# of staff","FTE","MTRS",null,null,null,"Amount",null,"Select from Drop Down List",null,null,"Budget Detail"]
[null,null,null,null,null,"Select One",null,null,null,null,null,null,null,false,{"$f":"IF(N32, Q32, 0)","v":0},null,null,null,"Select One"]
[null,null,null,null,null,"Select One",null,null,null,null,null,null,null,false,{"$f":"IF(N33, Q33, 0)","v":0},null,null,null,"Select One"]
[null,null,null,null,null,"Select One",null,null,null,null,null,null,null,false,{"$f":"IF(N34, Q34, 0)","v":0},null,null,null,"Select One"]
[null,null,null,null,null,null,null,null,null,null,null,null,null,false]
[null,null,null,null,"SUB-TOTAL",null,null,null,null,null,{"$f":"SUM(K32:K34)","v":0},{"$f":"SUM(L32:L34)","v":0},null,null,{"$f":"SUM(O32:O34)","v":0},null,{"$f":"SUM(Q32:Q34)","v":0}]
[null,null,null,null,4,"STIPENDS:",null,null,null,"# of staff","Rate","Rate Type","MTRS",null,null,null,"Amount",null,"Select from Drop Down List",null,null,"Budget Detail"]
[null,null,null,null,null,"Select One",null,null,null,null,null,"select",null,false,{"$f":"IF(N38, Q38, 0)","v":0},null,null,null,"Select One"]
[null,null,null,null,null,"Select One",null,null,null,null,null,"select",null,false,{"$f":"IF(N39, Q39, 0)","v":0},null,null,null,"Select One"]
[null,null,null,null,null,"Select One",null,null,null,null,null,"select",null,false,{"$f":"IF(N40, Q40, 0)","v":0},null,null,null,"Select One"]
[null,null,null,null,null,"Select One",null,null,null,null,null,"select",null,false,{"$f":"IF(N41, Q41, 0)","v":0},null,null,null,"Select One"]
[]
[null,null,null,null,"SUB-TOTAL",null,null,null,null,null,null,null,null,null,{"$f":"SUM(O38:O41)","v":0},null,{"$f":"SUM(Q38:Q41)","v":0}]
[null,null,null,null,5,"FRINGE BENEFITS:",null,null,null,null,null,null,null,null,null,null,"Amount",null,"Brief Description",null,null,"Budget Detail"]
[null,null,null,null,null,"5a  MTRS (automatically calculated if MTRS box is checked above)  ",null,null,null,null,null,null,null,null,null,null,{"$f":"ROUND((SUM(O36,O43,O30,O21))*0.09,0)","v":0}]
[null,null,null,null,null,"5b  Other",null,null,null,null,null,null,null,null,null,null,{"$f":"SUM(Q47:Q49)","v":0}]
[null,null,null,null,null,"Health Insurance"]
[null,null,null,null,null,"Other Retirement Systems"]
[null,null,null,null,null,"Federal Insurance Contributions Act (FICA)"]
[]
[null,null,null,null,"SUB-TOTAL",null,null,null,null,null,null,null,null,null,null,null,{"$f":"SUM(Q45:Q46)","v":0}]
[null,null,null,null,6,"CONTRACTUAL SERVICES:",null,null,null,null,"Rate","Rate Type",null,null,null,null,"Amount",null,"Select from Drop Down List",null,null,"Budget Detail"]
[null,null,null,null,null,"Select One",null,null,null,null,null,"select",null,null,null,null,null,null,"Select One"]
[null,null,null,null,null,"Select One",null,null,null,null,null,"select",null,null,null,null,null,null,"Select One"]
[null,null,null,null,null,"Select One",null,null,null,null,null,"select",null,null,null,null,null,null,"Select One"]
[null,null,null,null,null,"Select One",null,null,null,null,null,"select",null,null,null,null,null,null,"Select One"]
[null,null,null,null,null,"Select One",null,null,null,null,null,"select",null,null,null,null,null,null,"Select One"]
[null,null,null,null,null,"Select One",null,null,null,null,null,"select",null,null,null,null,null,null,"Select One"]
[]
[null,null,null,null,"SUB-TOTAL",null,null,null,null,null,null,null,null,null,null,null,{"$f":"SUM(Q53:Q58)","v":0}]
[null,null,null,null,7,"SUPPLIES AND MATERIALS:",null,null,null,null,null,null,null,null,null,null,"Amount",null,"Select from Drop Down List",null,null,"Budget Detail"]
[null,null,null,null,null,"Select One",null,null,null,null,null,null,null,null,null,null,null,null,"Select One"]
[null,null,null,null,null,"Select One",null,null,null,null,null,null,null,null,null,null,null,null,"Select One"]
[null,null,null,null,null,"Select One",null,null,null,null,null,null,null,null,null,null,null,null,"Select One"]
[null,null,null,null,null,"Select One",null,null,null,null,null,null,null,null,null,null,null,null,"Select One"]
[]
[null,null,null,null,"SUB-TOTAL",null,null,null,null,null,null,null,null,null,null,null,{"$f":"SUM(Q62:Q65)","v":0}]
[null,null,null,null,8,"TRAVEL:  (mileage, conference registration, courses, hotels, etc.)",null,null,null,null,null,null,null,null,null,null,"Amount",null,"Select from Drop Down List",null,null,"Budget Detail"]
[null,null,null,null,null,"Select One",null,null,null,null,null,null,null,null,null,null,null,null,"Select One"]
[null,null,null,null,null,"Select One",null,null,null,null,null,null,null,null,null,null,null,null,"Select One"]
[null,null,null,null,null,"Select One",null,null,null,null,null,null,null,null,null,null,null,null,"Select One"]
[null,null,null,null,null,"Select One",null,null,null,null,null,null,null,null,null,null,null,null,"Select One"]
[]
[null,null,null,null,"SUB-TOTAL",null,null,null,null,null,null,null,null,null,null,null,{"$f":"SUM(Q69:Q72)","v":0}]
[null,null,null,null,9,"OTHER COSTS:",null,null,null,null,null,null,null,null,null,null,"Amount",null,"Select from Drop Down List",null,null,"Budget Detail"]
[null,null,null,null,null,"Select One",null,null,null,null,null,null,null,null,null,null,null,null,"Select One"]
[null,null,null,null,null,"Select One",null,null,null,null,null,null,null,null,null,null,null,null,"Select One"]
[null,null,null,null,null,"Select One",null,null,null,null,null,null,null,null,null,null,null,null,"Select One"]
[null,null,null,null,null,"Select One",null,null,null,null,null,null,null,null,null,null,null,null,"Select One"]
[null,null,null,null,null,"Select One",null,null,null,null,null,null,null,null,null,null,null,null,"Select One"]
[null,null,null,null,null,"Select One",null,null,null,null,null,null,null,null,null,null,null,null,"Select One"]
[]
[null,null,null,null,"SUB-TOTAL",null,null,null,null,null,null,null,null,null,null,null,{"$f":"SUM(Q76:Q81)","v":0}]
[null,null,null,null,null,null,null,null,"(a) rate (%)","(b) eligible allocation less indirect",null,null,null,null,null,null,"Amount"]
[null,null,null,null,10,"INDIRECT COSTS *",null,null,null,null,{"$f":"IF(I85=\"\",\"\", (valAllocation400-IndExcl400)/(1+I85))","v":""}]
[null,null,null,null,null,null,null,null," (a x b)",null,{"$f":"IFERROR(ROUNDDOWN(I85*K85, 0),\"\")","v":""}]
[null,null,null,null,null,null,null,null,null,null,"   maximum allowed"]
[]
[null,null,null,null,11,"EQUIPMENT:\nItems costing $5,000+ per unit and having a useful life more than 1 year must be listed individually in Step 9.2, below, and will be rolled up to this cell automatically.  These expenditures are not eligible for recovery of indirect cost.",null,null,null,null,null,null,null,null,null,null,"Amount",null,"Select from Drop Down List",null,null,"Budget Detail"]
[null,null,null,null,null,null,null,null,null,null,null,null,null,null,null,null,{"$f":"IndEquip400","v":0},null,"Select One"]
[]
[]
[null,null,null,null,"SUB-TOTAL",null,null,null,null,null,null,null,null,null,null,null,{"$f":"Q90","v":0}]
[]
[null,null,null,null,"TOTAL FUNDS REQUESTED ",null,null,null,null,null,null,null,null,null,null,null,{"$f":"SUM(Q21+Q30+Q36+Q43+Q51+Q60+Q67+Q74+Q83+Q85+Q93)","v":0}]
[]
[null,null,null,null,"DISCREPANCY:  Difference between allocation and budgeted total, if any",null,null,null,null,null,null,null,null,null,null,null,{"$f":"Q95-valAllocation400","v":0}]
[]
[]
[]
[]
[]
[]
[]
[null,null,"Step 9.2\nDistricts requesting funds for indirect costs",null,"Indirect Costs:  Major contracts and equipment",null,null,null,null,null,null,null,null,null,null,null,null,null,null,null,null,null,null,null,null,null,null,null,null,null,null,null,null,null,null,{"$f":"IndK400+IndEquip400","v":0}]
[null,null,null,null,"\nIndirect costs are those expenses of doing business that are not readily identified with a particular grant, contract, project fund or activity, but are necessary for the general operation of the organization and the conduct of the activities it performs.  Because these expenses are difficult to track with precision across all benefiting sources, federal grants allow use of a rate as a mechanism for fairly and conveniently apportioning indirect costs across all programs within the boundaries of sound administrative principles.  \nSee U.S. Department of Education, Indirect Cost Overview (https://www2.ed.gov/about/offices/list/ocfo/intro.html). \n\nFor this grant, indirect costs must be consistent with the rate established by DESE's Office of School Finance.  Note that districts are allowed to take less than the maximum allowable for indirect costs. The decision to recover indirect costs using these established rates is a local option.  If indirect costs are recovered, they shall be returned to the general fund of the city or town in  accordance with G.L. Chapter 44, Section 53.  In the case of regional schools, indirect costs shall be returned to the regional school general fund.  www.doe.mass.edu/Grants/essential.html\n\nIn calculating the indirect cost allowable for a particular grant, some expenditures are not included.  Two such exclusions include a portion of major subawards or subcontracts (those exceeding $25,000), and capital costs (equipment purchases of $5,000 or more).  \nSee, U. S. Department of Education, Cost Allocation Guide for State and Local Governments.  https://www2.ed.gov/about/offices/list/ocfo/fipao/guideigcwebsite.pdf\n\n                                        •  Contracts:  For major contracts exceeding $25,000, districts may recover indirect costs on only the first $25,000 of each contract.   The remainder of the contract amount is excluded from application of the indirect cost rate.  Note that for contracts \n                                            for professional services normally provided in-house, such as a speech pathologist or school nurse, this exclusion does not apply, even if the contract exceeds $25,000.  Of course, these expenses are also subject to all other grant requirements \n                                            (allowability, allocability, necessarily and reasonable, etc.) to be properly chargeable to the grant as well.\n\n                                        • Equipment:  All equipment costing $5,000 or more and having a useful life of more than 1 year is considered a capital expenditure and not eligible for recovery of indirect cost.  The total for equipment should match the total entered in Line 11, above.\n\nDirections:  List contracts exceeding $25,000 below (but not those for professional services normally provided in house) and the amount to be excluded will be calculated automatically.  The excluded amount will be added to the equipment total (Line 11) and subtracted from your district's allocation before calculating your district's maximum allowable indirect cost on Line 10."]
[]
[]
[null,null,null,null,null," "]
[null,null,null,null,null,null,"Contracts exceeding $25,000 (include in budget categories above in addition to listing individually here)",null,null,null,null,null,null,null,null,null,null,null,null,null,null,null,"Equipment:  (total will populate in Line 11, above, automatically)"]
[null,null,null,null,null,null,null,null,null,null,null,null,null,null,null,null,null,null,null,null,null,null,"List Items costing $5,000+ per unit and having a useful life of more than 1 year. "]
[null,null,null,null,null,null,"Amount of contract:",null,"Amount excluded from indirect cost:",null,null,"  Description:",null,null,null,null,null,null,null,null,null,null,"  Description:",null,null,null,null,null,"Amount:"]
[]
[null,null,null,null,null,null,null,null,{"$f":"IF((G114-25000)>0, (G114-25000), \"\")","v":""}]
[null,null,null,null,null,null,null,null,{"$f":"IF((G115-25000)>0, (G115-25000), \"\")","v":""}]
[null,null,null,null,null,null,null,null,""]
[null,null,null,null,null,null,null,null,""]
[null,null,null,null,null,null,null,null,""]
[null,null,null,null,null,null,null,null,""]
[null,null,null,null,null,null,null,null,""]
[null,null,null,null,null,null,null,null,""]
[null,null,null,null,null,null,null,null,""]
[null,null,null,null,null,null,null,null,""]
[null,null,null,null,null,null,null,null,""]
[null,null,null,null,null,null,null,null,""]
[null,null,null,null,null,null,null,null,""]
[null,null,null,null,null,"SUB-TOTAL",{"$f":"SUM(G114:H126)","v":0},null,{"$f":"SUM(I114:J126)","v":0},null,null,null,null,null,null,null,null,null,null,null,null,null,"SUB-TOTAL",null,null,null,null,null,{"$f":"SUM(AC114:AC126)","v":0}]
[]
[]
[]
[]
[]
[]
[]
[null,null,null,null,null,null,null,null,null,null,null,null,null,null,null,null,null,null,null,null,null,"\n\n"]
[null,null,null,null,null,null,null,null,null,null,null,null,null,null,null,null,null,null,null,null,null,"     "]

{"sheet":"10. FC 401 Budget","index":10,"n_rows":127,"n_cols":35,"rows_kept":127,"cut":false,"hidden":false,"merged":[[114,10,114,17],[115,10,115,17],[116,10,116,17],[117,10,117,17],[80,4,80,10],[126,5,126,6],[126,7,126,8],[1,1,1,9],[124,5,124,6],[124,7,124,8],[120,5,120,6],[120,7,120,8],[116,5,116,6],[116,7,116,8],[111,5,112,6],[111,7,112,8],[117,5,117,6],[117,7,117,8],[114,5,114,6],[114,7,114,8],[115,5,115,6],[115,7,115,8],[121,5,121,6],[121,7,121,8],[118,5,118,6],[118,7,118,8],[119,5,119,6],[119,7,119,8],[118,10,118,17],[119,10,119,17],[120,10,120,17],[121,10,121,17],[125,5,125,6],[125,7,125,8],[122,5,122,6],[122,7,122,8],[123,5,123,6],[123,7,123,8],[122,10,122,17],[123,10,123,17],[124,10,124,17],[88,4,88,11],[88,20,88,21],[89,20,89,21],[90,4,90,10],[90,20,90,21],[111,26,112,26],[113,5,113,6],[113,7,113,8],[104,1,105,1],[107,3,107,10],[111,10,112,17],[113,10,113,17],[111,21,112,24],[105,3,106,28],[110,21,110,25],[109,21,109,24],[91,20,91,21],[96,3,96,11],[80,20,80,21],[81,3,81,11],[83,8,83,11],[84,9,84,10],[85,9,85,10],[77,4,77,10],[77,20,77,21],[78,4,78,10],[78,20,78,21],[79,4,79,10],[79,20,79,21],[72,3,72,11],[74,20,74,21],[75,4,75,10],[75,20,75,21],[76,4,76,10],[76,20,76,21],[69,4,69,10],[69,20,69,21],[70,4,70,10],[70,20,70,21],[71,4,71,10],[71,20,71,21],[64,4,64,10],[64,20,64,21],[65,4,65,6],[67,4,67,10],[67,20,67,21],[68,4,68,10],[68,20,68,21],[61,4,61,10],[61,20,61,21],[62,4,62,10],[62,20,62,21],[63,4,63,10],[63,20,63,21],[56,4,56,7],[56,20,56,21],[57,4,57,7],[57,20,57,21],[58,3,58,11],[60,20,60,21],[53,4,53,7],[53,20,53,21],[54,4,54,7],[54,20,54,21],[55,4,55,7],[55,20,55,21],[48,4,48,11],[48,20,48,21],[49,3,49,11],[51,20,51,21],[52,4,52,7],[52,20,52,21],[46,4,46,11],[46,20,46,21],[47,4,47,11],[47,20,47,21],[44,20,45,21],[41,4,41,7],[41,20,41,21],[42,3,42,11],[43,3,43,7],[37,20,37,21],[38,4,38,7],[38,20,38,21],[39,4,39,7],[39,20,39,21],[40,4,40,7],[40,20,40,21],[44,17,45,17],[44,4,45,11],[33,4,33,7],[33,20,33,21],[34,4,34,7],[34,20,34,21],[35,3,35,11],[36,3,36,7],[29,3,29,11],[29,20,29,21],[30,3,30,7],[31,4,31,7],[31,20,31,21],[32,4,32,7],[32,20,32,21],[27,4,27,7],[27,20,27,21],[28,4,28,7],[28,20,28,21],[22,20,22,21],[23,4,23,7],[23,20,23,21],[24,4,24,7],[24,20,24,21],[25,4,25,7],[25,20,25,21],[21,3,21,7],[13,1,16,1],[14,3,14,11],[14,20,14,21],[16,4,16,7],[16,20,16,21],[17,4,17,7],[17,20,17,21],[26,4,26,7],[26,20,26,21],[19,4,19,7],[19,20,19,21],[5,17,5,20],[6,17,6,20],[20,20,20,21],[7,2,7,5],[7,6,7,7],[5,6,6,7],[5,2,6,5],[5,23,11,31],[1,11,1,16],[1,18,1,21],[2,20,2,21],[3,2,3,21],[6,8,6,9],[6,10,6,11],[18,4,18,7],[18,20,18,21]]}
[]
[null,{"$f":"DistrName","v":"Org Name"}]
[]
[null,null,"FY21 Perkins FC 401 (Postsecondary) Budget Worksheet"]
[]
[null,null,"Allocation ",null,null,null,{"$f":"valAllocation401","v":0},null,null,null,null,null,null,null,null,null,null,"The applicant is a DESE Innovation Pathways Designee",null,null,null,{"$f":"IF(DataInnPath=0, \"\", DataInnPath)","v":""},null,"Which expenditures are subject to the 5% administrative cap?  \nAdministrative expenses are those expenses used for running the grant, not expenses related to providing direct grant services to students.  Indirect costs are always administrative expenses.\n\nIn addition, some examples of administrative expenses are costs associated with: Developing the Perkins application, supervising Perkins-funded staff, ensuring compliance with applicable federal laws and regulations, creating data systems for Perkins (but not collecting and analyzing data), PD for Perkins administrators re: administering the grant.\n\nFor more information, see the Perkins V transition manual."]
[null,null,null,null,null,null,null,null,null,null,null,null,null,null,null,null,null,"The applicant is a DESE Early College Designee",null,null,null,{"$f":"IF(DataEarlyColl=0, \"\", DataEarlyColl)","v":""}]
[null,null,"Total amount budgeted for administrative expenses in Step 10.1",null,null,null,0]
[]
[]
[null,null,null,null,null,null,null,null,null,"Bellingham"]
[]
[]
[null,"Step 10.1\nAll Postsecondary applicants"]
[null,null,null,"Line Item Category: Select an option from the drop down menu.",null,null,null,null,null,null,null,null,false,"Amount",null,"Expenditures \n(whole numbers)",null,"Primary Function",null,null,"Comments"]
[]
[null,null,null,1,"ADMINISTRATOR SALARIES:",null,null,null,null,"# of staff","FTE",null,null,null,null,"Amount",null,"Select from Drop Down List",null,null,"Budget Detail"]
[null,null,null,null,"Select One",null,null,null,null,null,null,null,true,{"$f":"IF(M18, P18, 0)","v":0},null,null,null,"Select One"]
[null,null,null,null,"Select One",null,null,null,null,null,null,null,false,{"$f":"IF(M19, P19, 0)","v":0},null,null,null,"Select One"]
[null,null,null,null,"Select One",null,null,null,null,null,null,null,false,{"$f":"IF(M20, P20, 0)","v":0},null,null,null,"Select One"]
[]
[null,null,null,"SUB-TOTAL",null,null,null,null,null,{"$f":"SUM(J18:J20)","v":0},{"$f":"SUM(K18:K20)","v":0},null,null,{"$f":"SUM(N18:N20)","v":0},null,{"$f":"SUM(P18:P20)","v":0}]
[null,null,null,2,"INSTRUCTIONAL/PROF STAFF:",null,null,null,null,"# of staff","FTE",null,true,null,null,"Amount",null,"Select from Drop Down List",null,null,"Budget Detail"]
[null,null,null,null,"Select One",null,null,null,null,null,null,null,false,{"$f":"IF(M24, P24, 0)","v":0},null,null,null,"Select One"]
[null,null,null,null,"Select One",null,null,null,null,null,null,null,false,0,null,null,null,"Select One"]
[null,null,null,null,"Select One",null,null,null,null,null,null,null,false,0,null,null,null,"Select One"]
[null,null,null,null,"Select One",null,null,null,null,null,null,null,false,0,null,null,null,"Select One"]
[null,null,null,null,"Select One",null,null,null,null,null,null,null,false,0,null,null,null,"Select One"]
[null,null,null,null,"Select One",null,null,null,null,null,null,null,false,0,null,null,null,"Select One"]
[]
[null,null,null,"SUB-TOTAL",null,null,null,null,null,{"$f":"SUM(J24:J29)","v":0},{"$f":"SUM(K24:K29)","v":0},null,null,{"$f":"SUM(N24:N29)","v":0},null,{"$f":"SUM(P24:P29)","v":0}]
[null,null,null,3,"SUPPORT STAFF SALARIES:",null,null,null,null,"# of staff","FTE",null,null,null,null,"Amount",null,"Select from Drop Down List",null,null,"Budget Detail"]
[null,null,null,null,"Select One",null,null,null,null,null,null,null,false,{"$f":"IF(M33, P33, 0)","v":0},null,null,null,"Select One"]
[null,null,null,null,"Select One",null,null,null,null,null,null,null,false,{"$f":"IF(M34, P34, 0)","v":0},null,null,null,"Select One"]
[null,null,null,null,"Select One",null,null,null,null,null,null,null,false,{"$f":"IF(M35, P35, 0)","v":0},null,null,null,"Select One"]
[null,null,null,null,null,null,null,null,null,null,null,null,false]
[null,null,null,"SUB-TOTAL",null,null,null,null,null,{"$f":"SUM(J33:J35)","v":0},{"$f":"SUM(K33:K35)","v":0},null,null,{"$f":"SUM(N33:N35)","v":0},null,{"$f":"SUM(P33:P35)","v":0}]
[null,null,null,4,"STIPENDS:",null,null,null,"# of staff","Rate","Rate Type",null,null,null,null,"Amount",null,"Select from Drop Down List",null,null,"Budget Detail"]
[null,null,null,null,"Select One",null,null,null,null,null,"select",null,false,{"$f":"IF(M39, P39, 0)","v":0},null,null,null,"Select One"]
[null,null,null,null,"Select One",null,null,null,null,null,"select",null,false,{"$f":"IF(M40, P40, 0)","v":0},null,null,null,"Select One"]
[null,null,null,null,"Select One",null,null,null,null,null,"select",null,false,{"$f":"IF(M41, P41, 0)","v":0},null,null,null,"Select One"]
[null,null,null,null,"Select One",null,null,null,null,null,"select",null,false,{"$f":"IF(M42, P42, 0)","v":0},null,null,null,"Select One"]
[]
[null,null,null,"SUB-TOTAL",null,null,null,null,null,null,null,null,null,{"$f":"SUM(N39:N42)","v":0},null,{"$f":"SUM(P39:P42)","v":0}]
[null,null,null,5,"FRINGE BENEFITS:",null,null,null,null,null,null,null,null,null,null,"Amount",null,"Brief Description",null,null,"Budget Detail"]
[null,null,null,null,null,null,null,null,null,null,null,null,null,null,null,{"$f":"SUM(P47:P49)","v":0}]
[null,null,null,null,"Health Insurance"]
[null,null,null,null,"Other Retirement Systems"]
[null,null,null,null,"Federal Insurance Contributions Act (FICA)"]
[]
[null,null,null,"SUB-TOTAL",null,null,null,null,null,null,null,null,null,null,null,{"$f":"SUM(P46:P46)","v":0}]
[null,null,null,6,"CONTRACTUAL SERVICES:",null,null,null,null,"Rate","Rate Type",null,null,null,null,"Amount",null,"Select from Drop Down List",null,null,"Budget Detail"]
[null,null,null,null,"Select One",null,null,null,null,null,"select",null,null,null,null,null,null,"Select One"]
[null,null,null,null,"Select One",null,null,null,null,null,"select",null,null,null,null,null,null,"Select One"]
[null,null,null,null,"Select One",null,null,null,null,null,"select",null,null,null,null,null,null,"Select One"]
[null,null,null,null,"Select One",null,null,null,null,null,"select",null,null,null,null,null,null,"Select One"]
[null,null,null,null,"Select One",null,null,null,null,null,"select",null,null,null,null,null,null,"Select One"]
[null,null,null,null,"Select One",null,null,null,null,null,"select",null,null,null,null,null,null,"Select One"]
[]
[null,null,null,"SUB-TOTAL",null,null,null,null,null,null,null,null,null,null,null,{"$f":"SUM(P53:P58)","v":0}]
[null,null,null,7,"SUPPLIES AND MATERIALS:",null,null,null,null,null,null,null,null,null,null,"Amount",null,"Select from Drop Down List",null,null,"Budget Detail"]
[null,null,null,null,"Select One",null,null,null,null,null,null,null,null,null,null,null,null,"Select One"]
[null,null,null,null,"Select One",null,null,null,null,null,null,null,null,null,null,null,null,"Select One"]
[null,null,null,null,"Select One",null,null,null,null,null,null,null,null,null,null,null,null,"Select One"]
[null,null,null,null,"Select One",null,null,null,null,null,null,null,null,null,null,null,null,"Select One"]
[]
[null,null,null,"SUB-TOTAL",null,null,null,null,null,null,null,null,null,null,null,{"$f":"SUM(P62:P65)","v":0}]
[null,null,null,8,"TRAVEL:  (mileage, conference registration, courses, hotels, etc.)",null,null,null,null,null,null,null,null,null,null,"Amount",null,"Select from Drop Down List",null,null,"Budget Detail"]
[null,null,null,null,"Select One",null,null,null,null,null,null,null,null,null,null,null,null,"Select One"]
[null,null,null,null,"Select One",null,null,null,null,null,null,null,null,null,null,null,null,"Select One"]
[null,null,null,null,"Select One",null,null,null,null,null,null,null,null,null,null,null,null,"Select One"]
[null,null,null,null,"Select One",null,null,null,null,null,null,null,null,null,null,null,null,"Select One"]
[]
[null,null,null,"SUB-TOTAL",null,null,null,null,null,null,null,null,null,null,null,{"$f":"SUM(P69:P72)","v":0}]
[null,null,null,9,"OTHER COSTS:",null,null,null,null,null,null,null,null,null,null,"Amount",null,"Select from Drop Down List",null,null,"Budget Detail"]
[null,null,null,null,"Select One",null,null,null,null,null,null,null,null,null,null,null,null,"Select One"]
[null,null,null,null,"Select One",null,null,null,null,null,null,null,null,null,null,null,null,"Select One"]
[null,null,null,null,"Select One",null,null,null,null,null,null,null,null,null,null,null,null,"Select One"]
[null,null,null,null,"Select One",null,null,null,null,null,null,null,null,null,null,null,null,"Select One"]
[null,null,null,null,"Select One",null,null,null,null,null,null,null,null,null,null,null,null,"Select One"]
[null,null,null,null,"Select One",null,null,null,null,null,null,null,null,null,null,null,null,"Select One"]
[]
[null,null,null,"SUB-TOTAL",null,null,null,null,null,null,null,null,null,null,null,{"$f":"SUM(P76:P81)","v":0}]
[null,null,null,null,null,null,null,"(a) rate (%)","(b) eligible allocation less indirect",null,null,null,null,null,null,"Amount"]
[null,null,null,10,"INDIRECT COSTS *",null,null,null,null,{"$f":"IF(H85=\"\",\"\", ((valAllocation401-IndExcl401))/(1+H85))","v":""}]
[null,null,null,null,null,null,null," (a x b)",null,{"$f":"IFERROR(H85*J85,\"\")","v":""}]
[null,null,null,null,null,null,null,null,null," maximum allowed"]
[]
[null,null,null,11,"EQUIPMENT:\nItems costing $5,000+ per unit and having a useful life more than 1 year should also",null,null,null,null,null,null,null,null,null,null,"Amount",null,"Select from Drop Down List",null,null,"Budget Detail"]
[null,null,null,null,"be listed individually in Step 10.2, below.  These expenditures are not eligible  ",null,null,null,null,null,null,null,null,null,null,{"$f":"IndEquip401","v":0},null,"Select One"]
[null,null,null,null,"for recovery of indirect cost."]
[]
[null,null,null,"SUB-TOTAL",null,null,null,null,null,null,null,null,null,null,null,{"$f":"P90","v":0}]
[]
[null,null,null,"TOTAL FUNDS REQUESTED ",null,null,null,null,null,null,null,null,null,null,null,{"$f":"SUM(P93+P85+P83+P74+P67+P60+P51+P44+P37+P31+P22)","v":0}]
[]
[null,null,null,"DISCREPANCY:  Difference between allocation and budgeted total, if any",null,null,null,null,null,null,null,null,null,null,null,{"$f":"P95-valAllocation401","v":0}]
[]
[]
[]
[]
[]
[]
[]
[null,"Step 10.2\nAll Postsecondary applicants requesting funds for indirect costs",null,"Indirect Costs:  Major contracts and equipment",null,null,null,null,null,null,null,null,null,null,null,null,null,null,null,null,null,null,null,null,null,null,null,null,null,null,null,null,null,null,{"$f":"IndK401+IndEquip401","v":0}]
[null,null,null,"\nIndirect costs are those expenses of doing business that are not readily identified with a particular grant, contract, project fund or activity, but are necessary for the general operation of the organization and the conduct of the activities it performs.  Because these expenses are difficult to track with precision across all benefiting sources, federal grants allow use of a rate as a mechanism for fairly and conveniently apportioning indirect costs across all programs within the boundaries of sound administrative principles.  \nSee U.S. Department of Education, Indirect Cost Overview (https://www2.ed.gov/about/offices/list/ocfo/intro.html). \n\nFor this grant, indirect costs must be consistent with the rate established by DESE's Office of School Finance.  Note that districts are allowed to take less than the maximum allowable for indirect costs. The decision to recover indirect costs using these established rates is a local option.  If indirect costs are recovered, they shall be returned to the general fund of the city or town in  accordance with G.L. Chapter 44, Section 53.  In the case of regional schools, indirect costs shall be returned to the regional school general fund.  www.doe.mass.edu/Grants/essential.html\n\nIn calculating the indirect cost allowable for a particular grant, some expenditures are not included.  Two such exclusions include a portion of major subawards or subcontracts (those exceeding $25,000), and capital costs (equipment purchases of $5,000 or more).  \nSee, U. S. Department of Education, Cost Allocation Guide for State and Local Governments.  https://www2.ed.gov/about/offices/list/ocfo/fipao/guideigcwebsite.pdf\n\n                                        •  Contracts:  For major contracts exceeding $25,000, districts may recover indirect costs on only the first $25,000 of each contract.   The remainder of the contract amount is excluded from application of the indirect cost rate.  Note that for contracts \n                                            for professional services normally provided in-house, such as a speech pathologist or school nurse, this exclusion does not apply, even if the contract exceeds $25,000.  Of course, these expenses are also subject to all other grant requirements \n                                            (allowability, allocability, necessarily and reasonable, etc.) to be properly chargeable to the grant as well.\n\n                                        • Equipment:  All equipment costing $5,000 or more and having a useful life of more than 1 year is considered a capital expenditure and not eligible for recovery of indirect cost.  The total for equipment should match the total entered in Line 11, above.\n\nDirections:  List contracts exceeding $25,000 below (but not those for professional services normally provided in house) and the amount to be excluded will be calculated automatically.  The excluded amount will be added to the equipment total (Line 11) and subtracted from your district's allocation before calculating your district's maximum allowable indirect cost on Line 10."]
[]
[]
[null,null,null,null," "]
[null,null,null,null,null,"Contracts exceeding $25,000 (include in budget categories above in addition to listing individually here)",null,null,null,null,null,null,null,null,null,null,null,null,null,null,null,"Equipment:  (total will populate in Line 11, above, automatically)\n\n"]
[null,null,null,null,null,null,null,null,null,null,null,null,null,null,null,null,null,null,null,null,null,"List Items costing $5,000+ per unit and having a useful life of more than 1 year.  "]
[null,null,null,null,null,"Amount of contract:",null,"Amount excluded from indirect cost:",null,null,"  Description:",null,null,null,null,null,null,null,null,null,null,"  Description:",null,null,null,null,"Amount:"]
[]
[null,null,null,null,null,null,null,{"$f":"IF((F114-25000)>0, (F114-25000), \"\")","v":""}]
[null,null,null,null,null,null,null,{"$f":"IF((F115-25000)>0, (F115-25000), \"\")","v":""}]
[null,null,null,null,null,null,null,""]
[null,null,null,null,null,null,null,""]
[null,null,null,null,null,null,null,""]
[null,null,null,null,null,null,null,""]
[null,null,null,null,null,null,null,""]
[null,null,null,null,null,null,null,""]
[null,null,null,null,null,null,null,""]
[null,null,null,null,null,null,null,""]
[null,null,null,null,null,null,null,""]
[null,null,null,null,null,null,null,""]
[null,null,null,null,null,null,null,""]
[null,null,null,null,"SUB-TOTAL",{"$f":"SUM(F114:G126)","v":0},null,{"$f":"SUM(H114:I126)","v":0},null,null,null,null,null,null,null,null,null,null,null,null,null,null,null,null,"SUB-TOTAL",null,{"$f":"SUM(AA114:AA126)","v":0}]

{"sheet":"11. FC 401 ISA Crosswalk","index":11,"n_rows":40,"n_cols":14,"rows_kept":40,"cut":false,"hidden":false,"merged":[[1,1,1,6],[34,11,35,12],[30,11,30,12],[3,3,6,10],[7,9,8,10],[14,4,14,6],[14,10,14,12],[29,11,29,12]]}
[]
[null,{"$f":"DistrName","v":"Org Name"}]
[null,null,null,"Interdepartmental Service Agreement (ISA) Crosswalk"]
[null,null,null,"Community colleges eligible to receive Perkins Postsecondary funds are required to submit an ISA for our files.  Please complete this crosswalk to expedite execution of your ISA.  Grants Management will reach out to you once your grant application has been approved to complete the ISA process.\n"]
[]
[]
[]
[]
[]
[]
[]
[]
[]
[]
[null,null,null,null,"ISA Budget  for FY21\n",null,null,"ENTER YOUR ISA BUDGET","Proposed FY21 Fringe Rate\n38.88% AA + 1.85%CC","MAX amount for indirect. \nIndicate which line items Indirect Costs are calculated on *#11 Equipment is excluded from the indirect cost calculation*","EdGrants Budget for FY21\n(from Tab 10)",null,null,"ISA Budget Notes:  Identify the object class(es) that make up each budgeted line item.  \nExample: Line 7 Supplies = $10,700; broken out as EE: $2700; FF: $3000; UU: $5,000"]
[null,null,null,null,null,"Object Class",null,null,null,null,null,"Object Class"]
[null,null,null,null,2021,"AA","State Employee ",0,{"$f":"H17*38.88%","v":0},0,"Line 1 - \nAdmin Salaries","AA and/or CC",{"$f":"Line1401","v":0}]
[null,null,null,null,null,"BB","Employee Expenses",0,null,0,"Line 2- \nInstructional Staff","AA and/or CC",{"$f":"Line2401","v":0}]
[null,null,null,null,null,"CC","Special / Contracted Employee",0,{"$f":"(H19*1.85%)","v":0},0,"Line 3 - \nSupport Staff","AA and/or CC",{"$f":"Line3401","v":0}]
[null,null,null,null,null,"DD","Fringe 38.88% AA + 1.85% CC (D09)",{"$f":"I34","v":0},null,0,"Line 4 - \nStipends","AA and/or CC",{"$f":"Line4401","v":0}]
[null,null,null,null,null,"DD","Health & Welfare (D08) (Com College ONLY)",0,null,0,"Line 5 - Fringe","DD",{"$f":"Line5401","v":0}]
[null,null,null,null,null,"EE","Admin Expenses",0,null,0,"Line 6 - \nContractual Services","HH, CC, MM and/or LL",{"$f":"Line6401","v":0}]
[null,null,null,null,null,"EE","Indirect Cost ",0,null,0,"Line 7 - Supplies*","EE, FF and/or UU",{"$f":"Line7401","v":0}]
[null,null,null,null,null,"FF","Programmatic Supplies",0,null,0,"Line 8 - Travel**","BB and/or EE",{"$f":"Line8401","v":0}]
[null,null,null,null,null,"HH","Contractual Services",0,null,0,"Line 9 - \nOther Costs","could be any Object Class",{"$f":"Line9401","v":0}]
[null,null,null,null,null,"KK","Equipment",0,null,null,"Line 10 - Indirect","EE",{"$f":"Line10401","v":0}]
[null,null,null,null,null,"LL","Equipment Lease/Maintenance",0,null,0,"Line 11 - \nEquipment","KK or UU",{"$f":"Line11401","v":0}]
[null,null,null,null,null,"MM","Purchased Client Human & Social Services and Non-Human Services",0,null,0,null,"TOTAL",{"$f":"SUM(M17:M27)","v":0}]
[null,null,null,null,null,"UU","IT Expenses (hardware/software/contracts)",0,null,0]
[null,null,null,null,null,null,null,0,null,0,"Supplies - Line 7*","Travel - Line 8**"]
[null,null,null,null,null,null,null,0,null,0,"EE for office supplies","EE - Payments made to Vendor on behalf of staff"]
[null,null,null,null,null,null,null,0,null,0,"FF for books & edu. materials","BB - Employee Reimbursement"]
[null,null,null,null,null,null,null,0,null,0,"UU for IT hardware/software"]
[null,null,null,null,null,null,"TOTAL",{"$f":"SUM(H17:H33)","v":0},{"$f":"ROUNDUP(I17+I19,0)","v":0},{"$f":"J17+J19+J18+J20+J21+J22+J23+J24+J25+J27+J28+J29+J30+J31+J32+J33","v":0}]
[null,null,null,null,null,null,"ISA Budget:",{"$f":"H34","v":0},null,null,null,"Indirect Cost Calculator\nInput in Yellow boxes"]
[null,null,null,null,null,null,"EdGrants Budget:",{"$f":"M28","v":0}]
[null,null,null,null,null,null,"Difference to equal ZERO",{"$f":"H35-H36","v":0},null,null,null,"Total Funds Eligible for Indirect",{"$f":"(valAllocation401-IndExcl401)","v":0}]
[null,null,null,null,null,null,null,null,null,null,null,"Indirect Cost Percentage",3.2000000000000001E-2]
[null,null,null,null,null,null,null,null,null,null,null,"Total Funds/(1+Percentage)",{"$f":"+M37/(1+M38)","v":0}]
[null,null,null,null,null,null,null,null,null,null,null,"Maximum Amount that can be used for Indirect:",{"$f":"+M37-M39","v":0}]

{"sheet":"Schedule A","index":12,"n_rows":77,"n_cols":13,"rows_kept":77,"cut":false,"hidden":false,"merged":[[73,7,74,9],[73,10,74,12],[74,2,74,6],[76,2,77,12],[70,7,70,9],[70,10,70,12],[71,2,71,6],[71,7,71,9],[71,10,71,12],[72,2,72,6],[72,7,72,9],[72,10,72,12],[70,2,70,6],[66,7,66,9],[66,10,66,12],[67,2,67,6],[67,7,67,9],[67,10,67,12],[68,2,68,6],[68,7,68,9],[68,10,68,12],[62,7,62,9],[62,10,62,12],[63,2,63,6],[63,7,63,9],[63,10,63,12],[64,2,64,6],[64,7,64,9],[64,10,64,12],[58,7,58,9],[58,10,58,12],[59,2,59,6],[59,7,59,9],[59,10,59,12],[60,2,60,6],[60,7,60,9],[60,10,60,12],[49,12,50,12],[51,2,52,2],[51,3,52,5],[51,6,52,11],[51,12,52,12],[54,2,55,6],[54,7,55,9],[54,10,55,12],[49,3,50,5],[49,6,50,11],[42,2,42,12],[43,2,43,12],[45,2,45,12],[47,2,48,2],[47,3,48,12],[49,2,50,2],[69,2,69,6],[69,7,69,9],[69,10,69,12],[65,2,65,6],[65,7,65,9],[65,10,65,12],[66,2,66,6],[61,2,61,6],[61,7,61,9],[61,10,61,12],[62,2,62,6],[57,2,57,6],[57,7,57,9],[57,10,57,12],[58,2,58,6],[56,2,56,6],[56,7,56,9],[56,10,56,12],[36,2,37,12],[32,2,32,6],[32,7,32,9],[32,10,32,12],[33,7,34,9],[33,10,34,12],[34,2,34,6],[30,2,30,6],[30,7,30,9],[30,10,30,12],[31,2,31,6],[31,7,31,9],[31,10,31,12],[28,2,28,6],[28,7,28,9],[28,10,28,12],[29,2,29,6],[29,7,29,9],[29,10,29,12],[26,2,26,6],[26,7,26,9],[26,10,26,12],[27,2,27,6],[27,7,27,9],[27,10,27,12],[24,2,24,6],[24,7,24,9],[24,10,24,12],[25,2,25,6],[25,7,25,9],[25,10,25,12],[22,2,22,6],[22,7,22,9],[22,10,22,12],[23,2,23,6],[23,7,23,9],[23,10,23,12],[20,2,20,6],[20,7,20,9],[20,10,20,12],[21,2,21,6],[21,7,21,9],[21,10,21,12],[18,2,18,6],[18,7,18,9],[18,10,18,12],[19,2,19,6],[19,7,19,9],[19,10,19,12],[16,2,16,6],[16,7,16,9],[16,10,16,12],[17,2,17,6],[17,7,17,9],[17,10,17,12],[11,2,12,2],[11,3,12,5],[11,6,12,11],[11,12,12,12],[14,2,15,6],[14,7,15,9],[14,10,15,12],[2,2,2,12],[3,2,3,12],[5,2,5,12],[7,2,8,2],[7,3,8,12],[9,2,10,2],[9,3,10,5],[9,6,10,11],[9,12,10,12]]}
[]
[]
[null,null,"MASSACHUSETTS DEPARTMENT OF ELEMENTARY AND SECONDARY EDUCATION"]
[null,null,"STANDARD APPLICATION FOR PROGRAM GRANTS"]
[]
[null,null,"FY21 SCHEDULE A - Assignment Schedule"]
[]
[null,null,1,"Schedule A is to be completed if the applicant agency operates and administers a grant project using funds from more than one grant recipient."]
[]
[null,null,2,"Agency operating and administering the project:  ",null,null,{"$f":"DistrName","v":"Org Name"},null,null,null,null,null,{"$f":"valorg4code","v":"Org "}]
[]
[null,null,3,"Name of grant program/\nFund Code:",null,null,"Strengthening Career and Technical Education - Secondary",null,null,null,null,null,"FC 400"]
[]
[]
[null,null,"Name of Participating Agency",null,null,null,null,"Amount of \nAssigned Funds",null,null,"* Authorized Signature"]
[]
[]
[]
[]
[]
[]
[]
[]
[]
[]
[]
[]
[]
[]
[]
[]
[]
[]
[null,null,null,null,null,null,null,{"$f":"SUM(H17:J32)","v":0}]
[null,null,"Total of Assigned Funds"]
[]
[null,null,"*I/We assign the identified funds to the project described in the accompanying grant application.  The indicated agency is authorized to receive and disburse funds for the purpose of operating the project."]
[]
[]
[]
[]
[]
[null,null,"MASSACHUSETTS DEPARTMENT OF ELEMENTARY AND SECONDARY EDUCATION"]
[null,null,"STANDARD APPLICATION FOR PROGRAM GRANTS"]
[]
[null,null,"FY21 SCHEDULE A - Assignment Schedule"]
[]
[null,null,1,"Schedule A is to be completed if the applicant agency operates and administers a grant project using funds from more than one grant recipient."]
[]
[null,null,2,"Agency operating and administering the project:  ",null,null,{"$f":"DistrName","v":"Org Name"},null,null,null,null,null,{"$f":"valorg4code","v":"Org "}]
[]
[null,null,3,"Name of grant program/\nFund Code:",null,null,"Strengthening Career and Technical Education - \nPost-Secondary",null,null,null,null,null,"FC 401"]
[]
[]
[null,null,"Name of Participating Agency",null,null,null,null,"Amount of \nAssigned Funds",null,null,"* Authorized Signature"]
[]
[]
[]
[]
[]
[]
[]
[]
[]
[]
[]
[]
[]
[]
[]
[]
[]
[]
[null,null,null,null,null,null,null,{"$f":"SUM(H57:J72)","v":0}]
[null,null,"Total of Assigned Funds"]
[]
[null,null,"*I/We assign the identified funds to the project described in the accompanying grant application.  The indicated agency is authorized to receive and disburse funds for the purpose of operating the project."]

{"sheet":"Dropdowns","index":13,"n_rows":956,"n_cols":10,"rows_kept":956,"cut":false,"hidden":true,"merged":[[81,9,81,10],[76,9,76,10],[77,9,77,10],[78,9,78,10],[2,9,2,10],[3,9,3,10],[4,9,4,10],[79,9,79,10],[80,9,80,10]]}
[8,null,"Budget Categories","Primary Functions","Rate","CLNA Year",null,null,"DataCourse","Agriculture Programs"]
[null,null,"Administrator Salaries","Select One","select","Select One",null,null,"Select One","Select One"]
[null,null,"Select One","Career exploration/development","per hour",2019,null,null,"Other        ","Agricultural Mechanics (cont.)"]
["Yes/No","Data Sources","Grant Program Manager/Coordinator ","Developing new or expanded CTE programs","per day",2020,null,null,"Accounting     12104","Animal Science  (cont.)"]
["Select One","Select One","Other ","Early college/dual enrollment","flat",null,null,null,"Administration—Independent Study   12047","Environmental Science & Technology  (cont.)"]
["Yes","ACCESS for Els","InstructionalProf Staff Salaries","Evaluation of programs/curricula",null,null,null,null,"Administration—Other   12049","Horticulture  (cont.)"]
["No","Attendance (educators)","Select One","High-quality professional development",null,null,null,null,"Administration—Workplace Experience   12048"]
[null,"Attendance (students)","Classroom Teachers  ","Improving integration of academics and CTE",null,null,null,null,"Advertising Design   05163","Arts Comm Programs"]
[null,"CHART reports ","Instructional Coaches ","Skillbuilding for quality careers",null,null,null,null,"Aerospace   03208","Select One"]
[null,"College application, enrollment, and  completion","Certified Specialist Teachers (providing individualized instruction)  ","Upgrading/improving existing CTE programs",null,null,null,null,"Aerospace Engineering   21013","Design & Visual Communications  (cont.)"]
[null,"DART reports","Instructional Coordinators and Team Leaders  ","Other",null,null,null,null,"Aerospace Technology   21057","Graphic Communications  (cont.)"]
[null,"Discipline trends","Medical / Therapeutic Services ",null,null,null,null,null,"Agribusiness Management   18201","Radio & Television Broadcasting  (cont.)"]
[null,"District assessments","Librarians and Media Center Directors ",null,null,null,null,null,"Agribusiness—Independent Study   18247"]
[null,"District-sponsored research","Professional Development Directors/Coordinators  ",null,null,null,null,null,"Agribusiness—Other   18249","Bus Consumer Programs"]
[null,"Educator evaluation results","Guidance or School Adjustment Counselors, Social Workers  ",null,null,null,null,null,"Agribusiness—Work-based Experience   18248","Select One"]
[null,"Early Warning Indicator System (EWIS) reports","Psychological Service Providers ",null,null,null,null,null,"Agricultural Biotechnology   18308","Business  Technology  (cont.)"]
[null,"Learning walks/teacher observations","School Physicians and School Nurses  ",null,null,null,null,null,"Agricultural Entrepreneurship   18202","Cosmetology  (cont.)"]
[null,"MCAS results","Other  ",null,null,null,null,null,"Agricultural Leadership   18203","Fashion Technology  (cont.)"]
[null,"Peer-reviewed research","Support Staff Salaries",null,null,null,null,null,"Agricultural Mechanics and Construction—Independent Study   18447","Marketing/Finance (cont.)"]
[null,"Program enrollment","Select One",null,null,null,null,null,"Agricultural Mechanics and Construction—Other   18449"]
[null,"RADAR reports ","Non-Clerical Paraprofessionals/Instructional Assistants ",null,null,null,null,null,"Agricultural Mechanics and Construction—Work-based Experience   18448","Construction Programs"]
[null,"Student report cards","Secretary/Bookkeeper/Clerical Support  ",null,null,null,null,null,"Agricultural Processing   18302","Select One"]
[null,"School accountability ","Parent Liaisons",null,null,null,null,null,"Agricultural Production   18301","Building/Property Maintenance  (cont.)"]
[null,"Student Learning Experience reports"," Other ",null,null,null,null,null,"Agricultural Production and Processing—Independent Study   18347","Cabinetmaking  (cont.)"]
[null,"Survey  - School Climate (student)","Stipends",null,null,null,null,null,"Agricultural Production and Processing—Other   18349","Carpentry  (cont.)"]
[null,"Survey - School Climate (educator)","Select One",null,null,null,null,null,"Agricultural Production and Processing—Work-based Experience   18348","Construction Craft Laborer (cont.)"]
[null,"Surveys - Other","Teacher/ Instructional Staff Professional Days",null,null,null,null,null,"Agriculture and Natural Resources—Comprehensive   18003","Electricity (cont.)"]
[null,"Workforce outcomes ","Administrators ",null,null,null,null,null,"Agriculture and Society   18307","Heating — Ventilation  — Air Conditioning — Refrigeration (cont.)"]
[null,"Other","Other ",null,null,null,null,null,"Agriculture Computers and Technology   18205","Masonry & Tile Setting (cont.)"]
[null,null,"Support Staff",null,null,null,null,null,"Agriculture Mechanics and Equipment   18402","Painting & Design Technologies (cont.) "]
[null,null,"Travel",null,null,null,null,null,"Agriculture Mechanics/Equipment/Structures   18401","Plumbing (Chapter 74 only) (cont.)"]
[null,null,"Select One",null,null,null,null,null,"Agriculture Structures   18403","Sheet Metalworking (cont.)"]
[null,null,"Grant Program Manager/Coordinator (supervisory)",null,null,null,null,null,"Agriculture Welding   18404"]
[null,null,"Certified Classroom Teachers (providing group instruction) ",null,null,null,null,null,"Agriculture, Food, and Natural Resources—Aide   18995","Education Programs"]
[null,null,"Certified Specialist Teachers (providing individualized instruction)",null,null,null,null,null,"Agriculture, Food, and Natural Resources—Independent Study   18997","Select One"]
[null,null,"Non-Clerical Paraprofessionals/Instructional Assistants",null,null,null,null,null,"Agriculture, Food, and Natural Resources—Other   18999","Early Education and Care  (cont.)"]
[null,null,"Other ",null,null,null,null,null,"Agriculture, Food, and Natural Resources—Work-based Experience   18998","Family & Consumer Studies (formerly vocational home economics) (cont.)"]
[null,null,"Contractual Services",null,null,null,null,null,"Agriculture—Comprehensive   18002"]
[null,null,"Select One",null,null,null,null,null,"Air Conditioning   17051","Health Services Programs"]
[null,null,"Instructional Services ",null,null,null,null,null,"Air Conditioning, Heating, and Plumbing—Independent Study   17097","Select One"]
[null,null,"Consultants/Professional  Development for Teachers & Support Staff ",null,null,null,null,null,"Air Conditioning, Heating, and Plumbing—Other   17099","Dental Assisting  (cont.)"]
[null,null,"Substitutes (long and/or short term)",null,null,null,null,null,"Air Conditioning, Heating, and Plumbing—Workplace Experience   17098","Health Assisting  (cont.)"]
[null,null,"Non-Clerical Paraprofessionals/Instructional Assistants",null,null,null,null,null,"Air Conditioning, Heating, and Refrigeration   17055","Medical Assisting (cont.)"]
[null,null,"Secretary/Bookkeeper/Clerical Support ",null,null,null,null,null,"Air Conditioning/Refrigeration   17054"]
[null,null,"Contracted Service Providers -- Private School Services ",null,null,null,null,null,"Aircraft Airframe   20114","Hospitality Programs"]
[null,null,"Contracted Services Providers -- Other Student Services ",null,null,null,null,null,"Aircraft Power Plant   20113","Select One"]
[null,null,"Other ",null,null,null,null,null,"Alternative Energy   18506","Culinary Arts (cont.)"]
[null,null,"Supplies and Materials",null,null,null,null,null,"Analog and Digital Circuits   17110","Hospitality Management  (cont.)"]
[null,null,"Select One",null,null,null,null,null,"Analog Circuits   17111"]
[null,null,"Textbooks and Related Software/Media/Materials ",null,null,null,null,null,"Anatomy   03054","Information Tech Programs"]
[null,null,"Instructional Technology",null,null,null,null,null,"Anatomy and Physiology   03053","Select One"]
[null,null,"Other Instructional Materials (non-testing/assessment)",null,null,null,null,null,"Animal Genetics   18108","Information Support Services & Networking (cont.)"]
[null,null,"Testing and Assessment Materials",null,null,null,null,null,"Animal Nutrition   18107","Programming & Web Development (cont.)"]
[null,null,"General Classroom Supplies ",null,null,null,null,null,"Animal Processing   18304"]
[null,null,"Office Supplies  ",null,null,null,null,null,"Animal Production/Science   18101","Law Justice Programs"]
[null,null,"Other ",null,null,null,null,null,"Animal Systems—Independent Study   18147","Select One"]
[null,null,"Other costs",null,null,null,null,null,"Animal Systems—Other   18149","Criminal Justice (cont.)"]
[null,null,"Select One",null,null,null,null,null,"Animal Systems—Work-based Experience   18148"]
[null,null,"Memberships/Subscriptions",null,null,null,null,null,"Animation   05177","Manuf Engin Tech Programs"]
[null,null,"Advertising  ",null,null,null,null,null,"Anthropology   04251","Select One"]
[null,null,"Student Transportation Services ",null,null,null,null,null,"AP Art—History of Art   05153","Biotechnology (cont.)"]
[null,null," Rental/Lease of Equipment",null,null,null,null,null,"AP Biology   03056","Drafting  (cont.)"]
[null,null,"Maintenance of Equipment",null,null,null,null,null,"AP Chemistry   03106","Electronics (cont.)"]
[null,null,"Maintenance of Technology ",null,null,null,null,null,"AP Computer Science A   10158","Engineering Technology (cont.)"]
[null,null,"Tuition to Non-Public Schools ",null,null,null,null,null,"AP Computer Science Principles   10019","Machine Tool Technology (cont.)"]
[null,null,"Tuition to Out-of-State Schools ",null,null,null,null,null,"AP Environmental Science   03006","Metal Fabrication & Joining Technologies  (cont.)"]
[null,null,"Tuition to Collaboratives",null,null,null,null,null,"AP Macroeconomics   04204","Robotics and Automation Technology (cont.)"]
[null,null,"Rental Lease of Buildings  ",null,null,null,null,null,"AP Microeconomics   04203","Stationary Engineering  (cont.)"]
[null,null,"Utility Services/ Telephone ",null,null,null,null,null,"AP Music Theory   05115","Telecommunications — Fiber Optics  (cont.)"]
[null,null,"Other  ",null,null,null,null,null,"AP Physics 1   03165"]
[null,null,null,null,null,null,null,null,"AP Physics 2   03166","Other"]
[null,null,null,null,null,null,null,null,"AP Physics C—Electricity and Magnetism   03163","Select One"]
[null,null,null,null,null,null,null,null,"AP Physics C—Mechanics   03164","Exploratory  (cont.)"]
[null,null,null,null,null,null,null,null,"AP Psychology   04256"]
[null,null,null,null,null,null,null,null,"AP Studio Art—Drawing Portfo-lio   05172","Transportation"]
[null,null,null,null,null,null,null,null,"AP Studio Art—Three-Dimensional   05175","Select One"]
[null,null,null,null,null,null,null,null,"AP Studio Art—Two-Dimensional   05174","Automotive Collision Repair & Refinishing "]
[null,null,null,null,null,null,null,null,"Apparel and Furnishings—Independent Study   19297","Automotive Technology "]
[null,null,null,null,null,null,null,null,"Apparel and Furnishings—Other   19299","Aviation"]
[null,null,null,null,null,null,null,null,"Apparel and Furnishings—Workplace Experience   19298","Diesel Technology"]
[null,null,null,null,null,null,null,null,"Apparel and Textile Services   19204","Marine Service Technology"]
[null,null,null,null,null,null,null,null,"Apparel Construction   19203","Power Equipment Technology"]
[null,null,null,null,null,null,null,null,"Appliance Repair   13301"]
[null,null,null,null,null,null,null,null,"Applied Biology/Chemistry   03203"]
[null,null,null,null,null,null,null,null,"Applied English and Communications   01156"]
[null,null,null,null,null,null,null,null,"Aquaculture   18306"]
[null,null,null,null,null,null,null,null,"Architectural Design   05192"]
[null,null,null,null,null,null,null,null,"Architecture and Construction—Aide   17995"]
[null,null,null,null,null,null,null,null,"Architecture and Construction—Independent Study   17997"]
[null,null,null,null,null,null,null,null,"Architecture and Construction—Other   17999"]
[null,null,null,null,null,null,null,null,"Architecture and Construction—Workplace Experience   17998"]
[null,null,null,null,null,null,null,null,"Area Network Design and Protocols   10103"]
[null,null,null,null,null,null,null,null,"Art Appreciation   05151"]
[null,null,null,null,null,null,null,null,"Art History   05152"]
[null,null,null,null,null,null,null,null,"Art Portfolio   05170"]
[null,null,null,null,null,null,null,null,"Assessing Technology   21055"]
[null,null,null,null,null,null,null,null,"Astronomy   03004"]
[null,null,null,null,null,null,null,null,"Audio/Video Technology and Film—Independent Study   11097"]
[null,null,null,null,null,null,null,null,"Audio/Video Technology and Film—Other   11099"]
[null,null,null,null,null,null,null,null,"Audio/Video Technology and Film—Workplace Experience   11098"]
[null,null,null,null,null,null,null,null,"Audio/Visual Production   11051"]
[null,null,null,null,null,null,null,null,"Automotive Body Repair and Refinishing—Comprehensive   20116"]
[null,null,null,null,null,null,null,null,"Automotive Detailing and Reconditioning   20115"]
[null,null,null,null,null,null,null,null,"Automotive Mechanics—Comprehensive   20104"]
[null,null,null,null,null,null,null,null,"Automotive Service   20106"]
[null,null,null,null,null,null,null,null,"Aviation   20053"]
[null,null,null,null,null,null,null,null,"Banking   12102"]
[null,null,null,null,null,null,null,null,"Banking and Finance   12101"]
[null,null,null,null,null,null,null,null,"Barbering   19102"]
[null,null,null,null,null,null,null,null,"Biological Applications in Agriculture   18004"]
[null,null,null,null,null,null,null,null,"Biology   03051"]
[null,null,null,null,null,null,null,null,"Biology—Advanced Studies   03052"]
[null,null,null,null,null,null,null,null,"Biology—Independent Study   03097"]
[null,null,null,null,null,null,null,null,"Biology—Other   03099"]
[null,null,null,null,null,null,null,null,"Biology—Workplace Experience   03098"]
[null,null,null,null,null,null,null,null,"Biomedical Innovation   14255"]
[null,null,null,null,null,null,null,null,"Biotechnical Engineering   21014"]
[null,null,null,null,null,null,null,null,"Biotechnology   14252"]
[null,null,null,null,null,null,null,null,"Blueprint Reading   21108"]
[null,null,null,null,null,null,null,null,"Boat Operation   20054"]
[null,null,null,null,null,null,null,null,"Boat Repair/Refinishing   20118"]
[null,null,null,null,null,null,null,null,"Botany   03058"]
[null,null,null,null,null,null,null,null,"Broadcasting Technology   11103"]
[null,null,null,null,null,null,null,null,"Building Maintenance   17009"]
[null,null,null,null,null,null,null,null,"Business and Marketing—Aide   12995"]
[null,null,null,null,null,null,null,null,"Business and Marketing—Independent Study   12997"]
[null,null,null,null,null,null,null,null,"Business and Marketing—Other   12999"]
[null,null,null,null,null,null,null,null,"Business and Marketing—Workplace Experience   12998"]
[null,null,null,null,null,null,null,null,"Business Communications   12009"]
[null,null,null,null,null,null,null,null,"Business Computer Applications   10005"]
[null,null,null,null,null,null,null,null,"Business Economics   12105"]
[null,null,null,null,null,null,null,null,"Business Ethics   12060"]
[null,null,null,null,null,null,null,null,"Business Law   04164"]
[null,null,null,null,null,null,null,null,"Business Law (Business and Marketing )   12054"]
[null,null,null,null,null,null,null,null,"Business Management   12052"]
[null,null,null,null,null,null,null,null,"Business Math   02154"]
[null,null,null,null,null,null,null,null,"Business Math with Algebra    02155"]
[null,null,null,null,null,null,null,null,"Business Principles and Management    12055"]
[null,null,null,null,null,null,null,null,"Business Programming   10151"]
[null,null,null,null,null,null,null,null,"Business/Office Career Exploration   12001"]
[null,null,null,null,null,null,null,null,"C++ Programming   10154"]
[null,null,null,null,null,null,null,null,"Cabinetmaking   17007"]
[null,null,null,null,null,null,null,null,"CAD Design and Software   21107"]
[null,null,null,null,null,null,null,null,"Calligraphy/Lettering   05176"]
[null,null,null,null,null,null,null,null,"Care of Athletes   14062"]
[null,null,null,null,null,null,null,null,"Career Exploration   22151"]
[null,null,null,null,null,null,null,null,"Caregiving Service   19054"]
[null,null,null,null,null,null,null,null,"Carpentry   17003"]
[null,null,null,null,null,null,null,null,"Cashier/Checker Operations   12201"]
[null,null,null,null,null,null,null,null,"Central Service Technology   14201"]
[null,null,null,null,null,null,null,null,"Ceramic Processing/ Production   13057"]
[null,null,null,null,null,null,null,null,"Ceramics/Pottery   05159"]
[null,null,null,null,null,null,null,null,"Chemistry   03101"]
[null,null,null,null,null,null,null,null,"Chemistry—Advanced Studies   03102"]
[null,null,null,null,null,null,null,null,"Chemistry—Independent Study   03147"]
[null,null,null,null,null,null,null,null,"Chemistry—Other   03149"]
[null,null,null,null,null,null,null,null,"Chemistry—Workplace Experience   03148"]
[null,null,null,null,null,null,null,null,"Child and Elder Care—Independent Study   19097"]
[null,null,null,null,null,null,null,null,"Child and Elder Care—Other   19099"]
[null,null,null,null,null,null,null,null,"Child and Elder Care—Workplace Experience   19098"]
[null,null,null,null,null,null,null,null,"Child Care   19051"]
[null,null,null,null,null,null,null,null,"Child Development   19052"]
[null,null,null,null,null,null,null,null,"Child Development/Parenting   22204"]
[null,null,null,null,null,null,null,null,"Choreography    05005"]
[null,null,null,null,null,null,null,null,"Chorus   05111"]
[null,null,null,null,null,null,null,null,"CISCO—The Panduit Network Infrastructure Essentials (PNIE)   10255"]
[null,null,null,null,null,null,null,null,"Civics   04161"]
[null,null,null,null,null,null,null,null,"Civil Engineering   21011"]
[null,null,null,null,null,null,null,null,"Civil Engineering and Architecture   21012"]
[null,null,null,null,null,null,null,null,"Clothing and Textiles   19201"]
[null,null,null,null,null,null,null,null,"Clothing/Sewing   22205"]
[null,null,null,null,null,null,null,null,"Clothing/Textile Maintenance   19202"]
[null,null,null,null,null,null,null,null,"Commercial Construction   17013"]
[null,null,null,null,null,null,null,null,"Commercial Graphic Design   11154"]
[null,null,null,null,null,null,null,null,"Commercial Photography   11052"]
[null,null,null,null,null,null,null,null,"Communication and Audio/Video Technology— Independent Study   11997"]
[null,null,null,null,null,null,null,null,"Communication and Audio/Video Technology— Workplace Experience   11998"]
[null,null,null,null,null,null,null,null,"Communication and Audio/Video Technology—Aide   11995"]
[null,null,null,null,null,null,null,null,"Communication and Audio/Video Technology—Other   11999"]
[null,null,null,null,null,null,null,null,"Communication— Independent Study   11047"]
[null,null,null,null,null,null,null,null,"Communication— Other   11049"]
[null,null,null,null,null,null,null,null,"Communication Technology   11002"]
[null,null,null,null,null,null,null,null,"Communication— Workplace Experience   11048"]
[null,null,null,null,null,null,null,null,"Communications   01155"]
[null,null,null,null,null,null,null,null,"Community Health   08053"]
[null,null,null,null,null,null,null,null,"Community Protection   15202"]
[null,null,null,null,null,null,null,null,"Comparative Economics   04202"]
[null,null,null,null,null,null,null,null,"Composition/Songwriting   05120"]
[null,null,null,null,null,null,null,null,"Composition—Workplace Experience   01148"]
[null,null,null,null,null,null,null,null,"Computer and Information Sciences— Independent Study   10997"]
[null,null,null,null,null,null,null,null,"Computer and Information Sciences— Workplace Experience   10998"]
[null,null,null,null,null,null,null,null,"Computer and Information Sciences—Aide   10995"]
[null,null,null,null,null,null,null,null,"Computer and Information Sciences—Other   10999"]
[null,null,null,null,null,null,null,null,"Computer and Information Technology   10003"]
[null,null,null,null,null,null,null,null,"Computer Applications   10004"]
[null,null,null,null,null,null,null,null,"Computer Forensics   10301"]
[null,null,null,null,null,null,null,null,"Computer Gaming and Design   10205"]
[null,null,null,null,null,null,null,null,"Computer Graphics   10202"]
[null,null,null,null,null,null,null,null,"Computer Integrated Manufacturing   21010"]
[null,null,null,null,null,null,null,null,"Computer Literacy— Independent Study   10047"]
[null,null,null,null,null,null,null,null,"Computer Literacy— Workplace Experience   10048"]
[null,null,null,null,null,null,null,null,"Computer Literacy—Other   10049"]
[null,null,null,null,null,null,null,null,"Computer Maintenance    10252"]
[null,null,null,null,null,null,null,null,"Computer Math with Algebra   02156"]
[null,null,null,null,null,null,null,null,"Computer Programming   10152"]
[null,null,null,null,null,null,null,null,"Computer Programming— Independent Study   10197"]
[null,null,null,null,null,null,null,null,"Computer Programming— Other   10199"]
[null,null,null,null,null,null,null,null,"Computer Programming— Other Language   10156"]
[null,null,null,null,null,null,null,null,"Computer Programming— Workplace Experience   10198"]
[null,null,null,null,null,null,null,null,"Computer Science Principles   10011"]
[null,null,null,null,null,null,null,null,"Computer Technology   10251"]
[null,null,null,null,null,null,null,null,"Computer-Assisted Art   05169"]
[null,null,null,null,null,null,null,null,"Computing Systems   10002"]
[null,null,null,null,null,null,null,null,"Conceptual Biology   03062"]
[null,null,null,null,null,null,null,null,"Conceptual Chemistry   03105"]
[null,null,null,null,null,null,null,null,"Conceptual Physics   03161"]
[null,null,null,null,null,null,null,null,"Concert Band   05103"]
[null,null,null,null,null,null,null,null,"Concrete Foundations   17014"]
[null,null,null,null,null,null,null,null,"Construction   17002"]
[null,null,null,null,null,null,null,null,"Construction Careers Exploration   17001"]
[null,null,null,null,null,null,null,null,"Construction Estimating   17015"]
[null,null,null,null,null,null,null,null,"Construction Management   17016"]
[null,null,null,null,null,null,null,null,"Consumer Economics/Personal Finance   22210"]
[null,null,null,null,null,null,null,null,"Consumer Law   04163"]
[null,null,null,null,null,null,null,null,"Consumer Math   02157"]
[null,null,null,null,null,null,null,null,"Contemporary Band   05106"]
[null,null,null,null,null,null,null,null,"Contemporary Vocal Ensemble   05121"]
[null,null,null,null,null,null,null,null,"Corrections   15052"]
[null,null,null,null,null,null,null,null,"Cosmetology—Facial Specialization   19106"]
[null,null,null,null,null,null,null,null,"Cosmetology—Independent Study   19147"]
[null,null,null,null,null,null,null,null,"Cosmetology—Licensing   19101"]
[null,null,null,null,null,null,null,null,"Cosmetology—Nail Specialization   19105"]
[null,null,null,null,null,null,null,null,"Cosmetology—Non-licensing   19104"]
[null,null,null,null,null,null,null,null,"Cosmetology—Other   19149"]
[null,null,null,null,null,null,null,null,"Cosmetology—Workplace Experience   19148"]
[null,null,null,null,null,null,null,null,"Cost Accounting   12108"]
[null,null,null,null,null,null,null,null,"Counseling and Mental Health   19301"]
[null,null,null,null,null,null,null,null,"Crafts   05165"]
[null,null,null,null,null,null,null,null,"Creative Art—Comprehensive   05154"]
[null,null,null,null,null,null,null,null,"Creative Art—Drawing   05156"]
[null,null,null,null,null,null,null,null,"Creative Art—Drawing/Painting   05155"]
[null,null,null,null,null,null,null,null,"Creative Art—Painting   05157"]
[null,null,null,null,null,null,null,null,"Creative Art—Sculpture   05158"]
[null,null,null,null,null,null,null,null,"Crime Scene Management   15056"]
[null,null,null,null,null,null,null,null,"Criminal Justice   15051"]
[null,null,null,null,null,null,null,null,"Criminal Law and Procedures   15057"]
[null,null,null,null,null,null,null,null,"Culinary Art Specialty   16056"]
[null,null,null,null,null,null,null,null,"Culturally Influenced Ensemble   05122"]
[null,null,null,null,null,null,null,null,"Cyber Crime   10302"]
[null,null,null,null,null,null,null,null,"Dance Appreciation   05004"]
[null,null,null,null,null,null,null,null,"Dance Composition/Composition Seminar   05011"]
[null,null,null,null,null,null,null,null,"Dance Improvisation   05007"]
[null,null,null,null,null,null,null,null,"Dance Repertory   05002"]
[null,null,null,null,null,null,null,null,"Dance Survey   05006"]
[null,null,null,null,null,null,null,null,"Dance Technique   05001"]
[null,null,null,null,null,null,null,null,"Dance—Independent Study   05047"]
[null,null,null,null,null,null,null,null,"Dance—Other   05049"]
[null,null,null,null,null,null,null,null,"Dance—Workplace Experience   05048"]
[null,null,null,null,null,null,null,null,"Data Systems/ Processing   10054"]
[null,null,null,null,null,null,null,null,"Database Applications   10053"]
[null,null,null,null,null,null,null,null,"Database Management and Data Warehousing   10052"]
[null,null,null,null,null,null,null,null,"Dental Laboratory Technology   14101"]
[null,null,null,null,null,null,null,null,"Dental Science   14054"]
[null,null,null,null,null,null,null,null,"Desktop Publishing   11152"]
[null,null,null,null,null,null,null,null,"Diagnostic Services—Independent Study   14147"]
[null,null,null,null,null,null,null,null,"Diagnostic Services—Other   14149"]
[null,null,null,null,null,null,null,null,"Diagnostic Services—Workplace Experience   14148"]
[null,null,null,null,null,null,null,null,"Diesel Mechanics—Comprehensive   20107"]
[null,null,null,null,null,null,null,null,"Digital Circuits   17112"]
[null,null,null,null,null,null,null,null,"Digital Electronics   21008"]
[null,null,null,null,null,null,null,null,"Digital Media Design and Production   11153"]
[null,null,null,null,null,null,null,null,"Digital Media Technology   11151"]
[null,null,null,null,null,null,null,null,"Directing   05057"]
[null,null,null,null,null,null,null,null,"Distribution and Logistics—Independent Study   20197"]
[null,null,null,null,null,null,null,null,"Distribution and Logistics—Other   20199"]
[null,null,null,null,null,null,null,null,"Distribution and Logistics—Workplace Experience   20198"]
[null,null,null,null,null,null,null,null,"Distribution—Comprehensive   20151"]
[null,null,null,null,null,null,null,null,"Diversified Occupations   22153"]
[null,null,null,null,null,null,null,null,"Drafting Careers Exploration   21101"]
[null,null,null,null,null,null,null,null,"Drafting—Architectural   21103"]
[null,null,null,null,null,null,null,null,"Drafting—Civil/Structural   21104"]
[null,null,null,null,null,null,null,null,"Drafting—Electrical/Electronic   21105"]
[null,null,null,null,null,null,null,null,"Drafting—General   21102"]
[null,null,null,null,null,null,null,null,"Drafting—Independent Study   21147"]
[null,null,null,null,null,null,null,null,"Drafting—Other   21149"]
[null,null,null,null,null,null,null,null,"Drafting—Technical/Mechanical   21106"]
[null,null,null,null,null,null,null,null,"Drafting—Workplace Experience   21148"]
[null,null,null,null,null,null,null,null,"Drama/Stagecraft—Comprehensive   05053"]
[null,null,null,null,null,null,null,null,"Drama—Acting/Performance   05055"]
[null,null,null,null,null,null,null,null,"Drama—Independent Study   05097"]
[null,null,null,null,null,null,null,null,"Drama—Other   05099"]
[null,null,null,null,null,null,null,null,"Drama—Stagecraft   05056"]
[null,null,null,null,null,null,null,null,"Drama—Workplace Experience   05098"]
[null,null,null,null,null,null,null,null,"Early Childhood Education   19153"]
[null,null,null,null,null,null,null,null,"Earth and Space Science   03009"]
[null,null,null,null,null,null,null,null,"Earth Science   03001"]
[null,null,null,null,null,null,null,null,"Earth Science—Independent Study   03047"]
[null,null,null,null,null,null,null,null,"Earth Science—Other   03049"]
[null,null,null,null,null,null,null,null,"Earth Science—Workplace Experience   03048"]
[null,null,null,null,null,null,null,null,"Economics   04201"]
[null,null,null,null,null,null,null,null,"Economics—Independent Study   04247"]
[null,null,null,null,null,null,null,null,"Economics—Other   04249"]
[null,null,null,null,null,null,null,null,"Economics—Workplace Experience   04248"]
[null,null,null,null,null,null,null,null,"Eco-tourism   16154"]
[null,null,null,null,null,null,null,null,"Educational Methodology   19152"]
[null,null,null,null,null,null,null,null,"Education—Independent Study   19197"]
[null,null,null,null,null,null,null,null,"Education—Other   19199"]
[null,null,null,null,null,null,null,null,"Education—Workplace Experience   19198"]
[null,null,null,null,null,null,null,null,"EKG Technology   14103"]
[null,null,null,null,null,null,null,null,"Elder Care   19053"]
[null,null,null,null,null,null,null,null,"Electricity/Electronics—General   17108"]
[null,null,null,null,null,null,null,null,"Electricity/Electronics—Independent Study   17147"]
[null,null,null,null,null,null,null,null,"Electricity/Electronics—Other   17149"]
[null,null,null,null,null,null,null,null,"Electricity/Electronics—Workplace Experience   17148"]
[null,null,null,null,null,null,null,null,"Electricity—Comprehensive   17102"]
[null,null,null,null,null,null,null,null,"Electro-Mechanical Systems   13102"]
[null,null,null,null,null,null,null,null,"Electronics—Comprehensive   17106"]
[null,null,null,null,null,null,null,null,"Emergency Medical Technology   14055"]
[null,null,null,null,null,null,null,null,"Emerging Technologies   21053"]
[null,null,null,null,null,null,null,null,"Emerging Technologies in Journalism   11106"]
[null,null,null,null,null,null,null,null,"Employability Skills   22152"]
[null,null,null,null,null,null,null,null,"Energy/Power   20101"]
[null,null,null,null,null,null,null,null,"Engineering Analysis   21016"]
[null,null,null,null,null,null,null,null,"Engineering and Technology—Aide   21995"]
[null,null,null,null,null,null,null,null,"Engineering and Technology—Independent Study   21997"]
[null,null,null,null,null,null,null,null,"Engineering and Technology—Other   21999"]
[null,null,null,null,null,null,null,null,"Engineering and Technology—Workplace Experience   21998"]
[null,null,null,null,null,null,null,null,"Engineering Applications   21002"]
[null,null,null,null,null,null,null,null,"Engineering Design   21006"]
[null,null,null,null,null,null,null,null,"Engineering Design and Development   21007"]
[null,null,null,null,null,null,null,null,"Engineering Technology   21003"]
[null,null,null,null,null,null,null,null,"Engineering—Comprehensive   21005"]
[null,null,null,null,null,null,null,null,"Engineering—Independent Study   21047"]
[null,null,null,null,null,null,null,null,"Engineering—Other   21049"]
[null,null,null,null,null,null,null,null,"Engineering—Workplace Experience   21048"]
[null,null,null,null,null,null,null,null,"English Language and Literature—Aide   01995"]
[null,null,null,null,null,null,null,null,"English Language and Literature—Workplace Experience   01998"]
[null,null,null,null,null,null,null,null,"Entrepreneurship   12053"]
[null,null,null,null,null,null,null,null,"Environmental Science   03003"]
[null,null,null,null,null,null,null,null,"Equine Science   18104"]
[null,null,null,null,null,null,null,null,"Equipment Maintenance and Repair   13302"]
[null,null,null,null,null,null,null,null,"Essentials of Network Operating Systems   10109"]
[null,null,null,null,null,null,null,null,"Ethics in Criminal Justice   15058"]
[null,null,null,null,null,null,null,null,"Exploration in Drama   05054"]
[null,null,null,null,null,null,null,null,"Exploration of Electricity/Electronics   17101"]
[null,null,null,null,null,null,null,null,"Exploration of Health Care Occupations   14001"]
[null,null,null,null,null,null,null,null,"Exploration of Hospitality Careers   16001"]
[null,null,null,null,null,null,null,null,"Exploration of Lodging Careers   16101"]
[null,null,null,null,null,null,null,null,"Exploration of Manufacturing Occupations   13001"]
[null,null,null,null,null,null,null,null,"Exploration of Public Service Careers   15001"]
[null,null,null,null,null,null,null,null,"Exploration of Recreation, Amusement, and Attractions   16201"]
[null,null,null,null,null,null,null,null,"Exploration of Restaurant, Food, and Beverage Services   16051"]
[null,null,null,null,null,null,null,null,"Exploration of Transportation, Distribution, and Logistics   20001"]
[null,null,null,null,null,null,null,null,"Exploring Computer Science   10012"]
[null,null,null,null,null,null,null,null,"Expressive Movement   05003"]
[null,null,null,null,null,null,null,null,"Family and Consumer Science—Aide   22245"]
[null,null,null,null,null,null,null,null,"Family and Consumer Science—Comprehensive   22201"]
[null,null,null,null,null,null,null,null,"Family and Consumer Science—Independent Study   22247"]
[null,null,null,null,null,null,null,null,"Family and Consumer Science—Other   22249"]
[null,null,null,null,null,null,null,null,"Family Living   22208"]
[null,null,null,null,null,null,null,null,"Fashion Design   05190"]
[null,null,null,null,null,null,null,null,"Film/Videotape   05168"]
[null,null,null,null,null,null,null,null,"Finance   12103"]
[null,null,null,null,null,null,null,null,"Finance—Independent Study   12147"]
[null,null,null,null,null,null,null,null,"Finance—Other   12149"]
[null,null,null,null,null,null,null,null,"Finance—Workplace Experience   12148"]
[null,null,null,null,null,null,null,null,"Fine and Performing Art—Aide   05295"]
[null,null,null,null,null,null,null,null,"Fine and Performing Art—Independent Study   05297"]
[null,null,null,null,null,null,null,null,"Fine and Performing Art—Other   05299"]
[null,null,null,null,null,null,null,null,"Fine and Performing Art—Workplace Experience   05298"]
[null,null,null,null,null,null,null,null,"Fire Fighting   15152"]
[null,null,null,null,null,null,null,null,"Fire Management—Independent Study   15197"]
[null,null,null,null,null,null,null,null,"Fire Management—Other   15199"]
[null,null,null,null,null,null,null,null,"Fire Management—Workplace Experience   15198"]
[null,null,null,null,null,null,null,null,"Fire Science   15151"]
[null,null,null,null,null,null,null,null,"Food and Nutrition   22202"]
[null,null,null,null,null,null,null,null,"Food Product Processing   18305"]
[null,null,null,null,null,null,null,null,"Food Science   22203"]
[null,null,null,null,null,null,null,null,"Food Service   16053"]
[null,null,null,null,null,null,null,null,"Forensic Science   15055"]
[null,null,null,null,null,null,null,null,"Forensics—Debate   01153"]
[null,null,null,null,null,null,null,null,"Forensics—Inclusive   01152"]
[null,null,null,null,null,null,null,null,"Forensics—Individual Event   01154"]
[null,null,null,null,null,null,null,null,"Forestry   18502"]
[null,null,null,null,null,null,null,null,"Forestry Harvesting   18503"]
[null,null,null,null,null,null,null,null,"Framing Carpentry   17004"]
[null,null,null,null,null,null,null,null,"General Applied Math   02151"]
[null,null,null,null,null,null,null,null,"General Band   05101"]
[null,null,null,null,null,null,null,null,"General Construction—Independent Study   17047"]
[null,null,null,null,null,null,null,null,"General Construction—Other   17049"]
[null,null,null,null,null,null,null,null,"General Construction—Workplace Experience   17048"]
[null,null,null,null,null,null,null,null,"General Horticulture   18052"]
[null,null,null,null,null,null,null,null,"Genetics   03059"]
[null,null,null,null,null,null,null,null,"Geography—Workplace Experience   04048"]
[null,null,null,null,null,null,null,null,"Geology   03002"]
[null,null,null,null,null,null,null,null,"Gerontology   14059"]
[null,null,null,null,null,null,null,null,"Government Service—Independent Study   15247"]
[null,null,null,null,null,null,null,null,"Government Service—Other   15249"]
[null,null,null,null,null,null,null,null,"Government Service—Workplace Experience   15248"]
[null,null,null,null,null,null,null,null,"Government, Politics, and Law—Independent Study   04197"]
[null,null,null,null,null,null,null,null,"Government, Politics, and Law—Other   04199"]
[null,null,null,null,null,null,null,null,"Government, Politics, and Law—Workplace Experience   04198"]
[null,null,null,null,null,null,null,null,"Graphic Design   05162"]
[null,null,null,null,null,null,null,null,"Graphic Technology   11155"]
[null,null,null,null,null,null,null,null,"Guidance Aide   22052"]
[null,null,null,null,null,null,null,null,"Guitar   05109"]
[null,null,null,null,null,null,null,null,"Hair Styling   19103"]
[null,null,null,null,null,null,null,null,"Health and Fitness   08052"]
[null,null,null,null,null,null,null,null,"Health and Life Management   08057"]
[null,null,null,null,null,null,null,null,"Health Care Occupations—Comprehensive   14002"]
[null,null,null,null,null,null,null,null,"Health Care Sciences—Aide   14995"]
[null,null,null,null,null,null,null,null,"Health Care Sciences—Independent Study   14997"]
[null,null,null,null,null,null,null,null,"Health Care Sciences—Other   14999"]
[null,null,null,null,null,null,null,null,"Health Care Sciences—Workplace Experience   14998"]
[null,null,null,null,null,null,null,null,"Health Education   08051"]
[null,null,null,null,null,null,null,null,"Health Education—Independent Study   08097"]
[null,null,null,null,null,null,null,null,"Health Education—Other   08099"]
[null,null,null,null,null,null,null,null,"Health Education—Workplace Experience   08098"]
[null,null,null,null,null,null,null,null,"Health for Parenting Teens   08056"]
[null,null,null,null,null,null,null,null,"Health Informatics and Data Management   14157"]
[null,null,null,null,null,null,null,null,"Health Information—Independent Study   14197"]
[null,null,null,null,null,null,null,null,"Health Information—Other   14199"]
[null,null,null,null,null,null,null,null,"Health Information—Workplace Experience   14198"]
[null,null,null,null,null,null,null,null,"Health Science   14251"]
[null,null,null,null,null,null,null,null,"Health Sciences—Independent Study   14297"]
[null,null,null,null,null,null,null,null,"Health Sciences—Other   14299"]
[null,null,null,null,null,null,null,null,"Health Sciences—Workplace Experience   14298"]
[null,null,null,null,null,null,null,null,"Health Support Services   14202"]
[null,null,null,null,null,null,null,null,"Health Support Services—Independent Study   14247"]
[null,null,null,null,null,null,null,null,"Health Support Services—Other   14249"]
[null,null,null,null,null,null,null,null,"Health Support Services—Workplace Experience   14248"]
[null,null,null,null,null,null,null,null,"Health Unit Coordination   14203"]
[null,null,null,null,null,null,null,null,"Health/Drivers’ Education   08203"]
[null,null,null,null,null,null,null,null,"Heating   17053"]
[null,null,null,null,null,null,null,null,"Heating, Ventilation, and Air Conditioning   17056"]
[null,null,null,null,null,null,null,null,"Heavy Equipment Mechanics   20112"]
[null,null,null,null,null,null,null,null,"Heavy Equipment Operation   20052"]
[null,null,null,null,null,null,null,null,"History and Literature of the Theater   05059"]
[null,null,null,null,null,null,null,null,"Home Décor   22211"]
[null,null,null,null,null,null,null,null,"Home Furnishing   19205"]
[null,null,null,null,null,null,null,null,"Home Furnishings Production   19206"]
[null,null,null,null,null,null,null,null,"Home Health Care   14053"]
[null,null,null,null,null,null,null,null,"Home Maintenance   17010"]
[null,null,null,null,null,null,null,null,"Home Maintenance(Family Consumer Science)   22212"]
[null,null,null,null,null,null,null,null,"Hospitality and Tourism—Aide   16995"]
[null,null,null,null,null,null,null,null,"Hospitality and Tourism—Independent Study   16997"]
[null,null,null,null,null,null,null,null,"Hospitality and Tourism—Other   16999"]
[null,null,null,null,null,null,null,null,"Hospitality and Tourism—Workplace Experience   16998"]
[null,null,null,null,null,null,null,null,"Human Resources and Labor Relations   12057"]
[null,null,null,null,null,null,null,null,"Human Resources Management   12058"]
[null,null,null,null,null,null,null,null,"Human Services—Aide   19995"]
[null,null,null,null,null,null,null,null,"Human Services—Independent Study   19997"]
[null,null,null,null,null,null,null,null,"Human Services—Other   19999"]
[null,null,null,null,null,null,null,null,"Human Services—Workplace Experience   19998"]
[null,null,null,null,null,null,null,null,"Humanities   04302"]
[null,null,null,null,null,null,null,null,"Humanities Survey   04301"]
[null,null,null,null,null,null,null,null,"Humanities—Independent Study   04347"]
[null,null,null,null,null,null,null,null,"Humanities—Other   04349"]
[null,null,null,null,null,null,null,null,"Humanities—Workplace Experience   04348"]
[null,null,null,null,null,null,null,null,"Hybrid Engines   20119"]
[null,null,null,null,null,null,null,null,"IB Art/Design   05173"]
[null,null,null,null,null,null,null,null,"IB Biology   03057"]
[null,null,null,null,null,null,null,null,"IB Chemistry   03107"]
[null,null,null,null,null,null,null,null,"IB Computing Studies   10160"]
[null,null,null,null,null,null,null,null,"IB Dance   05012"]
[null,null,null,null,null,null,null,null,"IB Design Technology   03206"]
[null,null,null,null,null,null,null,null,"IB Economics   04206"]
[null,null,null,null,null,null,null,null,"IB Information Technology in a Global Society   10007"]
[null,null,null,null,null,null,null,null,"IB Music   05116"]
[null,null,null,null,null,null,null,null,"IB Organization Studies   04262"]
[null,null,null,null,null,null,null,null,"IB Physical Science   03160"]
[null,null,null,null,null,null,null,null,"IB Physics   03157"]
[null,null,null,null,null,null,null,null,"IB Psychology   04257"]
[null,null,null,null,null,null,null,null,"IB Social Anthropology   04253"]
[null,null,null,null,null,null,null,null,"IB Theatre   05062"]
[null,null,null,null,null,null,null,null,"IB Theory of Knowledge   04304"]
[null,null,null,null,null,null,null,null,"Income Tax Accounting   12109"]
[null,null,null,null,null,null,null,null,"Individual Technique—Instrumental Music   05110"]
[null,null,null,null,null,null,null,null,"Individual Technique—Vocal Music   05113"]
[null,null,null,null,null,null,null,null,"Industrial Arts   13003"]
[null,null,null,null,null,null,null,null,"Industrial Design   05191"]
[null,null,null,null,null,null,null,null,"Industrial Electricity   17104"]
[null,null,null,null,null,null,null,null,"Industrial Maintenance   13303"]
[null,null,null,null,null,null,null,null,"Industrial Safety/First Aid   13004"]
[null,null,null,null,null,null,null,null,"Information Management   10051"]
[null,null,null,null,null,null,null,null,"Information Support and Services   10253"]
[null,null,null,null,null,null,null,null,"Information Support and Services— Independent Study   10297"]
[null,null,null,null,null,null,null,null,"Information Support and Services— Workplace Experience   10298"]
[null,null,null,null,null,null,null,null,"Information Support and Services—Other   10299"]
[null,null,null,null,null,null,null,null,"Institutional Maintenance   16103"]
[null,null,null,null,null,null,null,null,"Instructional Technology   19155"]
[null,null,null,null,null,null,null,null,"Instrumental Ensemble   05107"]
[null,null,null,null,null,null,null,null,"Integrated Fine Arts   05201"]
[null,null,null,null,null,null,null,null,"Integrated Pest Management   18109"]
[null,null,null,null,null,null,null,null,"Integrated Science   03201"]
[null,null,null,null,null,null,null,null,"Interactive Media   10203"]
[null,null,null,null,null,null,null,null,"Interior Design   05193"]
[null,null,null,null,null,null,null,null,"International Business and Marketing   12056"]
[null,null,null,null,null,null,null,null,"Internet Marketing   12162"]
[null,null,null,null,null,null,null,null,"Introduction to Agriculture and Natural Resources   18001"]
[null,null,null,null,null,null,null,null,"Introduction to Automobiles   20103"]
[null,null,null,null,null,null,null,null,"Introduction to Communication   11001"]
[null,null,null,null,null,null,null,null,"Introduction to Computers   10001"]
[null,null,null,null,null,null,null,null,"Introduction to Junior ROTC   09001"]
[null,null,null,null,null,null,null,null,"Introduction to the Theater   05051"]
[null,null,null,null,null,null,null,null,"Introduction to Travel and Tourism   16151"]
[null,null,null,null,null,null,null,null,"Introductory Business   12051"]
[null,null,null,null,null,null,null,null,"Investing   12107"]
[null,null,null,null,null,null,null,null,"Issues of Western Humanities   04303"]
[null,null,null,null,null,null,null,null,"IT Essentials: PC Hardware and Software    10254"]
[null,null,null,null,null,null,null,null,"JAVA Programming   10155"]
[null,null,null,null,null,null,null,null,"Jewelry   05166"]
[null,null,null,null,null,null,null,null,"Journalism   11101"]
[null,null,null,null,null,null,null,null,"Journalism and Broadcasting— Independent Study   11147"]
[null,null,null,null,null,null,null,null,"Journalism and Broadcasting— Other   11149"]
[null,null,null,null,null,null,null,null,"Journalism and Broadcasting— Workplace Experience   11148"]
[null,null,null,null,null,null,null,null,"Keyboarding   12005"]
[null,null,null,null,null,null,null,null,"Large Animal Care   18103"]
[null,null,null,null,null,null,null,null,"Law Enforcement   15054"]
[null,null,null,null,null,null,null,null,"Law Enforcement—Independent Study   15097"]
[null,null,null,null,null,null,null,null,"Law Enforcement—Other   15099"]
[null,null,null,null,null,null,null,null,"Law Enforcement—Workplace Experience   15098"]
[null,null,null,null,null,null,null,null,"Law Studies   04162"]
[null,null,null,null,null,null,null,null,"Legal System   04165"]
[null,null,null,null,null,null,null,null,"Library/AVC Aide   22053"]
[null,null,null,null,null,null,null,null,"Life and Physical Sciences—Aide   03995"]
[null,null,null,null,null,null,null,null,"Life and Physical Sciences—Independent Study   03997"]
[null,null,null,null,null,null,null,null,"Life and Physical Sciences—Other   03999"]
[null,null,null,null,null,null,null,null,"Life and Physical Sciences—Workplace Experience   03998"]
[null,null,null,null,null,null,null,null,"Life Skills   22206"]
[null,null,null,null,null,null,null,null,"Local Area Networking   10112"]
[null,null,null,null,null,null,null,null,"Lodging—Comprehensive   16102"]
[null,null,null,null,null,null,null,null,"Lodging—Independent Study   16147"]
[null,null,null,null,null,null,null,null,"Lodging—Other   16149"]
[null,null,null,null,null,null,null,null,"Lodging—Workplace Experience   16148"]
[null,null,null,null,null,null,null,null,"Machining   13203"]
[null,null,null,null,null,null,null,null,"Management Information Systems— Independent Study   10097"]
[null,null,null,null,null,null,null,null,"Management Information Systems— Workplace Experience   10098"]
[null,null,null,null,null,null,null,null,"Management Information Systems—Other   10099"]
[null,null,null,null,null,null,null,null,"Management—Independent Study   12097"]
[null,null,null,null,null,null,null,null,"Management—Other   12099"]
[null,null,null,null,null,null,null,null,"Management—Workplace Experience   12098"]
[null,null,null,null,null,null,null,null,"Manufacturing—Aide   13995"]
[null,null,null,null,null,null,null,null,"Manufacturing—Comprehensive   13002"]
[null,null,null,null,null,null,null,null,"Manufacturing—Independent Study   13997"]
[null,null,null,null,null,null,null,null,"Manufacturing—Other   13999"]
[null,null,null,null,null,null,null,null,"Manufacturing—Workplace Experience   13998"]
[null,null,null,null,null,null,null,null,"Marine Mechanics   20111"]
[null,null,null,null,null,null,null,null,"Marine Science   03005"]
[null,null,null,null,null,null,null,null,"Marketing Career Exploration   12151"]
[null,null,null,null,null,null,null,null,"Marketing —Commodities   12168"]
[null,null,null,null,null,null,null,null,"Marketing Management   12166"]
[null,null,null,null,null,null,null,null,"Marketing—Comprehensive   12152"]
[null,null,null,null,null,null,null,null,"Marketing—Fashion   12153"]
[null,null,null,null,null,null,null,null,"Marketing—Floristry   12158"]
[null,null,null,null,null,null,null,null,"Marketing—Food/Beverage Industry   12156"]
[null,null,null,null,null,null,null,null,"Marketing—Hospitality/Tourism   12159"]
[null,null,null,null,null,null,null,null,"Marketing—Independent Study   12197"]
[null,null,null,null,null,null,null,null,"Marketing—Insurance   12157"]
[null,null,null,null,null,null,null,null,"Marketing—Merchandising   12160"]
[null,null,null,null,null,null,null,null,"Marketing—Other   12199"]
[null,null,null,null,null,null,null,null,"Marketing—Other Specialization   12167"]
[null,null,null,null,null,null,null,null,"Marketing—Real Estate   12154"]
[null,null,null,null,null,null,null,null,"Marketing—Transportation   12155"]
[null,null,null,null,null,null,null,null,"Marketing—Workplace Experience   12198"]
[null,null,null,null,null,null,null,null,"Masonry   17008"]
[null,null,null,null,null,null,null,null,"Materials and Processes   13052"]
[null,null,null,null,null,null,null,null,"Mathematics—Aide   02995"]
[null,null,null,null,null,null,null,null,"Mathematics—Independent Study   02997"]
[null,null,null,null,null,null,null,null,"Mathematics—Workplace Experience   02998"]
[null,null,null,null,null,null,null,null,"Mechanics and Repair—Independent Study   20147"]
[null,null,null,null,null,null,null,null,"Mechanics and Repair—Other   20149"]
[null,null,null,null,null,null,null,null,"Mechanics and Repair—Workplace Experience   20148"]
[null,null,null,null,null,null,null,null,"Media Technology— Independent Study   10247"]
[null,null,null,null,null,null,null,null,"Media Technology— Workplace Experience   10248"]
[null,null,null,null,null,null,null,null,"Media Technology—Other   10249"]
[null,null,null,null,null,null,null,null,"Medical Coding and Transcription   14156"]
[null,null,null,null,null,null,null,null,"Medical Lab Technology   14102"]
[null,null,null,null,null,null,null,null,"Medical Law and Ethics   14003"]
[null,null,null,null,null,null,null,null,"Medical Office Procedures   14153"]
[null,null,null,null,null,null,null,null,"Medical Terminology   14154"]
[null,null,null,null,null,null,null,null,"Medical/Clerical Assisting   14151"]
[null,null,null,null,null,null,null,null,"Metal and Wood Processing/ Production   13053"]
[null,null,null,null,null,null,null,null,"Metal Processing/ Production   13055"]
[null,null,null,null,null,null,null,null,"Metalwork Occupations   13201"]
[null,null,null,null,null,null,null,null,"Metalwork—Independent Study   13257"]
[null,null,null,null,null,null,null,null,"Metalworking   13202"]
[null,null,null,null,null,null,null,null,"Metalwork—Other   13259"]
[null,null,null,null,null,null,null,null,"Metalwork—Workplace Experience   13258"]
[null,null,null,null,null,null,null,null,"Meteorology   03007"]
[null,null,null,null,null,null,null,null,"Microbiology   03060"]
[null,null,null,null,null,null,null,null,"Microsoft Certified Professional (MCP)   10110"]
[null,null,null,null,null,null,null,null,"Military Science— Workplace Experience   09998"]
[null,null,null,null,null,null,null,null,"Miscellaneous— Aide   22995"]
[null,null,null,null,null,null,null,null,"Miscellaneous— Independent Study   22997"]
[null,null,null,null,null,null,null,null,"Miscellaneous— Workplace Experience   22998"]
[null,null,null,null,null,null,null,null,"Mobile Applications   10206"]
[null,null,null,null,null,null,null,null,"Modeling and Simulation Technology   21059"]
[null,null,null,null,null,null,null,null,"Modern Intellectual History   04308"]
[null,null,null,null,null,null,null,null,"Motorsports Technology   20120"]
[null,null,null,null,null,null,null,null,"Music Appreciation   05119"]
[null,null,null,null,null,null,null,null,"Music History   05118"]
[null,null,null,null,null,null,null,null,"Music History/Appreciation   05117"]
[null,null,null,null,null,null,null,null,"Music Theory   05114"]
[null,null,null,null,null,null,null,null,"Musical Theater   05060"]
[null,null,null,null,null,null,null,null,"Music—Independent Study   05147"]
[null,null,null,null,null,null,null,null,"Music—Other   05149"]
[null,null,null,null,null,null,null,null,"Music—Workplace Experience   05148"]
[null,null,null,null,null,null,null,null,"Natural Resources Management   18504"]
[null,null,null,null,null,null,null,null,"Natural Resources—Independent Study   18547"]
[null,null,null,null,null,null,null,null,"Natural Resources—Other   18549"]
[null,null,null,null,null,null,null,null,"Natural Resources—Work-based Experience   18548"]
[null,null,null,null,null,null,null,null,"NetWare Routing   10105"]
[null,null,null,null,null,null,null,null,"Network Security   10108"]
[null,null,null,null,null,null,null,null,"Network Technology   10101"]
[null,null,null,null,null,null,null,null,"Networking Systems    10102"]
[null,null,null,null,null,null,null,null,"Networking Systems— Independent Study   10147"]
[null,null,null,null,null,null,null,null,"Networking Systems— Workplace Experience   10148"]
[null,null,null,null,null,null,null,null,"Networking Systems—Other   10149"]
[null,null,null,null,null,null,null,null,"Nursing   14051"]
[null,null,null,null,null,null,null,null,"Nursing—LPN   14052"]
[null,null,null,null,null,null,null,null,"Nutritional Science   16054"]
[null,null,null,null,null,null,null,null,"Occupationally Applied Math   02152"]
[null,null,null,null,null,null,null,null,"Office Aide   22051"]
[null,null,null,null,null,null,null,null,"Office and Administrative Technologies    12003"]
[null,null,null,null,null,null,null,null,"Office Procedures— Comprehensive   12002"]
[null,null,null,null,null,null,null,null,"Office Services   12004"]
[null,null,null,null,null,null,null,null,"Operation—Independent Study   20097"]
[null,null,null,null,null,null,null,null,"Operation—Other   20099"]
[null,null,null,null,null,null,null,null,"Operation—Workplace Experience   20098"]
[null,null,null,null,null,null,null,null,"Optometrics   14058"]
[null,null,null,null,null,null,null,null,"Orchestra   05105"]
[null,null,null,null,null,null,null,null,"Organic Chemistry   03103"]
[null,null,null,null,null,null,null,null,"Origins of Science   03205"]
[null,null,null,null,null,null,null,null,"Ornamental Horticulture   18053"]
[null,null,null,null,null,null,null,null,"Particular Topics in Accounting   12111"]
[null,null,null,null,null,null,null,null,"Particular Topics in Administration   12008"]
[null,null,null,null,null,null,null,null,"Particular Topics in Agribusiness   18204"]
[null,null,null,null,null,null,null,null,"Particular Topics in Agricultural Mechanics and Construction   18405"]
[null,null,null,null,null,null,null,null,"Particular Topics in Agricultural Production/Processing   18309"]
[null,null,null,null,null,null,null,null,"Particular Topics in Animal Systems   18106"]
[null,null,null,null,null,null,null,null,"Particular Topics in Anthropology   04252"]
[null,null,null,null,null,null,null,null,"Particular Topics in Apparel and Furnishings   19207"]
[null,null,null,null,null,null,null,null,"Particular Topics in Applied Math   02158"]
[null,null,null,null,null,null,null,null,"Particular Topics in Audio/Video Technology and Film   11056"]
[null,null,null,null,null,null,null,null,"Particular Topics in Automotive Body Repair and Refinishing   20117"]
[null,null,null,null,null,null,null,null,"Particular Topics in Automotive Mechanics   20105"]
[null,null,null,null,null,null,null,null,"Particular Topics in Biology   03063"]
[null,null,null,null,null,null,null,null,"Particular Topics in Carpentry   17005"]
[null,null,null,null,null,null,null,null,"Particular Topics in Chemistry   03108"]
[null,null,null,null,null,null,null,null,"Particular Topics in Child and Elder Care   19055"]
[null,null,null,null,null,null,null,null,"Particular Topics in Communication   11004"]
[null,null,null,null,null,null,null,null,"Particular Topics in Computer Literacy   10008"]
[null,null,null,null,null,null,null,null,"Particular Topics in Computer Programming   10161"]
[null,null,null,null,null,null,null,null,"Particular Topics in Construction   17017"]
[null,null,null,null,null,null,null,null,"Particular Topics in Cosmetology   19107"]
[null,null,null,null,null,null,null,null,"Particular Topics in Diagnostic Services   14105"]
[null,null,null,null,null,null,null,null,"Particular Topics in Diesel Mechanics   20108"]
[null,null,null,null,null,null,null,null,"Particular Topics in Economics   04207"]
[null,null,null,null,null,null,null,null,"Particular Topics in Education   19154"]
[null,null,null,null,null,null,null,null,"Particular Topics in Electricity   17105"]
[null,null,null,null,null,null,null,null,"Particular Topics in Electricity/Electronics   17109"]
[null,null,null,null,null,null,null,null,"Particular Topics in Electronics   17107"]
[null,null,null,null,null,null,null,null,"Particular Topics in Engineering   21015"]
[null,null,null,null,null,null,null,null,"Particular Topics in Environmental Service Systems   18005"]
[null,null,null,null,null,null,null,null,"Particular Topics in Fire Management   15153"]
[null,null,null,null,null,null,null,null,"Particular Topics in Health Information   14155"]
[null,null,null,null,null,null,null,null,"Particular Topics in Health Sciences   14254"]
[null,null,null,null,null,null,null,null,"Particular Topics in Health Support Services   14204"]
[null,null,null,null,null,null,null,null,"Particular Topics in Humanities   04310"]
[null,null,null,null,null,null,null,null,"Particular Topics in HVACR   17057"]
[null,null,null,null,null,null,null,null,"Particular Topics in Information Support and Services   10256"]
[null,null,null,null,null,null,null,null,"Particular Topics in Journalism and Broadcasting   11105"]
[null,null,null,null,null,null,null,null,"Particular Topics in Law   04166"]
[null,null,null,null,null,null,null,null,"Particular Topics in Law Enforcement   15053"]
[null,null,null,null,null,null,null,null,"Particular Topics in Lodging   16104"]
[null,null,null,null,null,null,null,null,"Particular Topics in Machining   13204"]
[null,null,null,null,null,null,null,null,"Particular Topics in Management Information Systems   10055"]
[null,null,null,null,null,null,null,null,"Particular Topics in Media Technology   10204"]
[null,null,null,null,null,null,null,null,"Particular Topics in Metalwork   13209"]
[null,null,null,null,null,null,null,null,"Particular Topics in Natural Resources   18505"]
[null,null,null,null,null,null,null,null,"Particular Topics in Networking Systems   10111"]
[null,null,null,null,null,null,null,null,"Particular Topics in Philosophy   04307"]
[null,null,null,null,null,null,null,null,"Particular Topics in Physics   03154"]
[null,null,null,null,null,null,null,null,"Particular Topics in Plant Systems   18056"]
[null,null,null,null,null,null,null,null,"Particular Topics in Printing Technology   11159"]
[null,null,null,null,null,null,null,null,"Particular Topics in Processing and Production   13058"]
[null,null,null,null,null,null,null,null,"Particular Topics in Psychology   04255"]
[null,null,null,null,null,null,null,null,"Particular Topics in Recreation, Amusement, and Attractions   16203"]
[null,null,null,null,null,null,null,null,"Particular Topics in Restaurant, Food, and Beverage Services   16057"]
[null,null,null,null,null,null,null,null,"Particular Topics in Security   15103"]
[null,null,null,null,null,null,null,null,"Particular Topics in Sheet Metal   13206"]
[null,null,null,null,null,null,null,null,"Particular Topics in Sociology   04259"]
[null,null,null,null,null,null,null,null,"Particular Topics in Technology Applications   21058"]
[null,null,null,null,null,null,null,null,"Particular Topics in Therapeutic Services   14063"]
[null,null,null,null,null,null,null,null,"Particular Topics in Travel and Tourism   16155"]
[null,null,null,null,null,null,null,null,"Particular Topics in Welding   13208"]
[null,null,null,null,null,null,null,null,"Payroll Accounting   12110"]
[null,null,null,null,null,null,null,null,"Pharmacology   14253"]
[null,null,null,null,null,null,null,null,"Pharmacy Assisting   14152"]
[null,null,null,null,null,null,null,null,"Philosophy   04306"]
[null,null,null,null,null,null,null,null,"Phlebotomy   14104"]
[null,null,null,null,null,null,null,null,"Photo Imaging   11054"]
[null,null,null,null,null,null,null,null,"Photo-engraving   11157"]
[null,null,null,null,null,null,null,null,"Photographic Laboratory and Darkroom   11053"]
[null,null,null,null,null,null,null,null,"Photography   05167"]
[null,null,null,null,null,null,null,null,"Photography and Printing Technology   11156"]
[null,null,null,null,null,null,null,null,"Photojournalism   11102"]
[null,null,null,null,null,null,null,null,"Physical Chemistry   03104"]
[null,null,null,null,null,null,null,null,"Physical Education— Independent Study   08047"]
[null,null,null,null,null,null,null,null,"Physical Education— Workplace Experience   08048"]
[null,null,null,null,null,null,null,null,"Physical Education/Health   08201"]
[null,null,null,null,null,null,null,null,"Physical Education/Health/ Drivers’ Education   08204"]
[null,null,null,null,null,null,null,null,"Physical Education—Other   08049"]
[null,null,null,null,null,null,null,null,"Physical Geography   03008"]
[null,null,null,null,null,null,null,null,"Physical Science   03159"]
[null,null,null,null,null,null,null,null,"Physical Therapy   14060"]
[null,null,null,null,null,null,null,null,"Physical, Health, and Safety Education— Independent Study   08247"]
[null,null,null,null,null,null,null,null,"Physical, Health, and Safety Education— Workplace Experience   08248"]
[null,null,null,null,null,null,null,null,"Physical, Health, and Safety Education—Aide   08245"]
[null,null,null,null,null,null,null,null,"Physical, Health, and Safety Education—Other   08249"]
[null,null,null,null,null,null,null,null,"Physics   03151"]
[null,null,null,null,null,null,null,null,"Physics—Advanced Studies   03152"]
[null,null,null,null,null,null,null,null,"Physics—Independent Study   03197"]
[null,null,null,null,null,null,null,null,"Physics—Other   03199"]
[null,null,null,null,null,null,null,null,"Physics—Workplace Experience   03198"]
[null,null,null,null,null,null,null,null,"Physiology   03055"]
[null,null,null,null,null,null,null,null,"Piano   05108"]
[null,null,null,null,null,null,null,null,"Pilot Training   20055"]
[null,null,null,null,null,null,null,null,"Plant Processing   18303"]
[null,null,null,null,null,null,null,null,"Plant Production/Science   18051"]
[null,null,null,null,null,null,null,null,"Plant Systems—Independent Study   18097"]
[null,null,null,null,null,null,null,null,"Plant Systems—Other   18099"]
[null,null,null,null,null,null,null,null,"Plant Systems—Work-based Experience   18098"]
[null,null,null,null,null,null,null,null,"Plastics Processing/ Production   13056"]
[null,null,null,null,null,null,null,null,"Playwriting   05058"]
[null,null,null,null,null,null,null,null,"PLTW Aerospace Engineering   21019"]
[null,null,null,null,null,null,null,null,"PLTW Artificial Intelligence   10018"]
[null,null,null,null,null,null,null,null,"PLTW Biological Engineering   21020"]
[null,null,null,null,null,null,null,null,"PLTW Biomedical Innovation   03070"]
[null,null,null,null,null,null,null,null,"PLTW Civil Engineering and Architecture   21021"]
[null,null,null,null,null,null,null,null,"PLTW Computer Integrated Manufacturing   21022"]
[null,null,null,null,null,null,null,null,"PLTW Computer Science A   10014"]
[null,null,null,null,null,null,null,null,"PLTW Computer Science Essentials   10013"]
[null,null,null,null,null,null,null,null,"PLTW Computer Science Principles   10015"]
[null,null,null,null,null,null,null,null,"PLTW Cybersecurity   10016"]
[null,null,null,null,null,null,null,null,"PLTW Digital Electronics   21023"]
[null,null,null,null,null,null,null,null,"PLTW Engineering Design and Development    21025"]
[null,null,null,null,null,null,null,null,"PLTW Environmental Sustainability   21024"]
[null,null,null,null,null,null,null,null,"PLTW Human Body Systems    03067"]
[null,null,null,null,null,null,null,null,"PLTW Introduction to Engineering Design   21017"]
[null,null,null,null,null,null,null,null,"PLTW Medical Interventions   03068"]
[null,null,null,null,null,null,null,null,"PLTW Principles of Biomedical Science   03066"]
[null,null,null,null,null,null,null,null,"PLTW Principles of Engineering   21018"]
[null,null,null,null,null,null,null,null,"PLTW Simulation and Modeling   10017"]
[null,null,null,null,null,null,null,null,"Plumbing   17058"]
[null,null,null,null,null,null,null,null,"Plumbing and Heating   17059"]
[null,null,null,null,null,null,null,null,"Power and Mechanics   20102"]
[null,null,null,null,null,null,null,null,"Pre-Engineering Technology    21001"]
[null,null,null,null,null,null,null,null,"Principles of Advertising   12165"]
[null,null,null,null,null,null,null,null,"Principles of Engineering   21004"]
[null,null,null,null,null,null,null,null,"Principles of Marketing   12164"]
[null,null,null,null,null,null,null,null,"Principles of Selling   12202"]
[null,null,null,null,null,null,null,null,"Principles of Technology   03153"]
[null,null,null,null,null,null,null,null,"Print Press Operations   11158"]
[null,null,null,null,null,null,null,null,"Printing Technology— Independent Study   11197"]
[null,null,null,null,null,null,null,null,"Printing Technology— Workplace Experience   11198"]
[null,null,null,null,null,null,null,null,"Printing Technology—Other   11199"]
[null,null,null,null,null,null,null,null,"Printmaking   05161"]
[null,null,null,null,null,null,null,null,"Printmaking/Graphics   05160"]
[null,null,null,null,null,null,null,null,"Processing/ Production— Independent Study   13097"]
[null,null,null,null,null,null,null,null,"Processing/ Production— Workplace Experience   13098"]
[null,null,null,null,null,null,null,null,"Processing/ Production—Other   13099"]
[null,null,null,null,null,null,null,null,"Production Systems   13101"]
[null,null,null,null,null,null,null,null,"Psychology   04254"]
[null,null,null,null,null,null,null,null,"Public Administration   15201"]
[null,null,null,null,null,null,null,null,"Public Policy   15203"]
[null,null,null,null,null,null,null,null,"Public Safety   15101"]
[null,null,null,null,null,null,null,null,"Public Safety Telecommunications   15104"]
[null,null,null,null,null,null,null,null,"Public Speaking   01151"]
[null,null,null,null,null,null,null,null,"Public, Protective, and Government Service—Aide   15995"]
[null,null,null,null,null,null,null,null,"Public, Protective, and Government Service—Independent Study   15997"]
[null,null,null,null,null,null,null,null,"Public, Protective, and Government Service—Other   15999"]
[null,null,null,null,null,null,null,null,"Public, Protective, and Government Service—Workplace Experience   15998"]
[null,null,null,null,null,null,null,null,"Publication Production   11104"]
[null,null,null,null,null,null,null,null,"Radio Production   11107"]
[null,null,null,null,null,null,null,null,"Recording and Production    05123"]
[null,null,null,null,null,null,null,null,"Recordkeeping   12007"]
[null,null,null,null,null,null,null,null,"Recreation, Amusement, and Attractions Management   16204"]
[null,null,null,null,null,null,null,null,"Recreation, Amusement, and Attractions—Comprehensive   16202"]
[null,null,null,null,null,null,null,null,"Recreation, Amusement, and Attractions—Independent Study   16297"]
[null,null,null,null,null,null,null,null,"Recreation, Amusement, and Attractions—Other   16299"]
[null,null,null,null,null,null,null,null,"Recreation, Amusement, and Attractions—Workplace Experience   16298"]
[null,null,null,null,null,null,null,null,"Refrigeration   17052"]
[null,null,null,null,null,null,null,null,"Repair—Independent Study   13357"]
[null,null,null,null,null,null,null,null,"Repair—Other   13359"]
[null,null,null,null,null,null,null,null,"Repair—Workplace Experience   13358"]
[null,null,null,null,null,null,null,null,"Research and Development   13103"]
[null,null,null,null,null,null,null,null,"Research/Technical Writing   01105"]
[null,null,null,null,null,null,null,null,"Residential Wiring   17103"]
[null,null,null,null,null,null,null,null,"Respiratory Therapy   14061"]
[null,null,null,null,null,null,null,null,"Restaurant Management and Operations   16055"]
[null,null,null,null,null,null,null,null,"Restaurant, Food, and Beverage Services—Comprehensive   16052"]
[null,null,null,null,null,null,null,null,"Restaurant, Food, and Beverage Services—Independent Study   16097"]
[null,null,null,null,null,null,null,null,"Restaurant, Food, and Beverage Services—Other   16099"]
[null,null,null,null,null,null,null,null,"Restaurant, Food, and Beverage Services—Workplace Experience   16098"]
[null,null,null,null,null,null,null,null,"Retail Marketing   12161"]
[null,null,null,null,null,null,null,null,"Risk Management and Insurance   12106"]
[null,null,null,null,null,null,null,null,"Robotics   21009"]
[null,null,null,null,null,null,null,null,"Router Basics   10104"]
[null,null,null,null,null,null,null,null,"Safety and First Aid   08055"]
[null,null,null,null,null,null,null,null,"Sales—Independent Study   12247"]
[null,null,null,null,null,null,null,null,"Sales—Other   12249"]
[null,null,null,null,null,null,null,null,"Sales—Workplace Experience   12248"]
[null,null,null,null,null,null,null,null,"Science Technology/Engineering   03204"]
[null,null,null,null,null,null,null,null,"Science, Technology, and Society   03209"]
[null,null,null,null,null,null,null,null,"Scientific Research and Design    03211"]
[null,null,null,null,null,null,null,null,"Security and Protection—Independent Study   15147"]
[null,null,null,null,null,null,null,null,"Security and Protection—Other   15149"]
[null,null,null,null,null,null,null,null,"Security and Protection—Workplace Experience   15148"]
[null,null,null,null,null,null,null,null,"Security Services   15102"]
[null,null,null,null,null,null,null,null,"Sheet Metal   13205"]
[null,null,null,null,null,null,null,null,"Small Animal Care   18102"]
[null,null,null,null,null,null,null,null,"Small Engine Mechanics   20110"]
[null,null,null,null,null,null,null,null,"Small Vehicle Mechanics   20109"]
[null,null,null,null,null,null,null,null,"Social Dance   05010"]
[null,null,null,null,null,null,null,null,"Social Media Marketing   12169"]
[null,null,null,null,null,null,null,null,"Social Science   04260"]
[null,null,null,null,null,null,null,null,"Social Science Research   04261"]
[null,null,null,null,null,null,null,null,"Social Sciences and History—Aide   04995"]
[null,null,null,null,null,null,null,null,"Social Sciences and History—Independent Study   04997"]
[null,null,null,null,null,null,null,null,"Social Sciences and History—Other   04999"]
[null,null,null,null,null,null,null,null,"Social Sciences and History—Proficiency Development   04994"]
[null,null,null,null,null,null,null,null,"Social Sciences and History—Workplace Experience   04998"]
[null,null,null,null,null,null,null,null,"Social Sciences—Independent Study   04297"]
[null,null,null,null,null,null,null,null,"Social Sciences—Other   04299"]
[null,null,null,null,null,null,null,null,"Social Sciences—Workplace Experience   04298"]
[null,null,null,null,null,null,null,null,"Social Studies   04305"]
[null,null,null,null,null,null,null,null,"Sociology   04258"]
[null,null,null,null,null,null,null,null,"Soil Science   18055"]
[null,null,null,null,null,null,null,null,"Special Needs Health Education   08054"]
[null,null,null,null,null,null,null,null,"Speech—Independent Study   01197"]
[null,null,null,null,null,null,null,null,"Speech—Workplace Experience   01198"]
[null,null,null,null,null,null,null,null,"Sports and Entertainment Marketing   12163"]
[null,null,null,null,null,null,null,null,"Sports Physiology   08017"]
[null,null,null,null,null,null,null,null,"Standardized Test Preparation   22001"]
[null,null,null,null,null,null,null,null,"Substance Abuse Prevention   08058"]
[null,null,null,null,null,null,null,null,"Surgical Technology   14056"]
[null,null,null,null,null,null,null,null,"Sustainable/Alternative Agriculture   18310"]
[null,null,null,null,null,null,null,null,"Systems/Research—Independent Study   13147"]
[null,null,null,null,null,null,null,null,"Systems/Research—Other   13149"]
[null,null,null,null,null,null,null,null,"Systems/Research—Workplace Experience   13148"]
[null,null,null,null,null,null,null,null,"Teaching Profession   19151"]
[null,null,null,null,null,null,null,null,"Technical Math   02153"]
[null,null,null,null,null,null,null,null,"Technical Science   03210"]
[null,null,null,null,null,null,null,null,"Technical Theater for Dance   05009"]
[null,null,null,null,null,null,null,null,"Technological Innovation   21054"]
[null,null,null,null,null,null,null,null,"Technological Inquiry   21056"]
[null,null,null,null,null,null,null,null,"Technological Literacy   21051"]
[null,null,null,null,null,null,null,null,"Technological Processes   21052"]
[null,null,null,null,null,null,null,null,"Technology/Electronic Music   05124"]
[null,null,null,null,null,null,null,null,"Technology—Independent Study   21097"]
[null,null,null,null,null,null,null,null,"Technology—Other   21099"]
[null,null,null,null,null,null,null,null,"Technology—Workplace Experience   21098"]
[null,null,null,null,null,null,null,null,"Telecommunications   10006"]
[null,null,null,null,null,null,null,null,"Telecommunications (Communication)   11003"]
[null,null,null,null,null,null,null,null,"Textiles   05164"]
[null,null,null,null,null,null,null,null,"Theatre Arts   05052"]
[null,null,null,null,null,null,null,null,"Theatrical Production and Management   05061"]
[null,null,null,null,null,null,null,null,"Therapeutic Services—Independent Study   14097"]
[null,null,null,null,null,null,null,null,"Therapeutic Services—Other   14099"]
[null,null,null,null,null,null,null,null,"Therapeutic Services—Workplace Experience   14098"]
[null,null,null,null,null,null,null,null,"Transportation, Distribution, and Logistics—Aide   20995"]
[null,null,null,null,null,null,null,null,"Transportation, Distribution, and Logistics—Independent Study   20997"]
[null,null,null,null,null,null,null,null,"Transportation, Distribution, and Logistics—Other   20999"]
[null,null,null,null,null,null,null,null,"Transportation, Distribution, and Logistics—Workplace Experience   20998"]
[null,null,null,null,null,null,null,null,"Travel and Tourism—Comprehensive   16152"]
[null,null,null,null,null,null,null,null,"Travel and Tourism—Independent Study   16197"]
[null,null,null,null,null,null,null,null,"Travel and Tourism—Other   16199"]
[null,null,null,null,null,null,null,null,"Travel and Tourism—Workplace Experience   16198"]
[null,null,null,null,null,null,null,null,"Truck and Bus Driving   20051"]
[null,null,null,null,null,null,null,null,"Turf and Landscape Management   18054"]
[null,null,null,null,null,null,null,null,"Unified Science   03202"]
[null,null,null,null,null,null,null,null,"Upholstering   17012"]
[null,null,null,null,null,null,null,null,"Veterinary Science   18105"]
[null,null,null,null,null,null,null,null,"Video   11055"]
[null,null,null,null,null,null,null,null,"Vision Care   14057"]
[null,null,null,null,null,null,null,null,"Visual Art—Independent Study   05197"]
[null,null,null,null,null,null,null,null,"Visual Arts—Other   05199"]
[null,null,null,null,null,null,null,null,"Visual Arts—Workplace Experience   05198"]
[null,null,null,null,null,null,null,null,"VISUAL BASIC Programming   10153"]
[null,null,null,null,null,null,null,null,"Viticulture   18311"]
[null,null,null,null,null,null,null,null,"Vocal Ensembles   05112"]
[null,null,null,null,null,null,null,null,"Wall Finishings   17011"]
[null,null,null,null,null,null,null,null,"Warehouse Operations   20152"]
[null,null,null,null,null,null,null,null,"Water Treatment   18406"]
[null,null,null,null,null,null,null,null,"Web Page Design   10201"]
[null,null,null,null,null,null,null,null,"Welding   13207"]
[null,null,null,null,null,null,null,null,"Wide Area Telecommunications and Networking   10106"]
[null,null,null,null,null,null,null,null,"Wildlife Management   18501"]
[null,null,null,null,null,null,null,null,"Wind Energy   21060"]
[null,null,null,null,null,null,null,null,"Wind Turbine Construction and Operation   21061"]
[null,null,null,null,null,null,null,null,"Wireless Networks   10107"]
[null,null,null,null,null,null,null,null,"Wood Processing/ Production   13054"]
[null,null,null,null,null,null,null,null,"Woodworking   17006"]
[null,null,null,null,null,null,null,null,"Word Processing   12006"]
[null,null,null,null,null,null,null,null,"World History—Workplace Experience   04098"]
[null,null,null,null,null,null,null,null,"World Travel and Tourism   16153"]
[null,null,null,null,null,null,null,null,"World/Cultural Dance   05008"]
[null,null,null,null,null,null,null,null,"Zoology   03061"]
[null,null,null,null,null,null,null,null,"Agricultural & Domestic Animal Services, Other C010599"]
[null,null,null,null,null,null,null,null,"Agricultural Mechanics C010201"]
[null,null,null,null,null,null,null,null,"Appliance Installation & Repair Technology/Technician  C470106"]
[null,null,null,null,null,null,null,null,"Applied Horticulture/Horticulture Operations, General C010601"]
[null,null,null,null,null,null,null,null,"Autobody/Collision & Repair Technology/Technician  C470603"]
[null,null,null,null,null,null,null,null,"Automobile/Automotive Mechanics Technology/Technician C470604"]
[null,null,null,null,null,null,null,null,"Biomedical Technology/Technician  C150401"]
[null,null,null,null,null,null,null,null,"Building Property Maintenance & Management  C460401"]
[null,null,null,null,null,null,null,null,"Business/Office Automation/Technology/Data Entry C520407"]
[null,null,null,null,null,null,null,null,"Cabinetmaking and Millwork/Millwright C480703"]
[null,null,null,null,null,null,null,null,"Carpentry/Carpenter C460201"]
[null,null,null,null,null,null,null,null,"Computer Programming/Programmer, General  C110201"]
[null,null,null,null,null,null,null,null,"Construction Craft Laborer C469999"]
[null,null,null,null,null,null,null,null,"Consumer Merchandising/Retailing Management C190203"]
[null,null,null,null,null,null,null,null,"Cooking and Related Culinary Arts, General  C120500"]
[null,null,null,null,null,null,null,null,"Cosmetologist/Cosmetologist, General  C120401"]
[null,null,null,null,null,null,null,null,"Criminal Justice C430107"]
[null,null,null,null,null,null,null,null,"Dental Assisting/Assistant  C510601"]
[null,null,null,null,null,null,null,null,"Design & Visual Communications C500401"]
[null,null,null,null,null,null,null,null,"Diesel Mechanics Technology Technician  C470605"]
[null,null,null,null,null,null,null,null,"Drafting & Design Technology/Technician, General C151301"]
[null,null,null,null,null,null,null,null,"Early Childhood Education and Teaching  C131210"]
[null,null,null,null,null,null,null,null,"Electrical, Electronic and Communications Engineering Technology, General  C150303"]
[null,null,null,null,null,null,null,null,"Electrician  C460302"]
[null,null,null,null,null,null,null,null,"Electromechanical Technology/Electromechanical Engineering Technology C150403"]
[null,null,null,null,null,null,null,null,"Engineering Technology, General  C150000"]
[null,null,null,null,null,null,null,null,"Environmental Engineering Technology Environmental Technology  C150507"]
[null,null,null,null,null,null,null,null,"Exploratory C990100"]
[null,null,null,null,null,null,null,null,"Fashion/Apparel Design  C500407"]
[null,null,null,null,null,null,null,null,"Graphic Communications C100301"]
[null,null,null,null,null,null,null,null,"Health Services/Allied Health/Health Sciences, General C510000"]
[null,null,null,null,null,null,null,null,"Heating, Air Conditioning, Ventilation, and Refrigeration Maintenance Technology/Technician C470201"]
[null,null,null,null,null,null,null,null,"Hospitality Administration/Management, General C520901"]
[null,null,null,null,null,null,null,null,"Information Science/Studies  C110401"]
[null,null,null,null,null,null,null,null,"Machine Tool Technology/Machinist  C480501"]
[null,null,null,null,null,null,null,null,"Marine Maintenance/Fitter and Ship Repair Technology Technician C470616"]
[null,null,null,null,null,null,null,null,"Masonry C460101"]
[null,null,null,null,null,null,null,null,"Mechanic & Repair Technologies/Technicians, Other  C479999"]
[null,null,null,null,null,null,null,null,"Medical/Clinical Assistant  C510801"]
[null,null,null,null,null,null,null,null,"Painting/Painter and Wall Coverer C460408"]
[null,null,null,null,null,null,null,null,"Plumbing Technology/Plumber C460503"]
[null,null,null,null,null,null,null,null,"Precision Metal Working, Other C480599"]
[null,null,null,null,null,null,null,null,"Radio and Television C090701"]
[null,null,null,null,null,null,null,null,"Sheet Metal Technology/Sheetworking C480506"]
[null,null,null,null,null,null,null,null,"Small Engine Mechanics and Repair Technology/Technician C470606"]
[null,null,null,null,null,null,null,null,"Telecommunications Technology/Technician  C150305"]

{"sheet":"DataLookupValues","index":14,"n_rows":27,"n_cols":6,"rows_kept":27,"cut":false,"hidden":true,"merged":[]}
["Workbook Information"]
["Fiscal Year","FY18","Fundcode:",305]
["Title full name","I, Part A"]
["Title abbreviated","I"]
["District Information"]
["District value",1,null,null,"Liasons"]
["District Name:",{"$f":"VLOOKUP(valDistr,DataDistr,3,FALSE)","v":"Org Name"},"district code",{"$f":"LEFT(VLOOKUP(valDistr,DataDistr,2,FALSE),4)","v":"Org "},"Name",{"$f":"VLOOKUP(valDistr,DataDistr,12,FALSE)","v":"Liaison's Name"}]
["Address1",{"$f":"VLOOKUP(valDistr,DataDistr,7,FALSE)","v":"Address 1"},null,null,"Phone",{"$f":"VLOOKUP(valDistr,DataDistr,13,FALSE)","v":"Liaison's Number"}]
["Address2",{"$f":"IF(VLOOKUP(valDistr,DataDistr,8,FALSE)=0,\"\",VLOOKUP(valDistr,DataDistr,8,FALSE))","v":"Address 2"},null,null,"Email",{"$f":"VLOOKUP(valDistr,DataDistr,14,FALSE)","v":"Liaison's Email"}]
["City, State, ZIP",{"$f":"VLOOKUP(valDistr,DataDistr,9,FALSE)&\", \"&VLOOKUP(valDistr,DataDistr,10,FALSE)&\" \"&VLOOKUP(valDistr,DataDistr,11,FALSE)","v":"Town, State Zip"}]
["Core Indicators"]
["Secondary"]
["Grad Rate",{"$f":"VLOOKUP(valDistr,DataDistr,17,FALSE)","v":0}]
["Proficiency ELA",{"$f":"VLOOKUP(valDistr,DataDistr,18,FALSE)","v":0}]
["Proficiency Math",{"$f":"VLOOKUP(valDistr,DataDistr,19,FALSE)","v":0}]
["Proficiency Science",{"$f":"VLOOKUP(valDistr,DataDistr,20,FALSE)","v":0}]
["Postprogram Placement",{"$f":"VLOOKUP(valDistr,DataDistr,21,FALSE)","v":0}]
["CTE Leading to NonTrad",{"$f":"VLOOKUP(valDistr,DataDistr,22,FALSE)","v":0}]
["CTE Partic. In Work-Based",{"$f":"VLOOKUP(valDistr,DataDistr,23,FALSE)","v":0}]
[]
["PostSecondary"]
["Postprogram Placement",{"$f":"VLOOKUP(valDistr,DataDistr,24,FALSE)","v":0}]
["Postsecondary Credential",{"$f":"VLOOKUP(valDistr,DataDistr,25,FALSE)","v":0}]
["CTE Leading to NonTrad",{"$f":"VLOOKUP(valDistr,DataDistr,26,FALSE)","v":0}]
[]
["Innovation Pathways",{"$f":"VLOOKUP(valDistr,DataDistr,27,FALSE)","v":0}]
["Early College",{"$f":"VLOOKUP(valDistr,DataDistr,28,FALSE)","v":0}]

{"sheet":"DataDistrictList","index":15,"n_rows":135,"n_cols":28,"rows_kept":135,"cut":false,"hidden":true,"merged":[[0,16,0,22],[0,23,0,25]]}
[null,null,null,null,null,null,null,null,null,null,null,null,null,null,null,null,"Secondary Data",null,null,null,null,null,null,"Post-Secondary Data"]
[null,null,null,null,null,null,null,null,null,null,null,null,null,null,null,null,"Grad Rate (4S1)","Proficiency ELA (1S1)","Proficiency Math (1S2)","Proficiency Science","Postprogram Placement (5S1)","CTE Leading to NonTrad (6S2)","CTE Partic. In Work-Based","Postprogram Placement (4P1)","PostSecondary Credential (2P1)","NonTraditional Program","Innovation Pathways","Early College Designation"]
[1,"Org Code","Org Name","Org Type","Function","Contact Name","Address 1","Address 2","Town","State","Zip","Liaison's Name","Liaison's Number","Liaison's Email","March EL Count (18c)","March Enrolled Count"]
[2,"06050000","Amherst-Pelham","Public School District","Superintendent","Michael Morris","170 Chestnut Street","","Amherst","MA","01002","Ellie Rounds-Bloom","781-338-3128","eleanor.rounds@mass.gov",100,1330]
[3,"00050000","Agawam","Public School District","Superintendent","Steven Lemanski","1305 Springfield St","Suite 1","Feeding Hills","MA","01030","Nancy Labrie","781-338-3536","nancy.h.labrie@mass.gov",175,3540,null,null,null,null,null,null,null,null,null,null,"Yes"]
[4,"08010000","Assabet Valley Regional Vocational Technical","Public School District","Superintendent","Ernest Houle","215 Fitchburg Street","","Marlborough","MA","01752","Ellie Rounds-Bloom","781-338-3128","eleanor.rounds@mass.gov",28,1103]
[5,"00160000","Attleboro","Public School District","Superintendent","David Sawyer","100 Rathbun Willard Drive","","Attleboro","MA","02703","Alex Chiu","781-338-3586","alexandria.w.chiu@mass.gov",381,5791,null,null,null,null,null,null,null,null,null,null,"Yes"]
[6,"00200000","Barnstable","Public School District","Superintendent","Meg Mayo-Brown","P O Box 955","","Hyannis","MA","02601","Alex Chiu","781-338-3586","alexandria.w.chiu@mass.gov",471,4728,null,null,null,null,null,null,null,null,null,null,"Yes"]
[7,"06180000","Berkshire Hills","Public School District","Superintendent","Peter Dillon","50 Main Street","PO Box 617","Stockbridge","MA","01262","Alex Chiu","781-338-3586","alexandria.w.chiu@mass.gov",54,1183,null,null,null,null,null,null,null,null,null,null,"Yes"]
[8,"00300000","Beverly","Public School District","Superintendent","Suzanne Charochak","70 Balch St.","","Beverly","MA","01915","Nancy Labrie","781-338-3536","nancy.h.labrie@mass.gov",171,4385]
[9,"08050000","Blackstone Valley Regional Vocational Technical","Public School District","Superintendent","Michael Fitzpatrick","65 Pleasant Street","","Upton","MA","01568","Alex Chiu","781-338-3586","alexandria.w.chiu@mass.gov",3,1220]
[10,"08060000","Blue Hills Regional Vocational Technical","Public School District","Superintendent","Jill Rossetti","800 Randolph Street","","Canton","MA","02021","Alex Chiu","781-338-3586","alexandria.w.chiu@mass.gov",4,842]
[11,"00350000","Boston","Public School District","Superintendent","Brenda Cassellius","2300 Washington Street","","Roxbury","MA","02119","Julia Foodman","781-338-3577","julia.b.foodman@mass.gov",15445,49775,null,null,null,null,null,null,null,null,null,null,"Yes","Yes"]
[12,"09100000","Bristol County Agricultural","Public School District","Superintendent","Adele Sands","135 Center Street","","Dighton","MA","02715","Nancy Labrie","781-338-3536","nancy.h.labrie@mass.gov",0,457]
[13,"08100000","Bristol-Plymouth Regional Vocational Technical","Public School District","Superintendent","Alexandre Magalhaes","207 Hart Street","","Taunton","MA","02780","Russ Fleming","781-338-6259","russellw.fleming@mass.gov",3,1247]
[14,"00440000","Brockton","Public School District","Superintendent","Michael Thomas","43 Crescent Street","","Brockton","MA","02301","Sue Mazzarella","781-338-3587","susan.mazzarella@mass.gov",4161,16527,null,null,null,null,null,null,null,null,null,null,"Yes"]
[15,"00460000","Brookline","Public School District","Superintendent","Benjamin Lummis","333 Washington Street","","Brookline","MA","02445","Julia Foodman","781-338-3577","julia.b.foodman@mass.gov",808,7493]
[16,"00490000","Cambridge","Public School District","Superintendent","Kenneth Salim","135 Berkshire Street","","Cambridge","MA","02141","Alex Lilley","781-338-6212","alex.j.lilley@mass.gov",577,6357]
[17,"08150000","Cape Cod Regional Vocational Technical","Public School District","Superintendent","Robert Sanborn","351 Pleasant Lake Avenue","","Harwich","MA","02645","Julia Foodman","781-338-3577","julia.b.foodman@mass.gov",9,580]
[18,"06350000","Central Berkshire","Public School District","Superintendent","Laurie Casna","PO Box 299","Rt 8","Dalton","MA","01227","Alex Lilley","781-338-6212","alex.j.lilley@mass.gov",8,1546]
[19,"00610000","Chicopee","Public School District","Superintendent","Lynn Clark","180 Broadway Street","","Chicopee","MA","01020","Beth O'Connell","781-338-3132","elizabeth.a.o'connell@mass.gov",462,7255]
[20,"00640000","Clinton","Public School District","Superintendent","Steven Meyer","150 School Street","","Clinton","MA","01510","Alex Chiu","781-338-3586","alexandria.w.chiu@mass.gov",168,1765]
[21,"05320000","Collaborative for Educational Services","Collaborative","Superintendent","William Diehl","97 Hawley Street",null,"Northampton","MA","01060","Russ Fleming","781-338-6259","russellw.fleming@mass.gov"]
[22,"06500000","Dighton-Rehoboth","Public School District","Superintendent","Anthony Azar","2700 Regional Road","","North Dighton","MA","02764","Alex Chiu","781-338-3586","alexandria.w.chiu@mass.gov",4,2842]
[23,"06550000","Dover-Sherborn","Public School District","Superintendent","Andrew Keough","157 Farm Street","","Dover","MA","02030","Beth O'Connell","781-338-3132","elizabeth.a.o'connell@mass.gov",null,4]
[24,"00820000","Duxbury","Public School District","Superintendent","John Antonucci","93 Chandler Street","","Duxbury","MA","02332","Nancy Labrie","781-338-3536","nancy.h.labrie@mass.gov",12,2928]
[25,"00860000","Easthampton","Public School District","Superintendent","Allison Leclair","50 Payson Avenue","Second Floor","Easthampton","MA","01027","Beth O'Connell","781-338-3132","elizabeth.a.o'connell@mass.gov",39,1494]
[26,"00870000","East Longmeadow","Public School District","Superintendent","Gordon Smith","180 Maple Street","","East Longmeadow","MA","01028","Russ Fleming","781-338-6259","russellw.fleming@mass.gov",39,2572]
[27,"08170000","Essex North Shore Agricultural and Technical School District","Public School District","Superintendent","Heidi Riccio","565 Maple Street","P.O. Box 346","Hathorne","MA","01937","Alex Chiu","781-338-3586","alexandria.w.chiu@mass.gov",4,1367]
[28,"00930000","Everett","Public School District","Superintendent","Priya Tahiliani","121 Vine Street","","Everett","MA","02149","Ellie Rounds-Bloom","781-338-3128","eleanor.rounds@mass.gov",1470,6567,null,null,null,null,null,null,null,null,null,null,"Yes"]
[29,"00950000","Fall River","Public School District","Superintendent","Matthew Malone","417 Rock Street","","Fall River","MA","02720","Sue Mazzarella","781-338-3587","susan.mazzarella@mass.gov",1671,9902,null,null,null,null,null,null,null,null,null,null,null,"Yes"]
[30,"00960000","Falmouth","Public School District","Superintendent","Lori Duerr","340 Teaticket Hwy","","East Falmouth","MA","02536","Beth O'Connell","781-338-3132","elizabeth.a.o'connell@mass.gov",108,3264]
[31,"00970000","Fitchburg","Public School District","Superintendent","Robert Jokela","376 South Street","","Fitchburg","MA","01420","Russ Fleming","781-338-6259","russellw.fleming@mass.gov",756,5165,null,null,null,null,null,null,null,null,null,null,"Yes","Yes"]
[32,"01000000","Framingham","Public School District","Superintendent","Robert Tremblay","73 Mt. Wayte Avenue","Suite 5","Framingham","MA","01702","Colleen Holforty","781-338-3522","colleen.e.holforty@mass.gov",1960,8471,null,null,null,null,null,null,null,null,null,null,null,"Yes"]
[33,"08180000","Franklin County Regional Vocational Technical","Public School District","Superintendent","Richard Martin","82 Industrial Blvd","","Turners Falls","MA","01376","Sue Mazzarella","781-338-3587","susan.mazzarella@mass.gov",1,476]
[34,"06720000","Gateway","Public School District","Superintendent","David Hopson","12 Littleville Road","","Huntington","MA","01050","Russ Fleming","781-338-6259","russellw.fleming@mass.gov",18,771]
[35,"01070000","Gloucester","Public School District","Superintendent","Richard Safier","2 Blackburn Drive","","Gloucester","MA","01930","Beth O'Connell","781-338-3132","elizabeth.a.o'connell@mass.gov",167,2798]
[36,"08210000","Greater Fall River Regional Vocational Technical","Public School District","Superintendent","Elvio Ferreira","251 Stonehaven Rd","","Fall River","MA","02723","Alex Chiu","781-338-3586","alexandria.w.chiu@mass.gov",31,1377]
[37,"08230000","Greater Lawrence Regional Vocational Technical","Public School District","Superintendent","John Lavoie","57 River Rd","","Andover","MA","01810","Ellie Rounds-Bloom","781-338-3128","eleanor.rounds@mass.gov",187,1492]
[38,"08280000","Greater Lowell Regional Vocational Technical","Public School District","Superintendent","Jill Davis","250 Pawtucket Blvd","","Tyngsborough","MA","01879","Alex Chiu","781-338-3586","alexandria.w.chiu@mass.gov",1544,2201]
[39,"08250000","Greater New Bedford Regional Vocational Technical","Public School District","Superintendent","James O'Brien","1121 Ashley Blvd","","New Bedford","MA","02745","Colleen Holforty","781-338-3522","colleen.e.holforty@mass.gov",66,2132]
[40,"06730000","Groton-Dunstable","Public School District","Superintendent","Laura Chesson","P O Box 729","","Groton","MA","01450","Alex Chiu","781-338-3586","alexandria.w.chiu@mass.gov",23,2314]
[41,"01170000","Hadley","Public School District","Superintendent","Anne McKenzie","125 Russell Street","","Hadley","MA","01035","Nancy Labrie","781-338-3536","nancy.h.labrie@mass.gov",31,null,null,null,null,null,null,null,null,null,null,null,"Yes"]
[42,"06800000","Hampden-Wilbraham","Public School District","Superintendent","Albert Ganem","621 Main Street","","Wilbraham","MA","01095","Alex Lilley","781-338-6212","alex.j.lilley@mass.gov",41,2919]
[43,"01280000","Haverhill","Public School District","Superintendent","Margaret Marotta","4 Summer Street","","Haverhill","MA","01830","Ellie Rounds-Bloom","781-338-3128","eleanor.rounds@mass.gov",790,7311,null,null,null,null,null,null,null,null,null,null,"Yes","Yes"]
[44,"01370000","Holyoke","Public School District","Superintendent","Stephen Zrike","57 Suffolk Street","","Holyoke","MA","01040","Alex Lilley","781-338-6212","alex.j.lilley@mass.gov",1285,5141,null,null,null,null,null,null,null,null,null,null,"Yes","Yes"]
[45,"01420000","Hull","Public School District","Superintendent","Judith Kuehn","18 Harborview Road","","Hull","MA","02045","Alex Chiu","781-338-3586","alexandria.w.chiu@mass.gov",null,3]
[46,"01500000","Lee","Public School District","Superintendent","Michael Richard","300A Greylock St","","Lee","MA","01238","Sue Mazzarella","781-338-3587","susan.mazzarella@mass.gov",27,673]
[47,"01510000","Leicester","Public School District","Superintendent","Marilyn Tencza","3 Washburn Square","3rd Floor","Leicester","MA","01524","Colleen Holforty","781-338-3522","colleen.e.holforty@mass.gov",43,1490]
[48,"01520000","Lenox","Public School District","Superintendent","Kimberly Merrick","6 Walker Street","","Lenox","MA","01240","Ellie Rounds-Bloom","781-338-3128","eleanor.rounds@mass.gov",20,757]
[49,"01530000","Leominster","Public School District","Superintendent","Paula Deacon","24 Church Street","","Leominster","MA","01453","Colleen Holforty","781-338-3522","colleen.e.holforty@mass.gov",758,6043,null,null,null,null,null,null,null,null,null,null,null,"Yes"]
[50,"01590000","Longmeadow","Public School District","Superintendent","Maurice O'shea","535 Bliss Road","","Longmeadow","MA","01106","Sue Mazzarella","781-338-3587","susan.mazzarella@mass.gov",21,2834]
[51,"01600000","Lowell","Public School District","Superintendent","Joel Boyd","155 Merrimack Street","","Lowell","MA","01852","Nancy Labrie","781-338-3536","nancy.h.labrie@mass.gov",1544,14004,null,null,null,null,null,null,null,null,null,null,"Yes","Yes"]
[52,"05360000","Lower Pioneer Valley Education Collaborative","Collaborative","Collaborative Leader","Anna Bishop","174 Brush Hill Avenue",null,"West Springfield","MA","01089","Colleen Holforty","781-338-3522","colleen.e.holforty@mass.gov"]
[53,"01610000","Ludlow","Public School District","Superintendent","Todd Gazda","63 Chestnut Street","","Ludlow","MA","01056","Alex Chiu","781-338-3586","alexandria.w.chiu@mass.gov",89,2461]
[54,"01630000","Lynn","Public School District","Superintendent","Patrick Tutwiler","100 Bennett St","","Lynn","MA","01905","Colleen Holforty","781-338-3522","colleen.e.holforty@mass.gov",3591,15385,null,null,null,null,null,null,null,null,null,null,null,"Yes"]
[55,"01710000","Marshfield","Public School District","Superintendent","Jeffrey Granatino","76 South River Street","","Marshfield","MA","02050","Colleen Holforty","781-338-3522","colleen.e.holforty@mass.gov",42,4040]
[56,"07000000","Martha's Vineyard","Public School District","Superintendent","Matthew D'Andrea","4 Pine Street","","Vineyard Haven","MA","02568","Sue Mazzarella","781-338-3587","susan.mazzarella@mass.gov",64,635]
[57,"01760000","Medford","Public School District","Superintendent","Marice Edouard-Vincent","489 Winthrop Street","","Medford","MA","02155","Sue Mazzarella","781-338-3587","susan.mazzarella@mass.gov",486,4230]
[58,"01810000","Methuen","Public School District","Superintendent","Brandi Kwong","10 Ditson Place","","Methuen","MA","01844","Colleen Holforty","781-338-3522","colleen.e.holforty@mass.gov",649,6868]
[59,"01850000","Milford","Public School District","Superintendent","Kevin Mcintyre","31 West Fountain Street","","Milford","MA","01757","Julia Foodman","781-338-3577","julia.b.foodman@mass.gov",683,4081,null,null,null,null,null,null,null,null,null,null,null,"Yes"]
[60,"08300000","Minuteman Regional Vocational Technical","Public School District","Superintendent","Edward Bouquillon","758 Marrett Rd","","Lexington","MA","02421","Julia Foodman","781-338-3577","julia.b.foodman@mass.gov",8,531]
[61,"08320000","Montachusett Regional Vocational Technical","Public School District","Superintendent","Sheila Harrity","1050 Westminster Street","","Fitchburg","MA","01420","Beth O'Connell","781-338-3132","elizabeth.a.o'connell@mass.gov",8,1395]
[62,"01970000","Nantucket","Public School District","Superintendent","William Cozort","10 Surfside Road","","Nantucket","MA","02554","Nancy Labrie","781-338-3536","nancy.h.labrie@mass.gov",null,256,null,null,null,null,null,null,null,null,null,null,"Yes"]
[63,"08520000","Nashoba Valley Regional Vocational Technical","Public School District","Superintendent","Denise Pigeon","100 Littleton Road","","Westford","MA","01886","Alex Lilley","781-338-6212","alex.j.lilley@mass.gov",3,690,null,null,null,null,null,null,null,null,null,null,null,"Yes"]
[64,"02010000","New Bedford","Public School District","Superintendent","Thomas Anderson","455 County Street","C/O Paul Rodrigues Administration Bldg.","New Bedford","MA","02740","Beth O'Connell","781-338-3132","elizabeth.a.o'connell@mass.gov",3645,12116]
[65,"02070000","Newton","Public School District","Superintendent","David Fleishman","100 Walnut Street","","Newtonville","MA","02460","Alex Lilley","781-338-6212","alex.j.lilley@mass.gov",818,12683]
[66,"09150000","Norfolk County Agricultural","Public School District","Superintendent","Tammy Quinn","400 Main Street","","Walpole","MA","02081","Russ Fleming","781-338-6259","russellw.fleming@mass.gov",1,538]
[67,"04060000","Northampton-Smith Vocational Agricultural","Public School District","Superintendent","Andrew Linkenhoker","80 Locust Street","","Northampton","MA","01060","Julia Foodman","781-338-3577","julia.b.foodman@mass.gov",6,491]
[68,"08530000","Northeast Metropolitan Regional Vocational Technical","Public School District","Superintendent","David DiBarri","100 Hemlock Rd","","Wakefield","MA","01880","Ellie Rounds-Bloom","781-338-3128","eleanor.rounds@mass.gov",45,1231]
[69,"08510000","Northern Berkshire Regional Vocational Technical","Public School District","Superintendent","James Brosnan","70 Hodges Cross Rd","","North Adams","MA","01247","Alex Chiu","781-338-3586","alexandria.w.chiu@mass.gov",0,486]
[70,"07350000","North Middlesex","Public School District","Superintendent","Brad Morgan","66 Brookline Street","","Towsend","MA","01469","Alex Lilley","781-338-6212","alex.j.lilley@mass.gov",40,3063]
[71,"08550000","Old Colony Regional Vocational Technical","Public School District","Superintendent","Aaron Polansky","476 North Avenue","","Rochester","MA","02770","Colleen Holforty","781-338-3522","colleen.e.holforty@mass.gov",1,531]
[72,"07400000","Old Rochester","Public School District","Superintendent","Douglas White","135 Marion Rd","","Mattapoisett","MA","02739","Colleen Holforty","781-338-3522","colleen.e.holforty@mass.gov",2,1161]
[73,"08600000","Pathfinder Regional Vocational Technical","Public School District","Superintendent","Gerald Paist","240 Sykes Street","","Palmer","MA","01069","Alex Chiu","781-338-3586","alexandria.w.chiu@mass.gov",0,620]
[74,"02290000","Peabody","Public School District","Superintendent","Marc Kerble","27 Lowell Street","","Peabody","MA","01960","Sue Mazzarella","781-338-3587","susan.mazzarella@mass.gov",436,5655]
[75,"02310000","Pembroke","Public School District","Superintendent","Erin Obey","72 Pilgrim Road","Office of the Superintendent","Pembroke","MA","02359","Alex Chiu","781-338-3586","alexandria.w.chiu@mass.gov",39,2657]
[76,"02360000","Pittsfield","Public School District","Superintendent","Jason Mccandless","269 First Street","","Pittsfield","MA","01201","Beth O'Connell","781-338-3132","elizabeth.a.o'connell@mass.gov",215,5333]
[77,"02390000","Plymouth","Public School District","Superintendent","Gary Maestas","11 Lincoln Street","","Plymouth","MA","02360","Sue Mazzarella","781-338-3587","susan.mazzarella@mass.gov",91,7364]
[78,"07530000","Quabbin","Public School District","Superintendent","Sheila Muir","872 South Street","","Barre","MA","01005","Russ Fleming","781-338-6259","russellw.fleming@mass.gov",6,2103,null,null,null,null,null,null,null,null,null,null,"Yes"]
[79,"02430000","Quincy","Public School District","Superintendent","Richard Decristofaro","34 Coddington Street","","Quincy","MA","02169","Nancy Labrie","781-338-3536","nancy.h.labrie@mass.gov",1544,9048]
[80,"02580000","Salem","Public School District","Superintendent","Kathleen Smith","29 Highland Avenue","","Salem","MA","01970","Colleen Holforty","781-338-3522","colleen.e.holforty@mass.gov",488,3646,null,null,null,null,null,null,null,null,null,null,null,"Yes"]
[81,"08710000","Shawsheen Valley Regional Vocational Technical","Public School District","Superintendent","Melanie Hagman","100 Cook Street","","Billerica","MA","01821","Alex Chiu","781-338-3586","alexandria.w.chiu@mass.gov",0,1311]
[82,"02710000","Shrewsbury","Public School District","Superintendent","Joseph Sawyer","100 Maple Avenue","","Shrewsbury","MA","01545","Russ Fleming","781-338-6259","russellw.fleming@mass.gov",186,6127]
[83,"07600000","Silver Lake","Public School District","Superintendent","Jill Proulx","250 Pembroke Street","","Kingston","MA","02364","Nancy Labrie","781-338-3536","nancy.h.labrie@mass.gov",5,1737]
[84,"02740000","Somerville","Public School District","Superintendent","Mary Skipper","8 Bonair Street","","Somerville","MA","02145","Colleen Holforty","781-338-3522","colleen.e.holforty@mass.gov",896,4544,null,null,null,null,null,null,null,null,null,null,null,"Yes"]
[85,"02780000","South Hadley","Public School District","Superintendent","Nicholas Young","116 Main Street","","South Hadley","MA","01075","Nancy Labrie","781-338-3536","nancy.h.labrie@mass.gov",83,1843]
[86,"08290000","South Middlesex Regional Vocational Technical","Public School District","Superintendent","Jonathan Evans","750 Winter Street","","Framingham","MA","01702","Russ Fleming","781-338-6259","russellw.fleming@mass.gov",69,720]
[87,"08730000","South Shore Regional Vocational Technical","Public School District","Superintendent","Thomas Hickey","476 Webster Street","","Hanover","MA","02339","Beth O'Connell","781-338-3132","elizabeth.a.o'connell@mass.gov",0,636]
[88,"08720000","Southeastern Regional Vocational Technical","Public School District","Superintendent","Luis Lopes","250 Foundry Street","","South Easton","MA","02375","Julia Foodman","781-338-3577","julia.b.foodman@mass.gov",15,1409]
[89,"07650000","Southern Berkshire","Public School District","Superintendent","Beth Regulbuto","PO BOX 339","","Sheffield","MA","01257","Alex Lilley","781-338-6212","alex.j.lilley@mass.gov",11,646]
[90,"08760000","Southern Worcester County Regional Vocational Technical","Public School District","Superintendent","John LaFleche","57 Old Muggett Hill Road","","Charlton","MA","01507","Alex Chiu","781-338-3586","alexandria.w.chiu@mass.gov",2,1103]
[91,"07660000","Southwick-Tolland-Granville Regional School District","Public School District","Superintendent","Jennifer Willard","86 Powder Mill Road","","Southwick","MA","01077","Ellie Rounds-Bloom","781-338-3128","eleanor.rounds@mass.gov",50,1448]
[92,"07670000","Spencer-E Brookfield","Public School District","Superintendent","Paul Haughey","306 Main Street","","Spencer","MA","01562","Colleen Holforty","781-338-3522","colleen.e.holforty@mass.gov",39,1337]
[93,"02810000","Springfield","Public School District","Superintendent","Daniel Warwick","1550 Main Street","","Springfield","MA","01103","Alex Lilley","781-338-6212","alex.j.lilley@mass.gov",4340,24371,null,null,null,null,null,null,null,null,null,null,"Yes","Yes"]
[94,"02840000","Stoneham","Public School District","Superintendent","John Macero","149 Franklin Street","","Stoneham","MA","02180","Julia Foodman","781-338-3577","julia.b.foodman@mass.gov",80,2253]
[95,"07700000","Tantasqua","Public School District","Superintendent","Erin Nosek","320A Brookfield Rd","","Fiskdale","MA","01518","Russ Fleming","781-338-6259","russellw.fleming@mass.gov",4,1775]
[96,"02930000","Taunton","Public School District","Superintendent","John Cabral","215 Harris Street","","Taunton","MA","02780","Julia Foodman","781-338-3577","julia.b.foodman@mass.gov",366,7755,null,null,null,null,null,null,null,null,null,null,"Yes"]
[97,"08780000","Tri-County Regional Vocational Technical","Public School District","Superintendent","Stephen Dockray","147 Pond Street","","Franklin","MA","02038","Alex Lilley","781-338-6212","alex.j.lilley@mass.gov",3,975]
[98,"08790000","Upper Cape Cod Regional Vocational Technical","Public School District","Superintendent","Robert Dutch","220 Sandwich Rd","","Bourne","MA","02532","Ellie Rounds-Bloom","781-338-3128","eleanor.rounds@mass.gov",0,698]
[99,"03080000","Waltham","Public School District","Superintendent","George Frost","617 Lexington Street","","Waltham","MA","02452","Sue Mazzarella","781-338-3587","susan.mazzarella@mass.gov",1260,5447]
[100,"03100000","Wareham","Public School District","Superintendent","Kimberly Shaver-Hood","48 Marion Road","","Wareham","MA","02571","Ellie Rounds-Bloom","781-338-3128","eleanor.rounds@mass.gov",25,2217]
[101,"03140000","Watertown","Public School District","Superintendent","Deanne Galdston","30 Common Street","","Watertown","MA","02472","Colleen Holforty","781-338-3522","colleen.e.holforty@mass.gov",317,2453]
[102,"03220000","West Boylston","Public School District","Superintendent","Elizabeth Schaper","125 Crescent Street","","West Boylston","MA","01583","Alex Lilley","781-338-6212","alex.j.lilley@mass.gov",35,880]
[103,"03250000","Westfield","Public School District","Superintendent","Stefan Czaporowski","94 North Elm Street","Suite 101","Westfield","MA","01085","Alex Lilley","781-338-6212","alex.j.lilley@mass.gov",317,5256,null,null,null,null,null,null,null,null,null,null,null,"Yes"]
[104,"03300000","Weston","Public School District","Superintendent","Midge Connolly","89 Wellesley Street","","Weston","MA","02493","Julia Foodman","781-338-3577","julia.b.foodman@mass.gov",73,2020]
[105,"03320000","West Springfield","Public School District","Superintendent","Michael Richard","26 Central Street","","West Springfield","MA","01089","Alex Lilley","781-338-6212","alex.j.lilley@mass.gov",442,3984,null,null,null,null,null,null,null,null,null,null,"Yes"]
[106,"03360000","Weymouth","Public School District","Superintendent","Jennifer Curtis-Whipple","111 Middle Street","","Weymouth","MA","02189","Ellie Rounds-Bloom","781-338-3128","eleanor.rounds@mass.gov",232,5813]
[107,"08850000","Whittier Regional Vocational Technical","Public School District","Superintendent","Maureen Lynch","115 Amesbury Line Rd","","Haverhill","MA","01830","Colleen Holforty","781-338-3522","colleen.e.holforty@mass.gov",13,1247]
[108,"03480000","Worcester","Public School District","Superintendent","Maureen Binienda","20 Irving Street","","Worcester","MA","01609","Russ Fleming","781-338-6259","russellw.fleming@mass.gov",7958,24429,null,null,null,null,null,null,null,null,null,null,"Yes","Yes"]
[109,"12030000","Berkshire Community College","Post-Secondary","President","Ellen Kennedy","1350 West Street",null,"Pittsfield","MA","01201","Alex Chiu","781-338-3586","alexandria.w.chiu@mass.gov"]
[110,"12050000","Bristol Community College","Post-Secondary","President","Laura L. Douglas, Ph.D.","777 Elsbree Street",null,"Fall River","MA","02720","Alex Chiu","781-338-3586","alexandria.w.chiu@mass.gov",null,null,null,null,null,null,null,null,null,null,null,null,null,"Yes"]
[111,"12060000","Bunker Hill Community College","Post-Secondary","President","Pam Y. Eddinger","250 New Rutherford Avenue",null,"Boston","MA","02129","Alex Chiu","781-338-3586","alexandria.w.chiu@mass.gov",null,null,null,null,null,null,null,null,null,null,null,null,null,"Yes"]
[112,"12070000","Cape Cod Community College","Post-Secondary","President","John Cox","2240 Iyanough Road",null,"West Barnstable","MA","02668","Alex Chiu","781-338-3586","alexandria.w.chiu@mass.gov"]
[113,"20320000","Franklin Institute","Post-Secondary","President","Anthony Benoit","41 Berkeley Street",null,"Boston","MA ","02116","Beth O'Connell","781-338-3132","elizabeth.a.o'connell@mass.gov"]
[114,"12180000","Greenfield Community College","Post-Secondary","President","Yves Salamon-Fernandez","One College Drive",null,"Greenfield","MA","01301","Alex Chiu","781-338-3586","alexandria.w.chiu@mass.gov",null,null,null,null,null,null,null,null,null,null,null,null,null,"Yes"]
[115,"12100000","Holyoke Community College","Post-Secondary","President","Christina Royal","303 Homestead Avenue",null,"Holyoke","MA ","01040","Nancy Labrie","781-338-3536","nancy.h.labrie@mass.gov",null,null,null,null,null,null,null,null,null,null,null,null,null,"Yes"]
[116,"12110000","Massachusetts Bay Community College","Post-Secondary","Vice President Finance & Administration","Neil G. Buckley","50 Oakland Street",null,"Wellesley Hills","MA","02481","Sue Mazzarella","781-338-3587","susan.mazzarella@mass.gov",null,null,null,null,null,null,null,null,null,null,null,null,null,"Yes"]
[117,"12130000","Massasoit Community College","Post-Secondary","President","Dr. Gena Glickman","1 Massasoit Boulevard",null,"Brockton","MA","02302-3996","Alex Chiu","781-338-3586","alexandria.w.chiu@mass.gov",null,null,null,null,null,null,null,null,null,null,null,null,null,"Yes"]
[118,"12140000","Middlesex Community College","Post-Secondary","Chief Financial Officer","Frank Nocella","33 Kearney Square",null,"Lowell","MA","01852","Alex Chiu","781-338-3586","alexandria.w.chiu@mass.gov",null,null,null,null,null,null,null,null,null,null,null,null,null,"Yes"]
[119,"12150000","Mount Wachusett Community College","Post-Secondary","President","James Vander Hooven","444 Green Street",null,"Gardner","MA","01440","Alex Chiu","781-338-3586","alexandria.w.chiu@mass.gov",null,null,null,null,null,null,null,null,null,null,null,null,null,"Yes"]
[120,"12250000","North Shore Community College","Post-Secondary","President","Patricia A. Gentile, Ed.D.","1 Ferncroft Road",null,"Danvers","MA ","01923","Alex Chiu","781-338-3586","alexandria.w.chiu@mass.gov",null,null,null,null,null,null,null,null,null,null,null,null,null,"Yes"]
[121,"12300000","Northern Essex Community College","Post-Secondary","President","Lane A. Glenn","100 Elliott Street",null,"Haverhill","MA ","01830","Colleen Holforty","781-338-3522","colleen.e.holforty@mass.gov",null,null,null,null,null,null,null,null,null,null,null,null,null,"Yes"]
[122,"12990000","Perkins Postsecondary Consortium","Post-Secondary","Superintendent","James Brosnan","c/o 70 Hodges Cross Rd",null,"North Adams","MA","01247","Alex Chiu","781-338-3586","alexandria.w.chiu@mass.gov"]
[123,"32350000","Quincy College","Post-Secondary","President","Michael G. Bellotti","1250 Hancock St ",null,"Quincy","MA","02169","Alex Chiu","781-338-3586","alexandria.w.chiu@mass.gov"]
[124,"12400000","Quinsigamond Community College","Post-Secondary","CFO, COO, and VP of Administrative Services","Stephen Marini","670 West Boylston Street",null,"Worcester ","MA","01606","Alex Chiu","781-338-3586","alexandria.w.chiu@mass.gov",null,null,null,null,null,null,null,null,null,null,null,null,null,"Yes"]
[125,"12450000","Roxbury Community College","Post-Secondary","President","Valerie R. Roberson, Ph.D.","1234 Columbus Avenue",null,"Boston","MA","02120","Alex Chiu","781-338-3586","alexandria.w.chiu@mass.gov"]
[126,"12570000","Springfield Tech Community College","Post-Secondary","President","Dr. John B. Cook, Ph.D. ","One Armory Square",null,"Springfield","MA","01102-9000","Russ Fleming","781-338-6259","russellw.fleming@mass.gov"]
[null,null,null,null,null,null,null,null,null,null,null,null,null,null,null,null,null,"",{"$f":"IFERROR(VLOOKUP(B129,#REF!, 5, FALSE), \"\")","v":""},null,"","","","","",""]
[null,null,null,null,null,null,null,null,null,null,null,null,null,null,null,null,null,"","",null,"","","","","",""]
[null,null,null,null,null,null,null,null,null,null,null,null,null,null,null,null,null,null,"",null,"","","","","",""]
[null,null,null,null,null,null,null,null,null,null,null,null,null,null,null,null,null,null,null,null,null,"","","","",""]
[null,null,null,null,null,null,null,null,null,null,null,null,null,null,null,null,null,null,null,null,null,null,"","","",""]
[null,null,null,null,null,null,null,null,null,null,null,null,null,null,null,null,null,null,null,null,null,null,"","","",""]
[null,null,null,null,null,null,null,null,null,null,null,null,null,null,null,null,null,null,null,null,null,null,null,"",null,""]

{"sheet":"DataDistCIP","index":16,"n_rows":1495,"n_cols":7,"rows_kept":1495,"cut":false,"hidden":true,"merged":[]}
["SCHOOL_YEAR","LEANO","ORG_NAME","CTE","CIP_CODE","CIP_DESC","ENROLLMENT_TOT"]
["2020","0016","Attleboro","C74","100301","Graphic Communications",65]
["2020","0016","Attleboro","C74","110401","Information Support Services & Networking",37]
["2020","0016","Attleboro","C74","120500","Culinary Arts",85]
["2020","0016","Attleboro","C74","131210","Early Education and Care",55]
["2020","0016","Attleboro","C74","150000","Engineering Technology",46]
["2020","0016","Attleboro","C74","460201","Carpentry",79]
["2020","0016","Attleboro","C74","460302","Electricity",35]
["2020","0016","Attleboro","C74","460503","Plumbing",52]
["2020","0016","Attleboro","C74","470604","Automotive Technology",57]
["2020","0016","Attleboro","C74","480599","Metal Fabrication & Joining Technologies",20]
["2020","0016","Attleboro","C74","510801","Medical Assisting",113]
["2020","0016","Attleboro","C74","990100","Exploratory",419]
["2020","0016","Attleboro","C74",null,"All Programs",1063]
["2020","0020","Barnstable","C74","150507","Environmental Science & Technology",63]
["2020","0020","Barnstable","C74",null,"All Programs",63]
["2020","0020","Barnstable","N74","1250","Culinary Arts",82]
["2020","0020","Barnstable","N74","1320","Early Education and Care",45]
["2020","0020","Barnstable","N74","5100","Health Assisting",32]
["2020","0020","Barnstable","N74",null,"All Programs",159]
["2020","0030","Beverly","N74","1250","Culinary Arts",67]
["2020","0030","Beverly","N74","1923","Marketing/Finance",133]
["2020","0030","Beverly","N74",null,"All Programs",200]
["2020","0035","Boston","C74","090701","Radio & Television Broadcasting",32]
["2020","0035","Boston","C74","100301","Graphic Communications",29]
["2020","0035","Boston","C74","110201","Programming & Web Development",55]
["2020","0035","Boston","C74","110401","Information Support Services & Networking",29]
["2020","0035","Boston","C74","120401","Cosmetology",41]
["2020","0035","Boston","C74","120500","Culinary Arts",32]
["2020","0035","Boston","C74","190203","Marketing",26]
["2020","0035","Boston","C74","430107","Criminal Justice",49]
["2020","0035","Boston","C74","460201","Carpentry",31]
["2020","0035","Boston","C74","460302","Electricity",48]
["2020","0035","Boston","C74","460401","Building/Property Maintenance",40]
["2020","0035","Boston","C74","460503","Plumbing",32]
["2020","0035","Boston","C74","470603","Automotive Collision Repair & Refinishing",38]
["2020","0035","Boston","C74","470604","Automotive Technology",54]
["2020","0035","Boston","C74","480599","Metal Fabrication & Joining Technologies",20]
["2020","0035","Boston","C74","500401","Design & Visual Communications",151]
["2020","0035","Boston","C74","500407","Fashion Technology",22]
["2020","0035","Boston","C74","510000","Health Assisting",87]
["2020","0035","Boston","C74","510601","Dental Assisting",35]
["2020","0035","Boston","C74","510801","Medical Assisting",12]
["2020","0035","Boston","C74","520407","Business Technology",39]
["2020","0035","Boston","C74","520901","Hospitality Management",36]
["2020","0035","Boston","C74","990100","Exploratory",453]
["2020","0035","Boston","C74",null,"All Programs",1391]
["2020","0035","Boston","N74","0971","Radio & Television Broadcasting",55]
["2020","0035","Boston","N74","1320","Early Education and Care",42]
["2020","0035","Boston","N74","1500","Engineering Technology",170]
["2020","0035","Boston","N74","1541","Biotechnology",63]
["2020","0035","Boston","N74","4300","Criminal Justice",83]
["2020","0035","Boston","N74","5041","Design & Visual Communications",170]
["2020","0035","Boston","N74","5181","Medical Assisting",39]
["2020","0035","Boston","N74","5291","Hospitality Management",60]
["2020","0035","Boston","N74","9900","Exploratory",39]
["2020","0035","Boston","N74",null,"All Programs",721]
["2020","0044","Brockton","C74","100301","Graphic Communications",31]
["2020","0044","Brockton","C74","460201","Carpentry",26]
["2020","0044","Brockton","C74","470604","Automotive Technology",22]
["2020","0044","Brockton","C74","990100","Exploratory",170]
["2020","0044","Brockton","C74",null,"All Programs",249]
["2020","0044","Brockton","N74","1250","Culinary Arts",11]
["2020","0044","Brockton","N74","1923","Marketing/Finance",14]
["2020","0044","Brockton","N74","5100","Health Assisting",154]
["2020","0044","Brockton","N74","5247","Business Technology",19]
["2020","0044","Brockton","N74",null,"All Programs",198]
["2020","0046","Brookline","N74","1121","Programming & Web Development",115]
["2020","0046","Brookline","N74","1250","Culinary Arts",165]
["2020","0046","Brookline","N74","1320","Early Education and Care",15]
["2020","0046","Brookline","N74","1500","Engineering Technology",28]
["2020","0046","Brookline","N74","1923","Marketing/Finance",64]
["2020","0046","Brookline","N74","4873","Cabinetmaking",16]
["2020","0046","Brookline","N74",null,"All Programs",403]
["2020","0049","Cambridge","C74","090701","Radio & Television Broadcasting",28]
["2020","0049","Cambridge","C74","100301","Graphic Communications",20]
["2020","0049","Cambridge","C74","110201","Programming & Web Development",38]
["2020","0049","Cambridge","C74","110401","Information Support Services & Networking",31]
["2020","0049","Cambridge","C74","120500","Culinary Arts",59]
["2020","0049","Cambridge","C74","131210","Early Education and Care",27]
["2020","0049","Cambridge","C74","150000","Engineering Technology",59]
["2020","0049","Cambridge","C74","150401","Biotechnology",65]
["2020","0049","Cambridge","C74","460201","Carpentry",47]
["2020","0049","Cambridge","C74","470604","Automotive Technology",37]
["2020","0049","Cambridge","C74","500401","Design & Visual Communications",32]
["2020","0049","Cambridge","C74","510000","Health Assisting",50]
["2020","0049","Cambridge","C74","990100","Exploratory",85]
["2020","0049","Cambridge","C74",null,"All Programs",578]
["2020","0049","Cambridge","N74","0971","Radio & Television Broadcasting",13]
["2020","0049","Cambridge","N74","1031","Graphic Communications",9]
["2020","0049","Cambridge","N74","1121","Programming & Web Development",76]
["2020","0049","Cambridge","N74","1250","Culinary Arts",25]
["2020","0049","Cambridge","N74","1320","Early Education and Care",22]
["2020","0049","Cambridge","N74","1541","Biotechnology",1]
["2020","0049","Cambridge","N74","1543","Robotics and Automation Technology",9]
["2020","0049","Cambridge","N74","1923","Marketing/Finance",95]
["2020","0049","Cambridge","N74","4764","Automotive Technology",10]
["2020","0049","Cambridge","N74",null,"All Programs",260]
["2020","0061","Chicopee","C74","010601","Horticulture",28]
["2020","0061","Chicopee","C74","110401","Information Support Services & Networking",48]
["2020","0061","Chicopee","C74","120500","Culinary Arts",41]
["2020","0061","Chicopee","C74","151301","Drafting",21]
["2020","0061","Chicopee","C74","460201","Carpentry",41]
["2020","0061","Chicopee","C74","460302","Electricity",54]
["2020","0061","Chicopee","C74","470604","Automotive Technology",47]
["2020","0061","Chicopee","C74","480501","Machine Tool Technology",26]
["2020","0061","Chicopee","C74","480599","Metal Fabrication & Joining Technologies",29]
["2020","0061","Chicopee","C74","500401","Design & Visual Communications",52]
["2020","0061","Chicopee","C74","990100","Exploratory",212]
["2020","0061","Chicopee","C74",null,"All Programs",599]
["2020","0061","Chicopee","N74","1923","Marketing/Finance",3]
["2020","0061","Chicopee","N74","5100","Health Assisting",80]
["2020","0061","Chicopee","N74","5247","Business Technology",4]
["2020","0061","Chicopee","N74",null,"All Programs",87]
["2020","0064","Clinton","N74","1320","Early Education and Care",58]
["2020","0064","Clinton","N74","1500","Engineering Technology",18]
["2020","0064","Clinton","N74",null,"All Programs",76]
["2020","0086","Easthampton","N74","1031","Graphic Communications",50]
["2020","0086","Easthampton","N74","1121","Programming & Web Development",15]
["2020","0086","Easthampton","N74","1320","Early Education and Care",73]
["2020","0086","Easthampton","N74","1500","Engineering Technology",45]
["2020","0086","Easthampton","N74","5041","Design & Visual Communications",1]
["2020","0086","Easthampton","N74",null,"All Programs",184]
["2020","0093","Everett","C74","110201","Programming & Web Development",7]
["2020","0093","Everett","C74","120500","Culinary Arts",34]
["2020","0093","Everett","C74","190203","Marketing",26]
["2020","0093","Everett","C74","480501","Machine Tool Technology",28]
["2020","0093","Everett","C74","510000","Health Assisting",24]
["2020","0093","Everett","C74","510801","Medical Assisting",14]
["2020","0093","Everett","C74","520901","Hospitality Management",25]
["2020","0093","Everett","C74","990100","Exploratory",491]
["2020","0093","Everett","C74",null,"All Programs",649]
["2020","0093","Everett","N74","4621","Carpentry",1]
["2020","0093","Everett","N74","4851","Machine Tool Technology",1]
["2020","0093","Everett","N74","5100","Health Assisting",3]
["2020","0093","Everett","N74",null,"All Programs",5]
["2020","0095","Fall River","C74","120401","Cosmetology",48]
["2020","0095","Fall River","C74","120500","Culinary Arts",79]
["2020","0095","Fall River","C74","131210","Early Education and Care",75]
["2020","0095","Fall River","C74","150000","Engineering Technology",84]
["2020","0095","Fall River","C74","150507","Environmental Science & Technology",20]
["2020","0095","Fall River","C74","190203","Marketing",26]
["2020","0095","Fall River","C74","469999","Construction Craft Laborer",74]
["2020","0095","Fall River","C74","500401","Design & Visual Communications",55]
["2020","0095","Fall River","C74","510000","Health Assisting",81]
["2020","0095","Fall River","C74","990100","Exploratory",488]
["2020","0095","Fall River","C74",null,"All Programs",1030]
["2020","0095","Fall River","N74","0971","Radio & Television Broadcasting",137]
["2020","0095","Fall River","N74","1031","Graphic Communications",51]
["2020","0095","Fall River","N74","1121","Programming & Web Development",19]
["2020","0095","Fall River","N74","1250","Culinary Arts",21]
["2020","0095","Fall River","N74","1500","Engineering Technology",4]
["2020","0095","Fall River","N74","1531","Drafting",23]
["2020","0095","Fall River","N74","1533","Electronics",6]
["2020","0095","Fall River","N74","1541","Biotechnology",32]
["2020","0095","Fall River","N74","1557","Environmental Science & Technology",41]
["2020","0095","Fall River","N74","1923","Marketing/Finance",28]
["2020","0095","Fall River","N74","4621","Carpentry",31]
["2020","0095","Fall River","N74","4699","Construction Craft Laborer",1]
["2020","0095","Fall River","N74","5100","Health Assisting",14]
["2020","0095","Fall River","N74","9900","Exploratory",1]
["2020","0095","Fall River","N74",null,"All Programs",409]
["2020","0096","Falmouth","C74","131210","Early Education and Care",85]
["2020","0096","Falmouth","C74","500401","Design & Visual Communications",64]
["2020","0096","Falmouth","C74",null,"All Programs",149]
["2020","0096","Falmouth","N74","1121","Programming & Web Development",46]
["2020","0096","Falmouth","N74","1250","Culinary Arts",77]
["2020","0096","Falmouth","N74","1923","Marketing/Finance",45]
["2020","0096","Falmouth","N74","4621","Carpentry",81]
["2020","0096","Falmouth","N74",null,"All Programs",249]
["2020","0097","Fitchburg","N74","1500","Engineering Technology",3]
["2020","0097","Fitchburg","N74","5247","Business Technology",1]
["2020","0097","Fitchburg","N74","9900","Exploratory",135]
["2020","0097","Fitchburg","N74",null,"All Programs",139]
["2020","0100","Framingham","N74","0971","Radio & Television Broadcasting",20]
["2020","0100","Framingham","N74","1031","Graphic Communications",1]
["2020","0100","Framingham","N74","1121","Programming & Web Development",41]
["2020","0100","Framingham","N74","1320","Early Education and Care",52]
["2020","0100","Framingham","N74","1500","Engineering Technology",21]
["2020","0100","Framingham","N74","1531","Drafting",31]
["2020","0100","Framingham","N74","1907","Family & Consumer Studies (formerly vocational home economics)",243]
["2020","0100","Framingham","N74","5041","Design & Visual Communications",131]
["2020","0100","Framingham","N74",null,"All Programs",540]
["2020","0107","Gloucester","C74","460201","Carpentry",29]
["2020","0107","Gloucester","C74","460302","Electricity",20]
["2020","0107","Gloucester","C74","469999","Construction Craft Laborer",8]
["2020","0107","Gloucester","C74","470604","Automotive Technology",41]
["2020","0107","Gloucester","C74","480501","Machine Tool Technology",16]
["2020","0107","Gloucester","C74",null,"All Programs",114]
["2020","0107","Gloucester","N74","4873","Cabinetmaking",55]
["2020","0107","Gloucester","N74",null,"All Programs",55]
["2020","0128","Haverhill","C74","110201","Programming & Web Development",31]
["2020","0128","Haverhill","C74","110401","Information Support Services & Networking",68]
["2020","0128","Haverhill","C74",null,"All Programs",99]
["2020","0128","Haverhill","N74","5100","Health Assisting",79]
["2020","0128","Haverhill","N74",null,"All Programs",79]
["2020","0137","Holyoke","C74","110201","Programming & Web Development",13]
["2020","0137","Holyoke","C74","120401","Cosmetology",30]
["2020","0137","Holyoke","C74","120500","Culinary Arts",32]
["2020","0137","Holyoke","C74","460201","Carpentry",21]
["2020","0137","Holyoke","C74","460302","Electricity",13]
["2020","0137","Holyoke","C74","470603","Automotive Collision Repair & Refinishing",20]
["2020","0137","Holyoke","C74","470605","Diesel Technology",14]
["2020","0137","Holyoke","C74","480501","Machine Tool Technology",7]
["2020","0137","Holyoke","C74","510000","Health Assisting",25]
["2020","0137","Holyoke","C74","990100","Exploratory",102]
["2020","0137","Holyoke","C74",null,"All Programs",277]
["2020","0149","Lawrence","C74","480501","Machine Tool Technology",50]
["2020","0149","Lawrence","C74",null,"All Programs",50]
["2020","0150","Lee","N74","4621","Carpentry",20]
["2020","0150","Lee","N74","5041","Design & Visual Communications",24]
["2020","0150","Lee","N74",null,"All Programs",44]
["2020","0153","Leominster","C74","100301","Graphic Communications",32]
["2020","0153","Leominster","C74","110401","Information Support Services & Networking",23]
["2020","0153","Leominster","C74","120500","Culinary Arts",41]
["2020","0153","Leominster","C74","150303","Electronics",36]
["2020","0153","Leominster","C74","151301","Drafting",21]
["2020","0153","Leominster","C74","460201","Carpentry",41]
["2020","0153","Leominster","C74","460302","Electricity",39]
["2020","0153","Leominster","C74","460503","Plumbing",40]
["2020","0153","Leominster","C74","470201","Heating - Ventilation  - Air Conditioning -  Refrigeration",42]
["2020","0153","Leominster","C74","470603","Automotive Collision Repair & Refinishing",26]
["2020","0153","Leominster","C74","470604","Automotive Technology",26]
["2020","0153","Leominster","C74","480501","Machine Tool Technology",28]
["2020","0153","Leominster","C74","510000","Health Assisting",68]
["2020","0153","Leominster","C74","990100","Exploratory",215]
["2020","0153","Leominster","C74",null,"All Programs",678]
["2020","0153","Leominster","N74","1500","Engineering Technology",22]
["2020","0153","Leominster","N74",null,"All Programs",22]
["2020","0160","Lowell","C74","190203","Marketing",229]
["2020","0160","Lowell","C74",null,"All Programs",229]
["2020","0160","Lowell","N74","0971","Radio & Television Broadcasting",130]
["2020","0160","Lowell","N74","1031","Graphic Communications",68]
["2020","0160","Lowell","N74","1121","Programming & Web Development",64]
["2020","0160","Lowell","N74","1250","Culinary Arts",61]
["2020","0160","Lowell","N74","1500","Engineering Technology",176]
["2020","0160","Lowell","N74","1541","Biotechnology",9]
["2020","0160","Lowell","N74","1557","Environmental Science & Technology",9]
["2020","0160","Lowell","N74","1907","Family & Consumer Studies (formerly vocational home economics)",91]
["2020","0160","Lowell","N74","1923","Marketing/Finance",237]
["2020","0160","Lowell","N74","5041","Design & Visual Communications",1]
["2020","0160","Lowell","N74","5100","Health Assisting",162]
["2020","0160","Lowell","N74",null,"All Programs",1008]
["2020","0163","Lynn","C74","090701","Radio & Television Broadcasting",51]
["2020","0163","Lynn","C74","100301","Graphic Communications",16]
["2020","0163","Lynn","C74","110201","Programming & Web Development",26]
["2020","0163","Lynn","C74","120401","Cosmetology",32]
["2020","0163","Lynn","C74","120500","Culinary Arts",45]
["2020","0163","Lynn","C74","131210","Early Education and Care",51]
["2020","0163","Lynn","C74","150000","Engineering Technology",41]
["2020","0163","Lynn","C74","460201","Carpentry",44]
["2020","0163","Lynn","C74","460302","Electricity",53]
["2020","0163","Lynn","C74","460503","Plumbing",48]
["2020","0163","Lynn","C74","470603","Automotive Collision Repair & Refinishing",52]
["2020","0163","Lynn","C74","470604","Automotive Technology",49]
["2020","0163","Lynn","C74","480501","Machine Tool Technology",35]
["2020","0163","Lynn","C74","480599","Metal Fabrication & Joining Technologies",40]
["2020","0163","Lynn","C74","510000","Health Assisting",103]
["2020","0163","Lynn","C74","990100","Exploratory",284]
["2020","0163","Lynn","C74",null,"All Programs",970]
["2020","0163","Lynn","N74","1141","Information Support Services & Networking",41]
["2020","0163","Lynn","N74","4721","Heating - Ventilation  - Air Conditioning -  Refrigeration",18]
["2020","0163","Lynn","N74",null,"All Programs",59]
["2020","0171","Marshfield","C74","190203","Marketing",87]
["2020","0171","Marshfield","C74",null,"All Programs",87]
["2020","0171","Marshfield","N74","1031","Graphic Communications",5]
["2020","0171","Marshfield","N74","4621","Carpentry",90]
["2020","0171","Marshfield","N74",null,"All Programs",95]
["2020","0172","Mashpee","N74","1250","Culinary Arts",48]
["2020","0172","Mashpee","N74","1320","Early Education and Care",34]
["2020","0172","Mashpee","N74","1500","Engineering Technology",25]
["2020","0172","Mashpee","N74","1531","Drafting",26]
["2020","0172","Mashpee","N74","1543","Robotics and Automation Technology",15]
["2020","0172","Mashpee","N74","1923","Marketing/Finance",24]
["2020","0172","Mashpee","N74","4873","Cabinetmaking",45]
["2020","0172","Mashpee","N74","5041","Design & Visual Communications",45]
["2020","0172","Mashpee","N74","5047","Fashion Technology",10]
["2020","0172","Mashpee","N74",null,"All Programs",272]
["2020","0174","Maynard","C74","090701","Radio & Television Broadcasting",11]
["2020","0174","Maynard","C74",null,"All Programs",11]
["2020","0176","Medford","C74","090701","Radio & Television Broadcasting",9]
["2020","0176","Medford","C74","100301","Graphic Communications",36]
["2020","0176","Medford","C74","110201","Programming & Web Development",21]
["2020","0176","Medford","C74","120401","Cosmetology",25]
["2020","0176","Medford","C74","120500","Culinary Arts",22]
["2020","0176","Medford","C74","131210","Early Education and Care",11]
["2020","0176","Medford","C74","150000","Engineering Technology",12]
["2020","0176","Medford","C74","150401","Biotechnology",18]
["2020","0176","Medford","C74","150403","Robotics and Automation Technology",9]
["2020","0176","Medford","C74","460201","Carpentry",24]
["2020","0176","Medford","C74","460302","Electricity",42]
["2020","0176","Medford","C74","469999","Construction Craft Laborer",41]
["2020","0176","Medford","C74","470603","Automotive Collision Repair & Refinishing",1]
["2020","0176","Medford","C74","470604","Automotive Technology",30]
["2020","0176","Medford","C74","480599","Metal Fabrication & Joining Technologies",18]
["2020","0176","Medford","C74","510000","Health Assisting",34]
["2020","0176","Medford","C74","520407","Business Technology",14]
["2020","0176","Medford","C74","990100","Exploratory",229]
["2020","0176","Medford","C74",null,"All Programs",596]
["2020","0181","Methuen","C74","110201","Programming & Web Development",93]
["2020","0181","Methuen","C74","131210","Early Education and Care",100]
["2020","0181","Methuen","C74","150401","Biotechnology",95]
["2020","0181","Methuen","C74","190203","Marketing",236]
["2020","0181","Methuen","C74",null,"All Programs",524]
["2020","0181","Methuen","N74","0971","Radio & Television Broadcasting",78]
["2020","0181","Methuen","N74","1543","Robotics and Automation Technology",31]
["2020","0181","Methuen","N74",null,"All Programs",109]
["2020","0185","Milford","C74","520901","Hospitality Management",28]
["2020","0185","Milford","C74",null,"All Programs",28]
["2020","0185","Milford","N74","0971","Radio & Television Broadcasting",138]
["2020","0185","Milford","N74","1031","Graphic Communications",209]
["2020","0185","Milford","N74","1121","Programming & Web Development",140]
["2020","0185","Milford","N74","1141","Information Support Services & Networking",133]
["2020","0185","Milford","N74","1250","Culinary Arts",113]
["2020","0185","Milford","N74","1320","Early Education and Care",60]
["2020","0185","Milford","N74","1923","Marketing/Finance",72]
["2020","0185","Milford","N74",null,"All Programs",865]
["2020","0186","Millbury","N74","5041","Design & Visual Communications",3]
["2020","0186","Millbury","N74",null,"All Programs",3]
["2020","0201","New Bedford","N74","0971","Radio & Television Broadcasting",1]
["2020","0201","New Bedford","N74","1031","Graphic Communications",2]
["2020","0201","New Bedford","N74","1121","Programming & Web Development",13]
["2020","0201","New Bedford","N74","1141","Information Support Services & Networking",10]
["2020","0201","New Bedford","N74","1250","Culinary Arts",9]
["2020","0201","New Bedford","N74","1320","Early Education and Care",25]
["2020","0201","New Bedford","N74","1500","Engineering Technology",22]
["2020","0201","New Bedford","N74","1923","Marketing/Finance",64]
["2020","0201","New Bedford","N74","4300","Criminal Justice",3]
["2020","0201","New Bedford","N74","5041","Design & Visual Communications",3]
["2020","0201","New Bedford","N74","5100","Health Assisting",53]
["2020","0201","New Bedford","N74","5181","Medical Assisting",14]
["2020","0201","New Bedford","N74","5291","Hospitality Management",4]
["2020","0201","New Bedford","N74","9900","Exploratory",14]
["2020","0201","New Bedford","N74",null,"All Programs",237]
["2020","0207","Newton","C74","100301","Graphic Communications",55]
["2020","0207","Newton","C74","120500","Culinary Arts",63]
["2020","0207","Newton","C74","131210","Early Education and Care",26]
["2020","0207","Newton","C74","151301","Drafting",41]
["2020","0207","Newton","C74","460201","Carpentry",33]
["2020","0207","Newton","C74","470604","Automotive Technology",29]
["2020","0207","Newton","C74","990100","Exploratory",233]
["2020","0207","Newton","C74",null,"All Programs",480]
["2020","0207","Newton","N74","0971","Radio & Television Broadcasting",27]
["2020","0207","Newton","N74","1500","Engineering Technology",22]
["2020","0207","Newton","N74","1543","Robotics and Automation Technology",41]
["2020","0207","Newton","N74","1923","Marketing/Finance",24]
["2020","0207","Newton","N74","5041","Design & Visual Communications",32]
["2020","0207","Newton","N74","9900","Exploratory",57]
["2020","0207","Newton","N74",null,"All Programs",203]
["2020","0218","Norton","C74","520407","Business Technology",42]
["2020","0218","Norton","C74",null,"All Programs",42]
["2020","0229","Peabody","C74","120401","Cosmetology",19]
["2020","0229","Peabody","C74","120500","Culinary Arts",109]
["2020","0229","Peabody","C74","131210","Early Education and Care",68]
["2020","0229","Peabody","C74","150303","Electronics",17]
["2020","0229","Peabody","C74","469999","Construction Craft Laborer",6]
["2020","0229","Peabody","C74","510801","Medical Assisting",52]
["2020","0229","Peabody","C74","990100","Exploratory",120]
["2020","0229","Peabody","C74",null,"All Programs",391]
["2020","0236","Pittsfield","C74","010601","Horticulture",7]
["2020","0236","Pittsfield","C74","120401","Cosmetology",30]
["2020","0236","Pittsfield","C74","120500","Culinary Arts",57]
["2020","0236","Pittsfield","C74","131210","Early Education and Care",17]
["2020","0236","Pittsfield","C74","460201","Carpentry",22]
["2020","0236","Pittsfield","C74","460302","Electricity",6]
["2020","0236","Pittsfield","C74","470604","Automotive Technology",26]
["2020","0236","Pittsfield","C74","480501","Machine Tool Technology",22]
["2020","0236","Pittsfield","C74","480599","Metal Fabrication & Joining Technologies",27]
["2020","0236","Pittsfield","C74","510000","Health Assisting",38]
["2020","0236","Pittsfield","C74","990100","Exploratory",120]
["2020","0236","Pittsfield","C74",null,"All Programs",372]
["2020","0236","Pittsfield","N74","4641","Building/Property Maintenance",20]
["2020","0236","Pittsfield","N74",null,"All Programs",20]
["2020","0239","Plymouth","C74","120401","Cosmetology",29]
["2020","0239","Plymouth","C74","120500","Culinary Arts",32]
["2020","0239","Plymouth","C74","131210","Early Education and Care",47]
["2020","0239","Plymouth","C74","151301","Drafting",42]
["2020","0239","Plymouth","C74","190203","Marketing",175]
["2020","0239","Plymouth","C74","460201","Carpentry",27]
["2020","0239","Plymouth","C74","460302","Electricity",39]
["2020","0239","Plymouth","C74","460503","Plumbing",30]
["2020","0239","Plymouth","C74","470604","Automotive Technology",24]
["2020","0239","Plymouth","C74","500401","Design & Visual Communications",40]
["2020","0239","Plymouth","C74","990100","Exploratory",128]
["2020","0239","Plymouth","C74",null,"All Programs",613]
["2020","0239","Plymouth","N74","1500","Engineering Technology",81]
["2020","0239","Plymouth","N74","4641","Building/Property Maintenance",56]
["2020","0239","Plymouth","N74","4721","Heating - Ventilation  - Air Conditioning -  Refrigeration",17]
["2020","0239","Plymouth","N74","4763","Automotive Collision Repair & Refinishing",17]
["2020","0239","Plymouth","N74","5100","Health Assisting",114]
["2020","0239","Plymouth","N74","5181","Medical Assisting",41]
["2020","0239","Plymouth","N74",null,"All Programs",326]
["2020","0243","Quincy","C74","090701","Radio & Television Broadcasting",68]
["2020","0243","Quincy","C74","110401","Information Support Services & Networking",40]
["2020","0243","Quincy","C74","120500","Culinary Arts",89]
["2020","0243","Quincy","C74","131210","Early Education and Care",85]
["2020","0243","Quincy","C74","150000","Engineering Technology",41]
["2020","0243","Quincy","C74","430107","Criminal Justice",39]
["2020","0243","Quincy","C74","460201","Carpentry",39]
["2020","0243","Quincy","C74","460302","Electricity",49]
["2020","0243","Quincy","C74","460503","Plumbing",41]
["2020","0243","Quincy","C74","470604","Automotive Technology",43]
["2020","0243","Quincy","C74","480599","Metal Fabrication & Joining Technologies",34]
["2020","0243","Quincy","C74","500401","Design & Visual Communications",48]
["2020","0243","Quincy","C74","500407","Fashion Technology",36]
["2020","0243","Quincy","C74","510000","Health Assisting",272]
["2020","0243","Quincy","C74","520407","Business Technology",55]
["2020","0243","Quincy","C74","990100","Exploratory",372]
["2020","0243","Quincy","C74",null,"All Programs",1351]
["2020","0243","Quincy","N74","1141","Information Support Services & Networking",17]
["2020","0243","Quincy","N74","1500","Engineering Technology",56]
["2020","0243","Quincy","N74","4621","Carpentry",63]
["2020","0243","Quincy","N74",null,"All Programs",136]
["2020","0258","Salem","C74","120500","Culinary Arts",50]
["2020","0258","Salem","C74","131210","Early Education and Care",49]
["2020","0258","Salem","C74","460302","Electricity",17]
["2020","0258","Salem","C74","460401","Building/Property Maintenance",31]
["2020","0258","Salem","C74","469999","Construction Craft Laborer",8]
["2020","0258","Salem","C74","470604","Automotive Technology",33]
["2020","0258","Salem","C74","480501","Machine Tool Technology",5]
["2020","0258","Salem","C74","510801","Medical Assisting",29]
["2020","0258","Salem","C74","990100","Exploratory",140]
["2020","0258","Salem","C74",null,"All Programs",362]
["2020","0258","Salem","N74","0971","Radio & Television Broadcasting",13]
["2020","0258","Salem","N74","1031","Graphic Communications",29]
["2020","0258","Salem","N74","1557","Environmental Science & Technology",20]
["2020","0258","Salem","N74","4621","Carpentry",58]
["2020","0258","Salem","N74","5041","Design & Visual Communications",45]
["2020","0258","Salem","N74","5247","Business Technology",3]
["2020","0258","Salem","N74",null,"All Programs",168]
["2020","0274","Somerville","C74","100301","Graphic Communications",37]
["2020","0274","Somerville","C74","110401","Information Support Services & Networking",14]
["2020","0274","Somerville","C74","120401","Cosmetology",36]
["2020","0274","Somerville","C74","120500","Culinary Arts",44]
["2020","0274","Somerville","C74","131210","Early Education and Care",27]
["2020","0274","Somerville","C74","151301","Drafting",45]
["2020","0274","Somerville","C74","460201","Carpentry",50]
["2020","0274","Somerville","C74","460302","Electricity",36]
["2020","0274","Somerville","C74","470604","Automotive Technology",36]
["2020","0274","Somerville","C74","480501","Machine Tool Technology",12]
["2020","0274","Somerville","C74","480599","Metal Fabrication & Joining Technologies",27]
["2020","0274","Somerville","C74","510000","Health Assisting",51]
["2020","0274","Somerville","C74","510601","Dental Assisting",34]
["2020","0274","Somerville","C74","990100","Exploratory",183]
["2020","0274","Somerville","C74",null,"All Programs",632]
["2020","0281","Springfield","C74","010601","Horticulture",16]
["2020","0281","Springfield","C74","100301","Graphic Communications",71]
["2020","0281","Springfield","C74","110401","Information Support Services & Networking",48]
["2020","0281","Springfield","C74","120401","Cosmetology",60]
["2020","0281","Springfield","C74","120500","Culinary Arts",65]
["2020","0281","Springfield","C74","131210","Early Education and Care",42]
["2020","0281","Springfield","C74","150403","Robotics and Automation Technology",56]
["2020","0281","Springfield","C74","190203","Marketing",63]
["2020","0281","Springfield","C74","460201","Carpentry",53]
["2020","0281","Springfield","C74","460302","Electricity",40]
["2020","0281","Springfield","C74","470201","Heating - Ventilation  - Air Conditioning -  Refrigeration",43]
["2020","0281","Springfield","C74","470603","Automotive Collision Repair & Refinishing",33]
["2020","0281","Springfield","C74","470604","Automotive Technology",55]
["2020","0281","Springfield","C74","480501","Machine Tool Technology",48]
["2020","0281","Springfield","C74","480506","Sheet Metalworking",10]
["2020","0281","Springfield","C74","480599","Metal Fabrication & Joining Technologies",25]
["2020","0281","Springfield","C74","500401","Design & Visual Communications",60]
["2020","0281","Springfield","C74","510000","Health Assisting",120]
["2020","0281","Springfield","C74","520407","Business Technology",33]
["2020","0281","Springfield","C74","520901","Hospitality Management",40]
["2020","0281","Springfield","C74","990100","Exploratory",358]
["2020","0281","Springfield","C74",null,"All Programs",1339]
["2020","0281","Springfield","N74","0971","Radio & Television Broadcasting",15]
["2020","0281","Springfield","N74","4699","Construction Craft Laborer",37]
["2020","0281","Springfield","N74",null,"All Programs",52]
["2020","0293","Taunton","C74","090701","Radio & Television Broadcasting",101]
["2020","0293","Taunton","C74","110201","Programming & Web Development",35]
["2020","0293","Taunton","C74","120500","Culinary Arts",115]
["2020","0293","Taunton","C74","151301","Drafting",85]
["2020","0293","Taunton","C74","190203","Marketing",67]
["2020","0293","Taunton","C74","520407","Business Technology",45]
["2020","0293","Taunton","C74","990100","Exploratory",255]
["2020","0293","Taunton","C74",null,"All Programs",703]
["2020","0293","Taunton","N74","1141","Information Support Services & Networking",35]
["2020","0293","Taunton","N74","1320","Early Education and Care",60]
["2020","0293","Taunton","N74","1923","Marketing/Finance",19]
["2020","0293","Taunton","N74","4300","Criminal Justice",31]
["2020","0293","Taunton","N74","4621","Carpentry",11]
["2020","0293","Taunton","N74","4873","Cabinetmaking",57]
["2020","0293","Taunton","N74","5041","Design & Visual Communications",45]
["2020","0293","Taunton","N74","5047","Fashion Technology",28]
["2020","0293","Taunton","N74","9900","Exploratory",107]
["2020","0293","Taunton","N74",null,"All Programs",393]
["2020","0308","Waltham","C74","090701","Radio & Television Broadcasting",45]
["2020","0308","Waltham","C74","100301","Graphic Communications",6]
["2020","0308","Waltham","C74","120500","Culinary Arts",25]
["2020","0308","Waltham","C74","131210","Early Education and Care",18]
["2020","0308","Waltham","C74","150303","Electronics",13]
["2020","0308","Waltham","C74","460201","Carpentry",34]
["2020","0308","Waltham","C74","460302","Electricity",17]
["2020","0308","Waltham","C74","470603","Automotive Collision Repair & Refinishing",15]
["2020","0308","Waltham","C74","470604","Automotive Technology",35]
["2020","0308","Waltham","C74","480599","Metal Fabrication & Joining Technologies",21]
["2020","0308","Waltham","C74","990100","Exploratory",156]
["2020","0308","Waltham","C74",null,"All Programs",385]
["2020","0308","Waltham","N74","5041","Design & Visual Communications",32]
["2020","0308","Waltham","N74","5047","Fashion Technology",22]
["2020","0308","Waltham","N74","5100","Health Assisting",15]
["2020","0308","Waltham","N74",null,"All Programs",69]
["2020","0310","Wareham","C74","190203","Marketing",55]
["2020","0310","Wareham","C74",null,"All Programs",55]
["2020","0314","Watertown","N74","0971","Radio & Television Broadcasting",16]
["2020","0314","Watertown","N74","1121","Programming & Web Development",18]
["2020","0314","Watertown","N74","1250","Culinary Arts",7]
["2020","0314","Watertown","N74","1500","Engineering Technology",11]
["2020","0314","Watertown","N74","1923","Marketing/Finance",30]
["2020","0314","Watertown","N74","4621","Carpentry",20]
["2020","0314","Watertown","N74","5041","Design & Visual Communications",15]
["2020","0314","Watertown","N74",null,"All Programs",117]
["2020","0316","Webster","C74","190203","Marketing",28]
["2020","0316","Webster","C74",null,"All Programs",28]
["2020","0325","Westfield","C74","010601","Horticulture",19]
["2020","0325","Westfield","C74","100301","Graphic Communications",31]
["2020","0325","Westfield","C74","110201","Programming & Web Development",23]
["2020","0325","Westfield","C74","110401","Information Support Services & Networking",21]
["2020","0325","Westfield","C74","120500","Culinary Arts",41]
["2020","0325","Westfield","C74","460201","Carpentry",35]
["2020","0325","Westfield","C74","460302","Electricity",44]
["2020","0325","Westfield","C74","470603","Automotive Collision Repair & Refinishing",29]
["2020","0325","Westfield","C74","470604","Automotive Technology",34]
["2020","0325","Westfield","C74","480501","Machine Tool Technology",35]
["2020","0325","Westfield","C74","510000","Health Assisting",29]
["2020","0325","Westfield","C74","520407","Business Technology",32]
["2020","0325","Westfield","C74","990100","Exploratory",156]
["2020","0325","Westfield","C74",null,"All Programs",529]
["2020","0325","Westfield","N74","4767","Airplane Mechanics and Aircraft Maintenance Technology/Technician",39]
["2020","0325","Westfield","N74",null,"All Programs",39]
["2020","0336","Weymouth","C74","100301","Graphic Communications",10]
["2020","0336","Weymouth","C74","110401","Information Support Services & Networking",25]
["2020","0336","Weymouth","C74","120401","Cosmetology",26]
["2020","0336","Weymouth","C74","120500","Culinary Arts",32]
["2020","0336","Weymouth","C74","131210","Early Education and Care",31]
["2020","0336","Weymouth","C74","151301","Drafting",7]
["2020","0336","Weymouth","C74","460201","Carpentry",43]
["2020","0336","Weymouth","C74","470604","Automotive Technology",34]
["2020","0336","Weymouth","C74","480599","Metal Fabrication & Joining Technologies",31]
["2020","0336","Weymouth","C74","510000","Health Assisting",49]
["2020","0336","Weymouth","C74","990100","Exploratory",154]
["2020","0336","Weymouth","C74",null,"All Programs",442]
["2020","0348","Worcester","C74","010599","Animal Science",58]
["2020","0348","Worcester","C74","100301","Graphic Communications",53]
["2020","0348","Worcester","C74","110401","Information Support Services & Networking",24]
["2020","0348","Worcester","C74","120401","Cosmetology",39]
["2020","0348","Worcester","C74","120500","Culinary Arts",105]
["2020","0348","Worcester","C74","131210","Early Education and Care",124]
["2020","0348","Worcester","C74","150000","Engineering Technology",374]
["2020","0348","Worcester","C74","150401","Biotechnology",52]
["2020","0348","Worcester","C74","150403","Robotics and Automation Technology",61]
["2020","0348","Worcester","C74","151301","Drafting",28]
["2020","0348","Worcester","C74","190203","Marketing",53]
["2020","0348","Worcester","C74","460201","Carpentry",56]
["2020","0348","Worcester","C74","460302","Electricity",60]
["2020","0348","Worcester","C74","460408","Painting & Design Technologies",57]
["2020","0348","Worcester","C74","460503","Plumbing",39]
["2020","0348","Worcester","C74","470201","Heating - Ventilation  - Air Conditioning -  Refrigeration",17]
["2020","0348","Worcester","C74","470603","Automotive Collision Repair & Refinishing",35]
["2020","0348","Worcester","C74","470604","Automotive Technology",72]
["2020","0348","Worcester","C74","470605","Diesel Technology",40]
["2020","0348","Worcester","C74","480501","Machine Tool Technology",25]
["2020","0348","Worcester","C74","480599","Metal Fabrication & Joining Technologies",40]
["2020","0348","Worcester","C74","510000","Health Assisting",162]
["2020","0348","Worcester","C74","520407","Business Technology",74]
["2020","0348","Worcester","C74","520901","Hospitality Management",58]
["2020","0348","Worcester","C74","990100","Exploratory",339]
["2020","0348","Worcester","C74",null,"All Programs",2045]
["2020","0348","Worcester","N74","1500","Engineering Technology",32]
["2020","0348","Worcester","N74","1923","Marketing/Finance",123]
["2020","0348","Worcester","N74","4300","Criminal Justice",18]
["2020","0348","Worcester","N74","4764","Automotive Technology",141]
["2020","0348","Worcester","N74","4765","Diesel Technology",1]
["2020","0348","Worcester","N74","5100","Health Assisting",79]
["2020","0348","Worcester","N74","5247","Business Technology",31]
["2020","0348","Worcester","N74","9900","Exploratory",1795]
["2020","0348","Worcester","N74",null,"All Programs",2220]
["2020","0406","Northampton-Smith Vocational Agricultural","C74","010201","Agricultural Mechanics",28]
["2020","0406","Northampton-Smith Vocational Agricultural","C74","010599","Animal Science",33]
["2020","0406","Northampton-Smith Vocational Agricultural","C74","010601","Horticulture",19]
["2020","0406","Northampton-Smith Vocational Agricultural","C74","100301","Graphic Communications",18]
["2020","0406","Northampton-Smith Vocational Agricultural","C74","120401","Cosmetology",19]
["2020","0406","Northampton-Smith Vocational Agricultural","C74","120500","Culinary Arts",20]
["2020","0406","Northampton-Smith Vocational Agricultural","C74","430107","Criminal Justice",31]
["2020","0406","Northampton-Smith Vocational Agricultural","C74","460201","Carpentry",12]
["2020","0406","Northampton-Smith Vocational Agricultural","C74","460302","Electricity",34]
["2020","0406","Northampton-Smith Vocational Agricultural","C74","460503","Plumbing",31]
["2020","0406","Northampton-Smith Vocational Agricultural","C74","470603","Automotive Collision Repair & Refinishing",20]
["2020","0406","Northampton-Smith Vocational Agricultural","C74","470604","Automotive Technology",23]
["2020","0406","Northampton-Smith Vocational Agricultural","C74","480501","Machine Tool Technology",20]
["2020","0406","Northampton-Smith Vocational Agricultural","C74","480703","Cabinetmaking",15]
["2020","0406","Northampton-Smith Vocational Agricultural","C74","510000","Health Assisting",28]
["2020","0406","Northampton-Smith Vocational Agricultural","C74","990100","Exploratory",145]
["2020","0406","Northampton-Smith Vocational Agricultural","C74",null,"All Programs",496]
["2020","0411","Boston Green Academy Horace Mann Charter School (District)","C74","150507","Environmental Science & Technology",58]
["2020","0411","Boston Green Academy Horace Mann Charter School (District)","C74",null,"All Programs",58]
["2020","0452","Edward M. Kennedy Academy for Health Careers (Horace Mann Charter) (District)","C74","510000","Health Assisting",273]
["2020","0452","Edward M. Kennedy Academy for Health Careers (Horace Mann Charter) (District)","C74",null,"All Programs",273]
["2020","0605","Amherst-Pelham","N74","0971","Radio & Television Broadcasting",107]
["2020","0605","Amherst-Pelham","N74","1500","Engineering Technology",245]
["2020","0605","Amherst-Pelham","N74",null,"All Programs",352]
["2020","0618","Berkshire Hills","C74","010601","Horticulture",11]
["2020","0618","Berkshire Hills","C74","470604","Automotive Technology",23]
["2020","0618","Berkshire Hills","C74",null,"All Programs",34]
["2020","0618","Berkshire Hills","N74","1141","Information Support Services & Networking",39]
["2020","0618","Berkshire Hills","N74","1320","Early Education and Care",27]
["2020","0618","Berkshire Hills","N74","1923","Marketing/Finance",22]
["2020","0618","Berkshire Hills","N74","4621","Carpentry",28]
["2020","0618","Berkshire Hills","N74",null,"All Programs",116]
["2020","0635","Central Berkshire","N74","5247","Business Technology",62]
["2020","0635","Central Berkshire","N74",null,"All Programs",62]
["2020","0650","Dighton-Rehoboth","C74","090701","Radio & Television Broadcasting",21]
["2020","0650","Dighton-Rehoboth","C74","131210","Early Education and Care",23]
["2020","0650","Dighton-Rehoboth","C74","151301","Drafting",42]
["2020","0650","Dighton-Rehoboth","C74","190203","Marketing",12]
["2020","0650","Dighton-Rehoboth","C74","460201","Carpentry",30]
["2020","0650","Dighton-Rehoboth","C74","470604","Automotive Technology",29]
["2020","0650","Dighton-Rehoboth","C74","480501","Machine Tool Technology",7]
["2020","0650","Dighton-Rehoboth","C74","990100","Exploratory",67]
["2020","0650","Dighton-Rehoboth","C74",null,"All Programs",231]
["2020","0650","Dighton-Rehoboth","N74","4621","Carpentry",4]
["2020","0650","Dighton-Rehoboth","N74","5247","Business Technology",34]
["2020","0650","Dighton-Rehoboth","N74",null,"All Programs",38]
["2020","0672","Gateway","C74","131210","Early Education and Care",10]
["2020","0672","Gateway","C74","480599","Metal Fabrication & Joining Technologies",39]
["2020","0672","Gateway","C74",null,"All Programs",49]
["2020","0700","Martha's Vineyard","C74","010601","Horticulture",25]
["2020","0700","Martha's Vineyard","C74","120500","Culinary Arts",43]
["2020","0700","Martha's Vineyard","C74","460201","Carpentry",37]
["2020","0700","Martha's Vineyard","C74","470604","Automotive Technology",35]
["2020","0700","Martha's Vineyard","C74","510000","Health Assisting",16]
["2020","0700","Martha's Vineyard","C74","990100","Exploratory",134]
["2020","0700","Martha's Vineyard","C74",null,"All Programs",290]
["2020","0760","Silver Lake","C74","010601","Horticulture",27]
["2020","0760","Silver Lake","C74","120500","Culinary Arts",20]
["2020","0760","Silver Lake","C74","131210","Early Education and Care",30]
["2020","0760","Silver Lake","C74","460201","Carpentry",26]
["2020","0760","Silver Lake","C74","470604","Automotive Technology",33]
["2020","0760","Silver Lake","C74","480599","Metal Fabrication & Joining Technologies",32]
["2020","0760","Silver Lake","C74","990100","Exploratory",96]
["2020","0760","Silver Lake","C74",null,"All Programs",264]
["2020","0760","Silver Lake","N74","5100","Health Assisting",15]
["2020","0760","Silver Lake","N74",null,"All Programs",15]
["2020","0763","Somerset Berkley Regional School District","C74","190203","Marketing",45]
["2020","0763","Somerset Berkley Regional School District","C74",null,"All Programs",45]
["2020","0765","Southern Berkshire","N74","1141","Information Support Services & Networking",25]
["2020","0765","Southern Berkshire","N74","1250","Culinary Arts",10]
["2020","0765","Southern Berkshire","N74","4621","Carpentry",9]
["2020","0765","Southern Berkshire","N74",null,"All Programs",44]
["2020","0767","Spencer-E Brookfield","C74","190203","Marketing",103]
["2020","0767","Spencer-E Brookfield","C74",null,"All Programs",103]
["2020","0770","Tantasqua","C74","110401","Information Support Services & Networking",40]
["2020","0770","Tantasqua","C74","120500","Culinary Arts",35]
["2020","0770","Tantasqua","C74","151301","Drafting",45]
["2020","0770","Tantasqua","C74","460201","Carpentry",41]
["2020","0770","Tantasqua","C74","460302","Electricity",52]
["2020","0770","Tantasqua","C74","480501","Machine Tool Technology",40]
["2020","0770","Tantasqua","C74","510000","Health Assisting",61]
["2020","0770","Tantasqua","C74","520407","Business Technology",19]
["2020","0770","Tantasqua","C74","520901","Hospitality Management",19]
["2020","0770","Tantasqua","C74","990100","Exploratory",149]
["2020","0770","Tantasqua","C74",null,"All Programs",501]
["2020","0801","Assabet Valley Regional Vocational Technical","C74","110201","Programming & Web Development",42]
["2020","0801","Assabet Valley Regional Vocational Technical","C74","120401","Cosmetology",45]
["2020","0801","Assabet Valley Regional Vocational Technical","C74","120500","Culinary Arts",57]
["2020","0801","Assabet Valley Regional Vocational Technical","C74","150401","Biotechnology",37]
["2020","0801","Assabet Valley Regional Vocational Technical","C74","151301","Drafting",30]
["2020","0801","Assabet Valley Regional Vocational Technical","C74","460201","Carpentry",54]
["2020","0801","Assabet Valley Regional Vocational Technical","C74","460302","Electricity",56]
["2020","0801","Assabet Valley Regional Vocational Technical","C74","460408","Painting & Design Technologies",39]
["2020","0801","Assabet Valley Regional Vocational Technical","C74","460503","Plumbing",55]
["2020","0801","Assabet Valley Regional Vocational Technical","C74","470201","Heating - Ventilation  - Air Conditioning -  Refrigeration",53]
["2020","0801","Assabet Valley Regional Vocational Technical","C74","470603","Automotive Collision Repair & Refinishing",39]
["2020","0801","Assabet Valley Regional Vocational Technical","C74","470604","Automotive Technology",45]
["2020","0801","Assabet Valley Regional Vocational Technical","C74","480501","Machine Tool Technology",38]
["2020","0801","Assabet Valley Regional Vocational Technical","C74","480599","Metal Fabrication & Joining Technologies",54]
["2020","0801","Assabet Valley Regional Vocational Technical","C74","500401","Design & Visual Communications",72]
["2020","0801","Assabet Valley Regional Vocational Technical","C74","510000","Health Assisting",79]
["2020","0801","Assabet Valley Regional Vocational Technical","C74","520407","Business Technology",46]
["2020","0801","Assabet Valley Regional Vocational Technical","C74","990100","Exploratory",300]
["2020","0801","Assabet Valley Regional Vocational Technical","C74",null,"All Programs",1141]
["2020","0805","Blackstone Valley Regional Vocational Technical","C74","110401","Information Support Services & Networking",57]
["2020","0805","Blackstone Valley Regional Vocational Technical","C74","120401","Cosmetology",50]
["2020","0805","Blackstone Valley Regional Vocational Technical","C74","120500","Culinary Arts",79]
["2020","0805","Blackstone Valley Regional Vocational Technical","C74","150000","Engineering Technology",57]
["2020","0805","Blackstone Valley Regional Vocational Technical","C74","150303","Electronics",50]
["2020","0805","Blackstone Valley Regional Vocational Technical","C74","151301","Drafting",48]
["2020","0805","Blackstone Valley Regional Vocational Technical","C74","460201","Carpentry",55]
["2020","0805","Blackstone Valley Regional Vocational Technical","C74","460302","Electricity",46]
["2020","0805","Blackstone Valley Regional Vocational Technical","C74","460408","Painting & Design Technologies",43]
["2020","0805","Blackstone Valley Regional Vocational Technical","C74","460503","Plumbing",46]
["2020","0805","Blackstone Valley Regional Vocational Technical","C74","470201","Heating - Ventilation  - Air Conditioning -  Refrigeration",45]
["2020","0805","Blackstone Valley Regional Vocational Technical","C74","470603","Automotive Collision Repair & Refinishing",20]
["2020","0805","Blackstone Valley Regional Vocational Technical","C74","470604","Automotive Technology",47]
["2020","0805","Blackstone Valley Regional Vocational Technical","C74","480501","Machine Tool Technology",44]
["2020","0805","Blackstone Valley Regional Vocational Technical","C74","500401","Design & Visual Communications",64]
["2020","0805","Blackstone Valley Regional Vocational Technical","C74","510000","Health Assisting",73]
["2020","0805","Blackstone Valley Regional Vocational Technical","C74","510601","Dental Assisting",46]
["2020","0805","Blackstone Valley Regional Vocational Technical","C74","520407","Business Technology",41]
["2020","0805","Blackstone Valley Regional Vocational Technical","C74","990100","Exploratory",313]
["2020","0805","Blackstone Valley Regional Vocational Technical","C74",null,"All Programs",1224]
["2020","0806","Blue Hills Regional Vocational Technical","C74","100301","Graphic Communications",36]
["2020","0806","Blue Hills Regional Vocational Technical","C74","110401","Information Support Services & Networking",34]
["2020","0806","Blue Hills Regional Vocational Technical","C74","120401","Cosmetology",25]
["2020","0806","Blue Hills Regional Vocational Technical","C74","120500","Culinary Arts",46]
["2020","0806","Blue Hills Regional Vocational Technical","C74","131210","Early Education and Care",32]
["2020","0806","Blue Hills Regional Vocational Technical","C74","150000","Engineering Technology",33]
["2020","0806","Blue Hills Regional Vocational Technical","C74","150303","Electronics",27]
["2020","0806","Blue Hills Regional Vocational Technical","C74","151301","Drafting",43]
["2020","0806","Blue Hills Regional Vocational Technical","C74","430107","Criminal Justice",41]
["2020","0806","Blue Hills Regional Vocational Technical","C74","460201","Carpentry",42]
["2020","0806","Blue Hills Regional Vocational Technical","C74","460302","Electricity",46]
["2020","0806","Blue Hills Regional Vocational Technical","C74","470201","Heating - Ventilation  - Air Conditioning -  Refrigeration",32]
["2020","0806","Blue Hills Regional Vocational Technical","C74","470603","Automotive Collision Repair & Refinishing",24]
["2020","0806","Blue Hills Regional Vocational Technical","C74","470604","Automotive Technology",35]
["2020","0806","Blue Hills Regional Vocational Technical","C74","480599","Metal Fabrication & Joining Technologies",32]
["2020","0806","Blue Hills Regional Vocational Technical","C74","500401","Design & Visual Communications",33]
["2020","0806","Blue Hills Regional Vocational Technical","C74","510000","Health Assisting",57]
["2020","0806","Blue Hills Regional Vocational Technical","C74","990100","Exploratory",238]
["2020","0806","Blue Hills Regional Vocational Technical","C74",null,"All Programs",856]
["2020","0810","Bristol-Plymouth Regional Vocational Technical","C74","100301","Graphic Communications",24]
["2020","0810","Bristol-Plymouth Regional Vocational Technical","C74","110401","Information Support Services & Networking",49]
["2020","0810","Bristol-Plymouth Regional Vocational Technical","C74","120401","Cosmetology",52]
["2020","0810","Bristol-Plymouth Regional Vocational Technical","C74","120500","Culinary Arts",52]
["2020","0810","Bristol-Plymouth Regional Vocational Technical","C74","131210","Early Education and Care",55]
["2020","0810","Bristol-Plymouth Regional Vocational Technical","C74","150000","Engineering Technology",18]
["2020","0810","Bristol-Plymouth Regional Vocational Technical","C74","150401","Biotechnology",53]
["2020","0810","Bristol-Plymouth Regional Vocational Technical","C74","151301","Drafting",25]
["2020","0810","Bristol-Plymouth Regional Vocational Technical","C74","190203","Marketing",20]
["2020","0810","Bristol-Plymouth Regional Vocational Technical","C74","460201","Carpentry",60]
["2020","0810","Bristol-Plymouth Regional Vocational Technical","C74","460302","Electricity",70]
["2020","0810","Bristol-Plymouth Regional Vocational Technical","C74","460503","Plumbing",52]
["2020","0810","Bristol-Plymouth Regional Vocational Technical","C74","470201","Heating - Ventilation  - Air Conditioning -  Refrigeration",64]
["2020","0810","Bristol-Plymouth Regional Vocational Technical","C74","470603","Automotive Collision Repair & Refinishing",53]
["2020","0810","Bristol-Plymouth Regional Vocational Technical","C74","470604","Automotive Technology",52]
["2020","0810","Bristol-Plymouth Regional Vocational Technical","C74","480501","Machine Tool Technology",19]
["2020","0810","Bristol-Plymouth Regional Vocational Technical","C74","480599","Metal Fabrication & Joining Technologies",55]
["2020","0810","Bristol-Plymouth Regional Vocational Technical","C74","500401","Design & Visual Communications",49]
["2020","0810","Bristol-Plymouth Regional Vocational Technical","C74","510000","Health Assisting",62]
["2020","0810","Bristol-Plymouth Regional Vocational Technical","C74","510601","Dental Assisting",52]
["2020","0810","Bristol-Plymouth Regional Vocational Technical","C74","520407","Business Technology",12]
["2020","0810","Bristol-Plymouth Regional Vocational Technical","C74","990100","Exploratory",357]
["2020","0810","Bristol-Plymouth Regional Vocational Technical","C74",null,"All Programs",1305]
["2020","0815","Cape Cod Regional Vocational Technical","C74","010601","Horticulture",33]
["2020","0815","Cape Cod Regional Vocational Technical","C74","110401","Information Support Services & Networking",41]
["2020","0815","Cape Cod Regional Vocational Technical","C74","120401","Cosmetology",27]
["2020","0815","Cape Cod Regional Vocational Technical","C74","120500","Culinary Arts",30]
["2020","0815","Cape Cod Regional Vocational Technical","C74","150000","Engineering Technology",23]
["2020","0815","Cape Cod Regional Vocational Technical","C74","460201","Carpentry",28]
["2020","0815","Cape Cod Regional Vocational Technical","C74","460302","Electricity",35]
["2020","0815","Cape Cod Regional Vocational Technical","C74","460503","Plumbing",27]
["2020","0815","Cape Cod Regional Vocational Technical","C74","470201","Heating - Ventilation  - Air Conditioning -  Refrigeration",28]
["2020","0815","Cape Cod Regional Vocational Technical","C74","470603","Automotive Collision Repair & Refinishing",30]
["2020","0815","Cape Cod Regional Vocational Technical","C74","470604","Automotive Technology",29]
["2020","0815","Cape Cod Regional Vocational Technical","C74","470616","Marine Service Technology",33]
["2020","0815","Cape Cod Regional Vocational Technical","C74","500401","Design & Visual Communications",37]
["2020","0815","Cape Cod Regional Vocational Technical","C74","510000","Health Assisting",39]
["2020","0815","Cape Cod Regional Vocational Technical","C74","510601","Dental Assisting",14]
["2020","0815","Cape Cod Regional Vocational Technical","C74","990100","Exploratory",162]
["2020","0815","Cape Cod Regional Vocational Technical","C74",null,"All Programs",616]
["2020","0817","Essex North Shore Agricultural and Technical School District","C74","010599","Animal Science",184]
["2020","0817","Essex North Shore Agricultural and Technical School District","C74","010601","Horticulture",78]
["2020","0817","Essex North Shore Agricultural and Technical School District","C74","100301","Graphic Communications",36]
["2020","0817","Essex North Shore Agricultural and Technical School District","C74","110401","Information Support Services & Networking",49]
["2020","0817","Essex North Shore Agricultural and Technical School District","C74","120401","Cosmetology",36]
["2020","0817","Essex North Shore Agricultural and Technical School District","C74","120500","Culinary Arts",66]
["2020","0817","Essex North Shore Agricultural and Technical School District","C74","150000","Engineering Technology",12]
["2020","0817","Essex North Shore Agricultural and Technical School District","C74","150401","Biotechnology",49]
["2020","0817","Essex North Shore Agricultural and Technical School District","C74","150507","Environmental Science & Technology",89]
["2020","0817","Essex North Shore Agricultural and Technical School District","C74","460101","Masonry & Tile Setting",26]
["2020","0817","Essex North Shore Agricultural and Technical School District","C74","460201","Carpentry",45]
["2020","0817","Essex North Shore Agricultural and Technical School District","C74","460302","Electricity",61]
["2020","0817","Essex North Shore Agricultural and Technical School District","C74","460503","Plumbing",52]
["2020","0817","Essex North Shore Agricultural and Technical School District","C74","470201","Heating - Ventilation  - Air Conditioning -  Refrigeration",40]
["2020","0817","Essex North Shore Agricultural and Technical School District","C74","470603","Automotive Collision Repair & Refinishing",16]
["2020","0817","Essex North Shore Agricultural and Technical School District","C74","470604","Automotive Technology",39]
["2020","0817","Essex North Shore Agricultural and Technical School District","C74","480501","Machine Tool Technology",32]
["2020","0817","Essex North Shore Agricultural and Technical School District","C74","500401","Design & Visual Communications",41]
["2020","0817","Essex North Shore Agricultural and Technical School District","C74","510000","Health Assisting",68]
["2020","0817","Essex North Shore Agricultural and Technical School District","C74","510601","Dental Assisting",54]
["2020","0817","Essex North Shore Agricultural and Technical School District","C74","990100","Exploratory",419]
["2020","0817","Essex North Shore Agricultural and Technical School District","C74",null,"All Programs",1492]
["2020","0818","Franklin County Regional Vocational Technical","C74","010601","Horticulture",26]
["2020","0818","Franklin County Regional Vocational Technical","C74","110201","Programming & Web Development",30]
["2020","0818","Franklin County Regional Vocational Technical","C74","120401","Cosmetology",28]
["2020","0818","Franklin County Regional Vocational Technical","C74","120500","Culinary Arts",31]
["2020","0818","Franklin County Regional Vocational Technical","C74","460201","Carpentry",28]
["2020","0818","Franklin County Regional Vocational Technical","C74","460302","Electricity",31]
["2020","0818","Franklin County Regional Vocational Technical","C74","460503","Plumbing",33]
["2020","0818","Franklin County Regional Vocational Technical","C74","470603","Automotive Collision Repair & Refinishing",34]
["2020","0818","Franklin County Regional Vocational Technical","C74","470604","Automotive Technology",29]
["2020","0818","Franklin County Regional Vocational Technical","C74","480501","Machine Tool Technology",26]
["2020","0818","Franklin County Regional Vocational Technical","C74","480599","Metal Fabrication & Joining Technologies",31]
["2020","0818","Franklin County Regional Vocational Technical","C74","510000","Health Assisting",26]
["2020","0818","Franklin County Regional Vocational Technical","C74","990100","Exploratory",152]
["2020","0818","Franklin County Regional Vocational Technical","C74",null,"All Programs",505]
["2020","0821","Greater Fall River Regional Vocational Technical","C74","100301","Graphic Communications",72]
["2020","0821","Greater Fall River Regional Vocational Technical","C74","110201","Programming & Web Development",38]
["2020","0821","Greater Fall River Regional Vocational Technical","C74","120500","Culinary Arts",90]
["2020","0821","Greater Fall River Regional Vocational Technical","C74","150303","Electronics",57]
["2020","0821","Greater Fall River Regional Vocational Technical","C74","151301","Drafting",48]
["2020","0821","Greater Fall River Regional Vocational Technical","C74","460201","Carpentry",68]
["2020","0821","Greater Fall River Regional Vocational Technical","C74","460302","Electricity",60]
["2020","0821","Greater Fall River Regional Vocational Technical","C74","460401","Building/Property Maintenance",59]
["2020","0821","Greater Fall River Regional Vocational Technical","C74","460503","Plumbing",45]
["2020","0821","Greater Fall River Regional Vocational Technical","C74","470201","Heating - Ventilation  - Air Conditioning -  Refrigeration",58]
["2020","0821","Greater Fall River Regional Vocational Technical","C74","470603","Automotive Collision Repair & Refinishing",45]
["2020","0821","Greater Fall River Regional Vocational Technical","C74","470604","Automotive Technology",66]
["2020","0821","Greater Fall River Regional Vocational Technical","C74","480501","Machine Tool Technology",65]
["2020","0821","Greater Fall River Regional Vocational Technical","C74","480599","Metal Fabrication & Joining Technologies",69]
["2020","0821","Greater Fall River Regional Vocational Technical","C74","510000","Health Assisting",89]
["2020","0821","Greater Fall River Regional Vocational Technical","C74","510601","Dental Assisting",53]
["2020","0821","Greater Fall River Regional Vocational Technical","C74","510801","Medical Assisting",15]
["2020","0821","Greater Fall River Regional Vocational Technical","C74","520407","Business Technology",66]
["2020","0821","Greater Fall River Regional Vocational Technical","C74","990100","Exploratory",370]
["2020","0821","Greater Fall River Regional Vocational Technical","C74",null,"All Programs",1433]
["2020","0823","Greater Lawrence Regional Vocational Technical","C74","010601","Horticulture",24]
["2020","0823","Greater Lawrence Regional Vocational Technical","C74","100301","Graphic Communications",42]
["2020","0823","Greater Lawrence Regional Vocational Technical","C74","110401","Information Support Services & Networking",68]
["2020","0823","Greater Lawrence Regional Vocational Technical","C74","120401","Cosmetology",58]
["2020","0823","Greater Lawrence Regional Vocational Technical","C74","120500","Culinary Arts",76]
["2020","0823","Greater Lawrence Regional Vocational Technical","C74","150000","Engineering Technology",54]
["2020","0823","Greater Lawrence Regional Vocational Technical","C74","150303","Electronics",8]
["2020","0823","Greater Lawrence Regional Vocational Technical","C74","150401","Biotechnology",33]
["2020","0823","Greater Lawrence Regional Vocational Technical","C74","460201","Carpentry",77]
["2020","0823","Greater Lawrence Regional Vocational Technical","C74","460302","Electricity",78]
["2020","0823","Greater Lawrence Regional Vocational Technical","C74","460503","Plumbing",79]
["2020","0823","Greater Lawrence Regional Vocational Technical","C74","470201","Heating - Ventilation  - Air Conditioning -  Refrigeration",66]
["2020","0823","Greater Lawrence Regional Vocational Technical","C74","470603","Automotive Collision Repair & Refinishing",53]
["2020","0823","Greater Lawrence Regional Vocational Technical","C74","470604","Automotive Technology",71]
["2020","0823","Greater Lawrence Regional Vocational Technical","C74","480501","Machine Tool Technology",55]
["2020","0823","Greater Lawrence Regional Vocational Technical","C74","480599","Metal Fabrication & Joining Technologies",62]
["2020","0823","Greater Lawrence Regional Vocational Technical","C74","510000","Health Assisting",93]
["2020","0823","Greater Lawrence Regional Vocational Technical","C74","510601","Dental Assisting",57]
["2020","0823","Greater Lawrence Regional Vocational Technical","C74","510801","Medical Assisting",47]
["2020","0823","Greater Lawrence Regional Vocational Technical","C74","520407","Business Technology",58]
["2020","0823","Greater Lawrence Regional Vocational Technical","C74","990100","Exploratory",432]
["2020","0823","Greater Lawrence Regional Vocational Technical","C74",null,"All Programs",1591]
["2020","0825","Greater New Bedford Regional Vocational Technical","C74","110201","Programming & Web Development",32]
["2020","0825","Greater New Bedford Regional Vocational Technical","C74","110401","Information Support Services & Networking",66]
["2020","0825","Greater New Bedford Regional Vocational Technical","C74","120401","Cosmetology",71]
["2020","0825","Greater New Bedford Regional Vocational Technical","C74","120500","Culinary Arts",93]
["2020","0825","Greater New Bedford Regional Vocational Technical","C74","131210","Early Education and Care",59]
["2020","0825","Greater New Bedford Regional Vocational Technical","C74","150000","Engineering Technology",75]
["2020","0825","Greater New Bedford Regional Vocational Technical","C74","150507","Environmental Science & Technology",25]
["2020","0825","Greater New Bedford Regional Vocational Technical","C74","151301","Drafting",59]
["2020","0825","Greater New Bedford Regional Vocational Technical","C74","430107","Criminal Justice",91]
["2020","0825","Greater New Bedford Regional Vocational Technical","C74","460201","Carpentry",106]
["2020","0825","Greater New Bedford Regional Vocational Technical","C74","460302","Electricity",118]
["2020","0825","Greater New Bedford Regional Vocational Technical","C74","460503","Plumbing",55]
["2020","0825","Greater New Bedford Regional Vocational Technical","C74","470201","Heating - Ventilation  - Air Conditioning -  Refrigeration",74]
["2020","0825","Greater New Bedford Regional Vocational Technical","C74","470603","Automotive Collision Repair & Refinishing",33]
["2020","0825","Greater New Bedford Regional Vocational Technical","C74","470604","Automotive Technology",84]
["2020","0825","Greater New Bedford Regional Vocational Technical","C74","470605","Diesel Technology",39]
["2020","0825","Greater New Bedford Regional Vocational Technical","C74","479999","Stationary Engineering",43]
["2020","0825","Greater New Bedford Regional Vocational Technical","C74","480501","Machine Tool Technology",33]
["2020","0825","Greater New Bedford Regional Vocational Technical","C74","480599","Metal Fabrication & Joining Technologies",39]
["2020","0825","Greater New Bedford Regional Vocational Technical","C74","500401","Design & Visual Communications",122]
["2020","0825","Greater New Bedford Regional Vocational Technical","C74","500407","Fashion Technology",13]
["2020","0825","Greater New Bedford Regional Vocational Technical","C74","510000","Health Assisting",70]
["2020","0825","Greater New Bedford Regional Vocational Technical","C74","510601","Dental Assisting",60]
["2020","0825","Greater New Bedford Regional Vocational Technical","C74","510801","Medical Assisting",95]
["2020","0825","Greater New Bedford Regional Vocational Technical","C74","520407","Business Technology",14]
["2020","0825","Greater New Bedford Regional Vocational Technical","C74","990100","Exploratory",547]
["2020","0825","Greater New Bedford Regional Vocational Technical","C74",null,"All Programs",2116]
["2020","0828","Greater Lowell Regional Vocational Technical","C74","100301","Graphic Communications",56]
["2020","0828","Greater Lowell Regional Vocational Technical","C74","110201","Programming & Web Development",81]
["2020","0828","Greater Lowell Regional Vocational Technical","C74","120401","Cosmetology",87]
["2020","0828","Greater Lowell Regional Vocational Technical","C74","120500","Culinary Arts",88]
["2020","0828","Greater Lowell Regional Vocational Technical","C74","131210","Early Education and Care",78]
["2020","0828","Greater Lowell Regional Vocational Technical","C74","150000","Engineering Technology",66]
["2020","0828","Greater Lowell Regional Vocational Technical","C74","150303","Electronics",28]
["2020","0828","Greater Lowell Regional Vocational Technical","C74","151301","Drafting",62]
["2020","0828","Greater Lowell Regional Vocational Technical","C74","190203","Marketing",90]
["2020","0828","Greater Lowell Regional Vocational Technical","C74","460101","Masonry & Tile Setting",64]
["2020","0828","Greater Lowell Regional Vocational Technical","C74","460201","Carpentry",85]
["2020","0828","Greater Lowell Regional Vocational Technical","C74","460302","Electricity",88]
["2020","0828","Greater Lowell Regional Vocational Technical","C74","460408","Painting & Design Technologies",31]
["2020","0828","Greater Lowell Regional Vocational Technical","C74","460503","Plumbing",89]
["2020","0828","Greater Lowell Regional Vocational Technical","C74","470201","Heating - Ventilation  - Air Conditioning -  Refrigeration",70]
["2020","0828","Greater Lowell Regional Vocational Technical","C74","470603","Automotive Collision Repair & Refinishing",21]
["2020","0828","Greater Lowell Regional Vocational Technical","C74","470604","Automotive Technology",81]
["2020","0828","Greater Lowell Regional Vocational Technical","C74","480501","Machine Tool Technology",50]
["2020","0828","Greater Lowell Regional Vocational Technical","C74","480599","Metal Fabrication & Joining Technologies",54]
["2020","0828","Greater Lowell Regional Vocational Technical","C74","500401","Design & Visual Communications",62]
["2020","0828","Greater Lowell Regional Vocational Technical","C74","510000","Health Assisting",185]
["2020","0828","Greater Lowell Regional Vocational Technical","C74","510801","Medical Assisting",120]
["2020","0828","Greater Lowell Regional Vocational Technical","C74","520901","Hospitality Management",28]
["2020","0828","Greater Lowell Regional Vocational Technical","C74","990100","Exploratory",607]
["2020","0828","Greater Lowell Regional Vocational Technical","C74",null,"All Programs",2271]
["2020","0829","South Middlesex Regional Vocational Technical","C74","010601","Horticulture",41]
["2020","0829","South Middlesex Regional Vocational Technical","C74","100301","Graphic Communications",10]
["2020","0829","South Middlesex Regional Vocational Technical","C74","110201","Programming & Web Development",41]
["2020","0829","South Middlesex Regional Vocational Technical","C74","110401","Information Support Services & Networking",21]
["2020","0829","South Middlesex Regional Vocational Technical","C74","120401","Cosmetology",38]
["2020","0829","South Middlesex Regional Vocational Technical","C74","120500","Culinary Arts",38]
["2020","0829","South Middlesex Regional Vocational Technical","C74","131210","Early Education and Care",26]
["2020","0829","South Middlesex Regional Vocational Technical","C74","430107","Criminal Justice",47]
["2020","0829","South Middlesex Regional Vocational Technical","C74","460201","Carpentry",40]
["2020","0829","South Middlesex Regional Vocational Technical","C74","460302","Electricity",49]
["2020","0829","South Middlesex Regional Vocational Technical","C74","460503","Plumbing",46]
["2020","0829","South Middlesex Regional Vocational Technical","C74","470604","Automotive Technology",48]
["2020","0829","South Middlesex Regional Vocational Technical","C74","480599","Metal Fabrication & Joining Technologies",24]
["2020","0829","South Middlesex Regional Vocational Technical","C74","500401","Design & Visual Communications",40]
["2020","0829","South Middlesex Regional Vocational Technical","C74","510000","Health Assisting",39]
["2020","0829","South Middlesex Regional Vocational Technical","C74","510601","Dental Assisting",27]
["2020","0829","South Middlesex Regional Vocational Technical","C74","990100","Exploratory",209]
["2020","0829","South Middlesex Regional Vocational Technical","C74",null,"All Programs",784]
["2020","0830","Minuteman Regional Vocational Technical","C74","010601","Horticulture",11]
["2020","0830","Minuteman Regional Vocational Technical","C74","110201","Programming & Web Development",16]
["2020","0830","Minuteman Regional Vocational Technical","C74","120401","Cosmetology",10]
["2020","0830","Minuteman Regional Vocational Technical","C74","120500","Culinary Arts",22]
["2020","0830","Minuteman Regional Vocational Technical","C74","131210","Early Education and Care",23]
["2020","0830","Minuteman Regional Vocational Technical","C74","150000","Engineering Technology",10]
["2020","0830","Minuteman Regional Vocational Technical","C74","150401","Biotechnology",15]
["2020","0830","Minuteman Regional Vocational Technical","C74","150403","Robotics and Automation Technology",13]
["2020","0830","Minuteman Regional Vocational Technical","C74","150507","Environmental Science & Technology",17]
["2020","0830","Minuteman Regional Vocational Technical","C74","460201","Carpentry",19]
["2020","0830","Minuteman Regional Vocational Technical","C74","460302","Electricity",29]
["2020","0830","Minuteman Regional Vocational Technical","C74","460503","Plumbing",26]
["2020","0830","Minuteman Regional Vocational Technical","C74","470604","Automotive Technology",17]
["2020","0830","Minuteman Regional Vocational Technical","C74","480501","Machine Tool Technology",9]
["2020","0830","Minuteman Regional Vocational Technical","C74","480599","Metal Fabrication & Joining Technologies",13]
["2020","0830","Minuteman Regional Vocational Technical","C74","500401","Design & Visual Communications",29]
["2020","0830","Minuteman Regional Vocational Technical","C74","510000","Health Assisting",12]
["2020","0830","Minuteman Regional Vocational Technical","C74","990100","Exploratory",307]
["2020","0830","Minuteman Regional Vocational Technical","C74",null,"All Programs",598]
["2020","0832","Montachusett Regional Vocational Technical","C74","010599","Animal Science",44]
["2020","0832","Montachusett Regional Vocational Technical","C74","100301","Graphic Communications",64]
["2020","0832","Montachusett Regional Vocational Technical","C74","110201","Programming & Web Development",29]
["2020","0832","Montachusett Regional Vocational Technical","C74","120401","Cosmetology",68]
["2020","0832","Montachusett Regional Vocational Technical","C74","120500","Culinary Arts",78]
["2020","0832","Montachusett Regional Vocational Technical","C74","131210","Early Education and Care",42]
["2020","0832","Montachusett Regional Vocational Technical","C74","150000","Engineering Technology",42]
["2020","0832","Montachusett Regional Vocational Technical","C74","151301","Drafting",48]
["2020","0832","Montachusett Regional Vocational Technical","C74","460101","Masonry & Tile Setting",45]
["2020","0832","Montachusett Regional Vocational Technical","C74","460201","Carpentry",43]
["2020","0832","Montachusett Regional Vocational Technical","C74","460302","Electricity",65]
["2020","0832","Montachusett Regional Vocational Technical","C74","460401","Building/Property Maintenance",50]
["2020","0832","Montachusett Regional Vocational Technical","C74","460503","Plumbing",54]
["2020","0832","Montachusett Regional Vocational Technical","C74","470603","Automotive Collision Repair & Refinishing",46]
["2020","0832","Montachusett Regional Vocational Technical","C74","470604","Automotive Technology",46]
["2020","0832","Montachusett Regional Vocational Technical","C74","480501","Machine Tool Technology",38]
["2020","0832","Montachusett Regional Vocational Technical","C74","480599","Metal Fabrication & Joining Technologies",40]
["2020","0832","Montachusett Regional Vocational Technical","C74","480703","Cabinetmaking",51]
["2020","0832","Montachusett Regional Vocational Technical","C74","510000","Health Assisting",79]
["2020","0832","Montachusett Regional Vocational Technical","C74","510601","Dental Assisting",45]
["2020","0832","Montachusett Regional Vocational Technical","C74","520407","Business Technology",55]
["2020","0832","Montachusett Regional Vocational Technical","C74","990100","Exploratory",358]
["2020","0832","Montachusett Regional Vocational Technical","C74",null,"All Programs",1430]
["2020","0851","Northern Berkshire Regional Vocational Technical","C74","110401","Information Support Services & Networking",55]
["2020","0851","Northern Berkshire Regional Vocational Technical","C74","120500","Culinary Arts",25]
["2020","0851","Northern Berkshire Regional Vocational Technical","C74","151301","Drafting",51]
["2020","0851","Northern Berkshire Regional Vocational Technical","C74","460201","Carpentry",42]
["2020","0851","Northern Berkshire Regional Vocational Technical","C74","460302","Electricity",42]
["2020","0851","Northern Berkshire Regional Vocational Technical","C74","470604","Automotive Technology",30]
["2020","0851","Northern Berkshire Regional Vocational Technical","C74","480501","Machine Tool Technology",42]
["2020","0851","Northern Berkshire Regional Vocational Technical","C74","480599","Metal Fabrication & Joining Technologies",40]
["2020","0851","Northern Berkshire Regional Vocational Technical","C74","520407","Business Technology",40]
["2020","0851","Northern Berkshire Regional Vocational Technical","C74","990100","Exploratory",140]
["2020","0851","Northern Berkshire Regional Vocational Technical","C74",null,"All Programs",507]
["2020","0852","Nashoba Valley Regional Vocational Technical","C74","010599","Animal Science",46]
["2020","0852","Nashoba Valley Regional Vocational Technical","C74","090701","Radio & Television Broadcasting",26]
["2020","0852","Nashoba Valley Regional Vocational Technical","C74","110201","Programming & Web Development",21]
["2020","0852","Nashoba Valley Regional Vocational Technical","C74","120401","Cosmetology",24]
["2020","0852","Nashoba Valley Regional Vocational Technical","C74","120500","Culinary Arts",28]
["2020","0852","Nashoba Valley Regional Vocational Technical","C74","131210","Early Education and Care",33]
["2020","0852","Nashoba Valley Regional Vocational Technical","C74","150000","Engineering Technology",40]
["2020","0852","Nashoba Valley Regional Vocational Technical","C74","150401","Biotechnology",4]
["2020","0852","Nashoba Valley Regional Vocational Technical","C74","150403","Robotics and Automation Technology",6]
["2020","0852","Nashoba Valley Regional Vocational Technical","C74","190203","Marketing",13]
["2020","0852","Nashoba Valley Regional Vocational Technical","C74","460201","Carpentry",17]
["2020","0852","Nashoba Valley Regional Vocational Technical","C74","460302","Electricity",67]
["2020","0852","Nashoba Valley Regional Vocational Technical","C74","460503","Plumbing",53]
["2020","0852","Nashoba Valley Regional Vocational Technical","C74","470603","Automotive Collision Repair & Refinishing",14]
["2020","0852","Nashoba Valley Regional Vocational Technical","C74","470604","Automotive Technology",29]
["2020","0852","Nashoba Valley Regional Vocational Technical","C74","480501","Machine Tool Technology",12]
["2020","0852","Nashoba Valley Regional Vocational Technical","C74","500401","Design & Visual Communications",39]
["2020","0852","Nashoba Valley Regional Vocational Technical","C74","510000","Health Assisting",31]
["2020","0852","Nashoba Valley Regional Vocational Technical","C74","510601","Dental Assisting",10]
["2020","0852","Nashoba Valley Regional Vocational Technical","C74","520901","Hospitality Management",9]
["2020","0852","Nashoba Valley Regional Vocational Technical","C74","990100","Exploratory",187]
["2020","0852","Nashoba Valley Regional Vocational Technical","C74",null,"All Programs",709]
["2020","0853","Northeast Metropolitan Regional Vocational Technical","C74","120401","Cosmetology",62]
["2020","0853","Northeast Metropolitan Regional Vocational Technical","C74","120500","Culinary Arts",33]
["2020","0853","Northeast Metropolitan Regional Vocational Technical","C74","131210","Early Education and Care",36]
["2020","0853","Northeast Metropolitan Regional Vocational Technical","C74","150403","Robotics and Automation Technology",36]
["2020","0853","Northeast Metropolitan Regional Vocational Technical","C74","151301","Drafting",61]
["2020","0853","Northeast Metropolitan Regional Vocational Technical","C74","460201","Carpentry",68]
["2020","0853","Northeast Metropolitan Regional Vocational Technical","C74","460302","Electricity",105]
["2020","0853","Northeast Metropolitan Regional Vocational Technical","C74","460503","Plumbing",76]
["2020","0853","Northeast Metropolitan Regional Vocational Technical","C74","470201","Heating - Ventilation  - Air Conditioning -  Refrigeration",63]
["2020","0853","Northeast Metropolitan Regional Vocational Technical","C74","470603","Automotive Collision Repair & Refinishing",22]
["2020","0853","Northeast Metropolitan Regional Vocational Technical","C74","470604","Automotive Technology",65]
["2020","0853","Northeast Metropolitan Regional Vocational Technical","C74","480599","Metal Fabrication & Joining Technologies",31]
["2020","0853","Northeast Metropolitan Regional Vocational Technical","C74","500401","Design & Visual Communications",59]
["2020","0853","Northeast Metropolitan Regional Vocational Technical","C74","510000","Health Assisting",85]
["2020","0853","Northeast Metropolitan Regional Vocational Technical","C74","510601","Dental Assisting",83]
["2020","0853","Northeast Metropolitan Regional Vocational Technical","C74","520407","Business Technology",54]
["2020","0853","Northeast Metropolitan Regional Vocational Technical","C74","990100","Exploratory",336]
["2020","0853","Northeast Metropolitan Regional Vocational Technical","C74",null,"All Programs",1275]
["2020","0855","Old Colony Regional Vocational Technical","C74","100301","Graphic Communications",41]
["2020","0855","Old Colony Regional Vocational Technical","C74","110201","Programming & Web Development",22]
["2020","0855","Old Colony Regional Vocational Technical","C74","120401","Cosmetology",19]
["2020","0855","Old Colony Regional Vocational Technical","C74","120500","Culinary Arts",42]
["2020","0855","Old Colony Regional Vocational Technical","C74","150303","Electronics",26]
["2020","0855","Old Colony Regional Vocational Technical","C74","151301","Drafting",34]
["2020","0855","Old Colony Regional Vocational Technical","C74","460201","Carpentry",35]
["2020","0855","Old Colony Regional Vocational Technical","C74","460302","Electricity",34]
["2020","0855","Old Colony Regional Vocational Technical","C74","470604","Automotive Technology",34]
["2020","0855","Old Colony Regional Vocational Technical","C74","480501","Machine Tool Technology",33]
["2020","0855","Old Colony Regional Vocational Technical","C74","480599","Metal Fabrication & Joining Technologies",35]
["2020","0855","Old Colony Regional Vocational Technical","C74","510000","Health Assisting",36]
["2020","0855","Old Colony Regional Vocational Technical","C74","520407","Business Technology",15]
["2020","0855","Old Colony Regional Vocational Technical","C74","990100","Exploratory",150]
["2020","0855","Old Colony Regional Vocational Technical","C74",null,"All Programs",556]
["2020","0860","Pathfinder Regional Vocational Technical","C74","010601","Horticulture",31]
["2020","0860","Pathfinder Regional Vocational Technical","C74","110201","Programming & Web Development",27]
["2020","0860","Pathfinder Regional Vocational Technical","C74","120401","Cosmetology",35]
["2020","0860","Pathfinder Regional Vocational Technical","C74","120500","Culinary Arts",49]
["2020","0860","Pathfinder Regional Vocational Technical","C74","150303","Electronics",28]
["2020","0860","Pathfinder Regional Vocational Technical","C74","151301","Drafting",18]
["2020","0860","Pathfinder Regional Vocational Technical","C74","460201","Carpentry",36]
["2020","0860","Pathfinder Regional Vocational Technical","C74","460302","Electricity",32]
["2020","0860","Pathfinder Regional Vocational Technical","C74","470201","Heating - Ventilation  - Air Conditioning -  Refrigeration",22]
["2020","0860","Pathfinder Regional Vocational Technical","C74","470603","Automotive Collision Repair & Refinishing",19]
["2020","0860","Pathfinder Regional Vocational Technical","C74","470604","Automotive Technology",39]
["2020","0860","Pathfinder Regional Vocational Technical","C74","480501","Machine Tool Technology",43]
["2020","0860","Pathfinder Regional Vocational Technical","C74","510000","Health Assisting",30]
["2020","0860","Pathfinder Regional Vocational Technical","C74","520407","Business Technology",26]
["2020","0860","Pathfinder Regional Vocational Technical","C74","520901","Hospitality Management",31]
["2020","0860","Pathfinder Regional Vocational Technical","C74","990100","Exploratory",160]
["2020","0860","Pathfinder Regional Vocational Technical","C74",null,"All Programs",626]
["2020","0871","Shawsheen Valley Regional Vocational Technical","C74","100301","Graphic Communications",52]
["2020","0871","Shawsheen Valley Regional Vocational Technical","C74","110401","Information Support Services & Networking",71]
["2020","0871","Shawsheen Valley Regional Vocational Technical","C74","120401","Cosmetology",44]
["2020","0871","Shawsheen Valley Regional Vocational Technical","C74","120500","Culinary Arts",37]
["2020","0871","Shawsheen Valley Regional Vocational Technical","C74","150303","Electronics",21]
["2020","0871","Shawsheen Valley Regional Vocational Technical","C74","151301","Drafting",35]
["2020","0871","Shawsheen Valley Regional Vocational Technical","C74","460101","Masonry & Tile Setting",31]
["2020","0871","Shawsheen Valley Regional Vocational Technical","C74","460201","Carpentry",63]
["2020","0871","Shawsheen Valley Regional Vocational Technical","C74","460302","Electricity",72]
["2020","0871","Shawsheen Valley Regional Vocational Technical","C74","460503","Plumbing",52]
["2020","0871","Shawsheen Valley Regional Vocational Technical","C74","470201","Heating - Ventilation  - Air Conditioning -  Refrigeration",47]
["2020","0871","Shawsheen Valley Regional Vocational Technical","C74","470603","Automotive Collision Repair & Refinishing",13]
["2020","0871","Shawsheen Valley Regional Vocational Technical","C74","470604","Automotive Technology",61]
["2020","0871","Shawsheen Valley Regional Vocational Technical","C74","480501","Machine Tool Technology",31]
["2020","0871","Shawsheen Valley Regional Vocational Technical","C74","480599","Metal Fabrication & Joining Technologies",38]
["2020","0871","Shawsheen Valley Regional Vocational Technical","C74","500401","Design & Visual Communications",69]
["2020","0871","Shawsheen Valley Regional Vocational Technical","C74","510000","Health Assisting",72]
["2020","0871","Shawsheen Valley Regional Vocational Technical","C74","510601","Dental Assisting",43]
["2020","0871","Shawsheen Valley Regional Vocational Technical","C74","510801","Medical Assisting",53]
["2020","0871","Shawsheen Valley Regional Vocational Technical","C74","520407","Business Technology",53]
["2020","0871","Shawsheen Valley Regional Vocational Technical","C74","990100","Exploratory",307]
["2020","0871","Shawsheen Valley Regional Vocational Technical","C74",null,"All Programs",1265]
["2020","0872","Southeastern Regional Vocational Technical","C74","090701","Radio & Television Broadcasting",57]
["2020","0872","Southeastern Regional Vocational Technical","C74","120401","Cosmetology",41]
["2020","0872","Southeastern Regional Vocational Technical","C74","120500","Culinary Arts",59]
["2020","0872","Southeastern Regional Vocational Technical","C74","131210","Early Education and Care",54]
["2020","0872","Southeastern Regional Vocational Technical","C74","150000","Engineering Technology",59]
["2020","0872","Southeastern Regional Vocational Technical","C74","150507","Environmental Science & Technology",44]
["2020","0872","Southeastern Regional Vocational Technical","C74","190203","Marketing",49]
["2020","0872","Southeastern Regional Vocational Technical","C74","430107","Criminal Justice",83]
["2020","0872","Southeastern Regional Vocational Technical","C74","460201","Carpentry",32]
["2020","0872","Southeastern Regional Vocational Technical","C74","460302","Electricity",59]
["2020","0872","Southeastern Regional Vocational Technical","C74","460503","Plumbing",64]
["2020","0872","Southeastern Regional Vocational Technical","C74","470201","Heating - Ventilation  - Air Conditioning -  Refrigeration",49]
["2020","0872","Southeastern Regional Vocational Technical","C74","470603","Automotive Collision Repair & Refinishing",21]
["2020","0872","Southeastern Regional Vocational Technical","C74","470604","Automotive Technology",60]
["2020","0872","Southeastern Regional Vocational Technical","C74","480501","Machine Tool Technology",25]
["2020","0872","Southeastern Regional Vocational Technical","C74","480599","Metal Fabrication & Joining Technologies",38]
["2020","0872","Southeastern Regional Vocational Technical","C74","480703","Cabinetmaking",19]
["2020","0872","Southeastern Regional Vocational Technical","C74","500401","Design & Visual Communications",61]
["2020","0872","Southeastern Regional Vocational Technical","C74","510000","Health Assisting",52]
["2020","0872","Southeastern Regional Vocational Technical","C74","510601","Dental Assisting",54]
["2020","0872","Southeastern Regional Vocational Technical","C74","510801","Medical Assisting",90]
["2020","0872","Southeastern Regional Vocational Technical","C74","990100","Exploratory",388]
["2020","0872","Southeastern Regional Vocational Technical","C74",null,"All Programs",1458]
["2020","0873","South Shore Regional Vocational Technical","C74","010601","Horticulture",21]
["2020","0873","South Shore Regional Vocational Technical","C74","100301","Graphic Communications",27]
["2020","0873","South Shore Regional Vocational Technical","C74","110401","Information Support Services & Networking",38]
["2020","0873","South Shore Regional Vocational Technical","C74","120401","Cosmetology",35]
["2020","0873","South Shore Regional Vocational Technical","C74","120500","Culinary Arts",37]
["2020","0873","South Shore Regional Vocational Technical","C74","150000","Engineering Technology",28]
["2020","0873","South Shore Regional Vocational Technical","C74","150303","Electronics",4]
["2020","0873","South Shore Regional Vocational Technical","C74","460201","Carpentry",47]
["2020","0873","South Shore Regional Vocational Technical","C74","460302","Electricity",49]
["2020","0873","South Shore Regional Vocational Technical","C74","470201","Heating - Ventilation  - Air Conditioning -  Refrigeration",42]
["2020","0873","South Shore Regional Vocational Technical","C74","470603","Automotive Collision Repair & Refinishing",3]
["2020","0873","South Shore Regional Vocational Technical","C74","470604","Automotive Technology",43]
["2020","0873","South Shore Regional Vocational Technical","C74","480501","Machine Tool Technology",5]
["2020","0873","South Shore Regional Vocational Technical","C74","480599","Metal Fabrication & Joining Technologies",47]
["2020","0873","South Shore Regional Vocational Technical","C74","510000","Health Assisting",37]
["2020","0873","South Shore Regional Vocational Technical","C74","990100","Exploratory",170]
["2020","0873","South Shore Regional Vocational Technical","C74",null,"All Programs",633]
["2020","0876","Southern Worcester County Regional Vocational Technical","C74","100301","Graphic Communications",55]
["2020","0876","Southern Worcester County Regional Vocational Technical","C74","110201","Programming & Web Development",54]
["2020","0876","Southern Worcester County Regional Vocational Technical","C74","110401","Information Support Services & Networking",16]
["2020","0876","Southern Worcester County Regional Vocational Technical","C74","120401","Cosmetology",59]
["2020","0876","Southern Worcester County Regional Vocational Technical","C74","120500","Culinary Arts",71]
["2020","0876","Southern Worcester County Regional Vocational Technical","C74","150303","Electronics",18]
["2020","0876","Southern Worcester County Regional Vocational Technical","C74","151301","Drafting",30]
["2020","0876","Southern Worcester County Regional Vocational Technical","C74","190203","Marketing",24]
["2020","0876","Southern Worcester County Regional Vocational Technical","C74","460101","Masonry & Tile Setting",26]
["2020","0876","Southern Worcester County Regional Vocational Technical","C74","460201","Carpentry",54]
["2020","0876","Southern Worcester County Regional Vocational Technical","C74","460302","Electricity",57]
["2020","0876","Southern Worcester County Regional Vocational Technical","C74","460401","Building/Property Maintenance",17]
["2020","0876","Southern Worcester County Regional Vocational Technical","C74","460503","Plumbing",38]
["2020","0876","Southern Worcester County Regional Vocational Technical","C74","470201","Heating - Ventilation  - Air Conditioning -  Refrigeration",30]
["2020","0876","Southern Worcester County Regional Vocational Technical","C74","470603","Automotive Collision Repair & Refinishing",24]
["2020","0876","Southern Worcester County Regional Vocational Technical","C74","470604","Automotive Technology",50]
["2020","0876","Southern Worcester County Regional Vocational Technical","C74","480501","Machine Tool Technology",29]
["2020","0876","Southern Worcester County Regional Vocational Technical","C74","480599","Metal Fabrication & Joining Technologies",28]
["2020","0876","Southern Worcester County Regional Vocational Technical","C74","480703","Cabinetmaking",38]
["2020","0876","Southern Worcester County Regional Vocational Technical","C74","510000","Health Assisting",58]
["2020","0876","Southern Worcester County Regional Vocational Technical","C74","510601","Dental Assisting",29]
["2020","0876","Southern Worcester County Regional Vocational Technical","C74","520407","Business Technology",25]
["2020","0876","Southern Worcester County Regional Vocational Technical","C74","990100","Exploratory",315]
["2020","0876","Southern Worcester County Regional Vocational Technical","C74",null,"All Programs",1145]
["2020","0878","Tri-County Regional Vocational Technical","C74","100301","Graphic Communications",46]
["2020","0878","Tri-County Regional Vocational Technical","C74","110401","Information Support Services & Networking",60]
["2020","0878","Tri-County Regional Vocational Technical","C74","120401","Cosmetology",42]
["2020","0878","Tri-County Regional Vocational Technical","C74","120500","Culinary Arts",46]
["2020","0878","Tri-County Regional Vocational Technical","C74","131210","Early Education and Care",46]
["2020","0878","Tri-County Regional Vocational Technical","C74","150000","Engineering Technology",80]
["2020","0878","Tri-County Regional Vocational Technical","C74","430107","Criminal Justice",45]
["2020","0878","Tri-County Regional Vocational Technical","C74","460201","Carpentry",33]
["2020","0878","Tri-County Regional Vocational Technical","C74","460302","Electricity",50]
["2020","0878","Tri-County Regional Vocational Technical","C74","460503","Plumbing",36]
["2020","0878","Tri-County Regional Vocational Technical","C74","470201","Heating - Ventilation  - Air Conditioning -  Refrigeration",44]
["2020","0878","Tri-County Regional Vocational Technical","C74","470603","Automotive Collision Repair & Refinishing",25]
["2020","0878","Tri-County Regional Vocational Technical","C74","470604","Automotive Technology",40]
["2020","0878","Tri-County Regional Vocational Technical","C74","480599","Metal Fabrication & Joining Technologies",42]
["2020","0878","Tri-County Regional Vocational Technical","C74","510000","Health Assisting",65]
["2020","0878","Tri-County Regional Vocational Technical","C74","510601","Dental Assisting",34]
["2020","0878","Tri-County Regional Vocational Technical","C74","510801","Medical Assisting",6]
["2020","0878","Tri-County Regional Vocational Technical","C74","990100","Exploratory",229]
["2020","0878","Tri-County Regional Vocational Technical","C74",null,"All Programs",969]
["2020","0879","Upper Cape Cod Regional Vocational Technical","C74","010601","Horticulture",44]
["2020","0879","Upper Cape Cod Regional Vocational Technical","C74","110401","Information Support Services & Networking",42]
["2020","0879","Upper Cape Cod Regional Vocational Technical","C74","120401","Cosmetology",33]
["2020","0879","Upper Cape Cod Regional Vocational Technical","C74","120500","Culinary Arts",44]
["2020","0879","Upper Cape Cod Regional Vocational Technical","C74","150000","Engineering Technology",17]
["2020","0879","Upper Cape Cod Regional Vocational Technical","C74","150507","Environmental Science & Technology",39]
["2020","0879","Upper Cape Cod Regional Vocational Technical","C74","460201","Carpentry",38]
["2020","0879","Upper Cape Cod Regional Vocational Technical","C74","460302","Electricity",48]
["2020","0879","Upper Cape Cod Regional Vocational Technical","C74","460503","Plumbing",38]
["2020","0879","Upper Cape Cod Regional Vocational Technical","C74","470201","Heating - Ventilation  - Air Conditioning -  Refrigeration",23]
["2020","0879","Upper Cape Cod Regional Vocational Technical","C74","470603","Automotive Collision Repair & Refinishing",31]
["2020","0879","Upper Cape Cod Regional Vocational Technical","C74","470604","Automotive Technology",31]
["2020","0879","Upper Cape Cod Regional Vocational Technical","C74","470616","Marine Service Technology",40]
["2020","0879","Upper Cape Cod Regional Vocational Technical","C74","510000","Health Assisting",65]
["2020","0879","Upper Cape Cod Regional Vocational Technical","C74","990100","Exploratory",173]
["2020","0879","Upper Cape Cod Regional Vocational Technical","C74",null,"All Programs",706]
["2020","0885","Whittier Regional Vocational Technical","C74","100301","Graphic Communications",34]
["2020","0885","Whittier Regional Vocational Technical","C74","120401","Cosmetology",49]
["2020","0885","Whittier Regional Vocational Technical","C74","120500","Culinary Arts",60]
["2020","0885","Whittier Regional Vocational Technical","C74","131210","Early Education and Care",36]
["2020","0885","Whittier Regional Vocational Technical","C74","150000","Engineering Technology",37]
["2020","0885","Whittier Regional Vocational Technical","C74","150303","Electronics",19]
["2020","0885","Whittier Regional Vocational Technical","C74","151301","Drafting",43]
["2020","0885","Whittier Regional Vocational Technical","C74","190203","Marketing",44]
["2020","0885","Whittier Regional Vocational Technical","C74","460101","Masonry & Tile Setting",18]
["2020","0885","Whittier Regional Vocational Technical","C74","460201","Carpentry",64]
["2020","0885","Whittier Regional Vocational Technical","C74","460302","Electricity",111]
["2020","0885","Whittier Regional Vocational Technical","C74","460503","Plumbing",71]
["2020","0885","Whittier Regional Vocational Technical","C74","470201","Heating - Ventilation  - Air Conditioning -  Refrigeration",36]
["2020","0885","Whittier Regional Vocational Technical","C74","470603","Automotive Collision Repair & Refinishing",22]
["2020","0885","Whittier Regional Vocational Technical","C74","470604","Automotive Technology",16]
["2020","0885","Whittier Regional Vocational Technical","C74","480501","Machine Tool Technology",12]
["2020","0885","Whittier Regional Vocational Technical","C74","480599","Metal Fabrication & Joining Technologies",60]
["2020","0885","Whittier Regional Vocational Technical","C74","500401","Design & Visual Communications",17]
["2020","0885","Whittier Regional Vocational Technical","C74","510000","Health Assisting",69]
["2020","0885","Whittier Regional Vocational Technical","C74","510601","Dental Assisting",36]
["2020","0885","Whittier Regional Vocational Technical","C74","510801","Medical Assisting",35]
["2020","0885","Whittier Regional Vocational Technical","C74","520407","Business Technology",7]
["2020","0885","Whittier Regional Vocational Technical","C74","520901","Hospitality Management",6]
["2020","0885","Whittier Regional Vocational Technical","C74","990100","Exploratory",352]
["2020","0885","Whittier Regional Vocational Technical","C74",null,"All Programs",1254]
["2020","0910","Bristol County Agricultural","C74","010201","Agricultural Mechanics",48]
["2020","0910","Bristol County Agricultural","C74","010599","Animal Science",103]
["2020","0910","Bristol County Agricultural","C74","010601","Horticulture",126]
["2020","0910","Bristol County Agricultural","C74","150507","Environmental Science & Technology",51]
["2020","0910","Bristol County Agricultural","C74","990100","Exploratory",123]
["2020","0910","Bristol County Agricultural","C74",null,"All Programs",451]
["2020","0915","Norfolk County Agricultural","C74","010201","Agricultural Mechanics",83]
["2020","0915","Norfolk County Agricultural","C74","010599","Animal Science",218]
["2020","0915","Norfolk County Agricultural","C74","010601","Horticulture",67]
["2020","0915","Norfolk County Agricultural","C74","150507","Environmental Science & Technology",37]
["2020","0915","Norfolk County Agricultural","C74","990100","Exploratory",146]
["2020","0915","Norfolk County Agricultural","C74",null,"All Programs",551]
["2020","1114","Lower Pioneer Valley Educational Collaborative","C74","010601","Horticulture",29]
["2020","1114","Lower Pioneer Valley Educational Collaborative","C74","100301","Graphic Communications",14]
["2020","1114","Lower Pioneer Valley Educational Collaborative","C74","110401","Information Support Services & Networking",26]
["2020","1114","Lower Pioneer Valley Educational Collaborative","C74","120401","Cosmetology",46]
["2020","1114","Lower Pioneer Valley Educational Collaborative","C74","120500","Culinary Arts",54]
["2020","1114","Lower Pioneer Valley Educational Collaborative","C74","131210","Early Education and Care",12]
["2020","1114","Lower Pioneer Valley Educational Collaborative","C74","460201","Carpentry",45]
["2020","1114","Lower Pioneer Valley Educational Collaborative","C74","460401","Building/Property Maintenance",13]
["2020","1114","Lower Pioneer Valley Educational Collaborative","C74","470604","Automotive Technology",19]
["2020","1114","Lower Pioneer Valley Educational Collaborative","C74","480501","Machine Tool Technology",35]
["2020","1114","Lower Pioneer Valley Educational Collaborative","C74","500401","Design & Visual Communications",12]
["2020","1114","Lower Pioneer Valley Educational Collaborative","C74","510000","Health Assisting",21]
["2020","1114","Lower Pioneer Valley Educational Collaborative","C74","990100","Exploratory",161]
["2020","1114","Lower Pioneer Valley Educational Collaborative","C74",null,"All Programs",487]
["12 (2018-2019)","1203","Berkshire CC","N/A","AGRI","Agriculture, Food & Natural Resources",29]
["12 (2018-2019)","1203","Berkshire CC","N/A","ARCH","Architecture & Construction",0]
["12 (2018-2019)","1203","Berkshire CC","N/A","ARTS","Arts, A/V Technology, & Communications",39]
["12 (2018-2019)","1203","Berkshire CC","N/A","BUS","Business Management, & Administration",123]
["12 (2018-2019)","1203","Berkshire CC","N/A","EDUC","Education & Training",75]
["12 (2018-2019)","1203","Berkshire CC","N/A","FINANCE","Finance",0]
["12 (2018-2019)","1203","Berkshire CC","N/A","GOV","Government & Public Administration",0]
["12 (2018-2019)","1203","Berkshire CC","N/A","HEALTH","Health Science",407]
["12 (2018-2019)","1203","Berkshire CC","N/A","HOSP","Hosplitality & Tourism",23]
["12 (2018-2019)","1203","Berkshire CC","N/A","HUMAN","Human Services",58]
["12 (2018-2019)","1203","Berkshire CC","N/A","INFO","Information Technology",49]
["12 (2018-2019)","1203","Berkshire CC","N/A","LAW","Law, Public Safety & Security",68]
["12 (2018-2019)","1203","Berkshire CC","N/A","MANUFAC","Manufacturing",9]
["12 (2018-2019)","1203","Berkshire CC","N/A","MKT","Marketing Sales & Services",0]
["12 (2018-2019)","1203","Berkshire CC","N/A","SCI","Science, Technology, Engineering & Math",53]
["12 (2018-2019)","1203","Berkshire CC","N/A","TRANSP","Transportation, Distribution & Logistics",0]
["12 (2018-2019)","1205","Bristol CC","N/A","AGRI","Agriculture, Food & Natural Resources",2]
["12 (2018-2019)","1205","Bristol CC","N/A","ARCH","Architecture & Construction",0]
["12 (2018-2019)","1205","Bristol CC","N/A","ARTS","Arts, A/V Technology, & Communications",3]
["12 (2018-2019)","1205","Bristol CC","N/A","BUS","Business Management, & Administration",0]
["12 (2018-2019)","1205","Bristol CC","N/A","EDUC","Education & Training",196]
["12 (2018-2019)","1205","Bristol CC","N/A","FINANCE","Finance",0]
["12 (2018-2019)","1205","Bristol CC","N/A","GOV","Government & Public Administration",0]
["12 (2018-2019)","1205","Bristol CC","N/A","HEALTH","Health Science",17]
["12 (2018-2019)","1205","Bristol CC","N/A","HOSP","Hosplitality & Tourism",12]
["12 (2018-2019)","1205","Bristol CC","N/A","HUMAN","Human Services",8]
["12 (2018-2019)","1205","Bristol CC","N/A","INFO","Information Technology",5]
["12 (2018-2019)","1205","Bristol CC","N/A","LAW","Law, Public Safety & Security",0]
["12 (2018-2019)","1205","Bristol CC","N/A","MANUFAC","Manufacturing",0]
["12 (2018-2019)","1205","Bristol CC","N/A","MKT","Marketing Sales & Services",0]
["12 (2018-2019)","1205","Bristol CC","N/A","SCI","Science, Technology, Engineering & Math",57]
["12 (2018-2019)","1205","Bristol CC","N/A","TRANSP","Transportation, Distribution & Logistics",0]
["12 (2018-2019)","1206","Bunker Hill CC","N/A","AGRI","Agriculture, Food & Natural Resources",44]
["12 (2018-2019)","1206","Bunker Hill CC","N/A","ARCH","Architecture & Construction",37]
["12 (2018-2019)","1206","Bunker Hill CC","N/A","ARTS","Arts, A/V Technology, & Communications",306]
["12 (2018-2019)","1206","Bunker Hill CC","N/A","BUS","Business Management, & Administration",1441]
["12 (2018-2019)","1206","Bunker Hill CC","N/A","EDUC","Education & Training",407]
["12 (2018-2019)","1206","Bunker Hill CC","N/A","FINANCE","Finance",545]
["12 (2018-2019)","1206","Bunker Hill CC","N/A","GOV","Government & Public Administration",0]
["12 (2018-2019)","1206","Bunker Hill CC","N/A","HEALTH","Health Science",584]
["12 (2018-2019)","1206","Bunker Hill CC","N/A","HOSP","Hosplitality & Tourism",312]
["12 (2018-2019)","1206","Bunker Hill CC","N/A","HUMAN","Human Services",236]
["12 (2018-2019)","1206","Bunker Hill CC","N/A","INFO","Information Technology",1318]
["12 (2018-2019)","1206","Bunker Hill CC","N/A","LAW","Law, Public Safety & Security",612]
["12 (2018-2019)","1206","Bunker Hill CC","N/A","MANUFAC","Manufacturing",0]
["12 (2018-2019)","1206","Bunker Hill CC","N/A","MKT","Marketing Sales & Services",101]
["12 (2018-2019)","1206","Bunker Hill CC","N/A","SCI","Science, Technology, Engineering & Math",609]
["12 (2018-2019)","1206","Bunker Hill CC","N/A","TRANSP","Transportation, Distribution & Logistics",0]
["12 (2018-2019)","1207","Cape Cod CC","N/A","AGRI","Agriculture, Food & Natural Resources",29]
["12 (2018-2019)","1207","Cape Cod CC","N/A","ARCH","Architecture & Construction",3]
["12 (2018-2019)","1207","Cape Cod CC","N/A","ARTS","Arts, A/V Technology, & Communications",46]
["12 (2018-2019)","1207","Cape Cod CC","N/A","BUS","Business Management, & Administration",163]
["12 (2018-2019)","1207","Cape Cod CC","N/A","EDUC","Education & Training",33]
["12 (2018-2019)","1207","Cape Cod CC","N/A","FINANCE","Finance",0]
["12 (2018-2019)","1207","Cape Cod CC","N/A","GOV","Government & Public Administration",0]
["12 (2018-2019)","1207","Cape Cod CC","N/A","HEALTH","Health Science",238]
["12 (2018-2019)","1207","Cape Cod CC","N/A","HOSP","Hosplitality & Tourism",26]
["12 (2018-2019)","1207","Cape Cod CC","N/A","HUMAN","Human Services",45]
["12 (2018-2019)","1207","Cape Cod CC","N/A","INFO","Information Technology",65]
["12 (2018-2019)","1207","Cape Cod CC","N/A","LAW","Law, Public Safety & Security",75]
["12 (2018-2019)","1207","Cape Cod CC","N/A","MANUFAC","Manufacturing",0]
["12 (2018-2019)","1207","Cape Cod CC","N/A","MKT","Marketing Sales & Services",5]
["12 (2018-2019)","1207","Cape Cod CC","N/A","SCI","Science, Technology, Engineering & Math",30]
["12 (2018-2019)","1207","Cape Cod CC","N/A","TRANSP","Transportation, Distribution & Logistics",5]
["12 (2018-2019)","1210","Holyoke CC","N/A","AGRI","Agriculture, Food & Natural Resources",28]
["12 (2018-2019)","1210","Holyoke CC","N/A","ARCH","Architecture & Construction"]
["12 (2018-2019)","1210","Holyoke CC","N/A","ARTS","Arts, A/V Technology, & Communications",99]
["12 (2018-2019)","1210","Holyoke CC","N/A","BUS","Business Management, & Administration",333]
["12 (2018-2019)","1210","Holyoke CC","N/A","EDUC","Education & Training",258]
["12 (2018-2019)","1210","Holyoke CC","N/A","FINANCE","Finance",27]
["12 (2018-2019)","1210","Holyoke CC","N/A","GOV","Government & Public Administration"]
["12 (2018-2019)","1210","Holyoke CC","N/A","HEALTH","Health Science",454]
["12 (2018-2019)","1210","Holyoke CC","N/A","HOSP","Hosplitality & Tourism",57]
["12 (2018-2019)","1210","Holyoke CC","N/A","HUMAN","Human Services",175]
["12 (2018-2019)","1210","Holyoke CC","N/A","INFO","Information Technology",99]
["12 (2018-2019)","1210","Holyoke CC","N/A","LAW","Law, Public Safety & Security",158]
["12 (2018-2019)","1210","Holyoke CC","N/A","MANUFAC","Manufacturing"]
["12 (2018-2019)","1210","Holyoke CC","N/A","MKT","Marketing Sales & Services",8]
["12 (2018-2019)","1210","Holyoke CC","N/A","SCI","Science, Technology, Engineering & Math",170]
["12 (2018-2019)","1210","Holyoke CC","N/A","TRANSP","Transportation, Distribution & Logistics"]
["12 (2018-2019)","1211","Massachusetts Bay CC","N/A","AGRI","Agriculture, Food & Natural Resources",0]
["12 (2018-2019)","1211","Massachusetts Bay CC","N/A","ARCH","Architecture & Construction",0]
["12 (2018-2019)","1211","Massachusetts Bay CC","N/A","ARTS","Arts, A/V Technology, & Communications",54]
["12 (2018-2019)","1211","Massachusetts Bay CC","N/A","BUS","Business Management, & Administration",374]
["12 (2018-2019)","1211","Massachusetts Bay CC","N/A","EDUC","Education & Training",608]
["12 (2018-2019)","1211","Massachusetts Bay CC","N/A","FINANCE","Finance",0]
["12 (2018-2019)","1211","Massachusetts Bay CC","N/A","GOV","Government & Public Administration",0]
["12 (2018-2019)","1211","Massachusetts Bay CC","N/A","HEALTH","Health Science",130]
["12 (2018-2019)","1211","Massachusetts Bay CC","N/A","HOSP","Hosplitality & Tourism",21]
["12 (2018-2019)","1211","Massachusetts Bay CC","N/A","HUMAN","Human Services",47]
["12 (2018-2019)","1211","Massachusetts Bay CC","N/A","INFO","Information Technology",146]
["12 (2018-2019)","1211","Massachusetts Bay CC","N/A","LAW","Law, Public Safety & Security",108]
["12 (2018-2019)","1211","Massachusetts Bay CC","N/A","MANUFAC","Manufacturing",0]
["12 (2018-2019)","1211","Massachusetts Bay CC","N/A","MKT","Marketing Sales & Services",0]
["12 (2018-2019)","1211","Massachusetts Bay CC","N/A","SCI","Science, Technology, Engineering & Math",238]
["12 (2018-2019)","1211","Massachusetts Bay CC","N/A","TRANSP","Transportation, Distribution & Logistics",102]
["12 (2018-2019)","1213","Massasoit CC","N/A","AGRI","Agriculture, Food & Natural Resources",0]
["12 (2018-2019)","1213","Massasoit CC","N/A","ARCH","Architecture & Construction",37]
["12 (2018-2019)","1213","Massasoit CC","N/A","ARTS","Arts, A/V Technology, & Communications",165]
["12 (2018-2019)","1213","Massasoit CC","N/A","BUS","Business Management, & Administration",551]
["12 (2018-2019)","1213","Massasoit CC","N/A","EDUC","Education & Training",48]
["12 (2018-2019)","1213","Massasoit CC","N/A","FINANCE","Finance",0]
["12 (2018-2019)","1213","Massasoit CC","N/A","GOV","Government & Public Administration",0]
["12 (2018-2019)","1213","Massasoit CC","N/A","HEALTH","Health Science",381]
["12 (2018-2019)","1213","Massasoit CC","N/A","HOSP","Hosplitality & Tourism",66]
["12 (2018-2019)","1213","Massasoit CC","N/A","HUMAN","Human Services",237]
["12 (2018-2019)","1213","Massasoit CC","N/A","INFO","Information Technology",181]
["12 (2018-2019)","1213","Massasoit CC","N/A","LAW","Law, Public Safety & Security",331]
["12 (2018-2019)","1213","Massasoit CC","N/A","MANUFAC","Manufacturing",14]
["12 (2018-2019)","1213","Massasoit CC","N/A","MKT","Marketing Sales & Services",28]
["12 (2018-2019)","1213","Massasoit CC","N/A","SCI","Science, Technology, Engineering & Math",1092]
["12 (2018-2019)","1213","Massasoit CC","N/A","TRANSP","Transportation, Distribution & Logistics",22]
["12 (2018-2019)","1214","Middlesex CC","N/A","AGRI","Agriculture, Food & Natural Resources",0]
["12 (2018-2019)","1214","Middlesex CC","N/A","ARCH","Architecture & Construction",2]
["12 (2018-2019)","1214","Middlesex CC","N/A","ARTS","Arts, A/V Technology, & Communications",112]
["12 (2018-2019)","1214","Middlesex CC","N/A","BUS","Business Management, & Administration",684]
["12 (2018-2019)","1214","Middlesex CC","N/A","EDUC","Education & Training",344]
["12 (2018-2019)","1214","Middlesex CC","N/A","FINANCE","Finance",0]
["12 (2018-2019)","1214","Middlesex CC","N/A","GOV","Government & Public Administration",0]
["12 (2018-2019)","1214","Middlesex CC","N/A","HEALTH","Health Science",749]
["12 (2018-2019)","1214","Middlesex CC","N/A","HOSP","Hosplitality & Tourism",44]
["12 (2018-2019)","1214","Middlesex CC","N/A","HUMAN","Human Services",0]
["12 (2018-2019)","1214","Middlesex CC","N/A","INFO","Information Technology",274]
["12 (2018-2019)","1214","Middlesex CC","N/A","LAW","Law, Public Safety & Security",305]
["12 (2018-2019)","1214","Middlesex CC","N/A","MANUFAC","Manufacturing",29]
["12 (2018-2019)","1214","Middlesex CC","N/A","MKT","Marketing Sales & Services",24]
["12 (2018-2019)","1214","Middlesex CC","N/A","SCI","Science, Technology, Engineering & Math",245]
["12 (2018-2019)","1214","Middlesex CC","N/A","TRANSP","Transportation, Distribution & Logistics",9]
["12 (2018-2019)","1215","Mount Wachusett CC","N/A","AGRI","Agriculture, Food & Natural Resources",23]
["12 (2018-2019)","1215","Mount Wachusett CC","N/A","ARCH","Architecture & Construction",0]
["12 (2018-2019)","1215","Mount Wachusett CC","N/A","ARTS","Arts, A/V Technology, & Communications",80]
["12 (2018-2019)","1215","Mount Wachusett CC","N/A","BUS","Business Management, & Administration",278]
["12 (2018-2019)","1215","Mount Wachusett CC","N/A","EDUC","Education & Training",0]
["12 (2018-2019)","1215","Mount Wachusett CC","N/A","FINANCE","Finance",0]
["12 (2018-2019)","1215","Mount Wachusett CC","N/A","GOV","Government & Public Administration",0]
["12 (2018-2019)","1215","Mount Wachusett CC","N/A","HEALTH","Health Science",898]
["12 (2018-2019)","1215","Mount Wachusett CC","N/A","HOSP","Hosplitality & Tourism",0]
["12 (2018-2019)","1215","Mount Wachusett CC","N/A","HUMAN","Human Services",207]
["12 (2018-2019)","1215","Mount Wachusett CC","N/A","INFO","Information Technology",128]
["12 (2018-2019)","1215","Mount Wachusett CC","N/A","LAW","Law, Public Safety & Security",136]
["12 (2018-2019)","1215","Mount Wachusett CC","N/A","MANUFAC","Manufacturing",9]
["12 (2018-2019)","1215","Mount Wachusett CC","N/A","MKT","Marketing Sales & Services",0]
["12 (2018-2019)","1215","Mount Wachusett CC","N/A","SCI","Science, Technology, Engineering & Math",3]
["12 (2018-2019)","1215","Mount Wachusett CC","N/A","TRANSP","Transportation, Distribution & Logistics",23]
["12 (2018-2019)","1218","Greenfield CC","N/A","AGRI","Agriculture, Food & Natural Resources",37]
["12 (2018-2019)","1218","Greenfield CC","N/A","ARCH","Architecture & Construction",0]
["12 (2018-2019)","1218","Greenfield CC","N/A","ARTS","Arts, A/V Technology, & Communications",52]
["12 (2018-2019)","1218","Greenfield CC","N/A","BUS","Business Management, & Administration",85]
["12 (2018-2019)","1218","Greenfield CC","N/A","EDUC","Education & Training",29]
["12 (2018-2019)","1218","Greenfield CC","N/A","FINANCE","Finance",15]
["12 (2018-2019)","1218","Greenfield CC","N/A","GOV","Government & Public Administration",0]
["12 (2018-2019)","1218","Greenfield CC","N/A","HEALTH","Health Science",301]
["12 (2018-2019)","1218","Greenfield CC","N/A","HOSP","Hosplitality & Tourism",5]
["12 (2018-2019)","1218","Greenfield CC","N/A","HUMAN","Human Services",21]
["12 (2018-2019)","1218","Greenfield CC","N/A","INFO","Information Technology",34]
["12 (2018-2019)","1218","Greenfield CC","N/A","LAW","Law, Public Safety & Security",48]
["12 (2018-2019)","1218","Greenfield CC","N/A","MANUFAC","Manufacturing",0]
["12 (2018-2019)","1218","Greenfield CC","N/A","MKT","Marketing Sales & Services",3]
["12 (2018-2019)","1218","Greenfield CC","N/A","SCI","Science, Technology, Engineering & Math",58]
["12 (2018-2019)","1218","Greenfield CC","N/A","TRANSP","Transportation, Distribution & Logistics",0]
["12 (2018-2019)","1225","North Shore CC","N/A","AGRI","Agriculture, Food & Natural Resources",105]
["12 (2018-2019)","1225","North Shore CC","N/A","ARCH","Architecture & Construction",0]
["12 (2018-2019)","1225","North Shore CC","N/A","ARTS","Arts, A/V Technology, & Communications",45]
["12 (2018-2019)","1225","North Shore CC","N/A","BUS","Business Management, & Administration",98]
["12 (2018-2019)","1225","North Shore CC","N/A","EDUC","Education & Training",324]
["12 (2018-2019)","1225","North Shore CC","N/A","FINANCE","Finance",0]
["12 (2018-2019)","1225","North Shore CC","N/A","GOV","Government & Public Administration",0]
["12 (2018-2019)","1225","North Shore CC","N/A","HEALTH","Health Science",861]
["12 (2018-2019)","1225","North Shore CC","N/A","HOSP","Hosplitality & Tourism",30]
["12 (2018-2019)","1225","North Shore CC","N/A","HUMAN","Human Services",258]
["12 (2018-2019)","1225","North Shore CC","N/A","INFO","Information Technology",142]
["12 (2018-2019)","1225","North Shore CC","N/A","LAW","Law, Public Safety & Security",289]
["12 (2018-2019)","1225","North Shore CC","N/A","MANUFAC","Manufacturing",0]
["12 (2018-2019)","1225","North Shore CC","N/A","MKT","Marketing Sales & Services",12]
["12 (2018-2019)","1225","North Shore CC","N/A","SCI","Science, Technology, Engineering & Math",93]
["12 (2018-2019)","1225","North Shore CC","N/A","TRANSP","Transportation, Distribution & Logistics",29]
["12 (2018-2019)","1230","Northern Essex CC","N/A","AGRI","Agriculture, Food & Natural Resources",0]
["12 (2018-2019)","1230","Northern Essex CC","N/A","ARCH","Architecture & Construction",3]
["12 (2018-2019)","1230","Northern Essex CC","N/A","ARTS","Arts, A/V Technology, & Communications",106]
["12 (2018-2019)","1230","Northern Essex CC","N/A","BUS","Business Management, & Administration",420]
["12 (2018-2019)","1230","Northern Essex CC","N/A","EDUC","Education & Training",217]
["12 (2018-2019)","1230","Northern Essex CC","N/A","FINANCE","Finance",70]
["12 (2018-2019)","1230","Northern Essex CC","N/A","GOV","Government & Public Administration",0]
["12 (2018-2019)","1230","Northern Essex CC","N/A","HEALTH","Health Science",885]
["12 (2018-2019)","1230","Northern Essex CC","N/A","HOSP","Hosplitality & Tourism",11]
["12 (2018-2019)","1230","Northern Essex CC","N/A","HUMAN","Human Services",53]
["12 (2018-2019)","1230","Northern Essex CC","N/A","INFO","Information Technology",140]
["12 (2018-2019)","1230","Northern Essex CC","N/A","LAW","Law, Public Safety & Security",157]
["12 (2018-2019)","1230","Northern Essex CC","N/A","MANUFAC","Manufacturing",55]
["12 (2018-2019)","1230","Northern Essex CC","N/A","MKT","Marketing Sales & Services",0]
["12 (2018-2019)","1230","Northern Essex CC","N/A","SCI","Science, Technology, Engineering & Math",259]
["12 (2018-2019)","1230","Northern Essex CC","N/A","TRANSP","Transportation, Distribution & Logistics",2]
["12 (2018-2019)","1240","Quinsigamond CC","N/A","AGRI","Agriculture, Food & Natural Resources",15]
["12 (2018-2019)","1240","Quinsigamond CC","N/A","ARCH","Architecture & Construction",23]
["12 (2018-2019)","1240","Quinsigamond CC","N/A","ARTS","Arts, A/V Technology, & Communications",27]
["12 (2018-2019)","1240","Quinsigamond CC","N/A","BUS","Business Management, & Administration",646]
["12 (2018-2019)","1240","Quinsigamond CC","N/A","EDUC","Education & Training",240]
["12 (2018-2019)","1240","Quinsigamond CC","N/A","FINANCE","Finance",23]
["12 (2018-2019)","1240","Quinsigamond CC","N/A","GOV","Government & Public Administration",0]
["12 (2018-2019)","1240","Quinsigamond CC","N/A","HEALTH","Health Science",1572]
["12 (2018-2019)","1240","Quinsigamond CC","N/A","HOSP","Hosplitality & Tourism",32]
["12 (2018-2019)","1240","Quinsigamond CC","N/A","HUMAN","Human Services",155]
["12 (2018-2019)","1240","Quinsigamond CC","N/A","INFO","Information Technology",317]
["12 (2018-2019)","1240","Quinsigamond CC","N/A","LAW","Law, Public Safety & Security",281]
["12 (2018-2019)","1240","Quinsigamond CC","N/A","MANUFAC","Manufacturing",185]
["12 (2018-2019)","1240","Quinsigamond CC","N/A","MKT","Marketing Sales & Services",0]
["12 (2018-2019)","1240","Quinsigamond CC","N/A","SCI","Science, Technology, Engineering & Math",241]
["12 (2018-2019)","1240","Quinsigamond CC","N/A","TRANSP","Transportation, Distribution & Logistics",27]
["12 (2018-2019)","1245","Roxbury CC","N/A","AGRI","Agriculture, Food & Natural Resources",0]
["12 (2018-2019)","1245","Roxbury CC","N/A","ARCH","Architecture & Construction",4]
["12 (2018-2019)","1245","Roxbury CC","N/A","ARTS","Arts, A/V Technology, & Communications",0]
["12 (2018-2019)","1245","Roxbury CC","N/A","BUS","Business Management, & Administration",23]
["12 (2018-2019)","1245","Roxbury CC","N/A","EDUC","Education & Training",16]
["12 (2018-2019)","1245","Roxbury CC","N/A","FINANCE","Finance",0]
["12 (2018-2019)","1245","Roxbury CC","N/A","GOV","Government & Public Administration",0]
["12 (2018-2019)","1245","Roxbury CC","N/A","HEALTH","Health Science",213]
["12 (2018-2019)","1245","Roxbury CC","N/A","HOSP","Hosplitality & Tourism",0]
["12 (2018-2019)","1245","Roxbury CC","N/A","HUMAN","Human Services",0]
["12 (2018-2019)","1245","Roxbury CC","N/A","INFO","Information Technology",27]
["12 (2018-2019)","1245","Roxbury CC","N/A","LAW","Law, Public Safety & Security",16]
["12 (2018-2019)","1245","Roxbury CC","N/A","MANUFAC","Manufacturing",0]
["12 (2018-2019)","1245","Roxbury CC","N/A","MKT","Marketing Sales & Services",1]
["12 (2018-2019)","1245","Roxbury CC","N/A","SCI","Science, Technology, Engineering & Math",45]
["12 (2018-2019)","1245","Roxbury CC","N/A","TRANSP","Transportation, Distribution & Logistics",0]
["12 (2018-2019)","1257","Springfield Tech CC","N/A","AGRI","Agriculture, Food & Natural Resources",11]
["12 (2018-2019)","1257","Springfield Tech CC","N/A","ARCH","Architecture & Construction",39]
["12 (2018-2019)","1257","Springfield Tech CC","N/A","ARTS","Arts, A/V Technology, & Communications",75]
["12 (2018-2019)","1257","Springfield Tech CC","N/A","BUS","Business Management, & Administration",217]
["12 (2018-2019)","1257","Springfield Tech CC","N/A","EDUC","Education & Training",28]
["12 (2018-2019)","1257","Springfield Tech CC","N/A","FINANCE","Finance",0]
["12 (2018-2019)","1257","Springfield Tech CC","N/A","GOV","Government & Public Administration",0]
["12 (2018-2019)","1257","Springfield Tech CC","N/A","HEALTH","Health Science",474]
["12 (2018-2019)","1257","Springfield Tech CC","N/A","HOSP","Hosplitality & Tourism",0]
["12 (2018-2019)","1257","Springfield Tech CC","N/A","HUMAN","Human Services",1]
["12 (2018-2019)","1257","Springfield Tech CC","N/A","INFO","Information Technology",95]
["12 (2018-2019)","1257","Springfield Tech CC","N/A","LAW","Law, Public Safety & Security",158]
["12 (2018-2019)","1257","Springfield Tech CC","N/A","MANUFAC","Manufacturing",148]
["12 (2018-2019)","1257","Springfield Tech CC","N/A","MKT","Marketing Sales & Services",10]
["12 (2018-2019)","1257","Springfield Tech CC","N/A","SCI","Science, Technology, Engineering & Math",0]
["12 (2018-2019)","1257","Springfield Tech CC","N/A","TRANSP","Transportation, Distribution & Logistics",14]
["12 (2018-2019)","1299","Perkins Postsecondary Consortium","N/A","AGRI","Agriculture, Food & Natural Resources",0]
["12 (2018-2019)","1299","Perkins Postsecondary Consortium","N/A","ARCH","Architecture & Construction",19]
["12 (2018-2019)","1299","Perkins Postsecondary Consortium","N/A","ARTS","Arts, A/V Technology, & Communications",0]
["12 (2018-2019)","1299","Perkins Postsecondary Consortium","N/A","BUS","Business Management, & Administration",0]
["12 (2018-2019)","1299","Perkins Postsecondary Consortium","N/A","EDUC","Education & Training",0]
["12 (2018-2019)","1299","Perkins Postsecondary Consortium","N/A","FINANCE","Finance",0]
["12 (2018-2019)","1299","Perkins Postsecondary Consortium","N/A","GOV","Government & Public Administration",0]
["12 (2018-2019)","1299","Perkins Postsecondary Consortium","N/A","HEALTH","Health Science",602]
["12 (2018-2019)","1299","Perkins Postsecondary Consortium","N/A","HOSP","Hosplitality & Tourism",17]
["12 (2018-2019)","1299","Perkins Postsecondary Consortium","N/A","HUMAN","Human Services",16]
["12 (2018-2019)","1299","Perkins Postsecondary Consortium","N/A","INFO","Information Technology",0]
["12 (2018-2019)","1299","Perkins Postsecondary Consortium","N/A","LAW","Law, Public Safety & Security",0]
["12 (2018-2019)","1299","Perkins Postsecondary Consortium","N/A","MANUFAC","Manufacturing",0]
["12 (2018-2019)","1299","Perkins Postsecondary Consortium","N/A","MKT","Marketing Sales & Services",0]
["12 (2018-2019)","1299","Perkins Postsecondary Consortium","N/A","SCI","Science, Technology, Engineering & Math",0]
["12 (2018-2019)","1299","Perkins Postsecondary Consortium","N/A","TRANSP","Transportation, Distribution & Logistics",0]
["12 (2018-2019)","2032","Franklin Institute","N/A","AGRI","Agriculture, Food & Natural Resources",0]
["12 (2018-2019)","2032","Franklin Institute","N/A","ARCH","Architecture & Construction",48]
["12 (2018-2019)","2032","Franklin Institute","N/A","ARTS","Arts, A/V Technology, & Communications",0]
["12 (2018-2019)","2032","Franklin Institute","N/A","BUS","Business Management, & Administration",7]
["12 (2018-2019)","2032","Franklin Institute","N/A","EDUC","Education & Training",0]
["12 (2018-2019)","2032","Franklin Institute","N/A","FINANCE","Finance",0]
["12 (2018-2019)","2032","Franklin Institute","N/A","GOV","Government & Public Administration",0]
["12 (2018-2019)","2032","Franklin Institute","N/A","HEALTH","Health Science",15]
["12 (2018-2019)","2032","Franklin Institute","N/A","HOSP","Hosplitality & Tourism",0]
["12 (2018-2019)","2032","Franklin Institute","N/A","HUMAN","Human Services",0]
["12 (2018-2019)","2032","Franklin Institute","N/A","INFO","Information Technology",27]
["12 (2018-2019)","2032","Franklin Institute","N/A","LAW","Law, Public Safety & Security",0]
["12 (2018-2019)","2032","Franklin Institute","N/A","MANUFAC","Manufacturing",109]
["12 (2018-2019)","2032","Franklin Institute","N/A","MKT","Marketing Sales & Services",0]
["12 (2018-2019)","2032","Franklin Institute","N/A","SCI","Science, Technology, Engineering & Math",9]
["12 (2018-2019)","2032","Franklin Institute","N/A","TRANSP","Transportation, Distribution & Logistics",85]
["12 (2018-2019)","3235","Quincy College","N/A","AGRI","Agriculture, Food & Natural Resources",1]
["12 (2018-2019)","3235","Quincy College","N/A","ARCH","Architecture & Construction",0]
["12 (2018-2019)","3235","Quincy College","N/A","ARTS","Arts, A/V Technology, & Communications",9]
["12 (2018-2019)","3235","Quincy College","N/A","BUS","Business Management, & Administration",363]
["12 (2018-2019)","3235","Quincy College","N/A","EDUC","Education & Training",620]
["12 (2018-2019)","3235","Quincy College","N/A","FINANCE","Finance",93]
["12 (2018-2019)","3235","Quincy College","N/A","GOV","Government & Public Administration",0]
["12 (2018-2019)","3235","Quincy College","N/A","HEALTH","Health Science",236]
["12 (2018-2019)","3235","Quincy College","N/A","HOSP","Hosplitality & Tourism",0]
["12 (2018-2019)","3235","Quincy College","N/A","HUMAN","Human Services",120]
["12 (2018-2019)","3235","Quincy College","N/A","INFO","Information Technology",179]
["12 (2018-2019)","3235","Quincy College","N/A","LAW","Law, Public Safety & Security",203]
["12 (2018-2019)","3235","Quincy College","N/A","MANUFAC","Manufacturing",33]
["12 (2018-2019)","3235","Quincy College","N/A","MKT","Marketing Sales & Services",0]
["12 (2018-2019)","3235","Quincy College","N/A","SCI","Science, Technology, Engineering & Math",94]
["12 (2018-2019)","3235","Quincy College","N/A","TRANSP","Transportation, Distribution & Logistics",0]